{"text_format":"3","workbook":"xlsx","n_sheets":4,"sheets":["Pojasnila k obrazcu","Oprema","Klasifikacija - Uni-Leeds","Klasifikacij MERIL"],"not_rendered":{"defined_names":5},"read":"whole","date_system":"1900"}

{"sheet":"Pojasnila k obrazcu","index":0,"n_rows":20,"n_cols":2,"rows_kept":20,"merged":[[0,0,0,1]]}
["Pojasnila k obrazcu"]
[]
["Splošno","Obrazec je opredeljen s Pravili za oblikovanje cen za uporabo raziskovalne opreme, obveščanje in poročanje o uporabi raziskovalne opreme, št. 007-3/2019-1 z dne 23. 1. 2019."]
[]
["Klasifikacija","ARRS spremlja dve klasifikaciji opreme:"]
[null,"Klasifikacijo opreme je razvila Univerza v Leedsu, VB.  Spletna stran je:"]
[null,"http://researchsupport.leeds.ac.uk/index.php/academic_staff/research_equipment_infrastructure/"]
[null,"MERIL klasifikacija predstavlja pregled najodličnejše evropske raziskovalne infrastrukture; več o tem na "]
[null,"http://portal.meril.eu/converis-esf/static/about"]
[null,"Pripombe ali predloge k klasifikaciji ali k prevodu v slovenščino prosimo javite na ARRS."]
[]
["SICRIS","Polja z zelenim ozadjem v zavihku Oprema-Equipment so lahko objavljena na SICRIS."]
[]
["Cena uporabe opreme","Ceno uporabe in lastno ceno (stolpca 17 in 21) navedete za izučenega uporabnika."]
[]
["Stroški dela za operaterja","Če je uporaba možna ali predpisana z operaterjem, ceno operaterja DODATNO navedite v stolpcu \"Stroški dela za operaterja (se prištejejo ceni za uporabo za neizučene uporabnike)\"."]
[null,"V tem primeru je cena uporabe enaka \n(ceni uporabe za izučenega uporabnika) + (stroški dela za operaterja)."]
[null,"Cene uporabe ne pišete v druga polja, npr. \"Dostop do opreme\"."]
[]
["Cena na uro","Ceno vedno navedite preračunano na uro, tudi če meritev obvezno traja več ur ali cel dan (to podrobnost dodajte v \"Dostop do opreme\")."]

{"sheet":"Oprema","index":1,"n_rows":287,"n_cols":50,"rows_kept":287,"merged":[[1,24,1,30],[4,4,4,14],[4,17,4,20],[4,31,4,49],[5,0,6,0],[5,1,6,1],[5,2,6,2],[5,3,6,3],[5,4,6,4],[5,5,6,5],[5,6,6,6],[5,7,6,7],[5,8,6,8],[5,9,6,9],[5,10,6,10],[5,11,6,11],[5,12,6,12],[5,13,6,13],[5,14,6,14],[5,15,6,15],[5,16,6,16],[5,17,6,17],[5,18,6,18],[5,19,6,19],[5,20,6,20],[5,21,6,21],[5,22,6,22],[5,23,6,23],[5,24,5,26],[5,27,6,27],[5,28,6,28],[5,29,6,29],[5,30,6,30],[5,31,6,31],[5,32,5,34],[5,35,5,37],[5,38,5,40],[5,41,5,43],[5,44,5,46],[5,47,5,49]]}
["EVIDENCA RAZISKOVALNE OPREME S PODATKI O MESEČNI UPORABI"]
[]
[]
[]
[{"$nulls":4},"Polja z zelenim ozadjem so lahko objavljena na portalu SICRIS",{"$nulls":12},"Struktura lastne cene za uporabo raziskovalne opreme  (v EUR/uro)",{"$nulls":13},"MESEČNO POROČILO - ZA MESEC: "]
["Številka RO","Naziv RO","Številka RS","Šifra\nPS / IS\n(za P-14 in \nP-16) "," Skrbnik opreme","Številka skrbnika","Naziv opreme","Leto nabave","Naziv opreme v angleškem jeziku","Nabavna vrednost z DDV (EUR)","Vir sofinanciranja iz javnih sredstev\n(Paket ARRS, drugi javni viri)","Opis postopka dostopa do opreme - (čas, največ 5 stavkov)","Opis postopka dostopa do opreme v angleškem jeziku","Namembnost opreme in dodatne informacije (največ 5 stavkov)","Namembnost opreme in dodatne informacije v angleškem jeziku","Inventarna številka v knjigovodski evidenci","Cena za uporabo raziskovalne opreme za izučenega uporabnika\n(v EUR/uro)","Stroški amortizacije","Stroški materiala in storitev za vzdrževanje opeme","Stroški dela","Skupaj lastna cena/uro","Letna stopnja izkoriščenosti v % v pretek. koled. letu","Stopnja odpisanosti v % konec pret. koled. leta","Spletna stran RO (predstavitev opreme, pogoj dostopa,cenik)","Klasifikacija\nUniv. v Leedsu",null,null,"Klasif. MERIL","Zap.št. nakupa\n(če je vir sofinanciranja\nPaket ARRS)","Stroški dela za operaterja (se prištejejo ceni za uporabo za neizučene uporabnike)","Doba amortiziranja","Mesečna stopnja izkoriščenosti (v %) v navednem mesecu","Projekt oz. program 1",null,null,"Projekt oz. program 2",null,null,"Projekt oz. program 3",null,null,"Projekt oz. program 4",null,null,"Drug namen",null,null,"Drug namen"]
[{"$nulls":24},"#C","#O","#G",{"$nulls":5},"Šifra programa oz. projekta","Uporabnik","% upor.","Šifra programa oz. projekta","Uporabnik","% upor.","Šifra programa oz. projekta","Uporabnik","% upor.","Šifra programa oz. projekta","Uporabnik","% upor.","Namen","Uporabnik","% upor.","Namen","Uporabnik","% upor."]
["1","2","3","4","5","6","7","8","9","10","11","12","13","14","15","16","17","18","19","20","21","22","23","24","25","26","27","28","29","30","31","32","33","34","35","36","37","38","39","40","41","42","43","44","45","46","47","48","49","482"]
[106,"Institut \"Jožef Stefan\"",null,"P1-0125","Polona Umek",18274,"ATR-FTIR spektrometer",2009,"ATR-FTIR spektrometer (Attenuated Total Reflection Fourier Transform Infrared Spectrometer) ",{"v":113192.3,"d":"113,192.30"},"P_XIV_191","Oprema je dostopna za zunanje uporabnike. Kontaktni osebi sta polona.umek@ijs.si in zoran.arsov@ijs.si","Equipment is available for external users. Contact pearsons are polona.umek@ijs.si and zoran.arsov@ijs.si","Oprema je namenjena snemanju IR spektrov v FAR in MID IR področju snovi v trdnem stanju in vodnih raztopinah.","The equipment is intended for the recording of IR spectra in the FAR and MID IR regions for solid-state materials and aqueous solutions.","49240 50421",{"$f":"Table4[[#This Row],[21]]","v":{"v":41.143875,"d":"41.14"}},{"$f":"J9*0.2/2080","v":{"v":10.883875000000002,"d":"10.88"}},17.88,12.38,{"$f":"SUBTOTAL(9,Table4[[#This Row],[18]:[20]])","v":{"v":41.143875,"d":"41.14"}},100,100,"https://www.ijs.si/ijsw/Znotraj%20hi%C5%A1e/Desno?action=AttachFile&do=get&target=ARIS_Evidenca_opreme_2024.xlsx",3,1,2,47,{"$f":"Table4[[#This Row],[11]]","v":"P_XIV_191"},0,5,100,{"$f":"Table4[[#This Row],[4]]","v":"P1-0125"},{"$f":"Table4[[#This Row],[5]]","v":"Polona Umek"},100]
[106,"Institut \"Jožef Stefan\"",null,"P1-0135","Vladimir Cindro",9081,"Avtomatski ožičevalnik elektronskih vezij z mikroskopom",2010,"Automatic Al wire bonder with rotating head",{"v":109209.9,"d":"109,209.90"},"P_XIV_184","Kontaktna oseba. Vladimir Cindro, tel 4773726","Contact person: Vladimir Cindro, phone no. +3861 4773726","Povezovanje elektronskih vezij z Al žico debeline 20-30 mikronov, presledki večji od 80 mikronov ","Wire bonding with 20-30 micron Al wire. Minimum pitch 80 microns. ","50155 50165",{"$f":"Table4[[#This Row],[21]]","v":{"v":40.760951923076924,"d":"40.76"}},{"v":10.500951923076922,"d":"10.50"},17.88,12.38,{"$f":"SUBTOTAL(9,Table4[[#This Row],[18]:[20]])","v":{"v":40.760951923076924,"d":"40.76"}},100,100,"https://www.ijs.si/ijsw/Znotraj%20hi%C5%A1e/Desno?action=AttachFile&do=get&target=ARIS_Evidenca_opreme_2024.xlsx",1,5,1,46,{"$f":"Table4[[#This Row],[11]]","v":"P_XIV_184"},0,5,{"$f":"(AI10+AL10+AO10+AR10+AU10+AX10)","v":100},{"$f":"Table4[[#This Row],[4]]","v":"P1-0135"},{"$f":"Table4[[#This Row],[5]]","v":"Vladimir Cindro"},100]
[106,"Institut \"Jožef Stefan\"",null,"P1-0102","Primož Pelicon",12314,"Detekcijski sistem s hlajeno CCD-kamero",2001,"A thermoelectrically cooled back illuminated CCD x-ray camera system (ANDOR DX-438 BV)  ",{"v":65391.41,"d":"65,391.41"},"Paket 10","Po predhodnem dogovoru z doc.dr. Lipoglavškom 01/477-34-93 matej.lipoglavsek@ijs.si","Contact assist.prof. Matej Lipoglavšek 01/477-34-93 matej.lipoglavsek@ijs.si","Termoelektrično hlajen CCD detektor je sestavni del visokoločljivega spektrometra rentgenskih žarkov. Omogoča pozicijsko občutljivo detekcijo rentgenskih fotonov v energijskem področju 1 - 10 keV. ","TE cooled CCD x-ray camera is integrated within the Bragg type high-resolution x-ray spectrometer to detect diffracted photons within 1-10 keV range.",38155,{"$f":"Table4[[#This Row],[21]]","v":{"v":36.54763557692308,"d":"36.55"}},{"v":6.287635576923077,"d":"6.29"},17.88,12.38,{"$f":"SUBTOTAL(9,Table4[[#This Row],[18]:[20]])","v":{"v":36.54763557692308,"d":"36.55"}},100,100,"https://www.ijs.si/ijsw/Znotraj%20hi%C5%A1e/Desno?action=AttachFile&do=get&target=ARIS_Evidenca_opreme_2024.xlsx",3,1,6,41,{"$f":"Table4[[#This Row],[11]]","v":"Paket 10"},0,5,100,{"$f":"Table4[[#This Row],[4]]","v":"P1-0102"},{"$f":"Table4[[#This Row],[5]]","v":"Primož Pelicon"},33,"P1-0112","Matjaž Žitnik",33,"P6-0283","Janka Istenič",33]
[106,"Institut \"Jožef Stefan\"",null,"P2-0105","Barbara Malič",4587,"Diferenčni dinamični kalorimeter (temperaturno območje: - 180ºC do + 700ºC)",2008,"Differential Scanning Calorimeter (temperature range  - 180ºC do + 700ºC)",{"v":61000,"d":"61,000.00"},"Paket 13","Diferenčni dinamični kalorimeter je dostopen za termične analize različnih trdnih in tekočih vzorcev. Pomembno je, da so vzorci v izbranem temperaturnem območju analize obstojni, oziroma, da razpadajo brez ljudem, aparaturi in okolju nevarnih  produktov. Cena analiz je odvisna predvsem od izbranega temperaturnega programa, torej temperaturnega območja, hitrosti segrevanja in/ali ohlajanja, dolžine izotermnih segmentov  in atmosfere. ","Differential scanning calorimeter is suitablle for thermal analyses of different solid and liquid samples. The samples should be stable in the selected temperature range of the analysis, or the evolved products of decomposition should not be harmful for staff, equipment and environment. The cost of the analyses depends mainly on the selected temperature programme, that is the temperature range, heating/cooling rate, duration of isothermal segments and atmosphere. ","Diferenčni dinamični kalorimeter (DSC) je aparatura, s katero določamo entalpijske spremembe in temperature prehodov, ki so posledica različnih kemijskih ali fizikalnih procesov (kemijske reakcije, fazne premene,...) med segrevanjem in/ali ohlajanjem vzorcev po izbranem temperaturnem programu in v izbrani atmosferi. Metoda je primerna za analizo trdnih in tekočih vzorcev z masami od nekaj mg do nekaj 10 mg v temperaturnem območju od -180ºC do + 700ºC.","Differential scanning calorimeter (DSC) is research equipment for determination of enthalpy changes and transition temperatures in\nsolids and liquid samples due to chemical and physical processes (chemical reactions, phase transitions,...) under controlled\ntemperature change in a controlled atmosphere. The method is suitable for analysis of solid and liquid samples with masses of a few mg to a few 10 mg in the temperature range between  -180ºC to + 700ºC.",44888,{"$f":"Table4[[#This Row],[21]]","v":{"v":36.12538461538462,"d":"36.13"}},{"v":5.865384615384615,"d":"5.87"},17.88,12.38,{"$f":"SUBTOTAL(9,Table4[[#This Row],[18]:[20]])","v":{"v":36.12538461538462,"d":"36.13"}},100,100,"https://www.ijs.si/ijsw/Znotraj%20hi%C5%A1e/Desno?action=AttachFile&do=get&target=ARIS_Evidenca_opreme_2024.xlsx",3,12,3,44,{"$f":"Table4[[#This Row],[11]]","v":"Paket 13"},0,5,100,{"$f":"Table4[[#This Row],[4]]","v":"P2-0105"},{"$f":"Table4[[#This Row],[5]]","v":"Barbara Malič"},33,"J2-1227","Barbara Malič",33,"L2-2343","Janez Holc",33]
[106,"Institut \"Jožef Stefan\"",null,"P2-0001","Stanislav Strmčnik",2830,"Eksperimentalni energetski sistem s PEM gorivno celico",2007,"Experimental power system based on PEM fuel cells ",{"v":78196.35,"d":"78,196.35"},"P_XIII_200","Opremo je možno uporabljati po predhodnem dogovoru s potencialnim uporabnikom in lastnikom opreme. Pogoje, trajanje in način uporabe se določi s pogodbo.","The equipment can be exploited upon precedent agreement between the potential user and the owner. The conditions, duration and modes of the equipment exploitation are to be defined with a contract.","Eksperimentalni sistem sestavlja 1kW PEM gorivne celice, viri vodika, hranilnik vodika, elektronsko breme in kontrolni sistem za nadzor in vodenje. Sistem je namenjen testiranju različnih podsklopov, ki se uporabljajo pri gradnji sistemov, ki kot energetski vir uporabljajo PEM gorivne celice. ","The experimental system consists of 1kW PEM fuel cells generator setup, various hydrogen sources, hydrogen storage, elecronic load and computer system for monitoring and control. The system is used for testing of various devices and subsystems that are used in the design of different PEM fuel cells based systems.","45812, 46080, 46025, 46023,46022,45438, 45939,46780",{"$f":"Table4[[#This Row],[21]]","v":{"v":37.778879807692306,"d":"37.78"}},{"v":7.518879807692309,"d":"7.52"},17.88,12.38,{"$f":"SUBTOTAL(9,Table4[[#This Row],[18]:[20]])","v":{"v":37.778879807692306,"d":"37.78"}},100,100,"https://www.ijs.si/ijsw/Znotraj%20hi%C5%A1e/Desno?action=AttachFile&do=get&target=ARIS_Evidenca_opreme_2024.xlsx",6,4,null,46,{"$f":"Table4[[#This Row],[11]]","v":"P_XIII_200"},0,5,100,{"$f":"Table4[[#This Row],[4]]","v":"P2-0001"},{"$f":"Table4[[#This Row],[5]]","v":"Stanislav Strmčnik"},33,"Razvoj demonstracijskega prototipa kogeneracije na osnovi gorivnih celic za vojaške namene ","IJS",33,"Keramični procesor za razklop goriva in čiščenje izhodnih plinov ","IJS",33]
[106,"Institut \"Jožef Stefan\"",null,"P1-0040","Dragan Mihailović",4540,"Femtosekundni sistem za mešanje optičnih frekvenc",2002,"Femtosecond optical frequency mixing system",{"v":141575.19,"d":"141,575.19"},"Paket 11","Oprema je dosegljiva po dogovoru s skrbnikom","Equipment is available upon agreement","Osnovna sestavna komponenta sistema za mešanje optičnih frekvenc.","Basic component of the system for the mixing of the optical frequencies.",39116,{"$f":"Table4[[#This Row],[21]]","v":{"v":43.872999038461536,"d":"43.87"}},{"v":13.612999038461538,"d":"13.61"},17.88,12.38,{"$f":"SUBTOTAL(9,Table4[[#This Row],[18]:[20]])","v":{"v":43.872999038461536,"d":"43.87"}},100,100,"https://www.ijs.si/ijsw/Znotraj%20hi%C5%A1e/Desno?action=AttachFile&do=get&target=ARIS_Evidenca_opreme_2024.xlsx",3,1,4,30,{"$f":"Table4[[#This Row],[11]]","v":"Paket 11"},0,5,100,{"$f":"Table4[[#This Row],[4]]","v":"P1-0040"},{"$f":"Table4[[#This Row],[5]]","v":"Dragan Mihailović"},50,"P1-0192","Martin Čopič",50]
[106,"Institut \"Jožef Stefan\"",null,"P1-0192","Martin Čopič",3470,"Femtosekundni sistem za mešanje optičnih frekvenc s priborom",2004,"Femtosecond optical frequency mixing system with acompanying equiment",{"v":121964.78,"d":"121,964.78"},"Paket 12","Oprema je dosegljiva po dogovoru s skrbnikom","Equipment is available upon agreement","Pikosekundna spektroskopija v IR področju z nastavljivo valovno dolžino svetlobe, posebej še nelinearno resonančno optično mešanje frekvenc na površinah.","Picosecond spectroscopy in IR region with tunable wavelength, especially non-linear resonant optical mixing of frequencies on surfaces.",41008,{"$f":"Table4[[#This Row],[21]]","v":{"v":41.98738269230769,"d":"41.99"}},{"v":11.727382692307692,"d":"11.73"},17.88,12.38,{"$f":"SUBTOTAL(9,Table4[[#This Row],[18]:[20]])","v":{"v":41.98738269230769,"d":"41.99"}},100,100,"https://www.ijs.si/ijsw/Znotraj%20hi%C5%A1e/Desno?action=AttachFile&do=get&target=ARIS_Evidenca_opreme_2024.xlsx",3,1,4,30,{"$f":"Table4[[#This Row],[11]]","v":"Paket 12"},0,5,100,{"$f":"Table4[[#This Row],[4]]","v":"P1-0192"},{"$f":"Table4[[#This Row],[5]]","v":"Martin Čopič"},50,"P1-0040","Dragan D. Mihailović",50]
[106,"Institut \"Jožef Stefan\"",null,"P1-0045","Tomaž Skapin",2757,"FTIR spektrometer",2004,"FTIR spectrometer",{"v":70905.76,"d":"70,905.76"},"Paket 12","Dostop do in delo na opremi sta možna. Pogoji dostopa in cena: po dogovoru. Kontakt: T. Skapin","Access and work on the equipment is possible. Access conditions and prices:  individually appointed. Contact: T. Skapin","Raziskovalni FTIR spektrometer srednjega razreda. Območje: 30 - 10.000 cm-1; ločljivost < 0.3 cm-1. Dodatna oprema: visokotemperaturna celica, nizkotemperaturna celica, fotoakustični detektor.","Medium class research FTIR spectrometer. Range: 30 - 10.000 cm-1; resolution < 0.3 cm-1. Additional equipment: low temperature cell, high temperature cell, photoacoustic detector.",41282,{"$f":"Table4[[#This Row],[21]]","v":{"v":37.07786153846154,"d":"37.08"}},{"v":6.817861538461538,"d":"6.82"},17.88,12.38,{"$f":"SUBTOTAL(9,Table4[[#This Row],[18]:[20]])","v":{"v":37.07786153846154,"d":"37.08"}},100,100,"https://www.ijs.si/ijsw/Znotraj%20hi%C5%A1e/Desno?action=AttachFile&do=get&target=ARIS_Evidenca_opreme_2024.xlsx",3,1,2,4,{"$f":"Table4[[#This Row],[11]]","v":"Paket 12"},0,5,100,{"$f":"Table4[[#This Row],[4]]","v":"P1-0045"},{"$f":"Table4[[#This Row],[5]]","v":"Tomaž Skapin"},25,"V4-0490","Andrej Stergaršek",25,"Z1-6524","Boris Žemva",25,"Z1-7037","Boris Žemva",25]
[106,"Institut \"Jožef Stefan\"",null,"P1-0143","Milena Horvat",5027,"GC/HPLC/ICP-MS",2005,"Inductively Coupled Plasma Mass Spectrometer coupled to GC/HPLC",{"v":251649.53,"d":"251,649.53"},"Paket 12","Po dogovoru; materialni stroški + ure operaterja","Pon agreement; material  + personnel costs","Uporablja se za določanje elementov in njihovih zvrsti v različnih vzorcih (okoljski,  biološki vzorci...).","It is used for determination of elements and theitr compounds in different samples (environmental, biological…)",43605,{"$f":"Table4[[#This Row],[21]]","v":{"v":54.4570701923077,"d":"54.46"}},{"v":24.197070192307695,"d":"24.20"},17.88,12.38,{"$f":"SUBTOTAL(9,Table4[[#This Row],[18]:[20]])","v":{"v":54.4570701923077,"d":"54.46"}},100,100,"https://www.ijs.si/ijsw/Znotraj%20hi%C5%A1e/Desno?action=AttachFile&do=get&target=ARIS_Evidenca_opreme_2024.xlsx",3,2,3,32,{"$f":"Table4[[#This Row],[11]]","v":"Paket 12"},0,5,100,{"$f":"Table4[[#This Row],[4]]","v":"P1-0143"},{"$f":"Table4[[#This Row],[5]]","v":"Milena Horvat"},25,"PR-00438","IJS",25,"PR-01156",null,25,"PR-01872           PR-02727","IJS",25]
[106,"Institut \"Jožef Stefan\"",null,"P2-0076","Leon Žlajpah",3332,"Humanoidni robot",2007,"Humanoid robot",{"v":76157.9,"d":"76,157.90"},"Paket 13","Humanoidnega robota zaradi kompleksnosti upravljanja in s tem povezane nevarnosti poškodb opreme ne posojamo. Po predhodnem dogovoru se lahko pri nas izvajajo eksperimenti, ki jih sami pripravimo. Pri tem zaračunamo ceno ure po ceniku IJS ","The robot can be hired for experimental work providing that the experiments are prepared and executed by our personnel.  We charge according to the JSI personnel price list.","Imitacija človeškega gibanja in akcij. Robot ima 28 prostostnih stopenj,  je visok 63 cm in težek 8,8 Kg","The humanoid robot imitates human motion and can perform actions in simmilar way as humans. It has 28 DOF. The height of the robot is 63cm and the weight is 8,8 kg, The robot is equipped with vision system, force sensors and audio system. ","45460,45740, 45741, 45739, 46077, 45747, 45748 XIII 199",{"$f":"Table4[[#This Row],[21]]","v":{"v":37.582875,"d":"37.58"}},{"v":7.322875,"d":"7.32"},17.88,12.38,{"$f":"SUBTOTAL(9,Table4[[#This Row],[18]:[20]])","v":{"v":37.582875,"d":"37.58"}},100,100,"https://www.ijs.si/ijsw/Znotraj%20hi%C5%A1e/Desno?action=AttachFile&do=get&target=ARIS_Evidenca_opreme_2024.xlsx",6,1,1,46,{"$f":"Table4[[#This Row],[11]]","v":"Paket 13"},0,5,100,{"$f":"Table4[[#This Row],[4]]","v":"P2-0076"},{"$f":"Table4[[#This Row],[5]]","v":"Leon Žlajpah"},50,"P2-0076","Jadran Lenarčič",50]
[106,"Institut \"Jožef Stefan\"",null,"P1-0112","Primož Pelicon",12314,"Ionski izvor velike svetlosti",2012,"High-brightness ion source",{"v":567120,"d":"567,120.00"},"Paket 14","Oprema je dostopna  akademskim institucijam in gospodarskim družbam (primoz.pelicon@ijs.si), kot tudi raziskovalcem in industriji iz evropskega raziskovalnega prostora (EU FP7 SPIRIT, www.spirit-ion.eu). ","Equipment is accesible for all academic institutions and companies (primoz.pelicon@ijs.si), as well as to the european researchers and industry in the frame of 7th FPEU project \"SPIRIT\" (www.spirit-ion.eu). ","Oprema je namenjena tvorbi visokoenergijskega fokusiranega protonskega žarka za določanje elementnih porazdelitev v bioloških in geoloških vzorcih in za mikroobdelavo.","The equipment is dedicated to the formation of high-energy focused proton beams for elemental mapping of biological tissue, geological samples and micromachining.","53759 XIV 200",{"$f":"Table4[[#This Row],[21]]","v":{"v":76.41076923076923,"d":"76.41"}},{"v":54.53076923076923,"d":"54.53"},7.78,14.1,{"$f":"SUBTOTAL(9,Table4[[#This Row],[18]:[20]])","v":{"v":76.41076923076923,"d":"76.41"}},100,100,"https://www.ijs.si/ijsw/Znotraj%20hi%C5%A1e/Desno?action=AttachFile&do=get&target=ARIS_Evidenca_opreme_2024.xlsx",1,1,7,41,{"$f":"Table4[[#This Row],[11]]","v":"Paket 14"},0,5,100,{"$f":"Table4[[#This Row],[4]]","v":"P1-0112"},{"$f":"Table4[[#This Row],[5]]","v":"Primož Pelicon"},33,"P1-0102","Simon Širca",33,"P1-0212","Gaberščik Alenka",33]
[106,"Institut \"Jožef Stefan\"",null,"P1-0143","Milena Horvat",5027,"IsoPrime MultiFlow Bio",2008,"Equilibration unit for oxygen and hydrogen isotope analyses in water",{"v":78200,"d":"78,200.00"},"Paket 13","Po dogovoru; materialni stroški + ure operaterja","upon agreement; material  + personnel costs","Ekvilibracija vode oz. vodnih raztopin s CO2 ali H2 za analizo izotopske sestave O in H","Equilibration of water and water solution with CO2 or H2 for stable isotope analysis of O and H","47422 XIV 222",{"$f":"Table4[[#This Row],[21]]","v":{"v":37.77923076923077,"d":"37.78"}},{"v":7.519230769230769,"d":"7.52"},17.88,12.38,{"$f":"SUBTOTAL(9,Table4[[#This Row],[18]:[20]])","v":{"v":37.77923076923077,"d":"37.78"}},100,100,"https://www.ijs.si/ijsw/Znotraj%20hi%C5%A1e/Desno?action=AttachFile&do=get&target=ARIS_Evidenca_opreme_2024.xlsx",3,11,3,32,{"$f":"Table4[[#This Row],[11]]","v":"Paket 13"},0,5,100,{"$f":"Table4[[#This Row],[4]]","v":"P1-0143"},{"$f":"Table4[[#This Row],[5]]","v":"Milena Horvat"},25,"J1-9498","Sonja Lojen",25,"V4-0539","Matjaž Čater",25,"J2-1433","Jožef Pezdič",25]
[106,"Institut \"Jožef Stefan\"",null,"P2-0037","Borka Jerman Blažič",1339,"Laboratorij za antropocentrične študije in računalniško forenziko",2007,"Laboratory for anthropocentric studies and computer forensics ",{"v":67200,"d":"67,200.00"},"Paket 13","Ni na razpolago","Not for public use","Evalvacija uporabnosti programske opreme","Usability evaluation software","46474,46478,46033,45549,45555,45550,46072,46061,46062,46064,46055,46056,56057,46058,460589,46473,46053,46015 XIII_208",{"$f":"Table4[[#This Row],[21]]","v":{"v":36.721538461538465,"d":"36.72"}},{"v":6.461538461538462,"d":"6.46"},17.88,12.38,{"$f":"SUBTOTAL(9,Table4[[#This Row],[18]:[20]])","v":{"v":36.721538461538465,"d":"36.72"}},100,100,"https://www.ijs.si/ijsw/Znotraj%20hi%C5%A1e/Desno?action=AttachFile&do=get&target=ARIS_Evidenca_opreme_2024.xlsx",6,1,5,63,{"$f":"Table4[[#This Row],[11]]","v":"Paket 13"},0,5,100,{"$f":"Table4[[#This Row],[4]]","v":"P2-0037"},{"$f":"Table4[[#This Row],[5]]","v":"Borka Jerman Blažič"},25,"P2-0037","Borka Džonova Jerman B.",25,"P2-0037","Borka Džonova Jerman B.",25,"P2-0037","Borka Džonova Jerman B.",25]
[106,"Institut \"Jožef Stefan\"",null,"P2-0105","Barbara Malič",4587,"Laboratorijska izostatska stiskalnica ",2004,"Laboratory isostatic pressure",{"v":52228.55,"d":"52,228.55"},"Paket 12","Izostasko stiskanje prahov v končno obliko do velikost 7 x 20 cm. Cena in čas po dogovoru.","Izostatic pressing of different powders in to final shape with dimensions 7 x 20 cm.  Price and availabillity by arragement.","Izostasko stiskanje, maksimalni pritisk 400 Mpa, temperatura 80oC. ","Izostatic pressing with maksimum poressure of 400 Mpa and temperature of 80oC.",41790,{"$f":"Table4[[#This Row],[21]]","v":{"v":35.281975961538464,"d":"35.28"}},{"v":5.021975961538462,"d":"5.02"},17.88,12.38,{"$f":"SUBTOTAL(9,Table4[[#This Row],[18]:[20]])","v":{"v":35.281975961538464,"d":"35.28"}},100,100,"https://www.ijs.si/ijsw/Znotraj%20hi%C5%A1e/Desno?action=AttachFile&do=get&target=ARIS_Evidenca_opreme_2024.xlsx",6,3,4,44,{"$f":"Table4[[#This Row],[11]]","v":"Paket 12"},0,5,100,{"$f":"Table4[[#This Row],[4]]","v":"P2-0105"},{"$f":"Table4[[#This Row],[5]]","v":"Barbara Malič"},25,"L2-2343","Janez Holc",25,"J2-9090","Marko Hrovat",25,"L2-2343","Janez Holc",25]
[106,"Institut \"Jožef Stefan\"",null,"P2-0105","Barbara Malič",4587,"Laboratorijska naprava za naparevanje in naprševanje Leybold UNIVX 300",2002,"Laboratory sputtering equipment",{"v":112852.06,"d":"112,852.06"},"Paket 11","Naprševanja kovinskih elektrod (Au, Pt, Ag, Ti, Cr, Cu, zlitine itd) na različne vzorce do velikost 4 cm. Cena in čas po dogovoru.","Sputtering of metallic electrode on different materials(Au, Pt, Ag, Ti, Cr, Cu, alloys etc.). Price and availabillity by arragement.","Naprševanje kovinskih elektrod na različne materiale. Možnost naprševanja do treh različnih kovinskih plasti v enem ciklusu.","Sputtering of metal electrodes on different materials. Option sputtering up to three different metal layers in a single cycle.",39264,{"$f":"Table4[[#This Row],[21]]","v":{"v":41.111159615384615,"d":"41.11"}},{"v":10.851159615384615,"d":"10.85"},17.88,12.38,{"$f":"SUBTOTAL(9,Table4[[#This Row],[18]:[20]])","v":{"v":41.111159615384615,"d":"41.11"}},100,100,"https://www.ijs.si/ijsw/Znotraj%20hi%C5%A1e/Desno?action=AttachFile&do=get&target=ARIS_Evidenca_opreme_2024.xlsx",1,1,7,44,{"$f":"Table4[[#This Row],[11]]","v":"Paket 11"},0,5,100,{"$f":"Table4[[#This Row],[4]]","v":"P2-0105"},{"$f":"Table4[[#This Row],[5]]","v":"Barbara Malič"},25,"J2-1227","Barbara Malič",25,"L2-1187","Janez Holc",25,"J2-9090","Marko Hrovat",25]
[106,"Institut \"Jožef Stefan\"",null,"P1-0099","Igor Muševič",9089,"Laserska pinceta",2007,"Laser tweezers",{"v":141378,"d":"141,378.00"},"Paket 13","Možnost meritev po ceniku IJS, možnost brezplačne uporabe v primeru izvajanja skupnih RR projektov. Dodatni podatki o skrbnikih opreme na razpolago na RO","Posibility of measurements according to the IJS price-list, possibility for free usage in case of joined projects","Sistem omogočija manipulacijo mikronskih in submikronskih delcev v mehki snovi, npr. koloidov trdnih delcev v tekočih kristalih","The system provides for manipulation of micro- and submicro-sized particles in soft matter, in particular colloids of solid particles and liquid crystals.","44433, 45528,46085,46017,46079,45830,46555,46464 XIII219",{"$f":"Table4[[#This Row],[21]]","v":{"v":43.854038461538465,"d":"43.85"}},{"v":13.594038461538462,"d":"13.59"},17.88,12.38,{"$f":"SUBTOTAL(9,Table4[[#This Row],[18]:[20]])","v":{"v":43.854038461538465,"d":"43.85"}},100,100,"https://www.ijs.si/ijsw/Znotraj%20hi%C5%A1e/Desno?action=AttachFile&do=get&target=ARIS_Evidenca_opreme_2024.xlsx",4,4,6,30,{"$f":"Table4[[#This Row],[11]]","v":"Paket 13"},0,5,100,{"$f":"Table4[[#This Row],[4]]","v":"P1-0099"},{"$f":"Table4[[#This Row],[5]]","v":"Igor Muševič"},100]
[106,"Institut \"Jožef Stefan\"",null,"P1-0125","Tomaž Apih",7518,"Magnetno-resonančni relaksometer (s hitrim cikliranjem magnetnega polja)",2002,"Fast field cycling NMR relaxomer",{"v":129196.9,"d":"129,196.90"},"Paket 11","Dostop dovoljen po dogovoru, ni posebnih omejitev","Service available upon request, no special limitation","Meritve molekularne dinamike snovi","Investigations of molecular dynamics",39291,{"$f":"Table4[[#This Row],[21]]","v":{"v":42.682778846153845,"d":"42.68"}},{"v":12.422778846153847,"d":"12.42"},17.88,12.38,{"$f":"SUBTOTAL(9,Table4[[#This Row],[18]:[20]])","v":{"v":42.682778846153845,"d":"42.68"}},100,100,"https://www.ijs.si/ijsw/Znotraj%20hi%C5%A1e/Desno?action=AttachFile&do=get&target=ARIS_Evidenca_opreme_2024.xlsx",3,1,3,44,{"$f":"Table4[[#This Row],[11]]","v":"Paket 11"},0,5,100,{"$f":"Table4[[#This Row],[4]]","v":"P1-0125"},{"$f":"Table4[[#This Row],[5]]","v":"Tomaž Apih"},100]
[106,"Institut \"Jožef Stefan\"",null,"P2-0082","Peter Panjan",9090,"Magnetronska izvira in napajalniki za vgradnjo v napravo za nanašanje niozkotemperaturnih prevlek",2007,"Magnetron sources and power supply for deposition of low temperature hard coatings",{"v":52450,"d":"52,450.00"},"Paket 13","Depozicija 3 µm debele trde prevleke na podlage, ki zasedajo volumen 400 mm v premeru in 400 mm v višino se oblikuje po dogovoru (cena vključuje izrabo tarč, porabo električne energije in delovnih plinov, mehansko predpripravo in čiščenje podlag, saržiranje, delo dveh operaterjev). Postopek nanašanja 3 µm debele prevleke traja okrog 8ur.","Deposition of 3µm thick hard coating on substrates which occupy the usable volume 400 mm in diameter and 400 mm in height cost app. 600 € (the cost include the  target, gases and energy consumption, mechanical preatreatment and cleaning of substrates, loading, fixturing, personnel cost). Total time needed for one batch is app. 8 hour.","Nanos trdih PVD prevlek pri temperaturi pod 200 °C z pulznim magnetronskim naprševanjem.","Deposition of low temperature hard coatings by pulsed magnetron sputtering at temperature bellow 200 °C.","46032 XIV 205",{"$f":"Table4[[#This Row],[21]]","v":{"v":35.30326923076923,"d":"35.30"}},{"v":5.043269230769231,"d":"5.04"},17.88,12.38,{"$f":"SUBTOTAL(9,Table4[[#This Row],[18]:[20]])","v":{"v":35.30326923076923,"d":"35.30"}},100,100,"https://www.ijs.si/ijsw/Znotraj%20hi%C5%A1e/Desno?action=AttachFile&do=get&target=ARIS_Evidenca_opreme_2024.xlsx",1,1,3,44,{"$f":"Table4[[#This Row],[11]]","v":"Paket 13"},0,5,100,{"$f":"Table4[[#This Row],[4]]","v":"P2-0082"},{"$f":"Table4[[#This Row],[5]]","v":"Peter Panjan"},25,"L2-9189","Darinka Kek Merl",25,"L2-0858","Tomaž Gyergyek",25,"L2-2100","Peter Panjan",25]
[106,"Institut \"Jožef Stefan\"",null,"P1-0045","Adolf Jesih",3317,"Masni spektrometer",2012,"Mass spectrometer",{"v":144840,"d":"144,840.00"},"Paket 14","Čas dostopa do opreme vsak delovni dan od 8:00 do 16:00 po predhodnem dogovoru s skrbnikom. Kontakt preko el. Pošte na naslovu adolf.jesih@ijs.si","Acces is posible every working day from 8:00 to 16:00 after agreement on terms of use. Contact  on email adolf.jesih@ijs.si","Oprema je montirana na vakuumski sistem in je namenjena karakterizaciji in identifikaciji plinskih komponent v plazmi in analizi plinskih komponent mešanic plinov.","The equipment is connected to a vacuum system and is devoted to the characterization and identification of gaseous components in plasma as well as to the analysis of gas mixtures.","53396 XIV 189",{"$f":"Table4[[#This Row],[21]]","v":{"v":36.026923076923076,"d":"36.03"}},{"v":13.926923076923076,"d":"13.93"},8,14.1,{"$f":"SUBTOTAL(9,Table4[[#This Row],[18]:[20]])","v":{"v":36.026923076923076,"d":"36.03"}},100,100,"https://www.ijs.si/ijsw/Znotraj%20hi%C5%A1e/Desno?action=AttachFile&do=get&target=ARIS_Evidenca_opreme_2024.xlsx",3,2,3,44,{"$f":"Table4[[#This Row],[11]]","v":"Paket 14"},0,5,100,{"$f":"Table4[[#This Row],[4]]","v":"P1-0045"},{"$f":"Table4[[#This Row],[5]]","v":"Adolf Jesih"},100]
[106,"Institut \"Jožef Stefan\"",null,"P1-0140","Marko Fonović",18801,"Masni spektrometer LTQ Orbitrap XL ETD",2010,"Mass Spectrometer LTQ Orbitrap XL ETD",{"v":901938,"d":"901,938.00"},"Paket 14","Oprema je dostopna vsem akademskim institucijam in gospodarskim družbam, bodisi proti plačilu, ki krije stroške analize ali pa skozi sodelavo. Stranka lahko direktno kontaktira osebo odgovorno za opremo, od katere dobi navodila za pripravo vzorca. Odgovorna oseba se po opravljeni analizi s stranko tudi pogovori o dobljenih rezultatih.  ","Equipment is accesible for all academic institutions and companies through direct collaborations or payment which covers the cost of analysis. Clients can directly contact the person in charge if the instrument, who instructs them regarding the sample preparation procedures and after the analysis he also discusses the results with them.","Oprema se uporablja za kvantitativno in kvalitativno analizo proteiniv v kompleksnih bioloških vzorcih. ","Equipment is used for quantitative and qualitative analysis of proteins in complex biological samples. ","50846 XIV 170",{"$f":"Table4[[#This Row],[21]]","v":{"v":116.98480769230768,"d":"116.98"}},{"v":86.72480769230769,"d":"86.72"},17.88,12.38,{"$f":"SUBTOTAL(9,Table4[[#This Row],[18]:[20]])","v":{"v":116.98480769230768,"d":"116.98"}},100,100,"https://www.ijs.si/ijsw/Znotraj%20hi%C5%A1e/Desno?action=AttachFile&do=get&target=ARIS_Evidenca_opreme_2024.xlsx",4,6,3,11,{"$f":"Table4[[#This Row],[11]]","v":"Paket 14"},0,5,100,{"$f":"Table4[[#This Row],[4]]","v":"P1-0140"},{"$f":"Table4[[#This Row],[5]]","v":"Marko Fonović"},100]
[106,"Institut \"Jožef Stefan\"",null,"P2-0082","Janez Kovač",15703,"Masni spektrometer sekundarnih ionov SIMS",2011,"Time of flight secondary ion mass spectrometer TOF SIMS",{"v":690000,"d":"690,000.00"},"Paket 14","Uporaba je možna za zunanje uporabnike po predhodnem dogovoru. Kontaktirati dr. Janeza Kovača (janez.kovac@ijs.si, 01 477 3403)","Application for external users is possible, contact person dr. Janez Kovač (janez.kovac@ijs.si, 01 477 3403)","TOF–SIMS spektrometer na osnovi masne spektroskopije molekul s površine omogoča precizno analizo elemntne sestave in molekularne strukture površin, tankih plasti in faznih mej organskih in anorganskih trdih materialov, kot so: polimeri, biomateriali, polprevodniki, prevleke, barve, kovine, keramika, steklo, zdravila... Masna ločljivost instrumenta je okoli 10.000, lateralno ločljivostjo je okoli 100 nm in analizna globina 2-3 monoplasti.","TOF-SIMS spectrometer provides detailed elemental and molecular information about surfaces, thin layers and interfaces of organic and inorganic materials like polymers, biomaterials, semiconductors, coatings, paint, metals, ceramics, glass, pharmaceuticals...Mass resolution is about 10.000, lateral resolution is 100 nm and analysed depth is 2-3 monolayers.","53366 XIV 188",{"$f":"Table4[[#This Row],[21]]","v":{"v":85.77615384615383,"d":"85.78"}},{"v":66.34615384615384,"d":"66.35"},5.33,14.1,{"$f":"SUBTOTAL(9,Table4[[#This Row],[18]:[20]])","v":{"v":85.77615384615383,"d":"85.78"}},100,100,"https://www.ijs.si/ijsw/Znotraj%20hi%C5%A1e/Desno?action=AttachFile&do=get&target=ARIS_Evidenca_opreme_2024.xlsx",3,2,1,44,{"$f":"Table4[[#This Row],[11]]","v":"Paket 14"},40,5,100,{"$f":"Table4[[#This Row],[4]]","v":"P2-0082"},{"$f":"Table4[[#This Row],[5]]","v":"Janez Kovač"},100]
[106,"Institut \"Jožef Stefan\"",null,"P1-0143","Milena Horvat",5027,"Masni spektrometer visoke ločljivosti s tekočinskim kromatografom, z API in MALDI ionizacijami in Q-Tof masnima analizatorjema ",2006,"High resolution mass spectrometer coupled with LC, API and MALDI ionisation, Q-Tof mass analysers",{"v":806123.71,"d":"806,123.71"},"Paket 12","Po dogovoru; materialni stroški + ure operaterja","Pon agreement; material  + personnel costs","Masnospektrometrične analize organskih spojin, proteinov in drugih biomolekul z direktnim uvajanjem vzorca ali preko LC oz. nano LC. Določitev elementne sestave z HRMS analizo. Določitev strukture ionov z MS-MS meritvami. ","Analysis of organic compounds, proteins and other bimolecules by mass spectrometry. HRMS analysis for elemental composition. MS-MS measurements for structure elucidation.",43149,{"$f":"Table4[[#This Row],[21]]","v":{"v":107.77189519230768,"d":"107.77"}},{"v":77.51189519230769,"d":"77.51"},17.88,12.38,{"$f":"SUBTOTAL(9,Table4[[#This Row],[18]:[20]])","v":{"v":107.77189519230768,"d":"107.77"}},100,100,"https://www.ijs.si/ijsw/Znotraj%20hi%C5%A1e/Desno?action=AttachFile&do=get&target=ARIS_Evidenca_opreme_2024.xlsx",3,2,3,32,{"$f":"Table4[[#This Row],[11]]","v":"Paket 12"},0,5,100,{"$f":"Table4[[#This Row],[4]]","v":"P1-0143"},{"$f":"Table4[[#This Row],[5]]","v":"Milena Horvat"},25,"PR-00506",null,25,"J3-9470","Joško Osredkar",25,"PR-01084","IJS",25]
[106,"Institut \"Jožef Stefan\"",null,"P1-0143","Radmila Milačič",8314,"Masni spektrometer z induktivno sklopljeno plazmo ICP-MS",2010,"Inductively coupled plasma mass spectrometer ICP-MS",{"v":191069,"d":"191,069.00"},"Paket 14","Dostop dovoljen po predhodnem dogovoru. Kontaktna oseba je izr.prof.dr. Radmila Milačič e-mail:radmila.milacic@ijs.si, Tel: +3861 4773560","Access is allowed after privious agreement. The contact person is Assoc.prof.dr.  Radmila Milačič e-mail:radmila.milacic@ijs.si, Tel: +3861 4773560","Določanje celotnih koncentracij elementov in njihovih kemijskih zvrsti v vzorcih iz okolja in v bioloških vzorcih.","Determination of totel element concentration and their species in the environmental and biological samples.","49127 XIV 202",{"$f":"Table4[[#This Row],[21]]","v":{"v":48.63201923076924,"d":"48.63"}},{"v":18.372019230769233,"d":"18.37"},17.88,12.38,{"$f":"SUBTOTAL(9,Table4[[#This Row],[18]:[20]])","v":{"v":48.63201923076924,"d":"48.63"}},100,100,"https://www.ijs.si/ijsw/Znotraj%20hi%C5%A1e/Desno?action=AttachFile&do=get&target=ARIS_Evidenca_opreme_2024.xlsx",1,8,1,32,{"$f":"Table4[[#This Row],[11]]","v":"Paket 14"},0,5,100,{"$f":"Table4[[#This Row],[4]]","v":"P1-0143"},{"$f":"Table4[[#This Row],[5]]","v":"Radmila Milačič"},100]
[106,"Institut \"Jožef Stefan\"",null,"P1-0135","Marko Mikuž",4763,"Merilna oprema za izvrednotenje prototipov detektorjev",2004,"Detector evaluation equippment ",{"v":43886.05,"d":"43,886.05"},"Paket 12","Ni dostopna","None","Modularna elektronika je vgrajena v več eksperimentalnih postavitev","Modular electronics is built into various experimental set-ups",41206,{"$f":"Table4[[#This Row],[21]]","v":{"v":34.4798125,"d":"34.48"}},{"v":4.219812500000001,"d":"4.22"},17.88,12.38,{"$f":"SUBTOTAL(9,Table4[[#This Row],[18]:[20]])","v":{"v":34.4798125,"d":"34.48"}},100,100,"https://www.ijs.si/ijsw/Znotraj%20hi%C5%A1e/Desno?action=AttachFile&do=get&target=ARIS_Evidenca_opreme_2024.xlsx",4,2,3,30,{"$f":"Table4[[#This Row],[11]]","v":"Paket 12"},0,5,100,{"$f":"Table4[[#This Row],[4]]","v":"P1-0135"},{"$f":"Table4[[#This Row],[5]]","v":"Marko Mikuž"},50,"P1-0031","Danilo Zavrtanik",50]
[106,"Institut \"Jožef Stefan\"",null,"P1-0143","Milena Horvat",5027,"Merilni sistem za nevtronsko aktivacijsko analizo in gama spektrometrijo",2003,"HPGe detector (45%), hardware and software for MCA emulator",{"v":70881.63,"d":"70,881.63"},"Paket 11","po dogovoru; materialni stroški + ure operaterja","pon agreement; material  + personnel costs","Uporablja se za določanje naravnih in umetnih radionuklidov v različnih vzorcih iz okolja (okoljski, biološki vzorci, sedimenti, tla…)","It is used for determination of natural and artificial radionuclides in different samples (environmental, biological, sediment, soil …)",39601,{"$f":"Table4[[#This Row],[21]]","v":{"v":37.07554134615385,"d":"37.08"}},{"v":6.8155413461538465,"d":"6.82"},17.88,12.38,{"$f":"SUBTOTAL(9,Table4[[#This Row],[18]:[20]])","v":{"v":37.07554134615385,"d":"37.08"}},100,100,"https://www.ijs.si/ijsw/Znotraj%20hi%C5%A1e/Desno?action=AttachFile&do=get&target=ARIS_Evidenca_opreme_2024.xlsx",3,2,2,32,{"$f":"Table4[[#This Row],[11]]","v":"Paket 11"},0,5,100,{"$f":"Table4[[#This Row],[4]]","v":"P1-0143"},{"$f":"Table4[[#This Row],[5]]","v":"Milena Horvat"},25,"PR-01800","IJS",25,"PR-02178-1           PR-00786-4","IJS",25,"PR-00549","IJS",25]
[106,"Institut \"Jožef Stefan\"",null,"P2-0082","Peter Panjan",9090,"Merilnik mikrotrdote ",2004,"Microhardness tester",{"v":62455.37,"d":"62,455.37"},"Paket 12","Zunanjim uporabnikom zaračunavamo delo operaterja (28.2 €/uro)","Only operator cost is charged (28,2 €/h)","Merjenje mikrotrdote  in modula indentacije z metodo odtiskovanja z diamantno konico. Obtežitev konice je od 40 mg do 100 g.","Microhardness in indentation modul measurements using a diamond tip. The load range is from 40 mg to 100 g.","41239,41239 01",{"$f":"Table4[[#This Row],[21]]","v":{"v":36.265324038461536,"d":"36.27"}},{"v":6.005324038461539,"d":"6.01"},17.88,12.38,{"$f":"SUBTOTAL(9,Table4[[#This Row],[18]:[20]])","v":{"v":36.265324038461536,"d":"36.27"}},100,100,"https://www.ijs.si/ijsw/Znotraj%20hi%C5%A1e/Desno?action=AttachFile&do=get&target=ARIS_Evidenca_opreme_2024.xlsx",3,10,4,44,{"$f":"Table4[[#This Row],[11]]","v":"Paket 12"},0,5,{"$f":"(AI34+AL34+AO34+AR34+AU34+AX34)","v":100},{"$f":"Table4[[#This Row],[4]]","v":"P2-0082"},{"$f":"Table4[[#This Row],[5]]","v":"Peter Panjan"},20,"L2-9189","Darinka Kek Merl",20,"L2-0858","Tomaž Gyergyek",20,"L2-2100","Peter Panjan",20,"L2-0388","Jože Flašker",20]
[106,"Institut \"Jožef Stefan\"",null,"P1-0207","Igor Križaj",412,"Mikro LC sistem za zbiranje in nanašanje frakcij",2008,"Micro LC system for collection and application of fraction",{"v":76263.84,"d":"76,263.84"},"Paket 13","Po dogovoru","According to agreement","Sistem za tekočinsko kromatorgrafijo, namenjen separaciji bioloških molekul na osnovi razlik molekul po masi, električnem naboju, biološki afiniteti in adsorbcijskih lastnostih pri višjem tlaku (FPLC/HPLC). Fotometrična detekcija, avtomatsko zbiranje frakcij","Liquid chromatography system for separation of biological molecules on the basis of their difference in molecular mass, electric charge, biological affinity and adsorption characteristics at higher pressure (FPLC/HPLC). Photometric detection, automatic fraction collexction","\n48324,46879,46853,47552,47553,47428,46659,48203,47586,47712,46285,48112 XIV_217",{"$f":"Table4[[#This Row],[21]]","v":{"v":37.59306153846154,"d":"37.59"}},{"v":7.333061538461538,"d":"7.33"},17.88,12.38,{"$f":"SUBTOTAL(9,Table4[[#This Row],[18]:[20]])","v":{"v":37.59306153846154,"d":"37.59"}},100,100,"https://www.ijs.si/ijsw/Znotraj%20hi%C5%A1e/Desno?action=AttachFile&do=get&target=ARIS_Evidenca_opreme_2024.xlsx",2,5,6,66,{"$f":"Table4[[#This Row],[11]]","v":"Paket 13"},0,5,100,{"$f":"Table4[[#This Row],[4]]","v":"P1-0207"},{"$f":"Table4[[#This Row],[5]]","v":"Igor Križaj"},25,"J3-0389","Igor Križaj",25,"J3-0386","Jože Pungerčar",25,"J7-2230","Marija Nika Lovšin",25]
[106,"Institut \"Jožef Stefan\"",null,"P2-0084","Spomenka Kobe",4355,"Mikroskop na atomsko silo",2007,"Atomic Force Microscope",{"v":183609,"d":"183,609.00"},"Paket 13","Opremo uporabljajo šolani operaterji, ki lahko analize izvajajo tudi za druge raziskovalne organizacije. Cena je odvisna od zahtevnosti analiz.","Specific training is required to operate the equipment. Trained operaters can perform analyses for users from other research institutions. Price is dependent on a complexity of analyses.","Oprema je namenjena za merjenje lokalnih lastnosti materialov,  kot sta morfologija ali magnetno polje, s pomočjo sonde, ki se nahaja zelo blizu površine. Omogoča  kvalitativno in kvantitativno analizo.","Dedicated for measurements of local magnetic fields and morphology by applying a probe very close to the investigated surface. Qualitative and quantitavie types of analysis are possible. ","44551,44551-1,44551-2,44551-01 XIII_221",{"$f":"Table4[[#This Row],[21]]","v":{"v":47.91471153846154,"d":"47.91"}},{"v":17.65471153846154,"d":"17.65"},17.88,12.38,{"$f":"SUBTOTAL(9,Table4[[#This Row],[18]:[20]])","v":{"v":47.91471153846154,"d":"47.91"}},100,100,"https://www.ijs.si/ijsw/Znotraj%20hi%C5%A1e/Desno?action=AttachFile&do=get&target=ARIS_Evidenca_opreme_2024.xlsx",3,6,1,44,{"$f":"Table4[[#This Row],[11]]","v":"Paket 13"},0,5,100,{"$f":"Table4[[#This Row],[4]]","v":"P2-0084"},{"$f":"Table4[[#This Row],[5]]","v":"Spomenka Kobe"},25,"J2-6705","Miran Čeh",25,"J2-7432","Aleksander Rečnik",25,"J2-7133","Johannes Teun Van Elteren",25]
[106,"Institut \"Jožef Stefan\"",null,"P2-0082","Janez Kovač",15703,"Mikroskop na atomsko silo AFM",2006,"Atomic force microscope AFM",{"v":45450,"d":"45,450.00"},"Paket 12","Uporaba je možna za zunanje uporabnike. Kontaktirati dr. Janeza Kovača.","Application for external users is possible, contact person dr. Janez Kovač","AFM mikroskop je namenjen preiskavi topografije površine trdnih vzorcev z visoko ločljivostjo. Možna je preiskava področij velikosti do 50 mikronov z natančnostjo 0,1 nm. Možna je analiza hrapavosti, porazdelitev magnetnega in električnega polja, litografija in meritev interakcijskih sil med iglo in podlago.","AFM microscope provides information on topography on solid surfaces with very high spatial resolution. Analyses can be done over a region of 50 microns with accuracy of 0.1 nm. It is possible to measure the surface roughness, distribution of magnetic and electric fields and interaction forces between tip and substrate.",43990,{"$f":"Table4[[#This Row],[21]]","v":{"v":34.630192307692305,"d":"34.63"}},{"v":4.3701923076923075,"d":"4.37"},17.88,12.38,{"$f":"SUBTOTAL(9,Table4[[#This Row],[18]:[20]])","v":{"v":34.630192307692305,"d":"34.63"}},100,100,"https://www.ijs.si/ijsw/Znotraj%20hi%C5%A1e/Desno?action=AttachFile&do=get&target=ARIS_Evidenca_opreme_2024.xlsx",3,6,1,44,{"$f":"Table4[[#This Row],[11]]","v":"Paket 12"},35,5,100,{"$f":"Table4[[#This Row],[4]]","v":"P2-0082"},{"$f":"Table4[[#This Row],[5]]","v":"Janez Kovač"},100]
[106,"Institut \"Jožef Stefan\"",null,"P1-0143","Milena Horvat",5027,"Mikrovalovni sistem za razklope in ekstrakcije",2008,"Advanced Microwave Digestion System ETHOS 1",{"v":51327,"d":"51,327.00"},"Paket 13","Po dogovoru; materialni stroški + ure operaterja","Upon agreement; material  + personnel costs","Mikrovalovni sistem je namenjen za razkroj in ekstrakcije večjega števila tako anorganskih kot organskih vzorcev.","Microwave system is suitable for the digestion and extraction of inorganic and organic sampples","48311 XIV_223",{"$f":"Table4[[#This Row],[21]]","v":{"v":35.19528846153846,"d":"35.20"}},{"v":4.9352884615384625,"d":"4.94"},17.88,12.38,{"$f":"SUBTOTAL(9,Table4[[#This Row],[18]:[20]])","v":{"v":35.19528846153846,"d":"35.20"}},100,100,"https://www.ijs.si/ijsw/Znotraj%20hi%C5%A1e/Desno?action=AttachFile&do=get&target=ARIS_Evidenca_opreme_2024.xlsx",4,2,2,32,{"$f":"Table4[[#This Row],[11]]","v":"Paket 13"},0,5,100,{"$f":"Table4[[#This Row],[4]]","v":"P1-0143"},{"$f":"Table4[[#This Row],[5]]","v":"Milena Horvat"},50,"PR-00438","IJS",50]
[106,"Institut \"Jožef Stefan\"",null,"P1-0135","Marko Mikuž",4763,"Modularna elektronika",2002,"Modular Electronics",{"v":63209.42,"d":"63,209.42"},"Paket 11","Ni dostopna","None","Modularna elektronika je vgrajena v več eksperimentalnih postavitev","Modular electronics is built into various experimental set-ups",39109,{"$f":"Table4[[#This Row],[21]]","v":{"v":36.33782884615385,"d":"36.34"}},{"v":6.077828846153846,"d":"6.08"},17.88,12.38,{"$f":"SUBTOTAL(9,Table4[[#This Row],[18]:[20]])","v":{"v":36.33782884615385,"d":"36.34"}},100,100,"https://www.ijs.si/ijsw/Znotraj%20hi%C5%A1e/Desno?action=AttachFile&do=get&target=ARIS_Evidenca_opreme_2024.xlsx",4,2,3,21,{"$f":"Table4[[#This Row],[11]]","v":"Paket 11"},0,5,100,{"$f":"Table4[[#This Row],[4]]","v":"P1-0135"},{"$f":"Table4[[#This Row],[5]]","v":"Marko Mikuž"},50,"P1-0031","Danilo Zavrtanik",50]
[106,"Institut \"Jožef Stefan\"",null,"P1-0140","Boris Turk",7561,"MultiPROBE II HT Digestion Station",2006,"MultiPROBE II HT Digestion Station",{"v":93769.75,"d":"93,769.75"},"Paket 12","Uporaba in cena po dogovoru, za uporabo kontaktirati Dr. Marka Fonovića (marko.fonovic@ijs.si)","equipment is used for high throughput trypsin degradation of protein samples. Trypsin degradation is a standard procedure for the protein sample preparation for proteomic analysis.","Oprema se uporablja za visokopretočno razgradnjo proteinskih vzorcev s tripsinom. Tripsinska razgradnja je standarden način priprave proteinskih vzorcev za proteomsko analizo.",null,40973,{"$f":"Table4[[#This Row],[21]]","v":{"v":39.276322115384616,"d":"39.28"}},{"v":9.016322115384616,"d":"9.02"},17.88,12.38,{"$f":"SUBTOTAL(9,Table4[[#This Row],[18]:[20]])","v":{"v":39.276322115384616,"d":"39.28"}},100,100,"https://www.ijs.si/ijsw/Znotraj%20hi%C5%A1e/Desno?action=AttachFile&do=get&target=ARIS_Evidenca_opreme_2024.xlsx",4,6,3,66,{"$f":"Table4[[#This Row],[11]]","v":"Paket 12"},0,5,100,{"$f":"Table4[[#This Row],[4]]","v":"P1-0140"},{"$f":"Table4[[#This Row],[5]]","v":"Boris Turk"},25,"P1-0048","Dušan Turk",25,"P1-0207","Igor Križaj",25,"P4-0127","Janko Kos",25]
[106,"Institut \"Jožef Stefan\"",null,"P1-0099","Igor Muševič",9089,"Nadgradnja dvobarvne laserske pincete",2010,"Two-color laser tweezers",{"v":149933,"d":"149,933.00"},"Paket 14","Kontaktirati prof. I.Muševiča, igor.musevic@ijs.si. Potrebno je opraviti plačljivo usposabljanje za samostojno upravljanje s pinceto.","Contact Prof. I.Musevic for details, igor.musevic@ijs.si. A payable course is obligatory if you want to use the equipment by yourself.","Uporaba za optično manipuliranje koloidnih delcev.","For optical manipulation of colloids.","46464 01-04, 49085.50427 XIV 183",{"$f":"Table4[[#This Row],[21]]","v":{"v":44.67663461538462,"d":"44.68"}},{"v":14.416634615384616,"d":"14.42"},17.88,12.38,{"$f":"SUBTOTAL(9,Table4[[#This Row],[18]:[20]])","v":{"v":44.67663461538462,"d":"44.68"}},100,100,"https://www.ijs.si/ijsw/Znotraj%20hi%C5%A1e/Desno?action=AttachFile&do=get&target=ARIS_Evidenca_opreme_2024.xlsx",4,4,6,30,{"$f":"Table4[[#This Row],[11]]","v":"Paket 14"},0,5,100,{"$f":"Table4[[#This Row],[4]]","v":"P1-0099"},{"$f":"Table4[[#This Row],[5]]","v":"Igor Muševič"},100]
[106,"Institut \"Jožef Stefan\"",null,"P1-0135","Andrej Filipčič",7525,"Nadgradnja grid vozlišča SiGNET",2009,"Upgrade of SiGNET grid center",{"v":139812,"d":"139,812.00"},"Paket 14","Oprema je vključena v grid vozlišče SIGNET in dostopna preko infrastrukture EGI/NGI. Uporaba je omogočena z uporabo vmesne programske opreme gLite in ARC.","The equipment is integrated into SiGNET grid site and provides the access through  EGI/NGI infrastructure. The access is provided by using the gLite and ARC grid middleware.","Oprema je namenjena izvajanju računskih nalog in shranjevanju podatkov pri mednarodnih eksperimentih ATLAS, Pierre Auger in Belle. Po dogovoru je na voljo tudi slovenskim raziskovalnim in akademskim ustanovam.","The purpose of the equipment is to provide the computing and storage resources to international experiments ATLAS, Pierre Auger and Belle. The access is also provided to slovenian research and academic institutions.","49932-49951 XIV 195",{"$f":"Table4[[#This Row],[21]]","v":{"v":30.259999999999998,"d":"30.26"}},0,17.88,12.38,{"$f":"SUBTOTAL(9,Table4[[#This Row],[18]:[20]])","v":{"v":30.259999999999998,"d":"30.26"}},100,100,"https://www.ijs.si/ijsw/Znotraj%20hi%C5%A1e/Desno?action=AttachFile&do=get&target=ARIS_Evidenca_opreme_2024.xlsx",6,6,6,14,{"$f":"Table4[[#This Row],[11]]","v":"Paket 14"},0,4,100,{"$f":"Table4[[#This Row],[4]]","v":"P1-0135"},{"$f":"Table4[[#This Row],[5]]","v":"Andrej Filipčič"},100]
[106,"Institut \"Jožef Stefan\"",null,"P1-0035","Igor Sega",1100,"Nadgradnja heterogene računalniške gruče",2012,"HPC cluster upgrade",{"v":134912,"d":"134,912.00"},"Paket 14","Oprema bo vključena v slovenski grid in dostopna na podlagi recipročnosti (kontaktna oseba: dr. Rok Žitko)","Equipment will be accessible as a part of the Slovenian national grid on a reciprocity basis (contact person: Dr. Rok Žitko)","Oprema se uporablja za numerične izračune na področju fizike kondenzirane snovi, biofizike in fizike osnovnih delcev in polj","Equipment is used for numerical calculations in the fields of condensed matter physics, biophysics and particle physics","53681,53682 XIV 192",{"$f":"Table4[[#This Row],[21]]","v":22.39},0,8.29,14.1,{"$f":"SUBTOTAL(9,Table4[[#This Row],[18]:[20]])","v":22.39},100,100,"https://www.ijs.si/ijsw/Znotraj%20hi%C5%A1e/Desno?action=AttachFile&do=get&target=ARIS_Evidenca_opreme_2024.xlsx",6,1,1,12,{"$f":"Table4[[#This Row],[11]]","v":"Paket 14"},0,4,100,{"$f":"Table4[[#This Row],[4]]","v":"P1-0035"},{"$f":"Table4[[#This Row],[5]]","v":"Igor Sega"},40,"P1-0044 ","Janez Bonča",40,"P1-0055 ","Rudolf Podgornik",20]
[106,"Institut \"Jožef Stefan\"",null,"P1-0135","Marko Mikuž",4763,"Nadgradnja identifikacije delcev v detektorju Belle",2008,"Belle particle identification detector upgrade",{"v":700000,"d":"700,000.00"},"Paket 13","Ni dostopna","None","Oprema vgrajena v detektor Belle v KEK, Tsukuba, Japonska","Part of the Belle detector at KEK in Tsukuba, Japan","OS25616",{"$f":"Table4[[#This Row],[21]]","v":{"v":97.5676923076923,"d":"97.57"}},{"$f":"J44*0.2/2080","v":{"v":67.3076923076923,"d":"67.31"}},17.88,12.38,{"$f":"SUBTOTAL(9,Table4[[#This Row],[18]:[20]])","v":{"v":97.5676923076923,"d":"97.57"}},100,100,"https://www.ijs.si/ijsw/Znotraj%20hi%C5%A1e/Desno?action=AttachFile&do=get&target=ARIS_Evidenca_opreme_2024.xlsx",4,2,3,38,{"$f":"Table4[[#This Row],[11]]","v":"Paket 13"},0,5,100,{"$f":"Table4[[#This Row],[4]]","v":"P1-0135"},{"$f":"Table4[[#This Row],[5]]","v":"Marko Mikuž"},100]
[106,"Institut \"Jožef Stefan\"",null,"P1-0135","Marko Mikuž",4763,"Nadradnja TIER-1 demonstratorja",2005,"TIER-2 Demonstrator Upgrade",{"v":43805.21,"d":"43,805.21"},"Paket 12","Računalniška oprema ni več v uporabi","Obsolete","Oprema vključena v slovensko Grid vozlišče SiGNET","Part of Slovenian Grid node SiGNET",42669,{"$f":"Table4[[#This Row],[21]]","v":{"v":30.259999999999998,"d":"30.26"}},0,17.88,12.38,{"$f":"SUBTOTAL(9,Table4[[#This Row],[18]:[20]])","v":{"v":30.259999999999998,"d":"30.26"}},100,100,"https://www.ijs.si/ijsw/Znotraj%20hi%C5%A1e/Desno?action=AttachFile&do=get&target=ARIS_Evidenca_opreme_2024.xlsx",6,1,5,14,{"$f":"Table4[[#This Row],[11]]","v":"Paket 12"},0,4,100,{"$f":"Table4[[#This Row],[4]]","v":"P1-0135"},{"$f":"Table4[[#This Row],[5]]","v":"Marko Mikuž"},50,"P1-0031","Danilo Zavrtanik",50]
[106,"Institut \"Jožef Stefan\"",null,"P1-0125","Polona Umek",18274,"Nanoreaktor",2002,"Nanoreactor",{"v":74577.23,"d":"74,577.23"},"Paket 11","Dostop dovoljen po dogovoru, ni posebnih omejitev","Service available upon request, no special limitation","Kemijske reakcije na molekularnem nivoju","Chemical reactions at the molecular level",38884,{"$f":"Table4[[#This Row],[21]]","v":{"v":37.4308875,"d":"37.43"}},{"$f":"J46*0.2/2080","v":{"v":7.1708875,"d":"7.17"}},17.88,12.38,{"$f":"SUBTOTAL(9,Table4[[#This Row],[18]:[20]])","v":{"v":37.4308875,"d":"37.43"}},100,100,"https://www.ijs.si/ijsw/Znotraj%20hi%C5%A1e/Desno?action=AttachFile&do=get&target=ARIS_Evidenca_opreme_2024.xlsx",1,7,4,4,{"$f":"Table4[[#This Row],[11]]","v":"Paket 11"},0,5,100,{"$f":"Table4[[#This Row],[4]]","v":"P1-0125"},{"$f":"Table4[[#This Row],[5]]","v":"Polona Umek"},100]
[106,"Institut \"Jožef Stefan\"",null,"P2-0082","Janez Kovač",15703,"Naprava za funkcionalizacijo površin novih materialov",2007,"Instrument for functionalization of surfaces of modern materials",{"v":145260,"d":"145,260.00"},"Paket 13","Uporaba je možna za zunanje uporabnike. Kontaktirati dr. Janeza Kovača.","Application for external users is possible, contact person dr. Janez Kovač","Naprava omogoča pripravo tankih večkomponentnih anorganskih in organskih plasti z naparevanjem v vakuumu z namenom študija osnovnih procesov med rastjo tankih plasti in interakcijo s podlago, kakor tudi funkcionalizacijo površin. Omogočena je toplotna obdelava tankih plasti, obdelava z ionskimi curki in funkcionalizacija površin s plazmo. Naprava je direktno povezana z XPS spektrometrom za karakterizacijo obdelanih površin in nanesenih tankih plasti brez izpostave zračni atmosferi.","Instrument can be used for preparation of thin, multicomponent inorganic and organic films as well as for functionalization of solid surfaces. It is possible to perform heat treatment, ion bombardment and plasma functionalization of surfaces. Instrument is directly connected with XPS spectrometer for characterization of treated surfaces and deposited films without exposure to air atmosphere.","45942 XIV 202",{"$f":"Table4[[#This Row],[21]]","v":{"v":44.22730769230769,"d":"44.23"}},{"v":13.967307692307692,"d":"13.97"},17.88,12.38,{"$f":"SUBTOTAL(9,Table4[[#This Row],[18]:[20]])","v":{"v":44.22730769230769,"d":"44.23"}},100,100,"https://www.ijs.si/ijsw/Znotraj%20hi%C5%A1e/Desno?action=AttachFile&do=get&target=ARIS_Evidenca_opreme_2024.xlsx",1,1,1,44,{"$f":"Table4[[#This Row],[11]]","v":"Paket 13"},40,5,100,{"$f":"Table4[[#This Row],[4]]","v":"P2-0082"},{"$f":"Table4[[#This Row],[5]]","v":"Janez Kovač"},100]
[106,"Institut \"Jožef Stefan\"",null,"P2-0084","Miran Čeh",3937,"Nizko-energijska ionska erozija materialov",2002,"Low-energy ion-miller for TEM specimen preparation (Technoorg Linda, Gentle Mill)",{"v":53892.47,"d":"53,892.47"},"Paket 11","Opremo uporabljajo šolani operaterji, ki lahko analize izvajajo tudi za druge raziskovalne organizacije. Cena je odvisna od zahtevnosti analiz. ","Specific training is required to operate the equipment. Trained operaters can perform analyses for users from other research institutions. Price is dependent on a complexity of analyses.","Oprema je namenjena pripravi vzorcev za presevno elektronsko mikroskopijo (TEM). Nizka energija ionskega jedkanja omogoča pripravo vzorcev brez amorfne plasti na površini vzorca.","The equipment is dedicated for specimen preparation for TEM observations. Low-energy ion-milling enables preparation of specimens without amorphous thin film on the specimen surface.",39874,{"$f":"Table4[[#This Row],[21]]","v":{"v":35.44196826923077,"d":"35.44"}},{"v":5.18196826923077,"d":"5.18"},17.88,12.38,{"$f":"SUBTOTAL(9,Table4[[#This Row],[18]:[20]])","v":{"v":35.44196826923077,"d":"35.44"}},100,100,"https://www.ijs.si/ijsw/Znotraj%20hi%C5%A1e/Desno?action=AttachFile&do=get&target=ARIS_Evidenca_opreme_2024.xlsx",1,3,1,44,{"$f":"Table4[[#This Row],[11]]","v":"Paket 11"},0,5,100,{"$f":"Table4[[#This Row],[4]]","v":"P2-0084"},{"$f":"Table4[[#This Row],[5]]","v":"Miran Čeh"},25,"J2-6705","Miran Čeh",25,"Z2-6621","Spomenka Kobe",25,"Z1-6493","Tadej Dolenec",25]
[106,"Institut \"Jožef Stefan\"",null,"P1-0125","Pavel Cevc",1106,"Obnovitev 9,6 GHz spektrometra za elektronsko paramagnetno resonanco",2005,"Refurbishing of 9,6 GHz electron paramagnetic resonance spectrometer",{"v":214015.54,"d":"214,015.54"},"Paket 12","Dostop dovoljen po dogovoru, ni posebnih omejitev","Service available upon request, no special limitation","Določitev fizikalno-kemijskih lastnosti trdnih in tekočih snovi","Determination of physical-chemical properties of solids and liquids ",43705,{"$f":"Table4[[#This Row],[21]]","v":{"v":50.83841730769232,"d":"50.84"}},{"v":20.578417307692312,"d":"20.58"},17.88,12.38,{"$f":"SUBTOTAL(9,Table4[[#This Row],[18]:[20]])","v":{"v":50.83841730769232,"d":"50.84"}},100,100,"https://www.ijs.si/ijsw/Znotraj%20hi%C5%A1e/Desno?action=AttachFile&do=get&target=ARIS_Evidenca_opreme_2024.xlsx",3,1,5,44,{"$f":"Table4[[#This Row],[11]]","v":"Paket 12"},0,5,100,{"$f":"Table4[[#This Row],[4]]","v":"P1-0125"},{"$f":"Table4[[#This Row],[5]]","v":"Pavel Cevc"},100,null,"IJS"]
[106,"Institut \"Jožef Stefan\"",null,"P2-0103","Igor Mozetič",3323,"Oprema za analitiko podatkov in tekstov",2010,"Data and text analytics equipment",{"v":91925,"d":"91,925.00"},"Paket 14","Po predhodnem dogovoru z dr. Igorjem Mozetičem je možen dostop do opreme (igor.mozetic@ijs.si)","Acces for equipment is possible by arrangement with Dr. Igor Mozetič (email: igor.mozetic@ijs.si)","Oprema služi raziskovalnem delu, ki obsega razvoj in testiranje novih metod za analiziranje velikih količin podatkov in tekstov in njihovega spreminjanja skozi čas","The equipment serves the research work, which includes the development and testing of new methods for analyzing large amounts of data, texts and their variations over time","50696,50563,50590,50591,.......... XIV_190",{"$f":"Table4[[#This Row],[21]]","v":{"v":39.09894230769231,"d":"39.10"}},{"v":8.838942307692308,"d":"8.84"},17.88,12.38,{"$f":"SUBTOTAL(9,Table4[[#This Row],[18]:[20]])","v":{"v":39.09894230769231,"d":"39.10"}},100,100,"https://www.ijs.si/ijsw/Znotraj%20hi%C5%A1e/Desno?action=AttachFile&do=get&target=ARIS_Evidenca_opreme_2024.xlsx",6,1,5,59,{"$f":"Table4[[#This Row],[11]]","v":"Paket 14"},0,5,100,{"$f":"Table4[[#This Row],[4]]","v":"P2-0103"},{"$f":"Table4[[#This Row],[5]]","v":"Igor Mozetič"},100]
[106,"Institut \"Jožef Stefan\"",null,"P1-0207","Igor Križaj",412,"Oprema za visokozmogljivostno subcelularno vizualizacijo",2010,"Equipment for high-performance subcellular visualization",{"v":209563.86,"d":"209,563.86"},"Paket 14","Za delo na sistemu za visokozmogljivostno subcelularno vizualizacijo se je potrebno predhodno najaviti in dogovoriti pri doc. dr. Toniju Petanu (01 477 3713).","To work on the high-performance subcellular visualization system previous appointment at Assist. Prof. Dr. Toni Petan (01 477 3713) is obligatory.","Oprema je namenjena visokozmogljivostni subcelularni vizualizaciji fluorescenčno označenih molekul.","The equipment is devoted to the high-performance subcellular visualization of fluorescently labelled molecules.","53794,50284,51173, 50930, 50929, 50932, 50723, 50689, 46931, 50281 XIV 173",{"$f":"Table4[[#This Row],[21]]","v":{"v":50.41037115384615,"d":"50.41"}},{"v":20.15037115384615,"d":"20.15"},17.88,12.38,{"$f":"SUBTOTAL(9,Table4[[#This Row],[18]:[20]])","v":{"v":50.41037115384615,"d":"50.41"}},100,100,"https://www.ijs.si/ijsw/Znotraj%20hi%C5%A1e/Desno?action=AttachFile&do=get&target=ARIS_Evidenca_opreme_2024.xlsx",4,7,5,66,{"$f":"Table4[[#This Row],[11]]","v":"Paket 14"},0,5,100,{"$f":"Table4[[#This Row],[4]]","v":"P1-0207"},{"$f":"Table4[[#This Row],[5]]","v":"Igor Križaj"},100]
[106,"Institut \"Jožef Stefan\"",null,"P2-0103","Nada Lavrač",8949,"Oprema za zajemanja in semantično analizo multimedijskih podatkov",2008,"Equipment for recording and semantic analysis of multimedia data",{"v":148000,"d":"148,000.00"},"Paket 13","Storitve delno ali v celoti producirane, ali delujoče na opremi iz paketa so prosto dosegljive preko http://www.videolectures.net (video predavanja), http://isambard.ijs.si/triplet/semgraph/ (avtomatska analiza in izdelava povzetkov dokumentov), http://historyviz.ijs.si (predstavitev zgodovinskega pogleda na osebe in dogodke opisane v wikipedia.com)","Services partialy or completely produced or running on the equipment can be acessed on http://www.videolectures.net (video lectures), http://isambard.ijs.si/triplet/semgraph/ ( automatic analysis and summarization of documents), http://historyviz.ijs.si (different entities from wikipedia data described and put in historical perspective)","Zajemanje, shranjevanje, obdelava in semantični analiza velikih količin podatkov. Poudarek je na multimedijskih vsebinah (analiza slik in videa), tekstovnih in spletnih vsebinah in zbirkah strukturiranih podatkov.","Recording, storage, processing and semantic analysis of large amounts of data. The focus is on multimedia content (image and video analysis), text and web content and structured data collections.","45525\n45813\n45814\n46012\n46817\n45874\n45874  01\n47093\n46815\n46956\n46955\n47204\n47144\n47262\n47263\n47495\n48017\n48018\n48019\n48027\n48034\n47797 XIII_206\n",{"$f":"Table4[[#This Row],[21]]","v":{"v":48.048461538461545,"d":"48.05"}},{"$f":"J52*0.25/2080","v":{"v":17.78846153846154,"d":"17.79"}},17.88,12.38,{"$f":"SUBTOTAL(9,Table4[[#This Row],[18]:[20]])","v":{"v":48.048461538461545,"d":"48.05"}},100,100,"https://www.ijs.si/ijsw/Znotraj%20hi%C5%A1e/Desno?action=AttachFile&do=get&target=ARIS_Evidenca_opreme_2024.xlsx",6,1,5,25,{"$f":"Table4[[#This Row],[11]]","v":"Paket 13"},0,4,100,{"$f":"Table4[[#This Row],[4]]","v":"P2-0103"},{"$f":"Table4[[#This Row],[5]]","v":"Nada Lavrač"},25,"VoiceTRAN II M2-0132 ","IJS",25,"IQ FP6-516169 ","IJS",25,"medinet+","IJS",25]
[106,"Institut \"Jožef Stefan\"",null,"P2-0076","Leon Žlajpah",3332,"Optični merilni sistem za analizo gibanja",2004,"Human motion optical measurement system",{"v":92262.75,"d":"92,262.75"},"Paket 11","Po predhodnem dogovoru je možen najem opreme. Oprema je fiksno nameščena v laboratoriju na IJS in je pravilome ne prenašamo, razen v izjemnih primerih. Nudimo tudi tehnično pomoč pri uporabi opreme. Delo se zaračunava po ceniku IJS.","We can arrange all kinds of kinematic and force measurement of human motion providing that measurements take place in our laboratory. The price is according to the JSI personnel price list. ","3D merjenje gibanja pri človeku z natančnostjo pod 1 mm s šestimi kamerami, volumen merjenja do 10 m3, frekvenca meritve do 100 Hz. Meritev se izvaja s pomočjo odsevnikov )markerjev=, ki jih nalepimo na točko, ki jo želimo opazovati.","Equipement enables 3D motion measurement by using passive markers attached to measiring points.  The position accuracy of measurements is under 1mm. The measuring rate is up to 100Hz and  the measuring volume is up to 10m3. ",36658,{"$f":"Table4[[#This Row],[21]]","v":{"v":39.13141826923077,"d":"39.13"}},{"$f":"J53*0.2/2080","v":{"v":8.87141826923077,"d":"8.87"}},17.88,12.38,{"$f":"SUBTOTAL(9,Table4[[#This Row],[18]:[20]])","v":{"v":39.13141826923077,"d":"39.13"}},100,100,"https://www.ijs.si/ijsw/Znotraj%20hi%C5%A1e/Desno?action=AttachFile&do=get&target=ARIS_Evidenca_opreme_2024.xlsx",4,3,2,46,{"$f":"Table4[[#This Row],[11]]","v":"Paket 11"},0,5,100,{"$f":"Table4[[#This Row],[4]]","v":"P2-0076"},{"$f":"Table4[[#This Row],[5]]","v":"Leon Žlajpah"},100]
[106,"Institut \"Jožef Stefan\"",null,"P1-0143","Ester Heath",12315,"Plinski kromatograf z masnoselektivnim detektorjem MS/MS načinom delovanja",2010,"Gas Chromatograph with mass selective detection in MS/MS mode",{"v":149885.1,"d":"149,885.10"},"Paket 14","Po predhodni najavi dr. ester Heath (ester.heath@ijs.si, 01 477 3584)","According to arrangement with dr. Ester Heath (ester.heath@ijs.si, +386 1 477 3584)","Analiza organskih onesnažil v okoljskih vzorcih","Analysis of organic pollutants in environmental smaples","51078 XIV 197",{"$f":"Table4[[#This Row],[21]]","v":{"v":44.67202884615385,"d":"44.67"}},{"v":14.412028846153849,"d":"14.41"},17.88,12.38,{"$f":"SUBTOTAL(9,Table4[[#This Row],[18]:[20]])","v":{"v":44.67202884615385,"d":"44.67"}},100,100,"https://www.ijs.si/ijsw/Znotraj%20hi%C5%A1e/Desno?action=AttachFile&do=get&target=ARIS_Evidenca_opreme_2024.xlsx",3,2,3,4,{"$f":"Table4[[#This Row],[11]]","v":"Paket 14"},0,5,100,{"$f":"Table4[[#This Row],[4]]","v":"P1-0143"},{"$f":"Table4[[#This Row],[5]]","v":"Ester Heath"},100]
[106,"Institut \"Jožef Stefan\"",null,"P2-0082","Peter Panjan",9090,"Posodobitev profilometra",2007,"Upgrade of stylus profilometer",{"v":52406,"d":"52,406.00"},"Paket 13","Zunanjim uporabnikom zaračunavamo delo operaterja (28.2 €/uro)","only operator cost is charged (28,2 €/h)","Analiza topografije površine podlag pred in po nanosu prevlek. Merjenje debeline tankih plasti.","Study of substrate topography before and after deposition. Thin film thickness measurement.","41239,45284 XIII 218",{"$f":"Table4[[#This Row],[21]]","v":{"v":35.299038461538466,"d":"35.30"}},{"v":5.039038461538462,"d":"5.04"},17.88,12.38,{"$f":"SUBTOTAL(9,Table4[[#This Row],[18]:[20]])","v":{"v":35.299038461538466,"d":"35.30"}},100,100,"https://www.ijs.si/ijsw/Znotraj%20hi%C5%A1e/Desno?action=AttachFile&do=get&target=ARIS_Evidenca_opreme_2024.xlsx",1,6,2,44,{"$f":"Table4[[#This Row],[11]]","v":"Paket 13"},0,5,100,{"$f":"Table4[[#This Row],[4]]","v":"P2-0082"},{"$f":"Table4[[#This Row],[5]]","v":"Peter Panjan"},20,"L2-9189","Darinka Kek Merl",20,"L2-0858","Tomaž Gyergyek",20,"L2-2100","Peter Panjan",20,"L2-2150","Marta Klanjšek-Gunde",20]
[106,"Institut \"Jožef Stefan\"",null,"P2-0091","Danilo Suvorov",8012,"Praškovni rentgenski difraktometer",2002,"Powder X-ray diffraction, Bruker D4",{"v":134161.38,"d":"134,161.38"},"Paket 11","24 ur, tel. 4773708, dr. S. Škapin","24 hours, Phone: +386 1 477 3708","Praškovna rentgenska analiza","Powder X-ray diffraction",38402,{"$f":"Table4[[#This Row],[21]]","v":{"v":43.16013269230769,"d":"43.16"}},{"v":12.900132692307693,"d":"12.90"},17.88,12.38,{"$f":"SUBTOTAL(9,Table4[[#This Row],[18]:[20]])","v":{"v":43.16013269230769,"d":"43.16"}},100,100,"https://www.ijs.si/ijsw/Znotraj%20hi%C5%A1e/Desno?action=AttachFile&do=get&target=ARIS_Evidenca_opreme_2024.xlsx",3,8,1,4,{"$f":"Table4[[#This Row],[11]]","v":"Paket 11"},0,5,100,{"$f":"Table4[[#This Row],[4]]","v":"P2-0091"},{"$f":"Table4[[#This Row],[5]]","v":"Danilo Suvorov"},25,"L2-2410","Monika Jenko",25,"L2-2185","Danilo Suvorov",25,"L2-2373","Miran Gaberšček",25]
[106,"Institut \"Jožef Stefan\"",null,"P1-0140","Boris Turk",7561,"Preparativna centrifuga",2002,"Preparative centrifuge",{"v":39944.91,"d":"39,944.91"},"Paket 11","Uporaba in cena cena po dogovoru, za uporabo kontaktirati dr. Iztoka Dolenca (iztok.dolenc@ijs.si)","Centrifugation of liquid samples; separation of liquid and solid phase, primarily biological material","Separacija vzorcev s centrifugiranjem; ločevanje trdne in tekoče faze, pretežno za biološke vzorce",null,39167,{"$f":"Table4[[#This Row],[21]]","v":{"v":34.10085673076923,"d":"34.10"}},{"v":3.8408567307692314,"d":"3.84"},17.88,12.38,{"$f":"SUBTOTAL(9,Table4[[#This Row],[18]:[20]])","v":{"v":34.10085673076923,"d":"34.10"}},100,100,"https://www.ijs.si/ijsw/Znotraj%20hi%C5%A1e/Desno?action=AttachFile&do=get&target=ARIS_Evidenca_opreme_2024.xlsx",2,2,2,4,{"$f":"Table4[[#This Row],[11]]","v":"Paket 11"},0,5,100,{"$f":"Table4[[#This Row],[4]]","v":"P1-0140"},{"$f":"Table4[[#This Row],[5]]","v":"Boris Turk"},25,"P1-0048","Dušan Turk",25,"J1-0711","Boris Turk",25,"J1-0185","Marko Fonović",25]
[106,"Institut \"Jožef Stefan\"",null,"P1-0140","Boris Turk",7561,"Pretočni citometer FACSCalibur (argonski laser 488 nm), Becton Dickinson  ",2003,"Flow Cytometer FACSCalibur (Argon Laser 488 nm), Becton Dickinson",{"v":49824.93,"d":"49,824.93"},"Paket 11","Uporaba in cena cena po dogovoru, za uporabo kontaktirati dr. Urško Repnik (urska.repnik@ijs.si)","expression of surface or intracellular molecules - antibody binding; Lysotracker / Mitotracker staining; apoptosis analysis - annexin V & PI; cell cycle analysis; analysis of cell proliferation - CFSE staining; further services by agreement ","Pretočna citometrija omogoča semikvantitativno in celo kvantitativno analizo fluorescence posameznih celic v suspenziji. Z uporabo protiteles, konjugiranih s fluorokromi, lahko spremljamo izražanje oz. prisotnost posameznih molekul na / v celicah. Z barvili, katerih fluorescenca se spreminja v odvisnosti od pH, oksidativnega stanja, koncentracije določenih ionov,... lahko spremljamo fiziološko stanje celic (mitohondrijski membranski potencial, mikrobicidni potencial nevtrofilcev, prenos signala s površinskih receptorjev). Z barvili, ki se vežejo v DNA, je mogoče analizirati celični ciklus in živost celic. Med pogostejše uporabe sodijo še analiza apoptotskih celic, vrednotenje uspešnosti transfekcije celic s fluorescenčnimi konstrukti in sledenje proliferaciji celic, obarvanih z barvilom CFSE. Najpomembnejše prednosti pretočne citometrije so: hitra priprava vzorcev, hitra analiza velikega števila celic, preučevanje medsebojne povezanosti več lastnosti in možnost statistične obdelave, tako v smislu deleža celic kot intenzitete parametrov.","Argon laser (488 nm)",37061,{"$f":"Table4[[#This Row],[21]]","v":{"v":35.050858653846156,"d":"35.05"}},{"v":4.790858653846154,"d":"4.79"},17.88,12.38,{"$f":"SUBTOTAL(9,Table4[[#This Row],[18]:[20]])","v":{"v":35.050858653846156,"d":"35.05"}},100,100,"https://www.ijs.si/ijsw/Znotraj%20hi%C5%A1e/Desno?action=AttachFile&do=get&target=ARIS_Evidenca_opreme_2024.xlsx",2,5,4,11,{"$f":"Table4[[#This Row],[11]]","v":"Paket 11"},0,5,100,{"$f":"Table4[[#This Row],[4]]","v":"P1-0140"},{"$f":"Table4[[#This Row],[5]]","v":"Boris Turk"},25,"P1-0048","Dušan Turk",25,"J1-0711","Boris Turk",25,"P1-0207","Igor Križaj",25]
[106,"Institut \"Jožef Stefan\"",null,"P2-0001","Stanislav Strmčnik",2830,"Računalniška in merilna oprema za upravljanje in diagnosticiranje kompleksnih sistemov",2004,"Measurement and control modules for the laboratory of fault diagnosis systems",{"v":55467.4,"d":"55,467.40"},"Paket 12","Opremo je možno uporabljati po predhodnem dogovoru s potencialnim uporabnikom in lastnikom opreme. Pogoje, trajanje in način uporabe se določi s pogodbo.","The equipment can be exploited upon precedent agreement between the potential user and the owner. The conditions, duration and modes of the equipment exploitation are to be defined with a contract.","Meritve akustičnih signalov in vibracij; računalniški zajem in analiza električnih signalov","Measurement of acoustic signals and vibration; computer acquisition and analysis of electrical signals",41202,{"$f":"Table4[[#This Row],[21]]","v":{"v":35.59340384615385,"d":"35.59"}},{"v":5.333403846153847,"d":"5.33"},17.88,12.38,{"$f":"SUBTOTAL(9,Table4[[#This Row],[18]:[20]])","v":{"v":35.59340384615385,"d":"35.59"}},100,100,"https://www.ijs.si/ijsw/Znotraj%20hi%C5%A1e/Desno?action=AttachFile&do=get&target=ARIS_Evidenca_opreme_2024.xlsx",6,1,5,1,{"$f":"Table4[[#This Row],[11]]","v":"Paket 12"},0,5,100,{"$f":"Table4[[#This Row],[4]]","v":"P2-0001"},{"$f":"Table4[[#This Row],[5]]","v":"Stanislav Strmčnik"},25,"L2-3504 ","Mina Žele",25,"L2-6554 ","Đani Juričić",25,"L2-7537 ","Stanislav Strmčnik",25]
[106,"Institut \"Jožef Stefan\"",null,"P2-0001","Stanislav Strmčnik",2830,"Računalniška in merilno-regulacijska oprema laboratorija za tehnologijo vodenja sistemov",2002,"Process and control modules for the laboratory of control systems technology",{"v":45971.96,"d":"45,971.96"},"Paket 11","Opremo je možno uporabljati po predhodnem dogovoru s potencialnim uporabnikom in lastnikom opreme. Pogoje, trajanje in način uporabe se določi s pogodbo.","The equipment can be exploited upon precedent agreement between the potential user and the owner. The conditions, duration and modes of the equipment exploitation are to be defined with a contract.","Meritve EM emisij in analiza EM združljivosti naprav v procesnem okolju; preizkušanje metod vodenja na procesni opremi","Measurement of EM emissions of electronic equipment and analysis of EM compatibility in the process environment ","38499.38500,38518,38519,38520,38521,38616,38897,38560,38597,38598,38531,38532,38594,38595,38596,38615,",{"$f":"Table4[[#This Row],[21]]","v":{"v":34.68038076923077,"d":"34.68"}},{"v":4.4203807692307695,"d":"4.42"},17.88,12.38,{"$f":"SUBTOTAL(9,Table4[[#This Row],[18]:[20]])","v":{"v":34.68038076923077,"d":"34.68"}},100,100,"https://www.ijs.si/ijsw/Znotraj%20hi%C5%A1e/Desno?action=AttachFile&do=get&target=ARIS_Evidenca_opreme_2024.xlsx",6,4,null,46,{"$f":"Table4[[#This Row],[11]]","v":"Paket 11"},0,5,100,{"$f":"Table4[[#This Row],[4]]","v":"P2-0001"},{"$f":"Table4[[#This Row],[5]]","v":"Stanislav Strmčnik"},33,"P2-0001","Đani Juričić",33,"L2-4221","Stanislav Strmčnik",33]
[106,"Institut \"Jožef Stefan\"",null,"P2-0209","Matjaž Gams",8501,"Računalniška oprema za raziskave ambientalne inteligence",2011,"Computer equipment for research in ambient intelligence",{"v":120704.79,"d":"120,704.79"},"Paket 14","Oprema je dostopna po predhodnem dogovoru. Kontakt preko e-pošte na naslovu matjaz.gams@ijs.si","Equipment is available on demand. Please contact matjaz.gams@ijs.si","Oprema je namenjena zajemanju lokacije, orientacije in pospeškov nosljivih značk z namenom rekonstrukcije človeške poze. Na voljo so tudi procesni strežniki za procesiranje zajetih podatkov.","Equipment is used for acquireing location, orientation and acceleration of wearable tags with aim to recunstruct persons gait. Servers for processing acuired data are also available.","50043,49705,51514-19,51584-89,49881...XIV_186 ",{"$f":"Table4[[#This Row],[21]]","v":{"v":34.59778725961539,"d":"34.60"}},{"$f":"J61*0.25/2080","v":{"v":14.507787259615384,"d":"14.51"}},5.99,14.1,{"$f":"SUBTOTAL(9,Table4[[#This Row],[18]:[20]])","v":{"v":34.59778725961539,"d":"34.60"}},100,100,"https://www.ijs.si/ijsw/Znotraj%20hi%C5%A1e/Desno?action=AttachFile&do=get&target=ARIS_Evidenca_opreme_2024.xlsx",6,1,5,14,{"$f":"Table4[[#This Row],[11]]","v":"Paket 14"},0,4,100,{"$f":"Table4[[#This Row],[4]]","v":"P2-0209"},{"$f":"Table4[[#This Row],[5]]","v":"Matjaž Gams"},25,"PR-03610","Mitja Luštrek",25,"PR-04275","Domen Marinčič",25,"PR-02778","Aleš Tavčar",25]
[106,"Institut \"Jožef Stefan\"",null,"P2-0209","Ivan Bratko",2275,"Računalniška oprema za razvoj inteligentnih internetnih storitev",2003,"Computer equipment for development of intelligent Internet services",{"v":89787.63,"d":"89,787.63"},"Paket 11","Oprema ni več v uporabi (je amortizirana in odpisana).","The equipment is no more in use.","Oprema je obsegala v mrežo povezane strežnike, namizne in prenosne računalnike, periferne in mobilne naprave ter pripadajočo programsko opremo. Namenjena je bila raziskavam in razvoju metod za podporo inteligentnih internetnih storitev, ki so računsko in pomnilniško zahtevne. Uporabljena je bila za dostopanje do informacij na globalnem omrežju, iskanje zakonitosti v velikih porazdeljenih zbirkah podatkov in podpori govornih komunikacij.","The equipment consisted of a network of servers, desktop and laptop computers, peripheral and mobile devices, and related software. It was meant for research and development of methods for intelligent internet services that require high computational and storage capacities. It was used in accessing information on global network, knowledge discovery in large distributed databases, and speech communication support.",38457,{"$f":"Table4[[#This Row],[21]]","v":{"v":41.05178245192308,"d":"41.05"}},{"v":10.791782451923078,"d":"10.79"},17.88,12.38,{"$f":"SUBTOTAL(9,Table4[[#This Row],[18]:[20]])","v":{"v":41.05178245192308,"d":"41.05"}},100,100,"https://www.ijs.si/ijsw/Znotraj%20hi%C5%A1e/Desno?action=AttachFile&do=get&target=ARIS_Evidenca_opreme_2024.xlsx",6,1,3,14,{"$f":"Table4[[#This Row],[11]]","v":"Paket 11"},0,4,100,{"$f":"Table4[[#This Row],[4]]","v":"P2-0209"},{"$f":"Table4[[#This Row],[5]]","v":"Ivan Bratko"},25,"L2-5373","Matjaž Gams",25,"V2-0893","Tomaž Šef",25,"V2-0894","Matjaž Gams",25]
[106,"Institut \"Jožef Stefan\"",null,"P2-0209","Matjaž Gams",8501,"Računalniška oprema za razvoj porazdeljenih inteligentnih sistemov",2004,"Computer equipment for development of distributed intelligent systems",{"v":103792.37,"d":"103,792.37"},"Paket 12","Oprema ni več v uporabi (je amortizirana in odpisana).","The equipment is no more in use.","Oprema je obsegala v mrežo povezane strežnike, namizne in prenosne računalnike, periferne in mobilne naprave ter pripadajočo programsko opremo. Namenjena je bila raziskavam in razvoju metod porazdeljenih inteligentnih sistemov. Z njo smo izvajali raziskovalne in razvojne projekte na področjih strojnega učenja, odkrivanja zakonitosti v podatkih, večagentnih sistemov, semantičnega spleta, evolucijskega računanja in jezikovnih tehnologij.","The equipment consisted of a network of servers, desktop and laptop computers, peripheral and mobile devices, and related software. It was meant for research and development of methods of distributed intelligent systems. It was exploited in research and development projects in the fields of machine learning, data mining, multiagent systems, semantic web, evolutionary computing and language technologies.",35911,{"$f":"Table4[[#This Row],[21]]","v":{"v":42.73504447115385,"d":"42.74"}},{"v":12.475044471153845,"d":"12.48"},17.88,12.38,{"$f":"SUBTOTAL(9,Table4[[#This Row],[18]:[20]])","v":{"v":42.73504447115385,"d":"42.74"}},100,100,"https://www.ijs.si/ijsw/Znotraj%20hi%C5%A1e/Desno?action=AttachFile&do=get&target=ARIS_Evidenca_opreme_2024.xlsx",6,1,4,14,{"$f":"Table4[[#This Row],[11]]","v":"Paket 12"},0,4,100,{"$f":"Table4[[#This Row],[4]]","v":"P2-0209"},{"$f":"Table4[[#This Row],[5]]","v":"Matjaž Gams"},25,"L2-6234","Matjaž Gams",25,"M2-0156","Matjaž Gams",25,"V2-0130","Matjaž Gams",25]
[106,"Institut \"Jožef Stefan\"",null,"P2-0103","Nada Lavrač",8949,"Računalniška oprema za semantične informacijske storitve",2004,"Computer equipment for the semantic information services",{"v":118827.27,"d":"118,827.27"},"Paket 12","Storitve delno ali v celoti producirane na opremi iz paketa so prosto dosegljive preko http://www.videolectures.net (video predavanja), http://nl2.ijs.si/ (storitve za označevanje naravnega jezika in korpusi)","Services partialy or completely produced or running on the equipment can be acessed on http://www.videolectures.net (video lectures), http://nl2.ijs.si/ (natural language tagging and corpora)","Razvoj novih računalniških programov in metod za semantično analizo velikih podatkovnih in tekstovnih zbirk.","Development of new computer programs and methods for semantic analysis of large data and text collections.",40973,{"$f":"Table4[[#This Row],[21]]","v":{"v":44.54212379807692,"d":"44.54"}},{"v":14.282123798076924,"d":"14.28"},17.88,12.38,{"$f":"SUBTOTAL(9,Table4[[#This Row],[18]:[20]])","v":{"v":44.54212379807692,"d":"44.54"}},100,100,"https://www.ijs.si/ijsw/Znotraj%20hi%C5%A1e/Desno?action=AttachFile&do=get&target=ARIS_Evidenca_opreme_2024.xlsx",6,1,5,63,{"$f":"Table4[[#This Row],[11]]","v":"Paket 12"},0,4,100,{"$f":"Table4[[#This Row],[4]]","v":"P2-0103"},{"$f":"Table4[[#This Row],[5]]","v":"Nada Lavrač"},25,"L6-6373","Matija Ogrin",25,"ECOGEN QLRT-2001-01666","IJS",25,"MEDINET ","IJS",25]
[106,"Institut \"Jožef Stefan\"",null,"P2-0026","Igor Simonovski",19910,"Računska računalniška gruča",2007,"High Performance Compute Cluster Mangrt",{"v":100000,"d":"100,000.00"},"Paket 13","Proste kapacitete so na voljo ostalim odsekom Instituta Jožef Stefan. Prošnja za dostop do prostih kapacitet se pošlje na naslov Dr. Igor Simonovski, Odsek za reaktorsko tehniko, ali na elektronski naslov Igor.Simonovski@ijs.si. Prošnja naj navede število potrebnih vozlišč oz. procesorjev, spomina in prostega diska ter predviden čas uporabe. Cena uporabe enega vozlišča z dvema Intel Xeon 5160 procesorjema in 8GB spomina je 10€ za uro uporabe (brez DDV-ja). Dostop do gruče je omogočen preko SSH povezave.","Free capacities are available to other Jožef Stefan Institute departments. The request should be addressed to  Dr. Igor Simonovski, Reactor Engineering Division, Jožef Stefan Institute, Jamova cesta 39, Ljubljana or to e-mail address Igor.Simonovski@ijs.si. The request should state the number of required compute nodes and/or processors, memory, disk space and estimated time of usage. 10€ per hour (without VAT) is charged for one compute node with 2 Intel Xeon 5160 processors and 8 GB of memory. SSH connection is used for connecting to the cluster.","Računalniška gruča za izvajanje znanstvenih simulacij. Nadzorno vozlišče ter 18 računskih vozlišč, dva dvo- oz. štiri-jedrna Intel Xeon procesorja na vozlišče, 3GHz, od 8 do 32GB spomina na vozlišče. Gigabitna povezava med vozlišči. 64-bitni Red Hat Enterprise Linux 4 WS, Update 4. Torque čakalni sistem.","High performance compute cluster for performing scientific simulations. Master and 18 compute nodes, two dual- and quad-core Intel Xeon processors per node, 3GHz, from 8 to 32GB of memory per node. Gigabit interconnect. 64-bit Red Hat Enterprise Linux 4 WS, Update 4. Torque queuing system.","45700,45700 01 XIII_225",{"$f":"Table4[[#This Row],[21]]","v":{"v":42.27923076923077,"d":"42.28"}},{"v":12.01923076923077,"d":"12.02"},17.88,12.38,{"$f":"SUBTOTAL(9,Table4[[#This Row],[18]:[20]])","v":{"v":42.27923076923077,"d":"42.28"}},100,100,"https://www.ijs.si/ijsw/Znotraj%20hi%C5%A1e/Desno?action=AttachFile&do=get&target=ARIS_Evidenca_opreme_2024.xlsx",6,1,4,14,{"$f":"Table4[[#This Row],[11]]","v":"Paket 13"},0,4,100,{"$f":"Table4[[#This Row],[4]]","v":"P2-0026"},{"$f":"Table4[[#This Row],[5]]","v":"Igor Simonovski"},25,"PR-01857","IJS",25,"PR-02538","IJS",25,"J2-9168","Igor Simonovski",25]
[106,"Institut \"Jožef Stefan\"",null,"P2-0026","Iztok Tiselj",12057,"Računska računalniška gruča",2010,"Cluster",{"v":179400,"d":"179,400.00"},"Paket 14","Računalniška gruča je ob oddobritvi vodij odsekov R4 ali F8, oz. mentorjev z obeh odsekov, dostopna vsem raziskovalcem in študentom omenjenih odsekov.","Cluster is available to all members and students of  R4 and F8 departments after approval of department heads or senior researchers.","Oprema se uporablja za simulacije na področjih računalniške fizike (predvsem Monte-Carlo simulacije), jedrske termohidravlike (simulacije v mehaniki tekočin, prenosu toplote in snovi z metodami končnih razlik, končnih volumnov oz. spektralnimi shemami) ter na področju strukturnih analiz (simulacije trdnosti struktur - predvsem z metodami končnih enlementov).","Cluster is being used mainly for simulations in the field of reactor physics (Monte-Carlo simulations), nuclear thermal-hydraulics simulations (finite differences/volumes and pseudospectral methods used for computational fluid dynamics, heat and mass transfer simulations), and structural mechanics (finite element methods).","51430,51430-1 XIV 177",{"$f":"Table4[[#This Row],[21]]","v":{"v":51.8225,"d":"51.82"}},{"v":21.5625,"d":"21.56"},17.88,12.38,{"$f":"SUBTOTAL(9,Table4[[#This Row],[18]:[20]])","v":{"v":51.8225,"d":"51.82"}},100,100,"https://www.ijs.si/ijsw/Znotraj%20hi%C5%A1e/Desno?action=AttachFile&do=get&target=ARIS_Evidenca_opreme_2024.xlsx",6,1,4,14,{"$f":"Table4[[#This Row],[11]]","v":"Paket 14"},0,4,100,{"$f":"Table4[[#This Row],[4]]","v":"P2-0026"},{"$f":"Table4[[#This Row],[5]]","v":"Iztok Tiselj"},100]
[106,"Institut \"Jožef Stefan\"",null,"P1-0045","Adolf Jesih",3317,"Ramanski spektrometer",2010,"Raman microscope Labram HR",{"v":133200,"d":"133,200.00"},"Paket 14","Čas dostopa do opreme vsak delovni dan od 8:00 do 16:00 po predhodnem dogovoru s skrbnikom. Kontakt preko el. Pošte na naslovu melita.tramsek@ijs.si","Acces is posible every working day from 8:00 to 16:00 after agreement on terms of use. Contact  on email melita.tramsek@ijs.si","Oprema je v prvi vrsti namenjena karakterizaciji in identifikaciji spojin in materialov in omogoča nedestruktivno analizo praktično brez priprave vzorca. ","The equipment is primarily used for the characterization and identification of compounds and materials and allows for the nondestructive analyses with practically no additional sample processing.","50651 xiv 198",{"$f":"Table4[[#This Row],[21]]","v":{"v":43.06769230769231,"d":"43.07"}},{"$f":"J67*0.2/2080","v":{"v":12.807692307692308,"d":"12.81"}},17.88,12.38,{"$f":"SUBTOTAL(9,Table4[[#This Row],[18]:[20]])","v":{"v":43.06769230769231,"d":"43.07"}},100,100,"https://www.ijs.si/ijsw/Znotraj%20hi%C5%A1e/Desno?action=AttachFile&do=get&target=ARIS_Evidenca_opreme_2024.xlsx",3,1,1,4,{"$f":"Table4[[#This Row],[11]]","v":"Paket 14"},0,5,100,{"$f":"Table4[[#This Row],[4]]","v":"P1-0045"},{"$f":"Table4[[#This Row],[5]]","v":"Adolf Jesih"},100]
[106,"Institut \"Jožef Stefan\"",null,"P2-0095","Roman Trobec",6875,"Raziskovalni vzporedni računalnik",2004,"Parallel computer (34 CPU - toroidal 6-mesh)",{"v":53344.08,"d":"53,344.08"},"Paket 12","Glavni uporabniki vzporednega računalnika so raziskovalci programske skupine P2-0095. Oprema je ob predhodnem dogovoru prosto dostopna za raziskovalne namene. Preostali čas je na voljo tudi dodiplomskim in podiplomskim študentom. Uporaba računalnika je brezplačna.  ","Main users of the parallel computer are researchers from the Program Group P2-0095. The equipment is available also for research purposes after mutual agreement. The remaining CPU time is available for graduate and postgraduate students. No financial refund requested for the usage.","Vzporedni računalnik je namenjen razvoju in izvajanju računsko zahtevnih programov, študiju zahtevnosti računanja in proučevanju povezovalnih omrežji.","Parallel computer is intended for developing and running of the computationally demanding applications, for studying the computational complexity and for investigating the interconnection networks.",41068,{"$f":"Table4[[#This Row],[21]]","v":{"v":36.67154807692308,"d":"36.67"}},{"$f":"J68*0.25/2080","v":{"v":6.4115480769230775,"d":"6.41"}},17.88,12.38,{"$f":"SUBTOTAL(9,Table4[[#This Row],[18]:[20]])","v":{"v":36.67154807692308,"d":"36.67"}},100,100,"https://www.ijs.si/ijsw/Znotraj%20hi%C5%A1e/Desno?action=AttachFile&do=get&target=ARIS_Evidenca_opreme_2024.xlsx",6,1,4,25,{"$f":"Table4[[#This Row],[11]]","v":"Paket 12"},0,4,{"$f":"(AI68+AL68+AO68+AR68+AU68+AX68)","v":100},{"$f":"Table4[[#This Row],[4]]","v":"P2-0095"},{"$f":"Table4[[#This Row],[5]]","v":"Roman Trobec"},20,"V2-0127 ","Boštjan Vilfan",20,"COST IC0805, ","IJS",20,"BI-UA/09-10-001","IJS",20,"(CRP) Računske Grid tehnologije za učinkovitejo uporabo uporabo računalniških virov v podjetjih ","IJS",20]
[106,"Institut \"Jožef Stefan\"",null,"P1-0045","Tomaž Skapin",2757,"Rentgenski praškovni difraktometer",2007,"X-ray powder diffractometer",{"v":52000,"d":"52,000.00"},"Paket 13","Dostop do opreme je možen. Delo na opremi je možno le z ustreznim izpitom iz varstva pred sevanji. Pogoji dostopa in cena: po dogovoru. Kontakt: T. Skapin","Access to the equipment is possible. Work is possible only with a valid radiation safety certificate. Access conditions and prices:  individually appointed. Contact: T. Skapin","Praškovni difraktometer za delo z občutljivimi vzorci, snemanje v kapilari.","Powder diffractometer for sensitive samples, work in capillaries.","46660 XIV_226",{"$f":"Table4[[#This Row],[21]]","v":35.26},{"$f":"J69*0.2/2080","v":{"v":5,"d":"5.00"}},17.88,12.38,{"$f":"SUBTOTAL(9,Table4[[#This Row],[18]:[20]])","v":35.26},100,100,"https://www.ijs.si/ijsw/Znotraj%20hi%C5%A1e/Desno?action=AttachFile&do=get&target=ARIS_Evidenca_opreme_2024.xlsx",3,8,1,4,{"$f":"Table4[[#This Row],[11]]","v":"Paket 13"},0,5,100,{"$f":"Table4[[#This Row],[4]]","v":"P1-0045"},{"$f":"Table4[[#This Row],[5]]","v":"Tomaž Skapin"},50,"Z1-7037","Boris Žemva",50]
[106,"Institut \"Jožef Stefan\"",null,"P2-0087","Aleš Dakskobler",17165,"Reometer (Physica MCR301 Modular Compact)",2005,"Physica MCR301 Modular Compact Rheometer, Anton Paar",{"v":62618.4,"d":"62,618.40"},"Paket 12","Oprema je na voljo na Institutu Jožef Stefan, na Odseku za inženirsko keramiko","Rotational and oscilation measurement of rheological properties of  liquids, suspensions and pastes.","Oprema je namenjena merjenju reoloških lastnosti tekočin, suspenzij in past. Meritve je mogoče opravljati v rotacijskem in oscilacijskem načinu. Omogoča tudi merjenje reoloških lastnosti v magnetnem polju.","The equipment is designed for the measurement of rheological properties of liquids, suspensions and pastes. The measurements can be conducted in rotational or oscilation modes. The measurement of rheologival properties can also be conducted in magnetic field.","42727,42727 1,42727-1",{"$f":"Table4[[#This Row],[21]]","v":{"v":36.281,"d":"36.28"}},{"v":6.021,"d":"6.02"},17.88,12.38,{"$f":"SUBTOTAL(9,Table4[[#This Row],[18]:[20]])","v":{"v":36.281,"d":"36.28"}},100,100,"https://www.ijs.si/ijsw/Znotraj%20hi%C5%A1e/Desno?action=AttachFile&do=get&target=ARIS_Evidenca_opreme_2024.xlsx",3,10,2,44,{"$f":"Table4[[#This Row],[11]]","v":"Paket 12"},0,5,100,{"$f":"Table4[[#This Row],[4]]","v":"P2-0087"},{"$f":"Table4[[#This Row],[5]]","v":"Aleš Dakskobler"},50,"L2-9360","Kristoffer Krnel",50]
[106,"Institut \"Jožef Stefan\"",null,"P1-0099","Janez Pirš",1120,"Sistem za čiščenje substratov",2007,"System for substrate cleaning",{"v":115000,"d":"115,000.00"},"Paket 13","Dostop dovoljen po dogovoru, ni posebnih omejitev","Service available upon request, no special limitation","Oprema omogoča pripravo ultračistih površin za nanos tankih prevlek mehkih in trdnih snovi, predvsem tekočih kristalov.","The equipment provides for preparation of ultra-clean surfaces for deposition of thin films of soft and solid matter, in particular liquid crystals.","45692,46018,45735,45304,39948,46567,44552,45691,45875,46019,46051 XIII_210",{"$f":"Table4[[#This Row],[21]]","v":{"v":41.31769230769231,"d":"41.32"}},{"v":11.057692307692308,"d":"11.06"},17.88,12.38,{"$f":"SUBTOTAL(9,Table4[[#This Row],[18]:[20]])","v":{"v":41.31769230769231,"d":"41.32"}},100,100,"https://www.ijs.si/ijsw/Znotraj%20hi%C5%A1e/Desno?action=AttachFile&do=get&target=ARIS_Evidenca_opreme_2024.xlsx",1,2,3,44,{"$f":"Table4[[#This Row],[11]]","v":"Paket 13"},0,5,100,{"$f":"Table4[[#This Row],[4]]","v":"P1-0099"},{"$f":"Table4[[#This Row],[5]]","v":"Janez Pirš"},100]
[106,"Institut \"Jožef Stefan\"",null,"P1-0040 ","Dragan Mihailović ",4540,"Sistem za ekscitacijsko spektroskopijo neravnovesnih pojavov",2008,"Excitation spectroscopy system for study of non-equilibrium phenomena",{"v":320000,"d":"320,000.00"},"Paket 13","Oprema je dosegljiva po dogovoru s skrbnikom. Dodatni podatki o skrbnikih opreme na razpolago na RO ","Equipment is available upon agreement","Razširitev območja dosegljivih experimentalnih parametrov pri ekscitacijski spektroskopiji neravnovesnih pojavov in uvedba novih metod za analizo neravnovesnih sprememb elektronskih stanj in strukture z izboljšano površinsko občutljivostjo.","Broadening the area of achieved experimental parameters at excitation spectroscopy of noequilibrium phenomenas.Introduction of new methods for analizing nonequilibrium changes of electronic states and structure, with improved surface sensitivity.","46875.46727.47453.46923.47804.48250.48251.48238.47342.47448.46788.47940.  XIII_227",{"$f":"Table4[[#This Row],[21]]","v":{"v":61.02923076923077,"d":"61.03"}},{"v":30.76923076923077,"d":"30.77"},17.88,12.38,{"$f":"SUBTOTAL(9,Table4[[#This Row],[18]:[20]])","v":{"v":61.02923076923077,"d":"61.03"}},100,100,"https://www.ijs.si/ijsw/Znotraj%20hi%C5%A1e/Desno?action=AttachFile&do=get&target=ARIS_Evidenca_opreme_2024.xlsx",3,1,4,30,{"$f":"Table4[[#This Row],[11]]","v":"Paket 13"},0,5,100,{"$f":"Table4[[#This Row],[4]]","v":"P1-0040 "},{"$f":"Table4[[#This Row],[5]]","v":"Dragan Mihailović "},50,"P1-0192","Martin Čopič",50]
[106,"Institut \"Jožef Stefan\"",null,"P1-0099","Janez Štrancar",18273,"Sistem za fluorescenčno mikrospektroskopijo",2007,"System for fluorescence microspectroscopy",{"v":147200,"d":"147,200.00"},"Paket 13","Možnost meritev po ceniku IJS, možnost brezplačne uporabe v primeru izvajanja skupnih RR projektov","Posibility of measurements according to the IJS price-list, possibility for free usage in case of joined projects","Oprema je namenjena raziskovanju celic in interakcij v bioloških sistemih s pomočjo fluorescenčne konfokalne mikrospektroskopije in omogoča zajem fluorescenčnega emisijskega spektra (spektralna ločljivost nekaj nm) znotraj posameznih slikovnih elementov 3D slike ločljivosti 180 nm x 180 nm x 450 nm s časovno ločljivostjo 10 ms. Za raziskave ni potrebna fiksacija biološkega materiala, ker sistem omogoča tudi in-vitro poskuse na vitalnih celičnih linijah direktno v gojilnih posodah z ultra-tankim dnom.","System is devoted for exploration of cells and interactions in biological systems with the usage of fluorescence confocal microspectroscopy and enables detection of fluorescence emmision spectra (spectral resolution of few nm) within individual pixels of 3D picture with the resolution of 180 nm x 180 nm x 450 nm with time resolution of 10 ms. Fixation of biological material is not needed as the system allows in-vitro experimentation on vital cell-lines directly in ultra-thin-bottom flasks in which cell can grow.","45811 XIV 211",{"$f":"Table4[[#This Row],[21]]","v":{"v":44.41384615384616,"d":"44.41"}},{"v":14.153846153846153,"d":"14.15"},17.88,12.38,{"$f":"SUBTOTAL(9,Table4[[#This Row],[18]:[20]])","v":{"v":44.41384615384616,"d":"44.41"}},100,100,"https://www.ijs.si/ijsw/Znotraj%20hi%C5%A1e/Desno?action=AttachFile&do=get&target=ARIS_Evidenca_opreme_2024.xlsx",3,1,7,11,{"$f":"Table4[[#This Row],[11]]","v":"Paket 13"},0,5,100,{"$f":"Table4[[#This Row],[4]]","v":"P1-0099"},{"$f":"Table4[[#This Row],[5]]","v":"Janez Štrancar"},25,"V4-0522","Janez Štrancar",25,"J3-2270","Milan Petelin",25,"J7-0337","Marjeta Šentjurc",25]
[106,"Institut \"Jožef Stefan\"",null,"P1-0143","Milena Horvat",5027,"Sistem za karakterizacijo radioaktivnih aerosolov velikosti od 2 do 400 nm",2008,"System for characterization radioactivity aerosol size from 2 to 400 nm",{"v":58444,"d":"58,444.00"},"Paket 13","Po dogovoru; materialni stroški + ure operaterja","Pon agreement; material  + personnel costs","Uporablja se za karakterizacijo radioaktivnih aerosolov velikosti od 2 do 400 nm v vzorcih zraka","It is used for characterization radioactivity aerosol size from 2 to 400 nm in air samples","46078,46662 XIII_224",{"$f":"Table4[[#This Row],[21]]","v":{"v":35.879615384615384,"d":"35.88"}},{"v":5.619615384615385,"d":"5.62"},17.88,12.38,{"$f":"SUBTOTAL(9,Table4[[#This Row],[18]:[20]])","v":{"v":35.879615384615384,"d":"35.88"}},100,100,"https://www.ijs.si/ijsw/Znotraj%20hi%C5%A1e/Desno?action=AttachFile&do=get&target=ARIS_Evidenca_opreme_2024.xlsx",3,2,2,32,{"$f":"Table4[[#This Row],[11]]","v":"Paket 13"},0,5,100,{"$f":"Table4[[#This Row],[4]]","v":"P1-0143"},{"$f":"Table4[[#This Row],[5]]","v":"Milena Horvat"},50,"P1-0143","Milena Horvat",50]
[106,"Institut \"Jožef Stefan\"",null,"P1-0192","Martin Čopič",3470,"Sistem za lasersko mikrostrukturiranje in analizo tankoplastnih struktur",2011,"System for laser microstructuring and thin layer structure analysis",{"v":216802.64,"d":"216,802.64"},"Paket 14","Oprema je dosegljiva po dogovoru s skrbnikom","Equipment is available upon agreement","Hitra prototipna izdelava natančnih mikrostrukur s pomočjo direktne laserske fotolitografije. Karakterizacija tankoplastnih struktur. ","Rapid prototypintg of precision microstructures with direct laser photolitography. Characterization of thin layer structures. ","50652, 51353, 52280 01, 53361 XIV 203",{"$f":"Table4[[#This Row],[21]]","v":{"v":40.406407692307695,"d":"40.41"}},{"v":20.846407692307697,"d":"20.85"},5.46,14.1,{"$f":"SUBTOTAL(9,Table4[[#This Row],[18]:[20]])","v":{"v":40.406407692307695,"d":"40.41"}},100,100,"https://www.ijs.si/ijsw/Znotraj%20hi%C5%A1e/Desno?action=AttachFile&do=get&target=ARIS_Evidenca_opreme_2024.xlsx",3,1,4,30,{"$f":"Table4[[#This Row],[11]]","v":"Paket 14"},0,5,100,{"$f":"Table4[[#This Row],[4]]","v":"P1-0192"},{"$f":"Table4[[#This Row],[5]]","v":"Martin Čopič"},50,"P1-0040","Dragan D. Mihailović",50]
[106,"Institut \"Jožef Stefan\"",null,"P1-0099","Janez Štrancar",18273,"Sistem za manipulacijo mikrobnih površin",2007,"System for microbial surface manipulation",{"v":89750,"d":"89,750.00"},"Paket 13","Možnost meritev po ceniku IJS, možnost brezplačne uporabe v primeru izvajanja skupnih RR projektov","Posibility of measurements according to the IJS price-list, possibility for free usage in case of joined projects","Oprema je namenjena gojenju nenevarnih mikrobov za študij interakcije z nanomateriali s pomočjo magnetnih resonanc in mikrospektroskopij; še posebej za tiste namene, kjer mora biti kraj gojenja v neposredni bližini navedene eksperimentalne opreme. Oprema je specializirana za gojenje bakterij v tekočih gojiščih in zadošča osnovnim varnostnim standardom.","The system is devoted for bacterial culture production to explore the microbes interacting with nanomaterials via magnetnic resonance methods and microspectroscopies; especially it is useful for those experiments where the growth place must be very close to the mentioned experimental equipment. Equipment is specialized for growing bacteria in liquid media and fulfill basic safety standards (class A).","45125,44927,44928,44926,44789,45172,45811,45126,45132,45354 XIII_213",{"$f":"Table4[[#This Row],[21]]","v":{"v":38.88980769230769,"d":"38.89"}},{"v":8.629807692307692,"d":"8.63"},17.88,12.38,{"$f":"SUBTOTAL(9,Table4[[#This Row],[18]:[20]])","v":{"v":38.88980769230769,"d":"38.89"}},100,100,"https://www.ijs.si/ijsw/Znotraj%20hi%C5%A1e/Desno?action=AttachFile&do=get&target=ARIS_Evidenca_opreme_2024.xlsx",2,1,1,11,{"$f":"Table4[[#This Row],[11]]","v":"Paket 13"},0,5,100,{"$f":"Table4[[#This Row],[4]]","v":"P1-0099"},{"$f":"Table4[[#This Row],[5]]","v":"Janez Štrancar"},50,"V4-0522","Janez Štrancar",50]
[106,"Institut \"Jožef Stefan\"",null,"P1-0040","Tomaž Mertelj",11241,"Sistem za optično femtosekundno spektroskopijo z ultravisoko časovno  ločljivostjo",2010,"System for optical time resolved spectroscopy with ultrahigh time resolution",{"v":167988,"d":"167,988.00"},"Paket 14","Elektronsko sporočilo na tomaz.mertelj@ijs.si ali klic na 477 33 88 za dogovor.","E-mail to tomaz.mertelj@ijs.si or call to 477 33 88 to make further arangement.","Časovno ločljiva optična spektroskopija kondenzirane snovi.","Time resolved optical spectroscopy of condensed matter.","51442 XIV 201",{"$f":"Table4[[#This Row],[21]]","v":{"v":46.4126923076923,"d":"46.41"}},{"v":16.152692307692305,"d":"16.15"},17.88,12.38,{"$f":"SUBTOTAL(9,Table4[[#This Row],[18]:[20]])","v":{"v":46.4126923076923,"d":"46.41"}},100,100,"https://www.ijs.si/ijsw/Znotraj%20hi%C5%A1e/Desno?action=AttachFile&do=get&target=ARIS_Evidenca_opreme_2024.xlsx",3,1,4,30,{"$f":"Table4[[#This Row],[11]]","v":"Paket 14"},0,5,100,{"$f":"Table4[[#This Row],[4]]","v":"P1-0040"},{"$f":"Table4[[#This Row],[5]]","v":"Tomaž Mertelj"},100]
[106,"Institut \"Jožef Stefan\"",null,"P1-0140","Boris Turk",7561,"Sistem za proizvodnjo rekombinantnih proteinov",2008,"System for production of recombinant proteins",{"v":263938,"d":"263,938.00"},"Paket 13","Uporaba in cena cena po dogovoru, za uporabo kontaktirati dr. Dušana Turka (dusan.turk@ijs.si)","Expression of recombinant proteins","Sistem predstavlja infrastrukturno osnovo za pridobivanje rekombinantnih proteinov v bakteriji, kvasovki in insektnih celicah.","The system represents an infrastructure platform for the production of recombinant proteins in bacteria, yeasts and insect cells.","47438,47452,47974,47431,47439,47536,746892,46584,46293,46972,47441,47440,47382,47922,47936,                                 XIII_216\n",{"$f":"Table4[[#This Row],[21]]","v":{"v":55.63865384615385,"d":"55.64"}},{"v":25.37865384615385,"d":"25.38"},17.88,12.38,{"$f":"SUBTOTAL(9,Table4[[#This Row],[18]:[20]])","v":{"v":55.63865384615385,"d":"55.64"}},100,100,"https://www.ijs.si/ijsw/Znotraj%20hi%C5%A1e/Desno?action=AttachFile&do=get&target=ARIS_Evidenca_opreme_2024.xlsx",3,11,6,66,{"$f":"Table4[[#This Row],[11]]","v":"Paket 13"},0,5,100,{"$f":"Table4[[#This Row],[4]]","v":"P1-0140"},{"$f":"Table4[[#This Row],[5]]","v":"Boris Turk"},25,"P1-0140","Boris Turk",25,"J1-0733","Dušan Turk",25,"J1-9359","Boris Turk",25]
[106,"Institut \"Jožef Stefan\"",null,"P1-0099","Vid Bobnar",15644,"Sistem za visokotemperaturno dielektrično karakterizacijo",2007,"System for high-temperature dielectric characterization",{"v":65087,"d":"65,087.00"},"Paket 13","Možnost meritev po ceniku IJS, možnost brezplačne uporabe v primeru izvajanja skupnih RR projektov","Posibility of measurements according to the IJS price-list, possibility for free usage in case of joined projects","Oprema je namenjena za meritve dielektričnih lastnosti snovi pri visokih temperaturah, do 1000K","The euipment is used for measurements of dielektric propertiers of matter at hight temperatures, up to 1000K.","45321,44934, XIII_201",{"$f":"Table4[[#This Row],[21]]","v":{"v":36.518365384615386,"d":"36.52"}},{"v":6.258365384615385,"d":"6.26"},17.88,12.38,{"$f":"SUBTOTAL(9,Table4[[#This Row],[18]:[20]])","v":{"v":36.518365384615386,"d":"36.52"}},100,100,"https://www.ijs.si/ijsw/Znotraj%20hi%C5%A1e/Desno?action=AttachFile&do=get&target=ARIS_Evidenca_opreme_2024.xlsx",4,2,3,44,{"$f":"Table4[[#This Row],[11]]","v":"Paket 13"},0,5,100,{"$f":"Table4[[#This Row],[4]]","v":"P1-0099"},{"$f":"Table4[[#This Row],[5]]","v":"Vid Bobnar"},33,"J1-9534","Vid Bobnar",33,"J1-2015","Zdravko Kutnjak",33]
[106,"Institut \"Jožef Stefan\"",null,"P1-0140","Boris Turk",7561,"Sistem za vizualizacijo gelov in drugih vzorcev ",2005,"System for visualization of SDS-PAGE gels and other fluorescently labeled samples",{"v":163744.12,"d":"163,744.12"},"Paket 12","Uporaba in cena po dogovoru, za uporabo kontaktirati Dr. Dejana Cagliča (dejan.caglic@ijs.si)","Detection of storage phosphor, fluorescence and chemiluminescence on gels, blots and microarrays","Sistem za vizualizacijo se uporablja za detekcijo radiaktivno označenih (3H, 14C, 125I, 32P, 33P, 35S) in z najrazličnejšimi fluorofori označenih vzorcev tako v poliakrilamidnih, agaroznih gelih, membranah in mikromrežah. S kombinacijo različnih laserjev lahko spremljamo prisotnosti enega, dveh ali več označevalcev hkrati. Sistem je do 20x bolj občutljiv od konkurenčnih sistemov in nekaj velikostnih redov občutljivejši od drugih tehnik za detekcijo.",null,44952,{"$f":"Table4[[#This Row],[21]]","v":{"v":46.00462692307693,"d":"46.00"}},{"v":15.744626923076924,"d":"15.74"},17.88,12.38,{"$f":"SUBTOTAL(9,Table4[[#This Row],[18]:[20]])","v":{"v":46.00462692307693,"d":"46.00"}},100,100,"https://www.ijs.si/ijsw/Znotraj%20hi%C5%A1e/Desno?action=AttachFile&do=get&target=ARIS_Evidenca_opreme_2024.xlsx",2,5,1,67,{"$f":"Table4[[#This Row],[11]]","v":"Paket 12"},0,5,100,{"$f":"Table4[[#This Row],[4]]","v":"P1-0140"},{"$f":"Table4[[#This Row],[5]]","v":"Boris Turk"},25,"P1-0048","Dušan Turk",25,"P1-0207","Igor Križaj",25,"P4-0127","Janko Kos",25]
[106,"Institut \"Jožef Stefan\"",null,"P1-0135","Peter Križan",8725,"Sledilni sistem za SuperBelle",2011,"Tracking System for SuperBelle",{"v":905347.69,"d":"905,347.69"},"Paket 14","Oprema je dostopna 24 ur na dan po predhodnem dogovoru z prof. dr. Petrom Križanom preko e-maila peter.krizan@ijs.si. Oprema se nahaja v institutu KEK v Tsukubi na Japonskem, dostop je omejen na člane mednarodne raziskovalne skupine Belle.","The equipment is avaliable 24/7, contact person Prof. Dr. Peter Križan; e-mail: peter.krizan@ijs.si. Equipment is avaliable on the institut KEK,Tsukuba,Japan. Access is restricted to the members of the international Belle collaboration.  ","Oprema je namenjena meritvi sledi nabitih delcev v magnetnem spektometru Belle.  ","The equipment is dedicated to the measurement of particle tracks in the Belle spectrometer. ","51962 XIV 204",{"$f":"Table4[[#This Row],[21]]","v":{"v":106.45266249999999,"d":"106.45"}},{"v":87.0526625,"d":"87.05"},5.3,14.1,{"$f":"SUBTOTAL(9,Table4[[#This Row],[18]:[20]])","v":{"v":106.45266249999999,"d":"106.45"}},100,100,"https://www.ijs.si/ijsw/Znotraj%20hi%C5%A1e/Desno?action=AttachFile&do=get&target=ARIS_Evidenca_opreme_2024.xlsx",4,2,null,41,{"$f":"Table4[[#This Row],[11]]","v":"Paket 14"},0,5,100,{"$f":"Table4[[#This Row],[4]]","v":"P1-0135"},{"$f":"Table4[[#This Row],[5]]","v":"Peter Križan"},100]
[106,"Institut \"Jožef Stefan\"",null,"P1-0135","Marko Mikuž",4763,"TIER-2 demonstrator",2003,"TIER-2 Demonstrator",{"v":83616.47,"d":"83,616.47"},"Paket 11","Računalniška oprema ni več v uporabi","Obsolete","Oprema vključena v slovensko Grid vozlišče SiGNET","Part of Slovenian Grid node SiGNET",39887,{"$f":"Table4[[#This Row],[21]]","v":{"v":40.31005649038462,"d":"40.31"}},{"$f":"J82*0.25/2080","v":{"v":10.050056490384616,"d":"10.05"}},17.88,12.38,{"$f":"SUBTOTAL(9,Table4[[#This Row],[18]:[20]])","v":{"v":40.31005649038462,"d":"40.31"}},100,100,"https://www.ijs.si/ijsw/Znotraj%20hi%C5%A1e/Desno?action=AttachFile&do=get&target=ARIS_Evidenca_opreme_2024.xlsx",6,1,5,14,{"$f":"Table4[[#This Row],[11]]","v":"Paket 11"},0,4,100,{"$f":"Table4[[#This Row],[4]]","v":"P1-0135"},{"$f":"Table4[[#This Row],[5]]","v":"Marko Mikuž"},50,"P1-0031","Danilo Zavrtanik",50]
[106,"Institut \"Jožef Stefan\"",null,"P1-0135","Marko Mikuž",4763,"TIER-2 grid vozlišče",2007,"TIER-2 Grid Node",{"v":140000,"d":"140,000.00"},"Paket 13","Dostop iz Grid platform LCG in Nordugrid za imetnike akreditiranih virtualnih organizacij","Access for acredited Virtual Organizations of LCG and Nordugrid platforms","Oprema vključena v slovensko Grid vozlišče SiGNET","Part of Slovenian Grid node SiGNET","46964 XIV 215",{"$f":"Table4[[#This Row],[21]]","v":{"v":47.08692307692308,"d":"47.09"}},{"v":16.826923076923077,"d":"16.83"},17.88,12.38,{"$f":"SUBTOTAL(9,Table4[[#This Row],[18]:[20]])","v":{"v":47.08692307692308,"d":"47.09"}},100,100,"https://www.ijs.si/ijsw/Znotraj%20hi%C5%A1e/Desno?action=AttachFile&do=get&target=ARIS_Evidenca_opreme_2024.xlsx",6,1,5,14,{"$f":"Table4[[#This Row],[11]]","v":"Paket 13"},0,4,100,{"$f":"Table4[[#This Row],[4]]","v":"P1-0135"},{"$f":"Table4[[#This Row],[5]]","v":"Marko Mikuž"},50,"P1-0031","Danilo Zavrtanik",50]
[106,"Institut \"Jožef Stefan\"",null,"P1-0040","Dragan Mihailović",4540,"Tipalni mikroskop in risalnik s spremljajočo opremo ",2004,"Atomic force microscope and lithography system with acompanying equipment",{"v":150337.82,"d":"150,337.82"},"Paket 12","Oprema je dosegljiva po dogovoru s skrbnikom","Equipment is available upon agreement","Slikanje topografije površine in manipulacije nanostruktur ter sistem za risanje vezij s pomočjo elektronske litografije.","Surface topography imaging and nanostructure manipulation. Electron litography for drawing circuits.",43591,{"$f":"Table4[[#This Row],[21]]","v":{"v":44.71555961538462,"d":"44.72"}},{"$f":"J84*0.2/2080","v":{"v":14.455559615384617,"d":"14.46"}},17.88,12.38,{"$f":"SUBTOTAL(9,Table4[[#This Row],[18]:[20]])","v":{"v":44.71555961538462,"d":"44.72"}},100,100,"https://www.ijs.si/ijsw/Znotraj%20hi%C5%A1e/Desno?action=AttachFile&do=get&target=ARIS_Evidenca_opreme_2024.xlsx",3,6,1,30,{"$f":"Table4[[#This Row],[11]]","v":"Paket 12"},0,5,100,{"$f":"Table4[[#This Row],[4]]","v":"P1-0040"},{"$f":"Table4[[#This Row],[5]]","v":"Dragan Mihailović"},50,"P1-0192","Martin Čopič",50]
[106,"Institut \"Jožef Stefan\"",null,"P2-0076","Leon Žlajpah",3332,"Večnamenski raziskovalni robot",2002,"Universal research robot",{"v":65181.46,"d":"65,181.46"},"Paket 11","Robota zaradi kompleksnosti upravljanja in s tem povezane nevarnosti poškodb opreme ne posojamo. Po predhodnem dogovoru se lahko pri nas izvajajo eksperimenti, ki jih sami pripravimo. Delo se zaračunava po ceniku IJS.","The robot can be hired for experimental work providing that the experiments are prepared and executed by our personnel.  We charge according to the JSI personnel price list.","Univerzalni robot, 7 stopenj, nosilnost 10 Kg, frekvenca trajektorije do 700 Hz, regulacija sile na vrhu robota, integriran na mobilni ploščadi. ","The robot has 7DOF and 10kg payload. The controller is open and enables sampling rate up to 700Hz. The user can control end-effector forces by using the force/torque sensor. The robot can be mounted on a mobile platform. ",38926,{"$f":"Table4[[#This Row],[21]]","v":{"v":36.52744807692308,"d":"36.53"}},{"v":6.267448076923078,"d":"6.27"},17.88,12.38,{"$f":"SUBTOTAL(9,Table4[[#This Row],[18]:[20]])","v":{"v":36.52744807692308,"d":"36.53"}},100,100,"https://www.ijs.si/ijsw/Znotraj%20hi%C5%A1e/Desno?action=AttachFile&do=get&target=ARIS_Evidenca_opreme_2024.xlsx",6,3,1,46,{"$f":"Table4[[#This Row],[11]]","v":"Paket 11"},0,5,100,{"$f":"Table4[[#This Row],[4]]","v":"P2-0076"},{"$f":"Table4[[#This Row],[5]]","v":"Leon Žlajpah"},25,"6.OP PACO+","IJS",25,"L2-6562","Aleš Ude",25,"L2-6629","Leon Žlajpah",25]
[106,"Institut \"Jožef Stefan\"",null,"P2-0089","Darja Lisjak",15148,"Vektorski mrežni analizator",2003,"Vector network analyzer",{"v":130782.84,"d":"130,782.84"},"Paket 11","Oprema je dostopna vsem raziskovalcem na osnovi znanstvene sodelave z RS 42.","The VNA is available to all researchers in the frame of scientific collaboration with RS 42.","Elektromagnetne meritve pri 0.04-40 GHz","Electromagnetic measurements at 0.04-40 GHz",36637,{"$f":"Table4[[#This Row],[21]]","v":{"v":42.83527307692308,"d":"42.84"}},{"v":12.575273076923077,"d":"12.58"},17.88,12.38,{"$f":"SUBTOTAL(9,Table4[[#This Row],[18]:[20]])","v":{"v":42.83527307692308,"d":"42.84"}},100,100,"https://www.ijs.si/ijsw/Znotraj%20hi%C5%A1e/Desno?action=AttachFile&do=get&target=ARIS_Evidenca_opreme_2024.xlsx",4,2,2,4,{"$f":"Table4[[#This Row],[11]]","v":"Paket 11"},0,5,100,{"$f":"Table4[[#This Row],[4]]","v":"P2-0089"},{"$f":"Table4[[#This Row],[5]]","v":"Darja Lisjak"},25,"L2-9151","Darko Makovec",25,"E!3451","IJS",25,"MATERA ERA-NET, 4302-31/2006/26","IJS",25]
[106,"Institut \"Jožef Stefan\"",null,"P1-0099","Boštjan Zalar",7527,"Visokoločljivi 500  MHz spectrometer na magnetno resonanco za trdno snov ",2008,"High-resolution 500 MHz magnetic resonance spectrometer for solid state",{"v":667668,"d":"667,668.00"},"Paket 13","Možnost meritev po ceniku IJS, možnost brezplačne uporabe v primeru izvajanja skupnih RR projektov","Posibility of measurements according to the IJS price-list, possibility for free usage in case of joined projects","Digitalni visokoločljivi spektrometer omogoča eno- in večddimenzionalne magnetoresonančne meritve lokalnih statičnih in dinamičnih lastnosti na molekularni in atomski skali v mehkih in trdnih snoveh, merjenje difuzijske konstante ter mikroslikanje z magnetno resonanco.","Digital high-resolution spectrometer for one- and multidimensional magnetic resonance measurements of local static and dynamic properties on the molecular and atomic scale in soft and solid matter, measurements of diffusion coefficients as well as magnetic resonance microimaging.","50097 XIV 212",{"$f":"Table4[[#This Row],[21]]","v":{"v":94.45884615384615,"d":"94.46"}},{"v":64.19884615384616,"d":"64.20"},17.88,12.38,{"$f":"SUBTOTAL(9,Table4[[#This Row],[18]:[20]])","v":{"v":94.45884615384615,"d":"94.46"}},100,100,"https://www.ijs.si/ijsw/Znotraj%20hi%C5%A1e/Desno?action=AttachFile&do=get&target=ARIS_Evidenca_opreme_2024.xlsx",3,1,3,4,{"$f":"Table4[[#This Row],[11]]","v":"Paket 13"},0,5,100,{"$f":"Table4[[#This Row],[4]]","v":"P1-0099"},{"$f":"Table4[[#This Row],[5]]","v":"Boštjan Zalar"},100]
[106,"Institut \"Jožef Stefan\"",null,"P2-0084","Goran Dražić",2556,"Visokoločljivi metalografski in polarizacijski optični mikroskop z zajemom slike in dodatki",2007,"High resolution polarised light optical micros",{"v":62593.9,"d":"62,593.90"},"Paket 13","Opremo uporabljajo šolani operaterji, ki lahko analize izvajajo tudi za druge raziskovalne organizacije. Cena je odvisna od zahtevnosti analiz.","Specific training is required to operate the equipment. Trained operaters can perform analyses for users from other research institutions. Price is dependent on a complexity of analyses.","Optični mikroskop je namenjen opazovanju in slikanju vzorcev s pomočjo vidne","Optical microscope is used for observation and imaging of samples using","46323 XIII_228",{"$f":"Table4[[#This Row],[21]]","v":{"v":36.27864423076923,"d":"36.28"}},{"v":6.018644230769231,"d":"6.02"},17.88,12.38,{"$f":"SUBTOTAL(9,Table4[[#This Row],[18]:[20]])","v":{"v":36.27864423076923,"d":"36.28"}},100,100,"https://www.ijs.si/ijsw/Znotraj%20hi%C5%A1e/Desno?action=AttachFile&do=get&target=ARIS_Evidenca_opreme_2024.xlsx",3,4,3,44,{"$f":"Table4[[#This Row],[11]]","v":"Paket 13"},0,5,100,{"$f":"Table4[[#This Row],[4]]","v":"P2-0084"},{"$f":"Table4[[#This Row],[5]]","v":"Goran Dražić"},25,"J2-7432","Aleksander Rečnik",25,"L2-9175","Slavko Bernik",25,"J2-7133","Johannes Teun Van Elteren",25]
[106,"Institut \"Jožef Stefan\"",null,"P2-0084","Miran Čeh",3937,"Vrstični elektronski mikroskop s FEG izvorom elektronov (FEG SEM)",2008,"Scanning electron microscope with field emission gun (FEG) electron source (Jeol JEM-7600F)",{"v":676014,"d":"676,014.00"},"Paket 13","Opremo uporabljajo šolani operaterji, ki lahko analize izvajajo tudi za druge raziskovalne organizacije. Cena je odvisna od zahtevnosti analiz.","Specific training is required to operate the equipment. Trained operaters can perform analyses for users from other research institutions. Price is dependent on a complexity of analyses.","Oprema je namenjena mikrostrukturni karakterizaciji materialov. Gre za vrhunsko aparaturo, ki omogoča slikovne ločljivosti nekaj nm, kvalitativno in kvantitativno kemijsko analizo z mikronskega področja z metodama EDXS in WDXS ter elektronsko litografijo.","The FEG-SEM is state-of-art scanning electron microscope that enables complete microstructural characterization of materials: image resolution of few nm, qualitative and quantitative chemical analysis on micron scale and electron litography.","50259\n50259 02\n50259 04\n50259 06\n50259 08\n50259 10\n50259 12\n50259 14\n50259 16\n50259 18\n47615 01 XIII_220",{"$f":"Table4[[#This Row],[21]]","v":{"v":95.26134615384615,"d":"95.26"}},{"v":65.00134615384616,"d":"65.00"},17.88,12.38,{"$f":"SUBTOTAL(9,Table4[[#This Row],[18]:[20]])","v":{"v":95.26134615384615,"d":"95.26"}},100,100,"https://www.ijs.si/ijsw/Znotraj%20hi%C5%A1e/Desno?action=AttachFile&do=get&target=ARIS_Evidenca_opreme_2024.xlsx",3,5,1,44,{"$f":"Table4[[#This Row],[11]]","v":"Paket 13"},0,5,100,{"$f":"Table4[[#This Row],[4]]","v":"P2-0084"},{"$f":"Table4[[#This Row],[5]]","v":"Miran Čeh"},25,"J2-6705","Miran Čeh",25,"Z2-6621","Spomenka Kobe",25,"J2-7133","Johannes Teun Van Elteren",25]
[106,"Institut \"Jožef Stefan\"",null,"P1-0125","Maja Remškar",7560,"Vrstični tunelski mikroskop",2005,"Scanning tunneling microscope",{"v":210353.15,"d":"210,353.15"},"Paket 12","Dostop dovoljen po dogovoru, ni posebnih omejitev","Service available upon request, no special limitation","Fizika površin","Surface physics",43890,{"$f":"Table4[[#This Row],[21]]","v":{"v":50.486264423076925,"d":"50.49"}},{"v":20.226264423076927,"d":"20.23"},17.88,12.38,{"$f":"SUBTOTAL(9,Table4[[#This Row],[18]:[20]])","v":{"v":50.486264423076925,"d":"50.49"}},100,100,"https://www.ijs.si/ijsw/Znotraj%20hi%C5%A1e/Desno?action=AttachFile&do=get&target=ARIS_Evidenca_opreme_2024.xlsx",3,5,1,44,{"$f":"Table4[[#This Row],[11]]","v":"Paket 12"},0,5,100,{"$f":"Table4[[#This Row],[4]]","v":"P1-0125"},{"$f":"Table4[[#This Row],[5]]","v":"Maja Remškar"},25,"EU projekt Nanosafe","IJS",25,"EU projekt Foremeost","IJS",25,"EU projekt Impart","IJS",25]
[106,"Institut \"Jožef Stefan\"",null,"P2-0082","Janez Kovač",15703,"XPS spektrometer",2005,"XPS spectrometer",{"v":395000,"d":"395,000.00"},"Paket 9","Uporaba je možna za zunanje uporabnike. Kontaktirati dr. Janeza Kovača.","Application for external users is possible, contact person dr. Janez Kovač","Preiskava površin in tankih plasti z rentgensko fotoelektronsko spektroskopijo - XPS (ESCA). Spektrometer XPS omogoča kvantitativno analizo sestave površine in določitev valenčnega stanja, oziroma tipa kemijske vezi v plasti debeline 3 - 5 nm. Vzorci so lahko kovinski, oksidni, kompozitni, praškasti, keramični, polimerni...  Možna je preiskava porazdelitve elementov po globini vzorca v smeri od površine proti notranjosti do globine okoli 200 nm.","Characterization of surfaces and thin films with X-Ray photoelectron spectroscopy – XPS (ESCA). XPS spectrometer provides quantitative data on surface composition and type of chemical bonds of elements in the thin surface layer of thickness of 3 – 5 nm. Analysed samples can be metals, oxides, composites, powders, ceramics, polymers… By ion sputtering it is possible to analyse depth distribution of elements in subsurface region and in thin films up to depth of about 200 nm.",41908,{"$f":"Table4[[#This Row],[21]]","v":{"v":68.24076923076923,"d":"68.24"}},{"v":37.98076923076923,"d":"37.98"},17.88,12.38,{"$f":"SUBTOTAL(9,Table4[[#This Row],[18]:[20]])","v":{"v":68.24076923076923,"d":"68.24"}},100,100,"https://www.ijs.si/ijsw/Znotraj%20hi%C5%A1e/Desno?action=AttachFile&do=get&target=ARIS_Evidenca_opreme_2024.xlsx",3,1,6,44,{"$f":"Table4[[#This Row],[11]]","v":"Paket 9"},40,5,100,{"$f":"Table4[[#This Row],[4]]","v":"P2-0082"},{"$f":"Table4[[#This Row],[5]]","v":"Janez Kovač"},100]
[106,"Institut \"Jožef Stefan\"",null,"P2-0087","Tomaž Kosmač",3477,"Zeta meter",2002,"ZETAPals, Zeta potential Analyser, Brookhaven Instruments Corporation",{"v":72502,"d":"72,502.00"},"Paket 10","Oprema je na voljo na Institutu Jožef Stefan, na Odseku za inženirsko keramiko","Measurement of zeta potential of particles in aqueous and non-aqueous media.","Oprema je namenjena merjenju zeta potenciala delcev v vodnih in nevodnih medijih v ombočju pH vrednosti od 1-14.","The equipment is designed for the measurement of the zeta potential of the particles in aqueous and non-aqueous media in the pH range from 1-14.","367626,37626 01",{"$f":"Table4[[#This Row],[21]]","v":{"v":37.231346153846154,"d":"37.23"}},{"v":6.971346153846155,"d":"6.97"},17.88,12.38,{"$f":"SUBTOTAL(9,Table4[[#This Row],[18]:[20]])","v":{"v":37.231346153846154,"d":"37.23"}},100,100,"https://www.ijs.si/ijsw/Znotraj%20hi%C5%A1e/Desno?action=AttachFile&do=get&target=ARIS_Evidenca_opreme_2024.xlsx",3,7,1,44,{"$f":"Table4[[#This Row],[11]]","v":"Paket 10"},0,5,100,{"$f":"Table4[[#This Row],[4]]","v":"P2-0087"},{"$f":"Table4[[#This Row],[5]]","v":"Tomaž Kosmač"},50,"L2-9360","Kristoffer Krnel",50]
[106,"Institut \"Jožef Stefan\"",null,"P2-0073","Luka Snoj",27819,"Nadgradnja računalniške gruče po sistemu >>na ključ <<",2015,"Upgrade of the HPC computer cluster",{"v":123789.21,"d":"123,789.21"},"P_XVI_160","Oprema je na voljo na reaktorskem centru Instituta Jožef Stefan, na Odseku za reaktorsko fiziko. Uporaba je možna za zunanje uporabnike. Kontaktirati dr. Luko Snoja.","Cluster is available at  reactor center of  Jožef Stefan Institute. Application for external users is possible, contact person dr. Luka Snoj.","Oprema je namenjena numerično intenzivnim računom. Oprema vsebuje računska vozlišča, vsako ima 2 procesorja, vsak s 14 jedri in 256GB spomina. ","Cluster is intended for numerical intensive calculations. Equipment consists of compute nodes, with 2 socket processors each, with 14 cores and 256GB of memory.","56866 02\n56866 03\n56866 04\n56866 05",{"$f":"Table4[[#This Row],[21]]","v":{"v":0,"d":"0.00"}},0,"0.01 Eur/cpu hour","0.01 Eur/cpu hour",{"$f":"SUBTOTAL(9,Table4[[#This Row],[18]:[20]])","v":{"v":0,"d":"0.00"}},100,100,"https://www.ijs.si/ijsw/Znotraj%20hi%C5%A1e/Desno?action=AttachFile&do=get&target=ARIS_Evidenca_opreme_2024.xlsx",6,1,4,14,{"$f":"Table4[[#This Row],[11]]","v":"P_XVI_160"},0,4,100,{"$f":"Table4[[#This Row],[4]]","v":"P2-0073"},{"$f":"Table4[[#This Row],[5]]","v":"Luka Snoj"},10,"PR-05877 (JET3)","Luka Snoj",60,"J2-6752","Luka Snoj",10,"J2-6756","Igor Lengar",10,"PR-06286 (CEA)","Gašper Žerovnik",10]
[106,"Institut \"Jožef Stefan\"",null,"P2-0026","Sandi Cimerman",3841,"Nadgradnja računalniške gruče",2015,"UPGRADE OF HIGH PERFORMANCE COMPUTE CLUSTER",{"v":142656.55,"d":"142,656.55"},"P_XVI_005","Oprema je na voljo glede na proste kapacitete in ob predhodnem dogovoru preko naslova r4@ijs.si.","The equipment is available for usage during free resource times and upon previous arrangement at r4@ijs.si.","Računalniška gruča za izvajanje znanstvenih računskih simulacij. Hitra mrežna komunikacija med računskimi vozlišči omogoča dobro skaliranje večprocesnih izračunov. Oprema vsebuje 10 računskih vozlišč po 2 procesorja, vsak z 14 jedri in 256GB spomina.","Compute cluster for fast scientific calculations. Fast interconnect enables a good calculation scalability of multinode multicore jobs. Equipment consists of 10 compute nodes with 2 socket processors. each with 14 cores and 256GB of memory.","56866 06\n56866 07",{"$f":"Table4[[#This Row],[21]]","v":{"v":0,"d":"0.00"}},0,"0.01 EUR/jedro/ura","0.01 EUR/jedro/ura",{"$f":"SUBTOTAL(9,Table4[[#This Row],[18]:[20]])","v":{"v":0,"d":"0.00"}},100,100,"https://www.ijs.si/ijsw/Znotraj%20hi%C5%A1e/Desno?action=AttachFile&do=get&target=ARIS_Evidenca_opreme_2024.xlsx",6,1,4,14,{"$f":"Table4[[#This Row],[11]]","v":"P_XVI_005"},0,4,100,{"$f":"Table4[[#This Row],[4]]","v":"P2-0026"},{"$f":"Table4[[#This Row],[5]]","v":"Sandi Cimerman"},50,"PR-06291","Matjaž Leskovar",25,"PR-06292","Samir El Shawish",25]
[106,"Institut \"Jožef Stefan\"",null,"P2-0082","Miha Čekada",18271,"Visokotemperaturni tribometer",2016,"high-temperature tribometer",{"v":122179.01,"d":"122,179.01"},"P_XVI_193","Po predhodnem dogovoru na naslov miha.cekada@ijs.si. Zaradi dolgotrajnih meritev je treba računati z zamikom enega tedna","Advance contact to the address miha.cekada@ijs.si. Due to long-term measurements a waiting time of one week is anticipated.","Instrument omogoča meritev koeficienta trenja pri visokih temperaturah (do 1000 °C). Geometrijske zahteve za vzorce so ozko zastavljene, za detajle se obrnite na kontaktni naslov.","The instrument enables the measurement of friction coefficient at elavated temperatures (up to 1000 °C). The geometrical constrains for the samples are very narrow; for details please ask the contact address.",60700,{"$f":"Table4[[#This Row],[21]]","v":{"v":42.00798173076923,"d":"42.01"}},{"$f":"J95*0.2/2080","v":{"v":11.747981730769231,"d":"11.75"}},17.88,12.38,{"$f":"SUBTOTAL(9,Table4[[#This Row],[18]:[20]])","v":{"v":42.00798173076923,"d":"42.01"}},100,100,"https://www.ijs.si/ijsw/Znotraj%20hi%C5%A1e/Desno?action=AttachFile&do=get&target=ARIS_Evidenca_opreme_2024.xlsx",3,10,5,44,{"$f":"Table4[[#This Row],[11]]","v":"P_XVI_193"},0,5,100,{"$f":"Table4[[#This Row],[4]]","v":"P2-0082"},{"$f":"Table4[[#This Row],[5]]","v":"Miha Čekada"},50,"PR-05012","Aljaž Drnovšek",50]
[106,"Institut \"Jožef Stefan\"",null,"P2-0082","Miha Čekada",18271,"Digitalni mikroskop",2016,"digital microscope",{"v":56211.5,"d":"56,211.50"},"P_XVI_106","Po predhodnem dogovoru na naslov miha.cekada@ijs.si. Brez posebnih časovnih omejitev","Advance contact to the address miha.cekada@ijs.si. No specific time constrains.","Namenjen je opazovanju in slikanju velikih vzorcev kompliciranih geometrij pri srednje veliki povečavi (35x-350x). Največja višina vzorca je 120 mm, največja masa pa 4 kg.","The instruement is dedicated to observation and imaging of large samples with complicated geometry in medium range of magnification (35x-350x). Maximum sample height is 120 mm, maximum mass is 4 kg.",60492,{"$f":"Table4[[#This Row],[21]]","v":{"v":35.66495192307693,"d":"35.66"}},{"v":5.404951923076924,"d":"5.40"},17.88,12.38,{"$f":"SUBTOTAL(9,Table4[[#This Row],[18]:[20]])","v":{"v":35.66495192307693,"d":"35.66"}},100,100,"https://www.ijs.si/ijsw/Znotraj%20hi%C5%A1e/Desno?action=AttachFile&do=get&target=ARIS_Evidenca_opreme_2024.xlsx",3,4,4,44,{"$f":"Table4[[#This Row],[11]]","v":"P_XVI_106"},0,5,100,{"$f":"Table4[[#This Row],[4]]","v":"P2-0082"},{"$f":"Table4[[#This Row],[5]]","v":"Miha Čekada"},50,"L2-5470","Peter Panjan",25,"L2-6770","Miha Čekada",25]
[106,"Institut \"Jožef Stefan\"",null,"P1-0140","Miha Butinar",3776,"Mikro CT sistem za in vivo pred-kemično slikanje laboratorijskih živali",2016,"microCT scanner",{"v":284507.45,"d":"284,507.45"},"P_XVI_096","po predhodnem dogovoru na naslov miha.butinar@ijs.si. Zaradi narave poskusov je potrebno računati na 1 teden zamika.","Advance contact to the address miha.butinar@ijs.si. Due to the nature of the experiment, waiting time of one week is expected.","Namenjen je računalniško vodenem tomografskemu 3D rentegenskem slikanju miši in podgan (CT slikanje). Omogoča longitudinalne študije zaradi nizkih energijskih vrednosti rentgenskih žarkov.","The instrument enables computed tomographic 3D X-ray scanning of rodents (CT scan). Enables long term experiments, due to the low energy of the X-ray beam.",60664,{"$f":"Table4[[#This Row],[21]]","v":{"v":57.61648557692308,"d":"57.62"}},{"v":27.35648557692308,"d":"27.36"},17.88,12.38,{"$f":"SUBTOTAL(9,Table4[[#This Row],[18]:[20]])","v":{"v":57.61648557692308,"d":"57.62"}},100,100,"https://www.ijs.si/ijsw/Znotraj%20hi%C5%A1e/Desno?action=AttachFile&do=get&target=ARIS_Evidenca_opreme_2024.xlsx",4,5,4,10,{"$f":"Table4[[#This Row],[11]]","v":"P_XVI_096"},0,5,100,{"$f":"Table4[[#This Row],[4]]","v":"P1-0140"},{"$f":"Table4[[#This Row],[5]]","v":"Miha Butinar"},75,"J1-6739","Boris Turk",25]
[106,"Institut \"Jožef Stefan\"",null,"P2-0103","Igor Mozetič",2013,"Oprema za analitiko tokov tekstov in podatkov za KT računalniški oblak",2016,"Text analytics servers",{"v":134836.21,"d":"134,836.21"},"P_XVI_026","Čas dostopa do opreme vsak delovni dan od 8:00 do 16:00 po predhodnem dogovoru s skrbnikom. Glede pogojev dostopa in razpoložljivosti kontaktirati skrbnika igor.mozetic@ijs.si","The equipment is avaliable upon request every day from 8 am to 4 pm. For access conditions and availabilty contact igor.mozetic@ijs.si","Supermicro strežnik","Supermicro server","60632\n60638\n60616\n60809\n60443\n60442\n61553\n60240\n60239\n60433\n61843\n61794\n61915\n62024\n62072\n62118\n62161\n62375\n62374\n62373",{"$f":"Table4[[#This Row],[21]]","v":{"v":46.46627524038461,"d":"46.47"}},{"$f":"J98*0.25/2080","v":{"v":16.206275240384613,"d":"16.21"}},17.88,12.38,{"$f":"SUBTOTAL(9,Table4[[#This Row],[18]:[20]])","v":{"v":46.46627524038461,"d":"46.47"}},100,100,"https://www.ijs.si/ijsw/Znotraj%20hi%C5%A1e/Desno?action=AttachFile&do=get&target=ARIS_Evidenca_opreme_2024.xlsx",6,"2021-01-06","2005-01-06",25,{"$f":"Table4[[#This Row],[11]]","v":"P_XVI_026"},0,4,100,{"$f":"Table4[[#This Row],[4]]","v":"P2-0103"},{"$f":"Table4[[#This Row],[5]]","v":"Igor Mozetič"}]
[106,"Institut \"Jožef Stefan\"",null,"P1-0040","Dragan D. Mihailović",4540,"NADGRADNJA MBE SISTEMA",2016,"UPGRADE MBE SISTEM",{"v":94056.41,"d":"94,056.41"},"P_XVI_158","Po predhodnem dogovoru na naslov jure.strle@ijs.si. Zaradi daljših časov priprave sistema na rasti drugih kristalov je potrebno računati na večtedenske zamike.","Advance contact to the address jure.strle@ijs.si. Due to long times of preparing the growth of different crystals waiting time of several weeks is expected.  ","Namenjen je sintezi kristalnih tankih plasti dihalkogenidov prehodnih kovin. Velikost substratov je omejena na 9 mm x 9 mm, temperatura rasti doseže 800 °C. Na voljo so rasti s halkogenima elementoma S in Se ter prehodnimi kovinami Ta, Mo, Nb, W.","The instrument is dedicated to the synthesis of transition metal dichalcogenides. Substrate size is limited to 9 mm x 9 mm, growth temperature reaches 800 °C. Available chalcogens are S and Se, available transition metals are Ta, Mo, Nb, W.","60865\n62494\n60235\n60149\n60480",{"$f":"Table4[[#This Row],[21]]","v":{"v":39.30388557692308,"d":"39.30"}},{"$f":"J99*0.2/2080","v":{"v":9.043885576923078,"d":"9.04"}},17.88,12.38,{"$f":"SUBTOTAL(9,Table4[[#This Row],[18]:[20]])","v":{"v":39.30388557692308,"d":"39.30"}},100,100,"https://www.ijs.si/ijsw/Znotraj%20hi%C5%A1e/Desno?action=AttachFile&do=get&target=ARIS_Evidenca_opreme_2024.xlsx",{"$nulls":4},{"$f":"Table4[[#This Row],[11]]","v":"P_XVI_158"},0,5,{"$f":"(AI99+AL99+AO99+AR99+AU99+AX99)","v":100},{"$f":"Table4[[#This Row],[4]]","v":"P1-0040"},{"$f":"Table4[[#This Row],[5]]","v":"Dragan D. Mihailović"},100]
[106,"Institut \"Jožef Stefan\"",null,"P1-0125","Janez Dolinšek",3939,"MAGNETOMETER SQUID",2016,"SQUID magnetometer",{"v":595580.86,"d":"595,580.86"},"P_XVI_008","Kontaktna oseba je prof. dr. Janez Dolinšek (jani.dolinsek@ijs.si) na IJS. Meritve izvajajo raziskovalci, usposobljeni za rokovanje z MPMS3 magnetometrom (člani raziskovalne skupine prof. Dolinška). Zunanji uporabniki prinesejo vzorce materiala in lahko sodelujejo pri meritvah.","Contact person is prof. dr. Janez Dolinšek (jani.dolinsek@ijs.si) at JSI. Measurements are preformed by members of the research group of prof. dr. Janez Dolinšek. External users need to bring samples of materials and can participate in the measerements.   "," Osnova magnetometra je SQUID detektor, ki omogoča delovanje magnetometra v klasičnem načinu in kot VSM (»vibrating sample magnetometer«). Možno je meriti istosmerno (dc) magnetizacijo, izmenično (ac) magnetizacijo, magnetizacijske M(H) krivulje ter časovni razpad termoremanentne magnetizacije na dolgih časovnih skalah. ","The magnetometer is based on a SQUID detector, which enables operation of the device in a classical dc mode and as a VSM (vibrating sample magnetometer). The measurements include determination of the dc and ac magnetizations, the magnetization vs. the magnetic field M(H) curves and the time-decay of the remanent magnetization on long time scales. ",60901,{"$f":"Table4[[#This Row],[21]]","v":{"v":128.2673903846154,"d":"128.27"}},{"v":57.26739038461539,"d":"57.27"},53.73,17.27,{"$f":"SUBTOTAL(9,Table4[[#This Row],[18]:[20]])","v":{"v":128.2673903846154,"d":"128.27"}},100,100,"https://www.ijs.si/ijsw/Znotraj%20hi%C5%A1e/Desno?action=AttachFile&do=get&target=ARIS_Evidenca_opreme_2024.xlsx",3,9,2,44,{"$f":"Table4[[#This Row],[11]]","v":"P_XVI_008"},"/",5,100,{"$f":"Table4[[#This Row],[4]]","v":"P1-0125"},{"$f":"Table4[[#This Row],[5]]","v":"Janez Dolinšek"},75,"J1-7032","Andreja Jelen",25]
[106,"Institut \"Jožef Stefan\"",null,"P1-0135","Dejan Lesjak",3438,"NADRGRADNJA DISTRIBUIRANEGA RAČUNSKEGA VOZLIŠČA SIGNET ZA HTC",2016,"Upgrade of SiGNET grid center",{"v":155049.95,"d":"155,049.95"},"P_XVI_169","Oprema je vključena v grid vozlišče SIGNET in dostopna preko infrastrukture EGI/NGI. Uporaba je omogočena z uporabo vmesne programske opreme gLite in ARC.","The equipment is integrated into SiGNET grid site and provides the access through  EGI/NGI infrastructure. The access is provided by using the gLite and ARC grid middleware.","Oprema je namenjena izvajanju računskih nalog in shranjevanju podatkov pri mednarodnih eksperimentih ATLAS, Pierre Auger in Belle. Po dogovoru je na voljo tudi slovenskim raziskovalnim in akademskim ustanovam.","The purpose of the equipment is to provide the computing and storage resources to international experiments ATLAS, Pierre Auger and Belle. The access is also provided to slovenian research and academic institutions.","61648 - 61627, 61692 - 61686",{"$f":"Table4[[#This Row],[21]]","v":{"v":48.89581129807693,"d":"48.90"}},{"$f":"J101*0.25/2080","v":{"v":18.635811298076923,"d":"18.64"}},17.88,12.38,{"$f":"SUBTOTAL(9,Table4[[#This Row],[18]:[20]])","v":{"v":48.89581129807693,"d":"48.90"}},100,100,"https://www.ijs.si/ijsw/Znotraj%20hi%C5%A1e/Desno?action=AttachFile&do=get&target=ARIS_Evidenca_opreme_2024.xlsx",6,6,6,14,{"$f":"Table4[[#This Row],[11]]","v":"P_XVI_169"},0,4,100,{"$f":"Table4[[#This Row],[4]]","v":"P1-0135"},{"$f":"Table4[[#This Row],[5]]","v":"Dejan Lesjak"},100]
[106,"Institut \"Jožef Stefan\"",null,"P1-0099","Igor Muševič",9089,"Dvofotonski 3D STED superločljivi mikroskop",2017,"Two-photon STED microscope",{"v":834346.88,"d":"834,346.88"},"P_XVI_170","Kontaktirati prof. J.Štrancarja, janez.strancar@ijs.si, predlagati kratek opis problema z utemeljitvijo, zakaj se potrebuje ločljivost med 30 in 200 nm pri fizioloških pogojih","to contact prof. J.Štrancar, janez.strancar@ijs.si, propose short desription of planned work with argumentation why resolution is needed in 30 to 200 nm range under physiological conditions","Superločljivo fluorescenčno slikanje pri fizioloških pogojih , 2-kanalno slikanje v x/y/z/t ter slikanje s spektralno ločljivostjo in ločljivostjo po življenjskem času fluorescence, eno ali dvofotonska ekscitacija","Superresolution fluorescent imaging under physiological conditions, 2-channel imaging x/y/z/t as well as spectral-lifetime imaging, one or two-photon excitation",62061,{"$f":"Table4[[#This Row],[21]]","v":{"v":80.22566153846155,"d":"80.23"}},{"$f":"J102*0.2/2080","v":{"v":80.22566153846155,"d":"80.23"}},"28 EUR/h","36 EUR/h",{"$f":"SUBTOTAL(9,Table4[[#This Row],[18]:[20]])","v":{"v":80.22566153846155,"d":"80.23"}},100,100,"https://www.ijs.si/ijsw/Znotraj%20hi%C5%A1e/Desno?action=AttachFile&do=get&target=ARIS_Evidenca_opreme_2024.xlsx",{"$nulls":4},{"$f":"Table4[[#This Row],[11]]","v":"P_XVI_170"},0,5,100,{"$f":"Table4[[#This Row],[4]]","v":"P1-0099"},{"$f":"Table4[[#This Row],[5]]","v":"Igor Muševič"},"5,\n15,\n15,\n15,\n15,\n15,\n15,\n5"]
[106,"Institut \"Jožef Stefan\"",null,"P2-0026","Andrej Sušnik",3111,"Eksperimentalna oprema za merilno tehniko PIV (Particle Image Velocimetry, v nadaljevanju: PIV tehnika, sistem PIV)",2017,"Experimental device for PIV tehnique",{"v":173296.16,"d":"173,296.16"},"P_XVI_187","Raziskovalna oprema je instalirana na namensko eksperimentalno napravo v laboratoriju odseka R4, kjer je tudi predvidena njena uporaba. Prošnja za celodnevni dostop in uporabo raziskovalne opreme, se pošlje na naslov blaz.mikuz@ijs.si.","The equipment is installed in special test facility within the laboratory r4, where its use is foreseen. Request for all-day access to the said equipment shall be sent to blaz.mikuz@ijs.si.","Raziskovalna oprema je namenjena predvsem meritvam v termohidravliki; torej merjenju  hitrostnega polja na različnih skalah in v različnih sistemih ter spremljanju medfazne površine dvo-faznega toka. ","The main purpose of the equipment is focused on thermohydroulic and fluid flow measurements, i.e., on measurements of velocity field on different scales and in different systems and tracking of liquid-vapor interface.   ",62555,{"$f":"Table4[[#This Row],[21]]","v":{"v":46.92309230769231,"d":"46.92"}},{"v":16.66309230769231,"d":"16.66"},17.88,12.38,{"$f":"SUBTOTAL(9,Table4[[#This Row],[18]:[20]])","v":{"v":46.92309230769231,"d":"46.92"}},100,100,"https://www.ijs.si/ijsw/Znotraj%20hi%C5%A1e/Desno?action=AttachFile&do=get&target=ARIS_Evidenca_opreme_2024.xlsx",6,4,1,46,{"$f":"Table4[[#This Row],[11]]","v":"P_XVI_187"},12.38,5,100,{"$f":"Table4[[#This Row],[4]]","v":"P2-0026"},{"$f":"Table4[[#This Row],[5]]","v":"Andrej Sušnik"},100]
[106,"Institut \"Jožef Stefan\"",null,"P1-0192","Boris Majaron",2885,"Modularni spektrofluorometer s priborom",2017,"Modular spectrofluorometer",{"v":152286.88,"d":"152,286.88"},"P_XVI_023","Po dogovoru z odgovorno osebo (boris.majaron@ijs.si)","Please contact responsible person (boris.majaron@ijs.si)","Samostojni instrument modularne sestave, ki omogoča polarizacijsko razločene meritve transmisije in emisijskih spektrov v UV, vidnem in bližnjem IR spektralnem območju, fluorescenčnih časov (od nekaj mikrosekund navzgor) ter kvantnega izkoristka fluorescence. Primeren je za meritve na tekočih vzorcih (z možnostjo termostatiranja), filmih in praških.  ","A stand-alone modular instrument, which allows polarization-resolved measurements of transmission and emission spectra in UV, visible, and near-IR spectral range, fluorescent times (longer than a few microseconds) and fluorescence quantum yields. Measurements can be performed in liquid samples (with a programmable thermostat), films, and powders.  ","62960\n62575\n62392\n61954\n62400",{"$f":"Table4[[#This Row],[21]]","v":{"v":51.42296923076923,"d":"51.42"}},{"v":14.642969230769232,"d":"14.64"},17.88,18.9,{"$f":"SUBTOTAL(9,Table4[[#This Row],[18]:[20]])","v":{"v":51.42296923076923,"d":"51.42"}},100,100,"https://www.ijs.si/ijsw/Znotraj%20hi%C5%A1e/Desno?action=AttachFile&do=get&target=ARIS_Evidenca_opreme_2024.xlsx",3,1,7,30,{"$f":"Table4[[#This Row],[11]]","v":"P_XVI_023"},0,5,100,{"$f":"Table4[[#This Row],[4]]","v":"P1-0192"},{"$f":"Table4[[#This Row],[5]]","v":"Boris Majaron"}]
[106,"Institut \"Jožef Stefan\"",null,"P1-0125","Vid Bobnar",2935,"Dvožarkovni laserski interferometer ",2017,"Double beam laser interferometer",{"v":254512.59,"d":"254,512.59"},"P_XVI_061","Dostop dovoljen po dogovoru, ni posebnih omejitev. Kontakt: dr. Vid Bobnar, (01) 477-3172, vid.bobnar@ijs.si.","Service available upon request, no special limitation. Contact: dr. Vid Bobnar, (01) 477-3172, vid.bobnar@ijs.si.","Hkratne meritve elektromehanskih in električnih lastnosti tankih dielektričnih plasti in nanostrukturiranih materialov. Laserski žarek, ki zadane vzorec z zgornje in spodnje strani izloči vpliv upogibanja podlage. Sistem omogoča (i) hkratne meritve elektromehanskega raztezka in električne polarizacije pri velikem vzbujevalnem signalu, (ii) meritve piezoelektričnega koeficienta in dielektrične konstante pri majhnem vzbujevalnem signalu, tudi ob pritisnjeni dc napetosti in (iii) meritve utrujanja električnih in elektromehanskih lastnosti. ","Parallel measurements of electromechanical and electrical properties of thin dielectric films and nanostructured materials. The beam that hits the sample from the top and bottom side eliminates the influence of sample bending. The system enables (i) simultaneous electromechanical large signal strain and electrical polarization measurements, (ii) piezoelectric small signal coefficient and dielectric constant vs. bias voltage measurements, and (iii) measurements of the fatigue of electrical and electromechanical properties.",62378,{"$f":"Table4[[#This Row],[21]]","v":{"v":54.73236442307692,"d":"54.73"}},{"v":24.472364423076925,"d":"24.47"},17.88,12.38,{"$f":"SUBTOTAL(9,Table4[[#This Row],[18]:[20]])","v":{"v":54.73236442307692,"d":"54.73"}},100,100,"https://www.ijs.si/ijsw/Znotraj%20hi%C5%A1e/Desno?action=AttachFile&do=get&target=ARIS_Evidenca_opreme_2024.xlsx",4,4,3,44,{"$f":"Table4[[#This Row],[11]]","v":"P_XVI_061"},46.2,5,100,{"$f":"Table4[[#This Row],[4]]","v":"P1-0125"},{"$f":"Table4[[#This Row],[5]]","v":"Vid Bobnar"},100]
[106,"Institut \"Jožef Stefan\"",null,"P2-0082","Matjaž Panjan",26463,"Visokohitrostna kamera za opazovanje pojavov na mikrosekundnem nivoju",2018,"High-speed camera for observing processes at the microsecond level",{"v":82381.83,"d":"82,381.83"},"P_XVII_022","Po predhodnem dogovoru na naslov matjaz.panjan@ijs.si.","Advance contact to the address matjaz.panjan@ijs.si.","Visokohitrostna kamera je v splošnem namenjena opazovanju hitrih pojavov v različnih fizikalnih, kemijskih in bioloških procesih. ","High-speed camera can be used for observing fast changes in physical, chemical and biological processes.",64188,{"$f":"Table4[[#This Row],[21]]","v":{"v":38.18132980769231,"d":"38.18"}},{"v":7.921329807692309,"d":"7.92"},17.88,12.38,{"$f":"SUBTOTAL(9,Table4[[#This Row],[18]:[20]])","v":{"v":38.18132980769231,"d":"38.18"}},100,100,"https://www.ijs.si/ijsw/Znotraj%20hi%C5%A1e/Desno?action=AttachFile&do=get&target=ARIS_Evidenca_opreme_2024.xlsx",4,5,5,44,{"$f":"Table4[[#This Row],[11]]","v":"P_XVII_022"},0,5,100,{"$f":"Table4[[#This Row],[4]]","v":"P2-0082"},{"$f":"Table4[[#This Row],[5]]","v":"Matjaž Panjan"},75,"PR-08349","Nastja Mahne",25]
[106,"Institut \"Jožef Stefan\"",null,"P2-0103","Igor Mozetič",2013,"Oprema za globoko učenje in aplikacije strojnega učenja za raziskovanje vesolja, analizo tekstovnih podatkov in semantičnih grafov",2018,"Facilities for deep learning and applications of machine learning to space explorations, text mining and semantic graphs",{"v":43274.99,"d":"43,274.99"},"P_XVII_071","Čas dostopa do opreme vsak delovni dan od 8:00 do 16:00 po predhodnem dogovoru s skrbnikom. Glede pogojev dostopa in razpoložljivosti kontaktirati skrbnika igor.mozetic@ijs.si","The equipment is avaliable upon request every day from 8 am to 4 pm. For access conditions and availabilty contact igor.mozetic@ijs.si","Supermicro strežnik","Supermicro server",64111,{"$f":"Table4[[#This Row],[21]]","v":{"v":41.98132091346154,"d":"41.98"}},{"$f":"J107*0.25/2080","v":{"v":5.201320913461538,"d":"5.20"}},17.88,18.9,{"$f":"SUBTOTAL(9,Table4[[#This Row],[18]:[20]])","v":{"v":41.98132091346154,"d":"41.98"}},100,100,"https://www.ijs.si/ijsw/Znotraj%20hi%C5%A1e/Desno?action=AttachFile&do=get&target=ARIS_Evidenca_opreme_2024.xlsx",6,1,1,25,{"$f":"Table4[[#This Row],[11]]","v":"P_XVII_071"},0,4,100,{"$f":"Table4[[#This Row],[4]]","v":"P2-0103"},{"$f":"Table4[[#This Row],[5]]","v":"Igor Mozetič"}]
[106,"Institut \"Jožef Stefan\"",null,"P1-0192","Irena Drevenšek Olenik",10373,"Dopolnilni elementi za nadgradnjo sistema za pripravo in nanašanje Langmuir-Blodgett filmov","2018\n2019","Components for the upgrade of the system for preparing and applying Lanmuir-Blodgett films",{"v":85582.16,"d":"85,582.16"},"P_XVII_079","Po dogovoru z odgovorno osebo (irena.drevensek@ijs.si)","Please contact responsible person (irena.drevensek@ijs.si)","Sistem za pripravo in nanašanje Langmuir-Blodgett filmov je modularna naprava namenjena pripravi in proučevanju zelo tankih plasti različnih amfifilnih molekul na površini vode in drugih tekočih podfaz ter prenosu teh plasti iz površine tekočine na trdne substrate, kot so steklo, sljuda, silicij...Dopolnilni elementi obstoječemu sistemu omogočajo večjo variabilnost pri pripravi Langmuirjevih slojev in boljšo karakterizacijo."," The Langmuir-Blodgett film preparation and application system is a modular device designed for the preparation and study of very thin layers of various amphiphilic molecules on the surface of water and other liquid sub-phases, and transferring these layers from the surface of the liquid onto solid substrates such as glass, mica, silicon ... Supplementary elements to the existing system allow for greater variability in the preparation of Langmuir layers and better characterization.","51536\n64175\n64340\n64414\n64413\n64412\n64411\n64416\n64415\n64527\n64526\n64758\n65029\n64898\n65027",{"$f":"Table4[[#This Row],[21]]","v":{"v":45.00905384615385,"d":"45.01"}},{"$f":"J108*0.2/2080","v":{"v":8.229053846153846,"d":"8.23"}},17.88,18.9,{"$f":"SUBTOTAL(9,Table4[[#This Row],[18]:[20]])","v":{"v":45.00905384615385,"d":"45.01"}},100,100,"https://www.ijs.si/ijsw/Znotraj%20hi%C5%A1e/Desno?action=AttachFile&do=get&target=ARIS_Evidenca_opreme_2024.xlsx",1,1,6,47,{"$f":"Table4[[#This Row],[11]]","v":"P_XVII_079"},0,5,100,{"$f":"Table4[[#This Row],[4]]","v":"P1-0192"},{"$f":"Table4[[#This Row],[5]]","v":"Irena Drevenšek Olenik"}]
[106,"Institut \"Jožef Stefan\"",null,"P2-0209","Matjaž Gams",1896,"AI ASIC sistem za raziskave v umetni inteligenci",2019,"AI ASIC - artificial intelligence research system- Artificial Intelligence Application-\nSpecific Integrated Circuit)",{"v":32963.63,"d":"32,963.63"},"P_XVII_115","Oprema je dostopna po predhodnem dogovoru. Kontakt preko e-pošte na naslovu matjaz.gams@ijs.si","Equipment is available on demand. Please contact matjaz.gams@ijs.si","Sistem z namenskim pospeševalnikom za signifikantno pohitritev izvajanja računskih operacij.","A system with a dedicated accelerator to significantly speed up the execution of computational operations.","65004 01\n65008 01\n65009 01\n65010 01\n65011 01\n65007 01\n65006 01\n65005 01\n65013 01\n65014 01\n65015 01\n65077 02 01\n65012 01",{"$f":"Table4[[#This Row],[21]]","v":{"v":34.221974759615385,"d":"34.22"}},{"$f":"J109*0.25/2080","v":{"v":3.9619747596153845,"d":"3.96"}},17.88,12.38,{"$f":"SUBTOTAL(9,Table4[[#This Row],[18]:[20]])","v":{"v":34.221974759615385,"d":"34.22"}},100,100,"https://www.ijs.si/ijsw/Znotraj%20hi%C5%A1e/Desno?action=AttachFile&do=get&target=ARIS_Evidenca_opreme_2024.xlsx",6,1,4,14,{"$f":"Table4[[#This Row],[11]]","v":"P_XVII_115"},0,4,100,{"$f":"Table4[[#This Row],[4]]","v":"P2-0209"},{"$f":"Table4[[#This Row],[5]]","v":"Matjaž Gams"},100]
[106,"Institut \"Jožef Stefan\"",null,"P2-0082","Miha Čekada",18271,"Masni spektrometer z možnostjo merjenja energijske porazdelitve ionov",2019,"Mass spectrometer with the ability to measure the energy distribution of the ions",{"v":121274.62,"d":"121,274.62"},"P_XVII_151","Po predhodnem dogovoru na naslov matjaz.panjan@ijs.si.","Advance contact to the address matjaz.panjan@ijs.si.","Masni spektrometer je namenjen študiju masne in energijske porazdelitve ionov v nizkotlačnih plazmah (do tlaka 10 Pa).","Mass spectrometer is used for measurements of mass and energy distribution of ions in low-pressure plasmas (up to 10 Pa).",64430,{"$f":"Table4[[#This Row],[21]]","v":{"v":41.921021153846155,"d":"41.92"}},{"$f":"J110*0.2/2080","v":{"v":11.661021153846153,"d":"11.66"}},17.88,12.38,{"$f":"SUBTOTAL(9,Table4[[#This Row],[18]:[20]])","v":{"v":41.921021153846155,"d":"41.92"}},100,100,"https://www.ijs.si/ijsw/Znotraj%20hi%C5%A1e/Desno?action=AttachFile&do=get&target=ARIS_Evidenca_opreme_2024.xlsx",3,2,3,44,{"$f":"Table4[[#This Row],[11]]","v":"P_XVII_151"},0,5,100,{"$f":"Table4[[#This Row],[4]]","v":"P2-0082"},{"$f":"Table4[[#This Row],[5]]","v":"Miha Čekada"},75,"PR-08349","Nastja Mahne",25]
[106,"Institut \"Jožef Stefan\"",null,"P2-0026","Leon Cizelj",7025,"Visokozmogljiva računska gruča",2019,"High Performance Compute Cluster",{"v":365948.95,"d":"365,948.95"},"P_XVII_008","Oprema je na voljo glede na proste kapacitete in ob predhodnem dogovoru preko naslova r4@ijs.si. Več informacij na voljo na  http://r4.ijs.si/Gruce","The equipment is available for usage during free resource times and upon previous arrangement at r4@ijs.si. More information available on http://r4.ijs.si/Gruce","Računalniška gruča za izvajanje znanstvenih računskih simulacij. Hitra mrežna komunikacija med računskimi vozlišči omogoča dobro skaliranje večprocesnih izračunov. Oprema vsebuje 22 računskih vozlišč po 2 procesorja, vsak z 20 jedri in 192 GB spomina.","Compute cluster for fast scientific calculations. Fast interconnect enables a good calculation scalability of multinode multicore jobs. Equipment consists of 22 compute nodes with 2 socket processors. each with 20 cores and 192 GB of memory.","65270\n65616",{"$f":"Table4[[#This Row],[21]]","v":{"v":35.18739903846154,"d":"35.19"}},{"v":35.18739903846154,"d":"35.19"},"0.01 EUR/jedro/ura","0.01 EUR/jedro/ura",{"$f":"SUBTOTAL(9,Table4[[#This Row],[18]:[20]])","v":{"v":35.18739903846154,"d":"35.19"}},100,100,"https://www.ijs.si/ijsw/Znotraj%20hi%C5%A1e/Desno?action=AttachFile&do=get&target=ARIS_Evidenca_opreme_2024.xlsx",6,1,4,14,{"$f":"Table4[[#This Row],[11]]","v":"P_XVII_008"},0,5,100,{"$f":"Table4[[#This Row],[4]]","v":"P2-0026"},{"$f":"Table4[[#This Row],[5]]","v":"Leon Cizelj"},80,"PR-07882","Leon Cizelj",20]
[106,"Institut \"Jožef Stefan\"",null,"P2-0073","Luka Snoj",27819,"računalniška gruča po sistemu »na ključ«",2019,"High Performance Compute Cluster Mangrt",{"v":365948.95,"d":"365,948.95"},"P_XVII_029","Po predhodnem dogovoru na naslov bojan.zefran@ijs.si ali sandi.cimerman@ijs.si","Advance contact to address bojan.zefran@ijs.si or sandi.cimerman@ijs.si","Računska gruča z Linux operacijskim sistemom vsebuje 15 računskih vozlišč, ki vsako vsebuje dva procesorja Intel Xeon in vsaj 192 GB highperformance ECC registered DDR4 DIMM pomnilnika, eno vozlišče pa vsaj 768 TB highperformance ECC registered DDR4 DIMM pomnilnika. Zmogljivi procesorji in velike količine delovnega pomnilnika omogočajo računsko zahtevne izračune, obsežne simulacije z visoko ločljivostjo in obdelavo velike količine podatkov, kakršne izvajamo za potrebe obstoječih in prihodnjih projektov.","Cluster with Linux operational system consists of 15 computer nodes with two Intel Xeon processors and at least 192 GB high performance ECC registered DDR4 DIMM memory and one node with at least 768 TB high performance ECC registered DDR4 DIMM memory. High performance processors and high working memory capacity enable the performance of computational difficult calculations, extensive simulations with high resolution and large data processing, which are made for carrying out the ongoing and future project tasks.","65270\n65616",{"$f":"Table4[[#This Row],[21]]","v":{"v":35.18739903846154,"d":"35.19"}},{"v":35.18739903846154,"d":"35.19"},"0.01 EUR/jedro/ura","0.01 EUR/jedro/ura",{"$f":"SUBTOTAL(9,Table4[[#This Row],[18]:[20]])","v":{"v":35.18739903846154,"d":"35.19"}},100,100,"https://www.ijs.si/ijsw/Znotraj%20hi%C5%A1e/Desno?action=AttachFile&do=get&target=ARIS_Evidenca_opreme_2024.xlsx",6,1,4,14,{"$f":"Table4[[#This Row],[11]]","v":"P_XVII_029"},0,5,100,{"$f":"Table4[[#This Row],[4]]","v":"P2-0073"},{"$f":"Table4[[#This Row],[5]]","v":"Luka Snoj"},10,"PR-05877 (JET3)","Luka Snoj, raziskovalci odseka F-8",60,"PR-08098","Aljaž Čufar",10,"L2-8163","Raziskovalci odseka F-8",10,"NC-0001","Luka Snoj, raziskovalci odseka F-8",5,"NC-0005","Gašper Žerovnik",5]
[106,"Institut \"Jožef Stefan\"",null,"P1-0135","Rok Pestotnik",16354,"Hitri 4 kanalni osciloskop s hitrostjo vzorcenja 80Gs/s  ",2019,"4 channel high bandwidth 80 Gs/s osciloscope Teledyne LeCroy LABMASTER 10-36ZIA",{"v":140324.81,"d":"140,324.81"},"P_XVII_035","Oprema je na voljo glede na proste kapacitete in ob predhodnem dogovoru z odgovorno osebo rok.pestotnik@ijs.si.","The equipment is available for usage during free resource times and upon previous arrangement at rok.pestotnik@ijs.si.","Osciloskop za meritev hitrih elektronskih signalov.","Osilloscope for measurement of fast electronic signals",65412,{"$f":"Table4[[#This Row],[21]]","v":{"v":45.672770192307695,"d":"45.67"}},{"v":13.492770192307692,"d":"13.49"},17.88,14.3,{"$f":"SUBTOTAL(9,Table4[[#This Row],[18]:[20]])","v":{"v":45.672770192307695,"d":"45.67"}},100,100,"https://www.ijs.si/ijsw/Znotraj%20hi%C5%A1e/Desno?action=AttachFile&do=get&target=ARIS_Evidenca_opreme_2024.xlsx",4,2,4,38,{"$f":"Table4[[#This Row],[11]]","v":"P_XVII_035"},47.47,5,100,{"$f":"Table4[[#This Row],[4]]","v":"P1-0135"},{"$f":"Table4[[#This Row],[5]]","v":"Rok Pestotnik"},100]
[106,"Institut \"Jožef Stefan\"",null,"P2-0091","Marjeta Maček Kržmanc",13311,"Visokotlačni reactor (avtoklav)",2019,"High pressure reactor vessel",{"v":27848.21,"d":"27,848.21"},"P_XVII_158","Visokotlačni reaktor (avtoklav) je nameščen na odseku K-9 (Institut Jožef Stefan). Morebitna uporaba po dogovoru z odgovorno osebo (marjeta.macek@ijs.si)","High pressure reactor vessel is positioned at K-9 (Jožef Stefan Institute). An eventual usage can be agreed with the responsible person (marjeta.macek@ijs.si)","Visokotlačni reaktor (avtoklav) je namenjen za sintezo anorganskih  nanodelcev pretežno v vodnem mediju pri povišani temperaturi (s teflonskim (PTFE) vložkom-do 230°C-v jekleni (SS T316 TI) posodi-do 300°C) in tlaku do največ 200 barov. PTFE zaščita pokrova, mešala in PTFE vložek  omogočajo sintezo v zelo alkalnem mediju. ","High pressure reactor vessel is meant for the synthesis of inorganic (nano)particles in aqueous media  at high temperature (with PTFE insert-up to 230°C, with stainless steel (SS 316 Ti) reactor vessel up to 300°C) and pressure up to 200 bar. PTFE protection of the cover, PTFE stirrer and PTFE insert enable performing reactions under highly alkaline conditions.","65574\n65724",{"$f":"Table4[[#This Row],[21]]","v":{"v":43.057712499999994,"d":"43.06"}},{"v":2.6777124999999997,"d":"2.68"},17.88,22.5,{"$f":"SUBTOTAL(9,Table4[[#This Row],[18]:[20]])","v":{"v":43.057712499999994,"d":"43.06"}},100,100,"https://www.ijs.si/ijsw/Znotraj%20hi%C5%A1e/Desno?action=AttachFile&do=get&target=ARIS_Evidenca_opreme_2024.xlsx",1,7,1,44,{"$f":"Table4[[#This Row],[11]]","v":"P_XVII_158"},0,5,100,{"$f":"Table4[[#This Row],[4]]","v":"P2-0091"},{"$f":"Table4[[#This Row],[5]]","v":"Marjeta Maček Kržmanc"},100]
[106,"Institut \"Jožef Stefan\"",null,"P2-0082","Miran Mozetič",10429,"Naprava za merjenje površinske energije na mikroskopskem nivoju",2019,"Device for measuring surface tension on microscopic scale",{"v":83271.6,"d":"83,271.60"},"P_XVII_176","Oprema je dostopna po predhodnem dogovoru. Kontakt preko e-pošte na naslovu alenka.vesel@ijs.si","Equipment is available on demand. Please contact alenka.vesel@ijs.si","Naprava je namenjena predvsem merjenju omočljivosti trdnih snovi","The device is particularly useful for measuring wettability of solid materials",65071,{"$f":"Table4[[#This Row],[21]]","v":{"v":32.136884615384616,"d":"32.14"}},{"v":8.006884615384617,"d":"8.01"},2.15,21.98,{"$f":"SUBTOTAL(9,Table4[[#This Row],[18]:[20]])","v":{"v":32.136884615384616,"d":"32.14"}},100,100,"https://www.ijs.si/ijsw/Znotraj%20hi%C5%A1e/Desno?action=AttachFile&do=get&target=ARIS_Evidenca_opreme_2024.xlsx",3,7,null,44,{"$f":"Table4[[#This Row],[11]]","v":"P_XVII_176"},0,5,100,{"$f":"Table4[[#This Row],[4]]","v":"P2-0082"},{"$f":"Table4[[#This Row],[5]]","v":"Miran Mozetič"},75,"L2-8179","pof. dr. Miran Mozetič",25]
[106,"Institut \"Jožef Stefan\"",null,"P1-0135","Andrej Filipčič",7525,"Nadgradnja distribuiranega računskega vozlišča SiGNET Tier-2.",2019,"Upgrade of distributed computing center SiGNET Tier-2",{"v":151040.29,"d":"151,040.29"},"P_XVII_154","Oprema je vključena v grid vozlišče SIGNET in dostopna preko infrastrukture SLINGI. Uporaba je omogočena z uporabo vmesne programske opreme gLite in ARC.","The equipment is integrated into SiGNET grid site and provides the access through  SLING infrastructure. The access is provided by using the gLite and ARC grid middleware.","Oprema je namenjena izvajanju računskih nalog in shranjevanju podatkov pri mednarodnih eksperimentih ATLAS, Pierre Auger in Belle II. Po dogovoru je na voljo tudi slovenskim raziskovalnim in akademskim ustanovam.","The purpose of the equipment is to provide the computing and storage resources to international experiments ATLAS, Pierre Auger and Belle II. The access is also provided to slovenian research and academic institutions.","65553\n65552\n65554\n65551\n65550\n65549\n65548\n65547",{"$f":"Table4[[#This Row],[21]]","v":{"v":49.84388100961539,"d":"49.84"}},{"$f":"J116*0.25/2080","v":{"v":18.153881009615386,"d":"18.15"}},19.31,12.38,{"$f":"SUBTOTAL(9,Table4[[#This Row],[18]:[20]])","v":{"v":49.84388100961539,"d":"49.84"}},100,100,"https://www.ijs.si/ijsw/Znotraj%20hi%C5%A1e/Desno?action=AttachFile&do=get&target=ARIS_Evidenca_opreme_2024.xlsx",6,6,6,30,{"$f":"Table4[[#This Row],[11]]","v":"P_XVII_154"},0,4,100,{"$f":"Table4[[#This Row],[4]]","v":"P1-0135"},{"$f":"Table4[[#This Row],[5]]","v":"Andrej Filipčič"},100]
[106,"Institut \"Jožef Stefan\"",null,"P1-0040","Dragan D. Mihailović",4540,"Linija za mikro in nanolitografijo z opremo za čisto sobo in analitično opremo",2020,"Clean room for micro and nanolithography  technologies and analytical equipment",{"v":387869.06,"d":"387,869.06"},"P_XVII_014","Oprema je dostopa po predhodnem dogovoru.Za uporabo zahtevnejše opreme je omogočeno šolanje. Cena storitev je odvisna od zahtevnosti meritev. Kontakt damjan.svetin@ijs.si","Equipment is available on demand. Training can be arranged. The price of services depends on complexity of the measurements. Contact damjan.svetin@ijs.si","Raziskovalna oprema je namenjena postavitvi čiste izdelavne linije in meritvenega sistema za mikro in nanolitografijo z izboljšanjem končne ločljivosti nanolitografije. Gre za sistem suhih komor, evaporator in sistema za vzdrževanje pogojev čiste sobe.","The research equipment for clean production line and measurement system for micro and nanolithography by improving the final resolution of nanolithography. It is a system of dry-box chambers, an evaporator and a system for maintaining the conditions of a clean room.","65037, 65502, 65928, 65939, 66657, 67389, 67736, 69104",{"$f":"Table4[[#This Row],[21]]","v":{"v":67.19999999999999,"d":"67.20"}},36.94,17.88,12.38,{"$f":"SUBTOTAL(9,Table4[[#This Row],[18]:[20]])","v":{"v":67.19999999999999,"d":"67.20"}},100,80,"https://www.ijs.si/ijsw/Znotraj%20hi%C5%A1e/Desno?action=AttachFile&do=get&target=ARIS_Evidenca_opreme_2024.xlsx",1,2,1,47,{"$f":"Table4[[#This Row],[11]]","v":"P_XVII_014"},0,5,100,{"$f":"Table4[[#This Row],[4]]","v":"P1-0040"},{"$f":"Table4[[#This Row],[5]]","v":"Dragan D. Mihailović"},100]
[106,"Institut \"Jožef Stefan\"",null,"P2-0084","Spomenka Kobe",1515,"XJET, Izrael\n3D tiskalnik za kovinske materiale in keramiko",2020,"XJET, Israel 3D Printer for metalic and ceramic materials",{"v":146081.33,"d":"146,081.33"},"Paket 17","Do opreme dostopajo vsi sodelavci, ki to metodo uporabljajo pri raziskavah kovinskih, intermetalnih in keramičnih materialov. Oprema je polno zasedena.","3D Printer is used by all researchers who need this equipment in their research tematics: metalic, intermetallic and ceramic materials. The equipment is fully occupied.","3D tiskalnik se uporablja za izvajanje ARRS projektov. V prijavi je projekt za EIT Manufacturing, ki temelji na 3D tiskanju.","The 3D Printer is used for execution of research in the frame of ARRS projects. We are applying a new project in EIT Manufacturing, the project is based solely on 3D printing.",65499,{"$f":"Table4[[#This Row],[21]]","v":{"v":61.99000000000001,"d":"61.99"}},13.96,25.52,22.51,{"$f":"SUBTOTAL(9,Table4[[#This Row],[18]:[20]])","v":{"v":61.99000000000001,"d":"61.99"}},100,80,"https://www.ijs.si/ijsw/Znotraj%20hi%C5%A1e/Desno?action=AttachFile&do=get&target=ARIS_Evidenca_opreme_2024.xlsx",{"$nulls":4},{"$f":"Table4[[#This Row],[11]]","v":"Paket 17"},0,5,100,{"$f":"Table4[[#This Row],[4]]","v":"P2-0084"},{"$f":"Table4[[#This Row],[5]]","v":"Spomenka Kobe"},null,"P2-0084","Kobe",null,"P2-0087","Kocjan",null,"P2-0405-5","Kocjan"]
[106,"Institut \"Jožef Stefan\"",null,"P1-0125","Denis Arčon",14080,"NV magnetometer za NMR spektroskopijo nanometrskih vzorcev in za površinsko določanje  magnetnih polj z nanometrsko ločljivostjo",2020,"NV magnetometer for NMR spectroscopy of nanoscopic samples",{"v":112769.76,"d":"112,769.76"},"P_XVII_189","Oprema je dostopna po predhodnem dogovoru na e-mail arcon.denis@ijs.si","The equipment is available upon request at arcon.denis@ijs.si","oprema je namenjena merjenju izredno šibkih magnetnih polj na površini vzorcev","The purpose of the equipment is to measure extremely weak magnetic fields at the surface of samples","66003, 66049, 66066, 66067, 66103, 66269, 66547, 66655, 66656, 66963, 66964, 68613, 68622, 68625, 68626, 68743, 68744, 68742",{"$f":"Table4[[#This Row],[21]]","v":{"v":15.370000000000001,"d":"15.37"}},10.67,4.7,"36 EUR/h",{"$f":"SUBTOTAL(9,Table4[[#This Row],[18]:[20]])","v":{"v":15.370000000000001,"d":"15.37"}},100,80,"https://www.ijs.si/ijsw/Znotraj%20hi%C5%A1e/Desno?action=AttachFile&do=get&target=ARIS_Evidenca_opreme_2024.xlsx",3,1,3,null,{"$f":"Table4[[#This Row],[11]]","v":"P_XVII_189"},0,5,100,{"$f":"Table4[[#This Row],[4]]","v":"P1-0125"},{"$f":"Table4[[#This Row],[5]]","v":"Denis Arčon"},100]
[106,"Institut \"Jožef Stefan\"",null,"P1-0044","Rok Žitko",23567,"Računalniška oprema za opravljanje numeričnih izračunov na področju teoretične fizike",2020,"Compter equipment for calculations in the field of theoretical physics",{"v":171441.48,"d":"171,441.48"},"P_XVII_030","Uporaba je možna preko vmesne programske opreme ARC po predhodnem dogovru (rok.zitko@ijs.si).","Access is possible using ARC middleware upon demand (rok.zitko@ijs.si).","Izvajanje računskih nalog na področjih fizike trdne snovi, fizike osnovnih delcev in biofizke.","Computing in the fields of solid state physics, particle physics and biophysics.","66166, 66243, 66244, 66245, 66246, 66247, 66248, 67395, 67396, 67397, 67398",{"$f":"Table4[[#This Row],[21]]","v":45.42},20.42,15,10,{"$f":"SUBTOTAL(9,Table4[[#This Row],[18]:[20]])","v":45.42},100,100,"https://www.ijs.si/ijsw/Znotraj%20hi%C5%A1e/Desno?action=AttachFile&do=get&target=ARIS_Evidenca_opreme_2024.xlsx",6,1,4,14,{"$f":"Table4[[#This Row],[11]]","v":"P_XVII_030"},0,4,100,{"$f":"Table4[[#This Row],[4]]","v":"P1-0044"},{"$f":"Table4[[#This Row],[5]]","v":"Rok Žitko"},33.3,"P1-0035","Jernej F. Kamenik",33.3,"P1-0055","Primož Ziherl",33.3]
[106,"Institut \"Jožef Stefan\"",null,"P2-0001","Gregor Dolanc",15735,"Oprema za raziskave in aplikacije na področju tehnologije vodenja",2020,"Equipment for research and development of the field of process control technology",{"v":56127.44,"d":"56,127.44"},"P_XVIII_161","Oprema je dostopna po predhodnem dogovoru (gregor.dolanc@ijs.si)","The equipment is available upon prior agreement  (gregor.dolanc@ijs.si)","Oprema obsega industrijski  krmilnik Siemens, funkcijski generator ter razne merilne elementi za meritve v elektroniki.","Equipment contains industrial controller Siemens, function generator and various elements for measurements in electronics.","66420, 66457, 66537, 66543, 66546, 66589, 66714, 66728, 66796, 66797, 66838, 66907, 67099, 67767, 67768, 67769",{"$f":"Table4[[#This Row],[21]]","v":37.12},6.86,17.88,12.38,{"$f":"SUBTOTAL(9,Table4[[#This Row],[18]:[20]])","v":37.12},100,80,"https://www.ijs.si/ijsw/Znotraj%20hi%C5%A1e/Desno?action=AttachFile&do=get&target=ARIS_Evidenca_opreme_2024.xlsx",6,1,5,4,{"$f":"Table4[[#This Row],[11]]","v":"P_XVIII_161"},0,5,100,{"$f":"Table4[[#This Row],[4]]","v":"P2-0001"},{"$f":"Table4[[#This Row],[5]]","v":"Gregor Dolanc"},100]
[106,"Institut \"Jožef Stefan\"",null,"P2-0103","Martin Žnidaršič",23582,"Oprema za raziskave in aplikacije na področju umetne inteligence",2020,"Equipment for research and applied work in the field of artificial intelligence",{"v":156188.59,"d":"156,188.59"},"P_XVIII_076","Čas dostopa do opreme vsak delovni dan od 8:00 do 16:00 po predhodnem dogovoru s skrbnikom. Glede pogojev dostopa in razpoložljivosti kontaktirati skrbnika martin.znidarsic@ijs.si","The equipment is avaliable upon request every day from 8 am to 4 pm. For access conditions and availabilty contact martin.znidarsic@ijs.si","GPU in CPU strežniki za razvoj, testiranje in uporabo metod umetne inteligence","GPU and CPU servers for the development, testing and application of AI methods","67054, 67339, 67606, 67951, 67952, 68378, 68499, 68500, 68627",{"$f":"Table4[[#This Row],[21]]","v":57.35},19.05,17.88,20.42,{"$f":"SUBTOTAL(9,Table4[[#This Row],[18]:[20]])","v":57.35},100,100,"https://www.ijs.si/ijsw/Znotraj%20hi%C5%A1e/Desno?action=AttachFile&do=get&target=ARIS_Evidenca_opreme_2024.xlsx",6,1,1,25,{"$f":"Table4[[#This Row],[11]]","v":"P_XVIII_076"},0,4,100,{"$f":"Table4[[#This Row],[4]]","v":"P2-0103"},{"$f":"Table4[[#This Row],[5]]","v":"Martin Žnidaršič"}]
[106,"Institut \"Jožef Stefan\"",null,"P1-0044","Rok Žitko",23567,"Pospeševalniki za vzporedno računanje na področju teoretične fizike",2021,"Accelerators for parallel computing in the field of theoretical physics",{"v":99043.45,"d":"99,043.45"},"P_XVIII_028","Uporaba je možna preko vmesne programske opreme ARC po predhodnem dogovru (rok.zitko@ijs.si).","Access is possible using ARC middleware upon demand (rok.zitko@ijs.si).","Izvajanje računskih nalog na področjih fizike trdne snovi, fizike osnovnih delcev in biofizke.","Computing in the fields of solid state physics, particle physics and biophysics.","69539, 69540, 69541, 69542, 69543, 69544, 69545, 69546",{"$f":"Table4[[#This Row],[21]]","v":{"v":18.904260817307694,"d":"18.90"}},{"$f":"Table4[[#This Row],[10]]*0.25/2080","v":{"v":11.904260817307692,"d":"11.90"}},4,3,{"$f":"SUBTOTAL(9,Table4[[#This Row],[18]:[20]])","v":{"v":18.904260817307694,"d":"18.90"}},100,60,"https://www.ijs.si/ijsw/Znotraj%20hi%C5%A1e/Desno?action=AttachFile&do=get&target=ARIS_Evidenca_opreme_2024.xlsx",6,1,4,14,{"$f":"Table4[[#This Row],[11]]","v":"P_XVIII_028"},0,4,{"v":99.89999999999999,"d":"100"},{"$f":"Table4[[#This Row],[4]]","v":"P1-0044"},{"$f":"Table4[[#This Row],[5]]","v":"Rok Žitko"},33.3,"P1-0035","Jernej F. Kamenik",33.3,"P1-0055","Primož Ziherl",33.3]
[106,"Institut \"Jožef Stefan\"",null,"P2-0082","Uroš Cvelbar",22289,"Reaktorska komora z elektronsko kolono za in-situ opazovanje procesov in reakcij",2020,"Reactor chamber with electronic column for in-situ observation of processes and reactions",{"v":191680,"d":"191,680.00"},"P_XVIII_134","Oprema je dostopna po predhodnem dogovoru . Kontakt preko e-pošte na uros.cvelbar@ijs.si","Equipment is available by prior arrangement.  Please contact uros.cvelbar@ijs.si","raziskovalna oprema z uporabo diferencialnega črpanja omogoča prosto preklapljanje med tremi vakuumskimi režimi, ob potencialni sočani uporabi različnih reaktivnih plinov.  Omogoča insitu in operando opazovanje mikroskopskih vzorcev pri različnih talkih in atmosferah.","Research equipment using differential pumping allows free switching between three vacuum modes, with the potential simultaneous use of different reactive gases.",67260,{"$f":"Table4[[#This Row],[21]]","v":39.25},18.21,3.2,17.84,{"$f":"SUBTOTAL(9,Table4[[#This Row],[18]:[20]])","v":39.25},100,80,"https://www.ijs.si/ijsw/Znotraj%20hi%C5%A1e/Desno?action=AttachFile&do=get&target=ARIS_Evidenca_opreme_2024.xlsx",3,"1, 5","6, 1",47,{"$f":"Table4[[#This Row],[11]]","v":"P_XVIII_134"},43.46,5,100,{"$f":"Table4[[#This Row],[4]]","v":"P2-0082"},{"$f":"Table4[[#This Row],[5]]","v":"Uroš Cvelbar"},100,"PR-09455","prof. dr. Uroš Cvelbar, raziskovalci, ki delajo na projektu ",100]
[106,"Institut \"Jožef Stefan\"",null,"P2-0026","Blaž Mikuž",34279,"Termografska kamera za raziskovalne namene",2020,"High-speed infrared camera for research",{"v":218586.66,"d":"218,586.66"},"P_XVII_069","Po dogovoru z odgovorno osebo (blaz.mikuz@ijs.si)","Please contact responsible person (blaz.mikuz@ijs.si)","Kamera je namenjena termografskim meritvam hitrih procesov, tj. dolgovalovni IR 7.5 - 12.0 µm, 640 x 512 pixels, 1 kHz. Oprema ni prenosljiva in je na voljo le v laboratoriju.","Camera is specialized for thermography of fast phenomena, i.e. long wave IR 7.5 - 12.0 µm, 640 x 512 pixels, 1 kHz. The equipment is available in our laboratory and it is not portable.",67241,{"$f":"Table4[[#This Row],[21]]","v":49.67},20.77,10,18.9,{"$f":"SUBTOTAL(9,Table4[[#This Row],[18]:[20]])","v":49.67},100,80,"https://www.ijs.si/ijsw/Znotraj%20hi%C5%A1e/Desno?action=AttachFile&do=get&target=ARIS_Evidenca_opreme_2024.xlsx",4,5,5,46,{"$f":"Table4[[#This Row],[11]]","v":"P_XVII_069"},0,5,100,{"$f":"Table4[[#This Row],[4]]","v":"P2-0026"},{"$f":"Table4[[#This Row],[5]]","v":"Blaž Mikuž"},100]
[106,"Institut \"Jožef Stefan\"",null,"I0-0005","Miran Čeh",3937,"Visokoločljivostni vrstični elektronski mikroskop s FEG izvorom, EDX sistemom in STEM detektorjem",2020,"High-resolution FES SEM with EDX and STEM detector",{"v":588237.64,"d":"588,237.64"},"P_XVII_076","Vrstični elektronski mikroskop v okviru Centra za elektronsko mikroskopijo in mikroanalizo (CEMM) je dostopen na podlagi on-line rezervacijskega sistem vsem tistim operaterjem IJS, ki so uspešno opravili tečaj, ki ga brezplačno organizira in izvaja kader CEMM. Za tiste odseke IJS, druge raziskovalne in izobraževalne institucije in industrijske partnerje, ki nimajo svojih operaterjev, izvede zahtevane analize kader CEMM. ","The scanning electron microscope within the Center for Electron Microscopy and Microanalysis (CEMM) is accessible via the on-line reservation system to all JSI operators who have successfully completed a teaching course organized and conducted free of charge by the CEMM personnel . For those departments of the JSI, other research and educational institutions and industrial partners that do not have their own operators, the required analyses are performed by the CEMM personnel.","Visokoločljivostni vrstični elektronski mikroskop FEG SEM omogoča morfološko karakterizacijo različnih anorganskih in organskih materialov na nanometrskem nivoju, tudi pri zelo nizkih vzbujevalnih napetostih. Poleg tega omogoča mikroskop določevanje kemijske sestave, saj je mikroskop opremljen s sistemom EDX. Novo kvaliteto pa predstavlja detektor  za preiskave vzorcev v presevnem načinu.  ","The high-resolution FEG SEM scanning electron microscope enables the morphological characterization of various inorganic and organic materials at the nanometer level, even at very low excitation voltages. In addition, the microscope allows the determination of the chemical composition of materials since the microscope is equipped with the EDX system. A new quality is a detector for examining samples in transmission mode.",67334,{"$f":"Table4[[#This Row],[21]]","v":{"v":90.86000000000001,"d":"90.86"}},55.84,"31.72",35.02,{"$f":"SUBTOTAL(9,Table4[[#This Row],[18]:[20]])","v":{"v":90.86000000000001,"d":"90.86"}},100,80,"https://www.ijs.si/ijsw/Znotraj%20hi%C5%A1e/Desno?action=AttachFile&do=get&target=ARIS_Evidenca_opreme_2024.xlsx",3,5,1,4,{"$f":"Table4[[#This Row],[11]]","v":"P_XVII_076"},35.02,5,100,{"$f":"Table4[[#This Row],[4]]","v":"I0-0005"},{"$f":"Table4[[#This Row],[5]]","v":"Miran Čeh"},100]
[106,"Institut \"Jožef Stefan\"",null,"P1-0040","Dragan D. Mihailović",4540,"Kombiniran sistem za nanofabrikacijo",2020,"Nanofabrication system",{"v":84104.09,"d":"84,104.09"},"P_XVIII_072","Oprema je dostopa po predhodnem dogovoru.Za uporabo zahtevnejše opreme je omogočeno šolanje. Cena storitev je odvisna od zahtevnosti meritev. Kontakt damjan.svetin@ijs.si","Equipment is available on demand. Training can be arranged. The price of services depends on complexity of the measurements. Contact damjan.svetin@ijs.si","Kombiniran sistem za nanofabrikacijo omogoča izdelavo nanometrskih elektronskih vezij z\ndvodimenzionalnimi in enodimenzionalnimi nanomateriali. Sestavlja ga optični stereo mikroskop visoke ločljivosti in AFM, ki sta funkcionalno sklopljena in vgrajena v posebno komoro, ki vsebuje elektronski evaporator in drugo opremo za izdelavo funkcionalnih vezij.","The combined nanofabrication system enables the fabrication of nanometer electronic circuits with two-dimensional and one-dimensional nanomaterials. It consists of a high-resolution optical stereo microscope and AFM, which are functionally coupled and built into a special chamber containing an electronic evaporator and other equipment for functional circuits manufacturing.","66717, 66727, 66831, 66875, 66876, 67144, 67786, 68992, 68993",{"$f":"Table4[[#This Row],[21]]","v":{"v":38.6,"d":"38.60"}},8.34,17.88,12.38,{"$f":"SUBTOTAL(9,Table4[[#This Row],[18]:[20]])","v":{"v":38.6,"d":"38.60"}},100,80,"https://www.ijs.si/ijsw/Znotraj%20hi%C5%A1e/Desno?action=AttachFile&do=get&target=ARIS_Evidenca_opreme_2024.xlsx",3,6,1,47,{"$f":"Table4[[#This Row],[11]]","v":"P_XVIII_072"},0,5,100,{"$f":"Table4[[#This Row],[4]]","v":"P1-0040"},{"$f":"Table4[[#This Row],[5]]","v":"Dragan D. Mihailović"},100]
[106,"Institut \"Jožef Stefan\"",null,"P2-0082","Janez Kovač",15703,"SNOM mikroskop",2020,"SNOM Microscope",{"v":101290.9,"d":"101,290.90"},"P_XVIII_136","Oprema je dostopna po predhodnem dogovoru. Kontakt preko e-pošte  janez.kovac@ijs.si","Equipment is available on demand. Please contact janez.kovac@ijs.si","Mikroskop omogoča karakterizacijo optičnih in morfoloških lastnosti površin trdnih materialov na nanometrskem nivoju","Microscope allows characterization of optical and morphological properties of surfaces of solid materials on nanoscale",67390,{"$f":"Table4[[#This Row],[21]]","v":39.86},0,17.88,21.98,{"$f":"SUBTOTAL(9,Table4[[#This Row],[18]:[20]])","v":39.86},100,80,"https://www.ijs.si/ijsw/Znotraj%20hi%C5%A1e/Desno?action=AttachFile&do=get&target=ARIS_Evidenca_opreme_2024.xlsx",3,6,1,44,{"$f":"Table4[[#This Row],[11]]","v":"P_XVIII_136"},40,5,100,{"$f":"Table4[[#This Row],[4]]","v":"P2-0082"},{"$f":"Table4[[#This Row],[5]]","v":"Janez Kovač"},100]
[106,"Institut \"Jožef Stefan\"",null,"P1-0048","Dušan Turk",4988,"Prometheus NT.48, Nano diferenčni dinamični fluorimeter (angl. nanoDSF, nano differential scanning fluorimetry)",2020,"Prometheus NT.48, nano differential scanning fluorometry (nanoDSF)",{"v":148540.02,"d":"148,540.02"},"P_XVIII_087","Oprema je dostopna po predhodnem dogovoru preko e-pošte: dusan.turk@ijs.si ali aleksandra.usenik@ijs.si","The equipment is available upon e-mail request: dusan.turk@ijs.si or aleksandra.usenik@ijs.si","Oprema je namenjena meritvam termične in kemične stabilnosti proteinov na osnovi njihove intrinzične fluorescence ter agregacije proteinov na osnovi upada intenzitete svetlobe, ki potuje skozi vzorec. Oprema omogoča paralelne meritve 48 vzorcev v kapilarah po 10 µL. "," The equipment is used for measuring thermal and chemical stability of proteins based on their intrinsic  fluorescence as well as aggregation of proteins based on attenuation of the light \ngoing through the sample. Paralel measurements of 48 samples in 10µL capillaries are possible.",67130,{"$f":"Table4[[#This Row],[21]]","v":32.68},14.1,"14,59 EUR (0.5 EUR/standardna kapilara ali 2 EUR/visoko občutljiva kapilara)",18.58,{"$f":"SUBTOTAL(9,Table4[[#This Row],[18]:[20]])","v":32.68},100,80,"https://www.ijs.si/ijsw/Znotraj%20hi%C5%A1e/Desno?action=AttachFile&do=get&target=ARIS_Evidenca_opreme_2024.xlsx",2,5,1,4,{"$f":"Table4[[#This Row],[11]]","v":"P_XVIII_087"},0,5,100,{"$f":"Table4[[#This Row],[4]]","v":"P1-0048"},{"$f":"Table4[[#This Row],[5]]","v":"Dušan Turk"},90,"P1-0140","Boris Turk",5,{"$nulls":6},"Neformalno sodelovanje","Stipan Jonjič (Univerza v Rijeki)",5]
[106,"Institut \"Jožef Stefan\"",null,"P2-0082","Matjaž Panjan",26463,"Pulzni napajalnik za magnetronsko naprševanje pri visoki pulzni moči",2020,"Power supply for high impulse power magnetron sputtering",{"v":54018.9,"d":"54,018.90"},"P_XVIII_142","Po predhodnem dogovoru na naslov matjaz.panjan@ijs.si.","Advance contact to the address matjaz.panjan@ijs.si.","Napajalnik deluje v sklopu vakuumskega sistema in magnetronskega izvira (katode). Zagotavlja kratke pulze (10-1000 µs) pri visoki vršni moči, kar omogoča popolno ionizacijo razpršenih atomov tarče","The power supply is operational in line with a vacuum system and magnetron source (cathode). It provides short pulses (10-1000 µs) at high peak power which allows for a complete ionization of the sputtered target atoms.",67506,{"$f":"Table4[[#This Row],[21]]","v":35.39},5.13,17.88,12.38,{"$f":"SUBTOTAL(9,Table4[[#This Row],[18]:[20]])","v":35.39},100,80,"https://www.ijs.si/ijsw/Znotraj%20hi%C5%A1e/Desno?action=AttachFile&do=get&target=ARIS_Evidenca_opreme_2024.xlsx",1,1,3,44,{"$f":"Table4[[#This Row],[11]]","v":"P_XVIII_142"},0,5,{"$f":"(AI130+AL130+AO130+AR130+AU130+AX130)","v":100},{"$f":"Table4[[#This Row],[4]]","v":"P2-0082"},{"$f":"Table4[[#This Row],[5]]","v":"Matjaž Panjan"},40,"PR-08349","Nastja Mahne",20,"J2-2509","dr. Matjaž Panjan",20,"J2-2513","dr. Matjaž Panjan",20]
[106,"Institut \"Jožef Stefan\"",null,"I0-0005","Miran Čeh",3937,"Okoljski vrstični elektronski mikroskop (ESEM) z veliko komoro, sistemom za analizo morfologije površin in EDX sistemom",2020,"Environmental scanning electron microscope",{"v":264395.71,"d":"264,395.71"},"P_XVIII_157","Vrstični elektronski mikroskop v okviru Centra za elektronsko mikroskopijo in mikroanalizo (CEMM) je dostopen na podlagi on-line rezervacijskega sistem vsem tistim operaterjem IJS, ki so uspešno opravili tečaj, ki ga brezplačno organizira in izvaja kader CEMM. Za tiste odseke IJS, druge raziskovalne in izobraževalne institucije in industrijske partnerje, ki nimajo svojih operaterjev, izvede zahtevane analize kader CEMM. ","The scanning electron microscope within the Center for Electron Microscopy and Microanalysis (CEMM) is accessible via the on-line reservation system to all JSI operators who have successfully completed a teaching course organized and conducted free of charge by the CEMM personnel . For those departments of the JSI, other research and educational institutions and industrial partners that do not have their own operators, the required analyses are performed by the CEMM personnel.","Okoljski vrstični elektronski mikroskop (ESEM) omogoča morfološko in kemijsko karakterizacijo različnih anorganskih in organskih materialov. Mikroskop je opremljen z veliko komoro za vzorce, sistemom EDX in programsko opremo za 3D predstavitev morfologije površine. Omogoča tudi opazovanje vzorcev pri nizkem vakuumu (do 4000 Pa) in je kot tak primeren za opazovanje vlažnih vzorcev.","The environmental scanning electron microscope (ESEM) enables morphological and chemical characterization of various inorganic and organic materials. The microscope is equipped with large specimen chamber, EDX system and software for 3D surface morphology presentation. It also enables observation of specimens at low vacuum (up to 4000 Pa) and is as such suitable for observation of not completely dried specimens. ",67643,{"$f":"Table4[[#This Row],[21]]","v":{"v":78.33000000000001,"d":"78.33"}},25.11,18.2,35.02,{"$f":"SUBTOTAL(9,Table4[[#This Row],[18]:[20]])","v":{"v":78.33000000000001,"d":"78.33"}},100,80,"https://www.ijs.si/ijsw/Znotraj%20hi%C5%A1e/Desno?action=AttachFile&do=get&target=ARIS_Evidenca_opreme_2024.xlsx",3,5,1,4,{"$f":"Table4[[#This Row],[11]]","v":"P_XVIII_157"},35.02,5,100,{"$f":"Table4[[#This Row],[4]]","v":"I0-0005"},{"$f":"Table4[[#This Row],[5]]","v":"Miran Čeh"},100]
[106,"Institut \"Jožef Stefan\"",null,"P2-0405","Sabina Markelj",25624,"Spektrometer za spektroskopijo Augerjevih  elektronov ",2020,"  Spectrometer for Auger electron spectroscopy",{"v":97019.32,"d":"97,019.32"},"P_XVIII_057","Nacin dostopa je po predhodnem dogovoru. Kontakt sabina.markelj@ijs.si. ","The method of access is by prior arrangement. Contact sabina.markelj@ijs.si.","Spektrometer za spektroskopijo Augerjevih elektronov je namenjen za analizo površine\nrazličnih materialov, še posebej pa omogoča: določitev kontaminacije vzorcev z ogljikovodiki, oksidi; analizo količine adsorbiranh molekul na preučevanih vzorcih ter analizno sestavo tankih plasti. ","The spectrometer for Auger electron spectroscopy is intended for the analysis of the surface of various materials, and in particular allows: determination of contamination of samples with hydrocarbons, oxides; analysis of the amount of adsorbed molecules on the studied samples and analytical composition of thin layers.",67679,{"$f":"Table4[[#This Row],[21]]","v":{"v":50.510000000000005,"d":"50.51"}},9.22,19.31,21.98,{"$f":"SUBTOTAL(9,Table4[[#This Row],[18]:[20]])","v":{"v":50.510000000000005,"d":"50.51"}},100,80,"https://www.ijs.si/ijsw/Znotraj%20hi%C5%A1e/Desno?action=AttachFile&do=get&target=ARIS_Evidenca_opreme_2024.xlsx",3,5,4,60,{"$f":"Table4[[#This Row],[11]]","v":"P_XVIII_057"},12.38,5,100,{"$f":"Table4[[#This Row],[4]]","v":"P2-0405"},{"$f":"Table4[[#This Row],[5]]","v":"Sabina Markelj"},80,"P1-0112","Matjaž Žitnik, Primož Pelicon",20]
[106,"Institut \"Jožef Stefan\"",null,"P2-0082","Rok Zaplotnik",31618,"Generator za vzbujanje induktivno sklopljene plazme velike moči",2020,"Generator with a high nominal power for the excitation of inductively coupled plasma ",{"v":67507.32,"d":"67,507.32"},"P_XVIII_150","Oprema je običajno dostopna od ponedeljka do petka med 8:00 in 14:00. Za dogovor o uporabi se je potrebno dogovoriti z vodjo Odseka za tehnologijo površin prof. Miranom Mozetičem.","Equipment is usually available Monday through Friday between 8:00 and 14:00. It is necessary to talk about the use beforehand with the head of the Department of Surface Engineering prof. Miran Mozetič.","Oprema se bo uporabljala za vzbujanje induktivno sklopljene plazme. Nominalna moč generatorja je velika, predvsem zaradi potrebe velike gostote moči plazme v H-načinu. Pri veliki gostoti moči namreč lahko plazmo vzdržujemo pri višjih tlakih (srednji vakuum), kar posledično pomeni večjo gostoto reaktivnih delcev. ","The equipment will be used for excitation of inductively coupled plasma. The nominal power of the generator is high, mainly due to the need for high plasma power density in H-mode. At high power densities, the plasma can be maintained at higher pressures (medium vacuum), which consequently means a higher density of reactive particles.",67836,{"$f":"Table4[[#This Row],[21]]","v":41.42},6.42,7,28,{"$f":"SUBTOTAL(9,Table4[[#This Row],[18]:[20]])","v":41.42},100,80,"https://www.ijs.si/ijsw/Znotraj%20hi%C5%A1e/Desno?action=AttachFile&do=get&target=ARIS_Evidenca_opreme_2024.xlsx",1,3,2,60,{"$f":"Table4[[#This Row],[11]]","v":"P_XVIII_150"},35,5,100,{"$f":"Table4[[#This Row],[4]]","v":"P2-0082"},{"$f":"Table4[[#This Row],[5]]","v":"Rok Zaplotnik"},50,"L2-1834","Alenka Vesel",35,"L2-2617","Gregor Primc",15]
[106,"Institut \"Jožef Stefan\"",null,"P2-0098","Gregor Papa",18291,"Visokozmogljiv hibridni adaptivni računski sistem ",2020,"High-performance hybrid adaptive computing system",{"v":194017.64,"d":"194,017.64"},"P_XVIII_064","Oprema je dostopna preko infrastrukture SLING, po predhodnem dogovoru s skrbnikom."," The equipment is available through SLING infrastructure, upon agreement with the administrator.","Oprema je namenjena hitri obdelavi kompleksnih podatkov. Hibridna oprema omogoča razvoj in testiranje sodobnih adaptivnih metod, ki temeljijo na računsko zahtevnih umetni in računski inteligenci.","The equipment is intended for fast processing of complex data. Hybrid equipment allows the development and testing of modern adaptive methods based on computationally demanding artificial and computational intelligence.","67501, 67502, 67503, 67504, 68882, 68944, 68945, 68991, 69027",{"$f":"Table4[[#This Row],[21]]","v":53.38},23.12,17.88,12.38,{"$f":"SUBTOTAL(9,Table4[[#This Row],[18]:[20]])","v":53.38},100,100,"https://www.ijs.si/ijsw/Znotraj%20hi%C5%A1e/Desno?action=AttachFile&do=get&target=ARIS_Evidenca_opreme_2024.xlsx",6,1,4,26,{"$f":"Table4[[#This Row],[11]]","v":"P_XVIII_064"},25,4,100,{"$f":"Table4[[#This Row],[4]]","v":"P2-0098"},{"$f":"Table4[[#This Row],[5]]","v":"Gregor Papa"},100]
[106,"Institut \"Jožef Stefan\"",null,"P1-0102","Matjaž Vencelj",20207,"Segmentirani detektor z velikim prostorskim kotom",2020,"Large solid angle segmented detector",{"v":119560.42,"d":"119,560.42"},"P_XVII_187","Komunikacija z opisom zahtev meritve, tipa ionskega žarka na E-mail skrbnika. Za tujce tudi v okviru mednarodnega dostopa na pospeševalnik IJS, H2020 Radiate: https://www.ionbeamcenters.eu/ ","Communication with the description of the measurement specifics to the E-mail of the responsible person. Alternatively, transnational Access via the H2020 Radiate:https://www.ionbeamcenters.eu/  ","Segmentni detektor rentgenskih žarkov SDD je vgrajen v merilno postajo z ionskim mikrožarkom za mikro-PIXE. Omogoča elementno mapiranje vzorcev s pokrivanjem ekstremno velikega prostorskega kota 1 strd.","The segmented X-ray SDD is mounted at the ion microprobe measuring chamber. It enables elemental mapping with micro_PIXE with extremely large solid angle 1 strd.",67867,{"$f":"Table4[[#This Row],[21]]","v":71.34},11.36,38,21.98,{"$f":"SUBTOTAL(9,Table4[[#This Row],[18]:[20]])","v":71.34},100,80,"https://www.ijs.si/ijsw/Znotraj%20hi%C5%A1e/Desno?action=AttachFile&do=get&target=ARIS_Evidenca_opreme_2024.xlsx",3,2,2,50,{"$f":"Table4[[#This Row],[11]]","v":"P_XVII_187"},24.76,5,100,{"$f":"Table4[[#This Row],[4]]","v":"P1-0102"},{"$f":"Table4[[#This Row],[5]]","v":"Matjaž Vencelj"},50,"P1-0112","Pelicon",50]
[106,"Institut \"Jožef Stefan\"",null,"P1-0125","Janez Dolinšek",3939,"Hladilnik QD 3He/4He za ultranizke temperature",2020,"3He/4He dilution refrigerator for ultra-low temperatures",{"v":239360.4,"d":"239,360.40"},"P_XVII_021","Za uporabo opreme kontaktirajte prof. dr. Janeza Dolinška (janez.dolinsek@ijs.si) na Institutu Jožefa Stefana kadarkoli. Meritve izvajajo člani naše raziskovalne skupine, zunanji uporabniki lahko prisostvujejo meritvam.","To use the equipment, please contact prof. dr. Janez Dolinšek (janez.dolinsek@ijs.si) at the Jožef Stefan Institute anytime. The measurements are executed by our trained researchers. External users can take part in the measurements.","Hladilnik 3He/4He za ultranizke temperature omogoča meritve fizikalnih lastnosti materialov (električna upornost, magnetoupornost, specifična toplota in Hallov koeficient) v območju temperatur do 50 mK nad absolutno ničlo v magnetnih poljih do 9 T.","Dilution refrigerator 3He/4He for ultralow temperatures enables measurements of physical properties of materials (electrical resistivity, magnetoresistance, specific heat, Hall coefficient) in the range of temperatures down to 50 mK above absolute zero at magnetic fields up to 9 T.",67114,{"$f":"Table4[[#This Row],[21]]","v":52.99},22.73,17.88,12.38,{"$f":"SUBTOTAL(9,Table4[[#This Row],[18]:[20]])","v":52.99},100,80,"https://www.ijs.si/ijsw/Znotraj%20hi%C5%A1e/Desno?action=AttachFile&do=get&target=ARIS_Evidenca_opreme_2024.xlsx",4,1,5,44,{"$f":"Table4[[#This Row],[11]]","v":"P_XVII_021"},47.47,5,100,{"$f":"Table4[[#This Row],[4]]","v":"P1-0125"},{"$f":"Table4[[#This Row],[5]]","v":"Janez Dolinšek"},100]
[106,"Institut \"Jožef Stefan\"",null,"P2-0073","Luka Snoj",27819,"Računske gruča",2020,"HPC computer cluster",{"v":195737,"d":"195,737.00"},"P_XVIII_014","Po predhodnem dogovoru na naslov bojan.zefran@ijs.si ali sandi.cimerman@ijs.si","Advance contact to address bojan.zefran@ijs.si or sandi.cimerman@ijs.si","Računska gruča z Linux operacijskim sistemom vsebuje 15 računskih vozlišč, ki vsako vsebuje dva procesorja Intel Xeon in vsaj 192 GB highperformance ECC registered DDR4 DIMM pomnilnika, eno vozlišče pa vsaj 768 TB highperformance ECC registered DDR4 DIMM pomnilnika. Zmogljivi procesorji in velike količine delovnega pomnilnika omogočajo računsko zahtevne izračune, obsežne simulacije z visoko ločljivostjo in obdelavo velike količine podatkov, kakršne izvajamo za potrebe obstoječih in prihodnjih projektov.","Cluster with Linux operational system consists of 15 computer nodes with two Intel Xeon processors and at least 192 GB high performance ECC registered DDR4 DIMM memory and one node with at least 768 TB high performance ECC registered DDR4 DIMM memory. High performance processors and high working memory capacity enable the performance of computational difficult calculations, extensive simulations with high resolution and large data processing, which are made for carrying out the ongoing and future project tasks.","65270 06",{"$f":"Table4[[#This Row],[21]]","v":23.23},23.23,"0.01 EUR/jedro/ura","0.01 EUR/jedro/ura",{"$f":"SUBTOTAL(9,Table4[[#This Row],[18]:[20]])","v":23.23},100,100,"https://www.ijs.si/ijsw/Znotraj%20hi%C5%A1e/Desno?action=AttachFile&do=get&target=ARIS_Evidenca_opreme_2024.xlsx",6,1,4,14,{"$f":"Table4[[#This Row],[11]]","v":"P_XVIII_014"},0,4,100,{"$f":"Table4[[#This Row],[4]]","v":"P2-0073"},{"$f":"Table4[[#This Row],[5]]","v":"Luka Snoj"},28,"P1-0389","Raziskovalci odseka F-8",25,"PR-05883-1 (EUROfusion, Education)","Igor Lengar, Ivo Kodeli, Bor Kos, Domen Kotnik, Andrej Žohar",14,"NC-0001","Luka Snoj, raziskovalci odseka F-8",15,"NC-0005","Gašper Žerovnik, raziskovalci odseka F-8",4,"L2-8163, PR-08098, PR-05877","Raziskovalci odseka F-8",14]
[106,"Institut \"Jožef Stefan\"",null,"P2-0082","Miran Mozetič",10429,"Močnostni plazemski sistem za depozicijo nanosov tankih plasti s plazmo molekularnih plinov na vzorce večjih dimenzij",2020,"Plasma system for the deposition of thin films with plasma of molecular gases on larger samples",{"v":73318.8,"d":"73,318.80"},"P_XVIII_037","Oprema je običajno dostopna od ponedeljka do petka med 8:00 in 14:00. Za dogovor o uporabi se je potrebno dogovoriti z vodjo Odseka za tehnologijo površin.","Equipment is usually available Monday through Friday between 8:00 and 14:00. It is necessary to talk about the use beforehand with the head of the Department of Surface Engineering.","Sistem je primeren za pripravo vzorcev industrijsko pomembnih dimenzij. Posebnost naprave je v tem, da omogoča nanos plasti z uporabo različnih prekurzorjev na vzorce premera do 0.4 m ter regulacijo moči za vzbujanje nizkotlačne plazme do 12 kW.","The system is designed for preparation of industrial-size samples. The device enables thin film coatings by using various precursors on samples up to 0.4 m in diameter and power regulation for sustaining low-pressure plasma up to 12 kW.",68079,{"$f":"Table4[[#This Row],[21]]","v":49.97},6.97,15,28,{"$f":"SUBTOTAL(9,Table4[[#This Row],[18]:[20]])","v":49.97},100,80,"https://www.ijs.si/ijsw/Znotraj%20hi%C5%A1e/Desno?action=AttachFile&do=get&target=ARIS_Evidenca_opreme_2024.xlsx",1,1,5,60,{"$f":"Table4[[#This Row],[11]]","v":"P_XVIII_037"},35,5,100,{"$f":"Table4[[#This Row],[4]]","v":"P2-0082"},{"$f":"Table4[[#This Row],[5]]","v":"Miran Mozetič"},30,"J2-1720","Gregor Primc",35,"L2-2616","Alenka Vesel",35]
[106,"Institut \"Jožef Stefan\"",null,"P2-0091","Matjaž Spreitzer",24273,"UHV sistema za premikanje grelnika in tarč",2020,"UHV heater- and target stage",{"v":102014.5,"d":"102,014.50"},"P_XVIII_170","Po predhodnem dogovoru s skrbnikom (matjaz.spreitzer@ijs.si)","By prior arrangement with corresponding persopn (matjaz.spreitzer@ijs.si)","UHV sistema za premikanje grelnika in tarč v sistemu za pulzno lasersko nanašanje.","UHV heater- and target stage for a pulsed laser depostion system.",68368,{"$f":"Table4[[#This Row],[21]]","v":{"v":68.7,"d":"68.70"}},9.7,20,39,{"$f":"SUBTOTAL(9,Table4[[#This Row],[18]:[20]])","v":{"v":68.7,"d":"68.70"}},100,80,"https://www.ijs.si/ijsw/Znotraj%20hi%C5%A1e/Desno?action=AttachFile&do=get&target=ARIS_Evidenca_opreme_2024.xlsx",1,1,4,47,{"$f":"Table4[[#This Row],[11]]","v":"P_XVIII_170"},39,5,100,{"$f":"Table4[[#This Row],[4]]","v":"P2-0091"},{"$f":"Table4[[#This Row],[5]]","v":"Matjaž Spreitzer"},50,"N2-0149","Matjaž Spreitzer",25,"N2-0187","Matjaž Spreitzer",25]
[106,"Institut \"Jožef Stefan\"",null,"P2-0091","Matjaž Spreitzer",24273,"Manjši sistem za pulzno lasersko nanašanje",2020,"Small pulsed laser deposition system",{"v":157515.66,"d":"157,515.66"},"P_XVII_188","Po predhodnem dogovoru s skrbnikom (matjaz.spreitzer@ijs.si)","By prior arrangement with corresponding persopn (matjaz.spreitzer@ijs.si)","Manjši sistem za pulzno lasersko nanašanje je namenjen pripravi visoko-kakovostnih tankih plasti in heterostruktur.","Small pulsed laser depostion system is used for the preparation of high-quality thin films and heterostructures.",68369,{"$f":"Table4[[#This Row],[21]]","v":85.97},14.97,32,39,{"$f":"SUBTOTAL(9,Table4[[#This Row],[18]:[20]])","v":85.97},100,80,"https://www.ijs.si/ijsw/Znotraj%20hi%C5%A1e/Desno?action=AttachFile&do=get&target=ARIS_Evidenca_opreme_2024.xlsx",1,1,4,47,{"$f":"Table4[[#This Row],[11]]","v":"P_XVII_188"},39,5,100,{"$f":"Table4[[#This Row],[4]]","v":"P2-0091"},{"$f":"Table4[[#This Row],[5]]","v":"Matjaž Spreitzer"},50,"N2-0149","Matjaž Spreitzer",25,"N2-0187","Matjaž Spreitzer",25]
[106,"Institut \"Jožef Stefan\"",null,"P2-0105","Hana Uršič Nemevšek",26468,"Mikroskop na atomsko silo z moduli za piezoelektrične, električne in magnetne meritve",2020,"Atomic force microscopy (AFM) with piezo-response force microscopy, conductive-atomic force microscopy and magnetic-force microscopy moduli",{"v":423533.1,"d":"423,533.10"},"P_XVIII_010","po dogovoru: hana.ursic@ijs.si","by agreement: hana.ursic@ijs.si","Mikroskop na atomsko silo z različnimi moduli je zelo uporabno orodje za raziskovanje feroelektrične domenske strukture, feroelektričnih, piezoelektričnih in magnetnih lastnosti na lokalni (nanometrski) ravni.","\nAn atomic force microscope with various modules is a very useful tool for investigating the ferroelectric domain structure, ferroelectric, piezoelectric, and magnetic properties at the local (nanometer) level.",68381,{"$f":"Table4[[#This Row],[21]]","v":98.38},40.3,14.62,43.46,{"$f":"SUBTOTAL(9,Table4[[#This Row],[18]:[20]])","v":98.38},100,80,"https://www.ijs.si/ijsw/Znotraj%20hi%C5%A1e/Desno?action=AttachFile&do=get&target=ARIS_Evidenca_opreme_2024.xlsx",3,".6",".1",44,{"$f":"Table4[[#This Row],[11]]","v":"P_XVIII_010"},43.46,5,100,{"$f":"Table4[[#This Row],[4]]","v":"P2-0105"},{"$f":"Table4[[#This Row],[5]]","v":"Hana Uršič Nemevšek"}]
[106,"Institut \"Jožef Stefan\"",null,"P1-0135","Igor Mandić",12313,"Sistem za meritve tranzientov v silicijevih detektorjih z dvofotonsko absorpcijo",2020,"System for measurements of transients in silicon detectors caused by two photon abosrption.",{"v":136492.17,"d":"136,492.17"},"P_XVIII_107","Oprema se nahaja na IJS, v laboratoriju odseka F9, Jamova 39, Ljubljana. Dostop do opreme je možen po dogovoru. Kontakt: igor.mandic@ijs.si","The system is installed in the laboratory of F9 department at JSI, Jamova 39, Ljubljana. Equipment is available, for posibility of usage please contact igor.mandic@ijs.si","Sistem je namenjen meritvam tranzientov, ki jih v silicijevih detektorjih povzročimo z dvofotonsko absorpcijo s ~ 100 fs pulzi laserske svetlobe z valovno dolžino 1560 nm.","The system enables measruements of transients in silicon detectors caused by two photon absorption with ~100 fs pulses of laser light  with wavelength of 1560 nm.",69009,{"$f":"Table4[[#This Row],[21]]","v":83.65},13.03,17.88,52.74,{"$f":"SUBTOTAL(9,Table4[[#This Row],[18]:[20]])","v":83.65},100,80,"https://www.ijs.si/ijsw/Znotraj%20hi%C5%A1e/Desno?action=AttachFile&do=get&target=ARIS_Evidenca_opreme_2024.xlsx",4,4,7,41,{"$f":"Table4[[#This Row],[11]]","v":"P_XVIII_107"},0,5,100,{"$f":"Table4[[#This Row],[4]]","v":"P1-0135"},{"$f":"Table4[[#This Row],[5]]","v":"Igor Mandić"},100]
[106,"Institut \"Jožef Stefan\"",null,"I0-0005","Matic\nLozinšek",30880,"Integriran sistem za sintezo in karakterizacijo spojin pod inertnimi pogoji, pri nizkih\ntemperaturah in pod visokimi tlaki",2021,"Integrated system for synthesis and characterisation of compounds under inert conditions, at low temperatures, and at high pressure",{"v":165083.95,"d":"165,083.95"},"P_XIX_001","Uporaba je možna po predhodnem dogovoru (matic.lozinsek@ijs.si)","Access is possible upon demand (matic.lozinsek@ijs.si)","Sistem suhih celic omogoča delo v inertni atmosferi N2 (O2, H2O < 1 ppm), ATR-FTIR karakterizacijo, pregled vzorcev s stereomikroskopom, in sušenje topil","Glovebox system enables the work in inert N2 atomsphere (O2, H2O < 1 ppm), ATR-FTIR characterization, stereomicroscopy, and solvent drying","69217\n70673\n70674\n71180\n71313 \n70677\n70676\n69720\n69976\n69193\n69816\n69817\n69818\n70271\n70272\n71941\n71940\n71939\n71938",{"$f":"Table4[[#This Row],[21]]","v":{"v":18.07345673076923,"d":"18.07"}},{"$f":"J143*0.2/2080","v":{"v":15.873456730769231,"d":"15.87"}},1.2,1,{"$f":"SUBTOTAL(9,Table4[[#This Row],[18]:[20]])","v":{"v":18.07345673076923,"d":"18.07"}},100,60,"https://www.ijs.si/ijsw/Znotraj%20hi%C5%A1e/Desno?action=AttachFile&do=get&target=ARIS_Evidenca_opreme_2024.xlsx",6,4,3,60,{"$f":"Table4[[#This Row],[11]]","v":"P_XIX_001"},0,5,100,{"$f":"Table4[[#This Row],[4]]","v":"I0-0005"},{"$f":"Table4[[#This Row],[5]]","v":"Matic\nLozinšek"},35,"N1-0225","Matic\nLozinšek",35,"ERC StG HiPeR-F","Matic\nLozinšek",30]
[106,"Institut \"Jožef Stefan\"",null,"P2-0026","Leon\nCizelj",7025,"Nadgradnja visokozmogljive računske gruče",2021,"UPGRADE OF HIGH PERFORMANCE COMPUTE CLUSTER",{"v":358879.83,"d":"358,879.83"},"P_XIX_002","Po predhodnem dogovoru na naslov bojan.zefran@ijs.si ali sandi.cimerman@ijs.si","Advance contact to address bojan.zefran@ijs.si or sandi.cimerman@ijs.si","Računalniška gruča za izvajanje znanstvenih računskih simulacij. Hitra mrežna komunikacija med računskimi vozlišči omogoča dobro skaliranje večprocesnih izračunov. Oprema vsebuje 24 računskih vozlišč po 2 procesorja, vsak z 28 jedri in 196GB spomina.","Compute cluster for fast scientific calculations. Fast interconnect enables a good calculation scalability of multinode multicore jobs. Equipment consists of 23 compute nodes with 2 socket processors. each with 28 cores and 196GB of memory.",65270,{"$f":"Table4[[#This Row],[21]]","v":{"v":43.13459495192308,"d":"43.13"}},{"$f":"J144*0.25/2080","v":{"v":43.13459495192308,"d":"43.13"}},"0.01 EUR/jedro/ura","0.01 EUR/jedro/ura",{"$f":"SUBTOTAL(9,Table4[[#This Row],[18]:[20]])","v":{"v":43.13459495192308,"d":"43.13"}},100,75,"https://www.ijs.si/ijsw/Znotraj%20hi%C5%A1e/Desno?action=AttachFile&do=get&target=ARIS_Evidenca_opreme_2024.xlsx",6,1,4,26,{"$f":"Table4[[#This Row],[11]]","v":"P_XIX_002"},0,4,100,{"$f":"Table4[[#This Row],[4]]","v":"P2-0026"},{"$f":"Table4[[#This Row],[5]]","v":"Leon\nCizelj"},50,"P2-0405-1","Boštjan Končar",10,"L2-1827","Boštjan Končar",10,"L2-1828","Matjaž Leskovar",10,"NC-0026","Iztok Tiselj",10,"PR-10884","Boštjan Končar",10]
[106,"Institut \"Jožef Stefan\"",null,"P2-0073","Luka Snoj",27819,"Nadgradnja računalniške gruče po sistemu »na\nključ«",2021,"Upgrade of the HPC computer cluster",{"v":300536.27,"d":"300,536.27"},"P_XIX_003","Glede na proste kapacitete in ob predhodnem dogovoru je oprema na voljo preko bojan.zefran@ijs.si. Več informacij je na: https://f8.ijs.si/gruce-f8/."," Depending on the availability of the resources the arrangements can be made through bojan.zefran@ijs.si. More information on: https://f8.ijs.si/gruce-f8/.","Računalniška gruča z večjim številom jeder, namenjena izračunom, ki kjer lahko uporabimo paralelno računanje za pospešitev računanja. Nadgradnja gruče vsebuje 20 računskih vozlišč, ki vsebujejo po 2 28 jedrna procesorja  in vsaj 192 GB spomina.","Compute cluster with large number of CPU cores for simulations that can take advantage of parallel computing. Cluster upgrade consists of 20 nodes with 2 28-core processors and at least 192 GB of memory.  ",65270,{"$f":"Table4[[#This Row],[21]]","v":{"v":28.897718269230772,"d":"28.90"}},{"$f":"J145*0.2/2080","v":{"v":28.897718269230772,"d":"28.90"}},"0.01 EUR/jedro/ura","0.01 EUR/jedro/ura",{"$f":"SUBTOTAL(9,Table4[[#This Row],[18]:[20]])","v":{"v":28.897718269230772,"d":"28.90"}},100,60,"https://www.ijs.si/ijsw/Znotraj%20hi%C5%A1e/Desno?action=AttachFile&do=get&target=ARIS_Evidenca_opreme_2024.xlsx",6,1,4,26,{"$f":"Table4[[#This Row],[11]]","v":"P_XIX_003"},0,5,100,{"$f":"Table4[[#This Row],[4]]","v":"P2-0073"},{"$f":"Table4[[#This Row],[5]]","v":"Luka Snoj"},35,"PR-11716-1 (EUROfusion)","Raziskovalci odseka F-8",30,"P2-0405-23 (EUROfusion education)","Domen Kotnik, Andrej Žohar",35]
[106,"Institut \"Jožef Stefan\"",null,"P1-0044","Rok Žitko",23567,"Razširitev računske gruče s hitrimi rezinami z\nveliko pomnilnika",2021,"Expansion of the computer cluster with fast high-memory nodes",{"v":169404.39,"d":"169,404.39"},"P_XIX_023","Uporaba je možna preko vmesne programske opreme ARC po predhodnem dogovru (rok.zitko@ijs.si).","Uporaba je možna preko vmesne programske opreme ARC po predhodnem dogovru (rok.zitko@ijs.si).","Izvajanje računskih nalog na področjih fizike trdne snovi, fizike osnovnih delcev in biofizke.","Computing in the fields of solid state physics, particle physics,  biophysics and quantum physics.","71881, 71882",{"$f":"Table4[[#This Row],[21]]","v":{"v":27.361104567307695,"d":"27.36"}},{"$f":"J146*0.25/2080","v":{"v":20.361104567307695,"d":"20.36"}},{"v":4,"d":"4.00"},{"v":3,"d":"3.00"},{"$f":"SUBTOTAL(9,Table4[[#This Row],[18]:[20]])","v":{"v":27.361104567307695,"d":"27.36"}},100,75,"https://www.ijs.si/ijsw/Znotraj%20hi%C5%A1e/Desno?action=AttachFile&do=get&target=ARIS_Evidenca_opreme_2024.xlsx",6,1,4,26,{"$f":"Table4[[#This Row],[11]]","v":"P_XIX_023"},0,4,100,{"$f":"Table4[[#This Row],[4]]","v":"P1-0044"},{"$f":"Table4[[#This Row],[5]]","v":"Rok Žitko"},30,"P1-0035","Jernej F. Kamenik",30,"P1-0055","Primož Ziherl",30,"P1-0416","Rok Žitko",10]
[106,"Institut \"Jožef Stefan\"",null,"P1-0125","Janez\nDolinšek",3939,"Hladilnik 3He za SQUID magnetometer 7T",2021,"3He refrigerator for SQUID magnetometer 7T",{"v":241996,"d":"241,996.00"},"P_XIX_024","Za uporabo opreme kontaktirajte prof. dr. Janeza Dolinška (janez.dolinsek@ijs.si) na Institutu Jožefa Stefana kadarkoli. Meritve izvajajo člani naše raziskovalne skupine, zunanji uporabniki lahko prisostvujejo meritvam.","To use the equipment, please contact prof. dr. Janez Dolinšek (janez.dolinsek@ijs.si) at the Jožef Stefan Institute anytime. The measurements are executed by our trained researchers. External users can take part in the measurements.","Hladilnik 3He za SQUID magnetometer omogoča meritve magnetnih lastnosti materialov v območju temperatur do 400 mK nad absolutno ničlo v magnetnih poljih do 7 T.","3He refrigerator for SQUID magnetometer enables measurements of magnetic properties of materials in the range of temperatures down to 400 mK above absolute zero at magnetic fields up to 7 T.",60901,{"$f":"Table4[[#This Row],[21]]","v":{"v":59.99884615384616,"d":"60.00"}},{"$f":"J147*0.2/2080","v":{"v":23.268846153846155,"d":"23.27"}},24.35,12.38,{"$f":"SUBTOTAL(9,Table4[[#This Row],[18]:[20]])","v":{"v":59.99884615384616,"d":"60.00"}},100,60,"https://www.ijs.si/ijsw/Znotraj%20hi%C5%A1e/Desno?action=AttachFile&do=get&target=ARIS_Evidenca_opreme_2024.xlsx",4,1,4,44,{"$f":"Table4[[#This Row],[11]]","v":"P_XIX_024"},0,5,100,{"$f":"Table4[[#This Row],[4]]","v":"P1-0125"},{"$f":"Table4[[#This Row],[5]]","v":"Janez\nDolinšek"},100]
[106,"Institut \"Jožef Stefan\"",null,"P6-0282","Marijan\nNečemer",10677,"Mikro-XRF analitski mikroskop",2021,"Mikro XRF for elemental  imaging",{"v":207498.39,"d":"207,498.39"},"P_XIX_036","po dogovoru marijan.necemer@ijs.si","by agreement marijan.necemer@ijs.si","elementni imaging z micro XRF","elemental imaging by XRF microscop",71646,{"$f":"Table4[[#This Row],[21]]","v":{"v":78.03176826923078,"d":"78.03"}},{"$f":"J148*0.2/2080","v":{"v":19.951768269230772,"d":"19.95"}},14.62,43.46,{"$f":"SUBTOTAL(9,Table4[[#This Row],[18]:[20]])","v":{"v":78.03176826923078,"d":"78.03"}},100,60,"https://www.ijs.si/ijsw/Znotraj%20hi%C5%A1e/Desno?action=AttachFile&do=get&target=ARIS_Evidenca_opreme_2024.xlsx",3,1,6,4,{"$f":"Table4[[#This Row],[11]]","v":"P_XIX_036"},0,5,100,{"$f":"Table4[[#This Row],[4]]","v":"P6-0282"},{"$f":"Table4[[#This Row],[5]]","v":"Marijan\nNečemer"},100]
[106,"Institut \"Jožef Stefan\"",null,"P2-0076","Igor\nMekjavić",14676,"Klimatska komora",2021,null,{"v":153428.63,"d":"153,428.63"},"P_XIX_041",{"$nulls":4},"69769, 71260",{"$f":"Table4[[#This Row],[21]]","v":{"v":14.752752884615386,"d":"14.75"}},{"$f":"J149*0.2/2080","v":{"v":14.752752884615386,"d":"14.75"}},null,null,{"$f":"SUBTOTAL(9,Table4[[#This Row],[18]:[20]])","v":{"v":14.752752884615386,"d":"14.75"}},100,60,"https://www.ijs.si/ijsw/Znotraj%20hi%C5%A1e/Desno?action=AttachFile&do=get&target=ARIS_Evidenca_opreme_2024.xlsx",6,4,3,34,{"$f":"Table4[[#This Row],[11]]","v":"P_XIX_041"},0,5,100,{"$f":"Table4[[#This Row],[4]]","v":"P2-0076"},{"$f":"Table4[[#This Row],[5]]","v":"Igor\nMekjavić"},100]
[106,"Institut \"Jožef Stefan\"",null,"P2-0082","Miran\nMozetič",10429,"Plazemska naprava za in-situ meritve VUV in UV\nsevanja med obdelavo površin trdnih materialov",2021,"Plasma device for in-situ measurements of VUV and UV radiation during treatment of solid materials ",{"v":139243.54,"d":"139,243.54"},"P_XIX_042","Oprema je običajno dostopna od ponedeljka do petka med 8:00 in 14:00. Za dogovor o uporabi se je potrebno dogovoriti z vodjo Odseka za tehnologijo površin in skrbnikom. Opravljanje analiz glede n.a ceno po dogovoru","Equipment is usually available Monday through Friday between 8:00 and 14:00. It is necessary to talk about the use beforehand with the head of the Department of Surface Engineering and equipment's caretaker. Upon agreement, performing price-based analyzes.","Sistem je primeren za obdelavo trdnih vzorcev, ki so nameščeni v plazemsko komoro ali pa padajo skoznjo. Sistem omogoča obdelavo s plazmo nizke (nekaj 100 W) in visoke (nekaj 10 kW) moči. Omogoča tudi sprotno spremljenje optičnih spektrov v UV in VUV področju.","The system is suitable for processing solid samples that are placed in the plasma chamber or fall through it. The system allows plasma processing of low (some 100 W) and high (some 10 kW) power. It also enables real-time monitoring of optical spectra in the UV and VUV range.",71454,{"$f":"Table4[[#This Row],[21]]","v":{"v":50.388801923076926,"d":"50.39"}},{"v":13.388801923076924,"d":"13.39"},7,30,{"$f":"SUBTOTAL(9,Table4[[#This Row],[18]:[20]])","v":{"v":50.388801923076926,"d":"50.39"}},100,60,"https://www.ijs.si/ijsw/Znotraj%20hi%C5%A1e/Desno?action=AttachFile&do=get&target=ARIS_Evidenca_opreme_2024.xlsx",1,3,2,4,{"$f":"Table4[[#This Row],[11]]","v":"P_XIX_042"},70,5,100,{"$f":"Table4[[#This Row],[4]]","v":"P2-0082"},{"$f":"Table4[[#This Row],[5]]","v":"Miran\nMozetič"},25,"P2-0405","Rok Zaplotnik",30,"L2-2617","Rok Zaplotnik, Gregor Primc",25,"L2-2616","Miran Mozetič",20]
[106,"Institut \"Jožef Stefan\"",null,"P1-0135","Vladimir\nCindro",9081,"Avtomatska preskuševalna postaja elektronskih\nkomponent",2021,"Automatic probe station for testing of electronic components ",{"v":70839.93,"d":"70,839.93"},"P_XIX_046","Oprema je dostopna po predhodnem dogovoru. Kontakt preko e-pošte  na naslovu  vladimir.cindro@ijs.si","Eqiuipment is available on demand. Please contact vladimir. cindro@ijs.si ","Oprema je namenjena  testiranju  mikrovezij in merjenju lastnosti strukturiranih polprevodnikov. Kontaktiranje je pogojeno s probno kartico, ki je posebej izdelana  za merjeno vezje.  ","The equipment is intended for testing microcircuits and measuring the properties of structured semiconductors. Contacting is conditioned by a test card, which is specially designed for the measured circuit.",71574,{"$f":"Table4[[#This Row],[21]]","v":{"v":26.811531730769232,"d":"26.81"}},{"v":6.8115317307692305,"d":"6.81"},10,10,{"$f":"SUBTOTAL(9,Table4[[#This Row],[18]:[20]])","v":{"v":26.811531730769232,"d":"26.81"}},100,60,"https://www.ijs.si/ijsw/Znotraj%20hi%C5%A1e/Desno?action=AttachFile&do=get&target=ARIS_Evidenca_opreme_2024.xlsx",3,12,5,38,{"$f":"Table4[[#This Row],[11]]","v":"P_XIX_046"},0,5,100,{"$f":"Table4[[#This Row],[4]]","v":"P1-0135"},{"$f":"Table4[[#This Row],[5]]","v":"Vladimir\nCindro"},100]
[106,"Institut \"Jožef Stefan\"",null,"P1-0102","Benjamin\nZorko",15811,"320 kV rentgenski sistem za realizacijo\ndozimetričnih standardov",2021,"320 kV X - ray system for realization of dosimetric standards",{"v":104285.9,"d":"104,285.90"},"P_XIX_060","Oprema je nameščena v Laboratoriju za dozimetrične standarde na IJS. Ker gre za prostore, ki so pod stalnim video sevalnim nadzorom, se je potrebno predhodno dogovoriti z vodjem laboratorija, Boštjanom Črničem, mag. med. fiz. Delo v laboratoriju lahko poteka le pod nadzorom vodje laboratorija.","The equipment is installed in the Laboratory for Dosimetric Standards at the JSI. The facilities are under permanent video and radiation surveillance. Prior the use of the equipment, the arrangements must be made with the head of the laboratory, Boštjan Črnič, mag. med. phys. The work in the laboratory can only take place under the supervision of the head of the laboratory.","Predmet javnega naročila je bila dobava, montaža in zagon  320 kV rentgenskega sistema za realizacijo dozimetričnih standardov, ki ga bomo uporabljali za razširitev obsega kalibracij nacionalnega meroslovnega sistema in raziskovalne študije na različnih raziskovalnih področjih fizike, tehnike in drugih ved. 320 kV rentgenski sistem z rentgensko cevjo MXR-320/26 bo omogočal emisijo fotonov z energijami od 15 do 320 KeV.","The subject of public tender is supply, installation and start up of of the  320 kV X-ray system for the realization of dosimetric standards, which will be used to broaden the scope of calibrations in the framework of the national metrology system and research studies in various research fields of physics, engineering and other sciences. The 320 kV X-ray system with X-ray tube MXR 320/26 will enable the emission of photons with energies from 15 to 320 KeV.        ",70035,{"$f":"Table4[[#This Row],[21]]","v":{"v":32.04749038461539,"d":"32.05"}},{"v":10.027490384615385,"d":"10.03"},6.02,16,{"$f":"SUBTOTAL(9,Table4[[#This Row],[18]:[20]])","v":{"v":32.04749038461539,"d":"32.05"}},100,60,"https://www.ijs.si/ijsw/Znotraj%20hi%C5%A1e/Desno?action=AttachFile&do=get&target=ARIS_Evidenca_opreme_2024.xlsx",1,3,1,60,{"$f":"Table4[[#This Row],[11]]","v":"P_XIX_060"},0,5,100,{"$f":"Table4[[#This Row],[4]]","v":"P1-0102"},{"$f":"Table4[[#This Row],[5]]","v":"Benjamin\nZorko"},85,"PR-00608","Klara Poiškruh",5,"PR-11529","Boštjan Črnič",10]
[106,"Institut \"Jožef Stefan\"",null,"P2-0103","Sašo Džeroski",11130,"Oprema za uporabo metod umetne inteligence v znanosti",2021,"Equipment for use of AI methods in science",{"v":243001.63,"d":"243,001.63"},"P_XIX_068","Čas dostopa do opreme vsak delovni dan od 8:00 do 16:00 po predhodnem dogovoru s skrbnikom. Glede pogojev dostopa in razpoložljivosti kontaktirati Martina Žnidaršiča (martin.znidarsic@ijs.si)","The equipment is avaliable upon request every day from 8 am to 4 pm. For access conditions and availabilty contact Martin Žnidaršič (martin.znidarsic@ijs.si)","GPU in CPU strežniki za razvoj, testiranje in uporabo metod umetne inteligence","GPU and CPU servers for the development, testing and application of AI methods",71713,{"$f":"Table4[[#This Row],[21]]","v":{"v":67.50692668269231,"d":"67.51"}},{"$f":"J153*0.25/2080","v":{"v":29.20692668269231,"d":"29.21"}},17.88,20.42,{"$f":"SUBTOTAL(9,Table4[[#This Row],[18]:[20]])","v":{"v":67.50692668269231,"d":"67.51"}},100,75,"https://www.ijs.si/ijsw/Znotraj%20hi%C5%A1e/Desno?action=AttachFile&do=get&target=ARIS_Evidenca_opreme_2024.xlsx",6,1,5,25,{"$f":"Table4[[#This Row],[11]]","v":"P_XIX_068"},0,4,100,{"$f":"Table4[[#This Row],[4]]","v":"P2-0103"},{"$f":"Table4[[#This Row],[5]]","v":"Sašo Džeroski"},100]
[106,"Institut \"Jožef Stefan\"",null,"P1-0102","Matjaž\nVencelj",20207,"Vakuumska eksperimentalna postaja za jedrsko\nastrofiziko",2021,"Experimental vacuum station for nuclear astrophysics",{"v":147972.62,"d":"147,972.62"},"P_XIX_077","Oprema je dostopna po predhodnem dogovoru na naši lokaciji. Kontakt preko e-pošte  na naslovu  matjaz.vencelj@ijs.si","Equipment available on demand, at our location only. Please contact matjaz.vencelj@ijs.si ","Oprema je namenjena za rekonfigurabilne merilne postavitve v nizkoenergijski jedrski astrofiziki.","The equipment serves as a reconfigurable experimental station for low-energy nuclear astrophysics experiments.",71714,{"$f":"Table4[[#This Row],[21]]","v":{"v":44.22813653846154,"d":"44.23"}},{"v":14.22813653846154,"d":"14.23"},20,10,{"$f":"SUBTOTAL(9,Table4[[#This Row],[18]:[20]])","v":{"v":44.22813653846154,"d":"44.23"}},100,60,"https://www.ijs.si/ijsw/Znotraj%20hi%C5%A1e/Desno?action=AttachFile&do=get&target=ARIS_Evidenca_opreme_2024.xlsx",6,4,3,50,{"$f":"Table4[[#This Row],[11]]","v":"P_XIX_077"},0,5,100,{"$f":"Table4[[#This Row],[4]]","v":"P1-0102"},{"$f":"Table4[[#This Row],[5]]","v":"Matjaž\nVencelj"},100]
[106,"Institut \"Jožef Stefan\"",null,"P2-0105","Tadej Rojac",24272,"Merilni sistemi za karakterizacijo kompleksnih termo-elektro-mehanskih lastnosti\nferoelektričnih materialov",2021,"Measurement systems for characterization  of complex thermo-electro-mechanical properties of ferroelectric materials",{"v":199703.91,"d":"199,703.91"},"P_XIX_080","Oprema je dostopna  po predhodnem dogovoru preko email naslova tadej.rojac@ijs.si. Uporaba večjega dela opreme zahteva predhodno učenje in demonstracijo, ki se jo izvede po predhodnem dogovoru na isti email naslov..    ","The equipment  can be booked by contacting the reponsible person (tadej.rojac@ijs.si). The usage  of a great part of the  equipment requires training and demonstration , which can be arranged through the same contact.  ","Oprema je namenjena celoviti karakterizaciji elektro-termo-mehanskih lastnosti feroelektirčnih in sorodnih materialov, kar vključuje dielektričnost, piezoelektričnost, piroelektričnost, električno prevodnost in termoelektrični odziv. Meritve je možno opraviti na raznih vzorcih raznih oblik, kot so volumenska kermika, debele in tanke plasti.    ","The equipment is intended for a complete set of electro-thermo-mechanical measurements of ferroelectric and related materials, including dielectric permittivity,  pyezoelectricity, piroelectricity, electrical conductivity and thermoelectric effect. The measurements can be performed on samples of different shapes, such as ceramics, thick and thin films.","69662, 69766, 69767, 69795, 69765, 70303, 70302, 70452, 70576, 70631, 70630, 70629, 70628,70627, 71154, 71146, 70622, 70621, 70620, 70619, 70618, 71187,\n54036, 71453, 71458, 71586",{"$f":"Table4[[#This Row],[21]]","v":{"v":81.74229903846154,"d":"81.74"}},{"v":19.202299038461543,"d":"19.20"},20,42.54,{"$f":"SUBTOTAL(9,Table4[[#This Row],[18]:[20]])","v":{"v":81.74229903846154,"d":"81.74"}},100,60,"https://www.ijs.si/ijsw/Znotraj%20hi%C5%A1e/Desno?action=AttachFile&do=get&target=ARIS_Evidenca_opreme_2024.xlsx",1,4,2,44,{"$f":"Table4[[#This Row],[11]]","v":"P_XIX_080"},42.54,5,100,{"$f":"Table4[[#This Row],[4]]","v":"P2-0105"},{"$f":"Table4[[#This Row],[5]]","v":"Tadej Rojac"},100]
[106,"Institut \"Jožef Stefan\"",null,"P1-0125","Mirela\nDragomir",31976,"Oprema za študij lastnosti in strukture\nmaterialov pod visokimi tlaki",2021,"Equipment for the investigation of structure and properties of materials under high pressure",{"v":74522.09,"d":"74,522.09"},"P_XIX_083","Oprema se nahaja v »Laboratoriju za kemijo pod ekstremnimi pogoji« (http://eccl.ijs.si) ECCL. Uporaba opreme je omogočena samo za strokovno usposobljene uporabnike. Dostop se uredi preko dogovora s kontaktno osebo, dr. Mirelo Dragomir. Cena meritev je odvisna od zahtevnosti eksperimentov in interpretacije podatkov. Informacijo o ceni dobite od skrbnika ob dogovoru za izvedbo eksperimentov. Čas dostopa je odvisen od zasedenosti opreme.","The equipment is located at the \"Extreme Conditions Chemistry Laboratory\" under (http://eccl.ijs.si) ECCL. Researchers with proper training on the high-pressure equipment can get access through the contact person, dr. Mirela Dragomir. The price depends on the type of measurement and the complexity of data collection and interpretation. The information about the price is obtained from the contact person before the agreement for measurements. The availability of the equipment depends on the ongoing research activities in the eccl.","Oprema nam omogoča preiskave povezav struktura–lastnosti pod zelo visokim tlakom, in sicer preiskave sprememb strukture, magnetnih in elektronskih lastnosti snovi pod hidrostatskim tlakom v območju GPa. Oprema vključuje specializirane, zelo natančne visokotlačne celice z diamantnimi nakovali.","The equipment enables the investigate the structure-properties relationship under high pressures (Gpa range), namely investigations of changes in the structure, magnetic and electronic properties. The equipment includes specialized, high-precision diamond anvil cells.",71321,{"$f":"Table4[[#This Row],[21]]","v":{"v":69.70558557692308,"d":"69.71"}},{"v":7.1655855769230765,"d":"7.17"},20,42.54,{"$f":"SUBTOTAL(9,Table4[[#This Row],[18]:[20]])","v":{"v":69.70558557692308,"d":"69.71"}},100,60,"https://www.ijs.si/ijsw/Znotraj%20hi%C5%A1e/Desno?action=AttachFile&do=get&target=ARIS_Evidenca_opreme_2024.xlsx",3,11,4,60,{"$f":"Table4[[#This Row],[11]]","v":"P_XIX_083"},42.54,5,100,{"$f":"Table4[[#This Row],[4]]","v":"P1-0125"},{"$f":"Table4[[#This Row],[5]]","v":"Mirela\nDragomir"},50,"J2-2496","Mirela Dragomir",50]
[106,"Institut \"Jožef Stefan\"",null,"P2-0091","Srečo\nDavor\nŠkapin",11093,"Nadgradnja rentgenskih difraktometrov",2021,"Upgrading of X-Ray powder diffractometer with new operating system and data databases.",{"v":65410.96,"d":"65,410.96"},"P_XIX_088","Po predhodnem dogovoru s skrbnikom (matjaz.spreitzer@ijs.si)","By prior arrangement with corresponding person (matjaz.spreitzer@ijs.si)","Nova oprema omogoča zanesljivejše in kvalitetnejše analize kristaliničnih materialov, tako v obliki prahov, kot tudi ploščic, tankih plasti.","X-Ray diffraction analysis","38402\n71185\n71184\n70787\n70786\n70785\n70784",{"$f":"Table4[[#This Row],[21]]","v":{"v":55,"d":"55.00"}},8.58,16.95,29.47,{"$f":"SUBTOTAL(9,Table4[[#This Row],[18]:[20]])","v":{"v":55,"d":"55.00"}},100,60,"https://www.ijs.si/ijsw/Znotraj%20hi%C5%A1e/Desno?action=AttachFile&do=get&target=ARIS_Evidenca_opreme_2024.xlsx",3,8,1,4,{"$f":"Table4[[#This Row],[11]]","v":"P_XIX_088"},0,5,100,{"$f":"Table4[[#This Row],[4]]","v":"P2-0091"},{"$f":"Table4[[#This Row],[5]]","v":"Srečo\nDavor\nŠkapin"},50,"J1-3026","Srečo Škapin",25,"J1-3025","Srečo Škapin",25]
[106,"Institut \"Jožef Stefan\"",null,"I0-0005","Miran\nČeh",3937,"State-of-the-art vrstični presevni elektronski\nmikroskop z ultimativno slikovno in energijsko\nločljivostjo",2021,"State-of-the-art scanning transmission electron microscope with ultimate imaging and energy resolution",{"v":3057036.05,"d":"3,057,036.05"},"P_XIX_108","K nakupu mikroskopa je prispevalo sredstva 14 odsekov IJS in KI in IMT. Čas dostopa posameznih deležnikov do uporabnega časa na mikroskopu je sorazmeren z višino sofinanciranja nakupa mikroskopa. Do mikroskopa lahko dostopajo vsi kvalificirani operaterji preko on-line rezervacijskega sistema.","Funds to purchase the microscope were provided, apart from the ARRS, by 14 JSI departments as well as by the KI and IMT. The operating time to the microscope for individual stakeholders is proportional to the amount of their co-financing of the purchase. The microscope can be accessed by all qualified operators via the online reservation system.","Mikroskop je namenjen preiskavam strukture in kemijske sestave anorganskih in organskih materialov na nanometrskem, atomarnem in sub-atomarnem nivoju. Gre za vrhunsko aparaturo, ki je po svojih performansah med najboljšimi v EU in je predpogoj za izvajanje konkurenčnih raziskava na področju materialov in nanoznanosti. ","The microscope is intended for investigations of the structure and chemical composition of inorganic and organic materials at the nanometer, atomic and sub-atomic level. It is a state-of-the-art equipment and one of the best in the EU in terms of its performance. As such it is a prerequisite for conducting competitive research in the field of materials and nanosciences.",71259,{"$f":"Table4[[#This Row],[21]]","v":{"v":293.94577403846154,"d":"293.95"}},{"v":293.94577403846154,"d":"293.95"},"cca 140.000,00 EUR/leto","2 FTE-ja",{"$f":"SUBTOTAL(9,Table4[[#This Row],[18]:[20]])","v":{"v":293.94577403846154,"d":"293.95"}},100,60,"https://www.ijs.si/ijsw/Znotraj%20hi%C5%A1e/Desno?action=AttachFile&do=get&target=ARIS_Evidenca_opreme_2024.xlsx",5,2,0,4,{"$f":"Table4[[#This Row],[11]]","v":"P_XIX_108"},"2 FTE-ja",5,100,{"$f":"Table4[[#This Row],[4]]","v":"I0-0005"},{"$f":"Table4[[#This Row],[5]]","v":"Miran\nČeh"},10,"Mikroskop uporablja 10 programskih skupin IJS  ","Mikroskop uporablja 10 programskih skupin IJS  ",90]
[106,"Institut \"Jožef Stefan\"",null,"P1-0207","Igor Križaj",412,"Preparativna ultracentrifuga z rotorji in\nrezalnikom centrifugirk",2021,"Preparative ultracentrifuge with rotors and tube slicer",{"v":129551.72,"d":"129,551.72"},"P_XIX_109","Oprema je nameščena v laboratoriju B417D Odseka za molekularne in biomedicinske znanosti (IJS). Uporaba opreme po predhodnem dogovoru (jernej.sribar@ijs.si).","The equipment is installed in laboratory B417D of the Department of Molecular and Biomedical Sciences (JSI). The equipment is available by prior arrangement (jernej.sribar@ijs.si).","Oprema omogoča centrifugiranje vzorcev pri visokih obratih in omogoča pripravo subcelularnih frakcij, ločbo lipoproteinov, virusov, virusnih delcev, nanodelcev ter izolacijo RNA in plazmidne DNA.","The equipment enables high-speed  centrifugation of samples and allows the preparation of subcellular fractions, the separation of lipoproteins, viruses, viral particles, nanoparticles and the isolation of RNA and plasmid DNA.",71427,{"$f":"Table4[[#This Row],[21]]","v":{"v":60.32689615384616,"d":"60.33"}},{"v":12.456896153846154,"d":"12.46"},{"v":0.6,"d":"0.60"},47.27,{"$f":"SUBTOTAL(9,Table4[[#This Row],[18]:[20]])","v":{"v":60.32689615384616,"d":"60.33"}},100,60,"https://www.ijs.si/ijsw/Znotraj%20hi%C5%A1e/Desno?action=AttachFile&do=get&target=ARIS_Evidenca_opreme_2024.xlsx",2,2,1,4,{"$f":"Table4[[#This Row],[11]]","v":"P_XIX_109"},0,5,100,{"$f":"Table4[[#This Row],[4]]","v":"P1-0207"},{"$f":"Table4[[#This Row],[5]]","v":"Igor Križaj"},70,"P4-0127","Emanuela Senjor",30]
[106,"Institut \"Jožef Stefan\"",null,"P2-0001","Gregor\nDolanc",15735,"Oprema za raziskave in aplikacije na področju\ntehnologije vodenja",2021,"Equipment for research and application of the field of control technologies",{"v":86918.89,"d":"86,918.89"},"P_XIX_112","Oprema je dostopna po dogovoru, kontakt Gregor Dolanc (gregor.dolanc@ijs.si)","Equipment is available upon agreement, please contact Gregor Dolanc (gregor.dolanc@ijs.si)","Računalniška oprema za obdelavo podatkov, modeliranje in razvoj sistemov za vodenje. \nMerilna oprema proizvajalca Moor Electronics za izvedbo meritev na pacientih (laserski merilnik pretoka krvi,\nmerilnik nivoja kisika in temperature v tkivih,\nmerilnik nivoja globoke koncentracije kisika v tkivih)","Computer equipment for data processing, modeling and development of control systems.\nMeasuring equipment from Moor Electronics to perform measurements on patients (laser blood flow meter,\noxygen level and temperature meter,\ndeep tissue oxygen level meter)","69812\n69821\n70056\n70021\n70022\n70023\n70024\n70585\n71135\n71133\n71430\n71263\n71264",{"$f":"Table4[[#This Row],[21]]","v":{"v":28.35758557692308,"d":"28.36"}},{"v":8.357585576923078,"d":"8.36"},10,10,{"$f":"SUBTOTAL(9,Table4[[#This Row],[18]:[20]])","v":{"v":28.35758557692308,"d":"28.36"}},100,60,"https://www.ijs.si/ijsw/Znotraj%20hi%C5%A1e/Desno?action=AttachFile&do=get&target=ARIS_Evidenca_opreme_2024.xlsx",6,1,3,"4, 20, 25, 26, 59, 63",{"$f":"Table4[[#This Row],[11]]","v":"P_XIX_112"},40,5,100,{"$f":"Table4[[#This Row],[4]]","v":"P2-0001"},{"$f":"Table4[[#This Row],[5]]","v":"Gregor\nDolanc"},100]
[106,"Institut \"Jožef Stefan\"",null,"P2-0084","Sašo\nŠturm",19030,"Ultra visokotlačni tekočinski kromatograf s PDA\ndetektorjem",2021,"Ultra-Performance Liquid Chromatography apparatus with PDA detector",{"v":90401.8,"d":"90,401.80"},"P_XIX_120","Oprema bo večino časa zasedena, ker jo bo uporabljal robot. Do opreme bo mogoče dostopati le po predhodnem dogovoru s skrbnikom sistema, saj bo nameščena v sobi, kjer bo delal robot. ","The equipment will be occupied most of the time because it will be used by a robot. The equipment will be accessible only by prior arrangement with the system administrator, as it will be installed in the ro","UPLC je kromatografska tehnika, ki se uporablja za ločevanje, identifikacijo in kvantifikacijo organskih spojin, raztopljenih v tekoči fazi. ","UPLC is a chromatography technique used for separation, identification and quantification of organic compounds dissolved in liquid phase.",70604,{"$f":"Table4[[#This Row],[21]]","v":{"v":45.00248076923077,"d":"45.00"}},{"v":8.69248076923077,"d":"8.69"},6.31,30,{"$f":"SUBTOTAL(9,Table4[[#This Row],[18]:[20]])","v":{"v":45.00248076923077,"d":"45.00"}},100,60,"https://www.ijs.si/ijsw/Znotraj%20hi%C5%A1e/Desno?action=AttachFile&do=get&target=ARIS_Evidenca_opreme_2024.xlsx",3,11,5,4,{"$f":"Table4[[#This Row],[11]]","v":"P_XIX_120"},30,5,100,{"$f":"Table4[[#This Row],[4]]","v":"P2-0084"},{"$f":"Table4[[#This Row],[5]]","v":"Sašo\nŠturm"},100]
[106,"Institut \"Jožef Stefan\"",null,"P1-0099","Igor\nMuševič",9089,"Sistem za razvoj integriranih optičnih logičnih\nvezij",2021,null,{"v":261167.7,"d":"261,167.70"},"P_XIX_122","Rezervacije dostopa do opreme se opravljajo na povezavi: https://teamup.com/login . Termin se določi v soglasju s skrbnikom opreme prof. I.Muševičem","Reservations for the use of equipment are registered at: https://teamup.com/login The time slot for the measurements is coordinated by the person in charge of the equipment, Prof. I.Muševič.","Nastavljivi nanosekundni laser z osnovno valovno dolžino 532 nm in variabilno valovno dolžino nastavljivega žarka v območu 400 nm do 2400 nm.","Nanosecond tuneable laser with base output at 532 nm and tuneable output frim 400 nm to 2400 nm.",74775,{"$f":"Table4[[#This Row],[21]]","v":{"v":59.87227884615385,"d":"59.87"}},{"v":25.11227884615385,"d":"25.11"},10,24.76,{"$f":"SUBTOTAL(9,Table4[[#This Row],[18]:[20]])","v":{"v":59.87227884615385,"d":"59.87"}},100,60,"https://www.ijs.si/ijsw/Znotraj%20hi%C5%A1e/Desno?action=AttachFile&do=get&target=ARIS_Evidenca_opreme_2024.xlsx",3,1,4,30,{"$f":"Table4[[#This Row],[11]]","v":"P_XIX_122"},0,5,100,{"$f":"Table4[[#This Row],[4]]","v":"P1-0099"},{"$f":"Table4[[#This Row],[5]]","v":"Igor\nMuševič"},50,"PR-10099","Igor Muševič",50]
[106,"Institut \"Jožef Stefan\"",null,"P2-0091","Matjaž\nSpreitzer",24273,"RHEED sistem s pripadajočo opremo",2021,null,{"v":138292.3317,"d":"138,292.33"},"P_XIX_124",{"$nulls":4},"70210, 70725",{"$f":"Table4[[#This Row],[21]]","v":{"v":13.297339586538463,"d":"13.30"}},{"v":13.297339586538463,"d":"13.30"},null,null,{"$f":"SUBTOTAL(9,Table4[[#This Row],[18]:[20]])","v":{"v":13.297339586538463,"d":"13.30"}},100,60,"https://www.ijs.si/ijsw/Znotraj%20hi%C5%A1e/Desno?action=AttachFile&do=get&target=ARIS_Evidenca_opreme_2024.xlsx",3,8,3,47,{"$f":"Table4[[#This Row],[11]]","v":"P_XIX_124"},0,5,100,{"$f":"Table4[[#This Row],[4]]","v":"P2-0091"},{"$f":"Table4[[#This Row],[5]]","v":"Matjaž\nSpreitzer"},100]
[106,"Institut \"Jožef Stefan\"",null,"P1-0040","Dragan D.\nMihailović",4540,"Sistem za nelinearno spektroskopijo in\nmikroskopijo v širokem energijskem območju z\ndodatki",2021,"System for nonlinear spectroscopy and microscopy in a wide energy range with accessories",{"v":572804.09,"d":"572,804.09"},"P_XIX_126","Oprema je dostopa po predhodnem dogovoru.Za uporabo zahtevnejše opreme je omogočeno šolanje. Cena storitev je odvisna od zahtevnosti meritev. Kontakt damjan.svetin@ijs.si","Equipment is available on demand. Training can be arranged. The price of services depends on complexity of the measurements. Contact damjan.svetin@ijs.si","Sistem za nelinearno spektroskopijo in mikroskopijo v širokem energijskem območju z dodatki omogoča proučevanje različnih materialov v okviru dveh tehnologij: (1) Nelinearne resonančne ekstremne ultravijolične spektroskopije in (2) Nelinearne optične mikroskopije.","The system for nonlinear spectroscopy and microscopy in a wide energy range with accessories allows the study of various materials in two technologies: (1) Nonlinear resonant extreme ultraviolet spectroscopy and (2) Nonlinear optical microscopy.","69572\n70689\n71045\n71047\n71046\n70783\n70782\n70781\n71044\n70841\n71016\n71051\n71083\n71082\n71081\n71077\n71076\n71075\n70767\n70766\n70765\n70764\n70763\n71096\n71095\n71156\n71172\n70842\n71103\n70760\n70759\n70758\n70757\n71199\n71197\n71094\n71121\n71120\n71119\n71118\n71117\n70513\n71140\n71280\n71099\n71098\n69651\n70037\n71162\n41290\n71349\n71348\n71374\n71419",{"$f":"Table4[[#This Row],[21]]","v":{"v":106.59731634615385,"d":"106.60"}},{"v":55.07731634615384,"d":"55.08"},17.88,33.64,{"$f":"SUBTOTAL(9,Table4[[#This Row],[18]:[20]])","v":{"v":106.59731634615385,"d":"106.60"}},100,60,"https://www.ijs.si/ijsw/Znotraj%20hi%C5%A1e/Desno?action=AttachFile&do=get&target=ARIS_Evidenca_opreme_2024.xlsx",3,1,4,60,{"$f":"Table4[[#This Row],[11]]","v":"P_XIX_126"},0,5,{"$f":"(AI164+AL164+AO164+AR164+AU164+AX164)","v":100},{"$f":"Table4[[#This Row],[4]]","v":"P1-0040"},{"$f":"Table4[[#This Row],[5]]","v":"Dragan D.\nMihailović"},100]
[106,"Institut \"Jožef Stefan\"",null,"P1-0135","Andrej\nFilipčič",7525,"Nadgradnja distribuiranega računskega vozlišča SiGNET Tier-2.",2021,"Upgrade of SiGNET-T2 distributed cluster",{"v":154380.6,"d":"154,380.60"},"P_XIX_145","Omogočen oddaljen dostop za vse uporabnike SLING infrastrukture preko strežnika ARC-CE","Remote access for SLING users through ARC Computing Element","Računska gruča za intenzivno obdelavo podatkov in računske simulacije, predvsem pri eksperimentih ATLAS in Belle-II","Compute cluster for intensive data processing primarily for ATLAS and Belle-II experiments","71350\n71372\n71370\n71369\n71368\n71367\n71366\n71365\n71364\n71363\n71362\n71361\n71360\n71359\n71358\n71371",{"$f":"Table4[[#This Row],[21]]","v":{"v":46.5342884615385,"d":"46.53"}},{"v":14.8442884615385,"d":"14.84"},19.31,12.38,{"$f":"SUBTOTAL(9,Table4[[#This Row],[18]:[20]])","v":{"v":46.5342884615385,"d":"46.53"}},100,60,"https://www.ijs.si/ijsw/Znotraj%20hi%C5%A1e/Desno?action=AttachFile&do=get&target=ARIS_Evidenca_opreme_2024.xlsx",6,1,5,26,{"$f":"Table4[[#This Row],[11]]","v":"P_XIX_145"},0,5,100,{"$f":"Table4[[#This Row],[4]]","v":"P1-0135"},{"$f":"Table4[[#This Row],[5]]","v":"Andrej\nFilipčič"},100]
[106,"Institut \"Jožef Stefan\"",null,"P1-0135","Marko\nMikuž",4763,"Obnova centra za analizo podatkov SiGNET",2021,"Upgrade of analysis facility at SiGNET",{"v":138073.64,"d":"138,073.64"},"P_XIX_157","Uporaba diskovnega prostora preko sistema dCache in Ceph","Storage access through dCache and Ceph","Diskovni prostor se uporablja za začasno shrambo vmesnih podatkov ter za obdelavo podatkov pri fizikalnih analizah","Disk space used for temporary dataset storage and for permanent storage of analysis datasets",71887,{"$f":"Table4[[#This Row],[21]]","v":{"v":44.9763115384615,"d":"44.98"}},{"v":13.2763115384615,"d":"13.28"},19.31,12.39,{"$f":"SUBTOTAL(9,Table4[[#This Row],[18]:[20]])","v":{"v":44.9763115384615,"d":"44.98"}},100,60,"https://www.ijs.si/ijsw/Znotraj%20hi%C5%A1e/Desno?action=AttachFile&do=get&target=ARIS_Evidenca_opreme_2024.xlsx",6,1,5,26,{"$f":"Table4[[#This Row],[11]]","v":"P_XIX_157"},0,5,100,{"$f":"Table4[[#This Row],[4]]","v":"P1-0135"},{"$f":"Table4[[#This Row],[5]]","v":"Marko\nMikuž"},100]
[106,"Institut \"Jožef Stefan\"",null,"P2-0084","Spomenka Kobe",4355,"XJET, Izrael 3D tiskalnik za kovinske materiale in keramiko, preimenovan v Hage 3D tiskalnik",2021,"XJET, Israel 3D printer for metal materials and ceramics, renamed to Hage 3D material extrusion printer",{"v":193984.55,"d":"193,984.55"},"P_XVII_177","Po predhodnem dogovru s skrbnikom (mail skrbnika)","By prior arrangement with the administrator (administrator's mail)","Izdelava prototipov kompleksnih oblik z ekstruzijo materiala. Možnost uporabe kompozitnih materialov","Prototyping of compelex shapes with materila extrusion. Can be used with composite materials.","65499, 70724",{"$f":"Table4[[#This Row],[21]]","v":{"v":42.032360576923075,"d":"42.03"}},{"v":18.652360576923076,"d":"18.65"},9.27,14.11,{"$f":"SUBTOTAL(9,Table4[[#This Row],[18]:[20]])","v":{"v":42.032360576923075,"d":"42.03"}},100,60,"https://www.ijs.si/ijsw/Znotraj%20hi%C5%A1e/Desno?action=AttachFile&do=get&target=ARIS_Evidenca_opreme_2024.xlsx",6,3,0,44,{"$f":"Table4[[#This Row],[11]]","v":"P_XVII_177"},28.22,5,100,{"$f":"Table4[[#This Row],[4]]","v":"P2-0084"},{"$f":"Table4[[#This Row],[5]]","v":"Spomenka Kobe"},40,"PR-12426","Benjamin Podmiljšak (K7)",20,"PR-12539","Spomenka Kobe (K7)",20,"P2-0087","Andraž Kocjan (K7)",20]
[106,"Institut \"Jožef Stefan\"",null,"I0-0005","Primož Pelicon",12314,"Kontrolni sistem pospeševalnika Tandetron",2021,null,{"v":258675.69,"d":"258,675.69"},"P_XVIII_018","Oprema je dostopna  akademskim institucijam in gospodarskim družbam (primoz.pelicon@ijs.si), kot tudi raziskovalcem in industriji iz evropskega raziskovalnega prostora (EU H2020 RADIATE, https://www.ionbeamcenters.eu/). ","The equipment is available for national users at the contact \"primoz.pelicon@ijs.si\", as well as to the international users via EU Transbnational Access  (EU H2020 RADIATE, https://www.ionbeamcenters.eu/).","Kontrolni sistem pospeševalnika nadzira delovanje celotnega sklopa strojne opreme od ionskih virov, pospeševanja in oblikovanja visokoenergijskih žarkov, kot tudi injeciranja v izbrano žarkovno linijo na pospeševalniku Instituta Jožef Stefan.","The control system of the tandetron accelerator is providing the regulation and monitoring feedback of all the components of the ion accelerator, starting from the ion sources, beam shaping and acceleration, as well as beam injection into one of the beamlines at the tandem ion accelerator of Jožef Stefan Institute.",71347,{"$f":"Table4[[#This Row],[21]]","v":{"v":61.63266250000001,"d":"61.63"}},{"v":24.872662500000004,"d":"24.87"},12,24.76,{"$f":"SUBTOTAL(9,Table4[[#This Row],[18]:[20]])","v":{"v":61.63266250000001,"d":"61.63"}},100,60,"https://www.ijs.si/ijsw/Znotraj%20hi%C5%A1e/Desno?action=AttachFile&do=get&target=ARIS_Evidenca_opreme_2024.xlsx",3,1,6,50,{"$f":"Table4[[#This Row],[11]]","v":"P_XVIII_018"},0,5,100,{"$f":"Table4[[#This Row],[4]]","v":"I0-0005"},{"$f":"Table4[[#This Row],[5]]","v":"Primož Pelicon"},40,"P1-0112","Primož Pelicon",40,"P2-0405","Sabina Markelj",20]
[106,"Institut \"Jožef Stefan\"",null,"P2-0084","Spomenka Kobe",4355,"Magnetometer z tresočim vzorcem za termomagnetne meritve v različnih atmosferah",2021,"Shaking sample magnetometer for thermomagnetic measurements in different atmospheres",{"v":179705.99,"d":"179,705.99"},"P_XVIII_027","Po predhodnem dogovru s skrbnikom (mail skrbnika)","By prior arrangement with the administrator (administrator's mail)","Karakterizacija magnetnih materialov v magnetnem polju, pri različnih temperaturah in atmosferah.","Characterization of magnetic materials in a magnetic field, at different temperatures and atmospheres.",69928,{"$f":"Table4[[#This Row],[21]]","v":{"v":37.049422115384615,"d":"37.05"}},{"v":17.279422115384612,"d":"17.28"},2.84,16.93,{"$f":"SUBTOTAL(9,Table4[[#This Row],[18]:[20]])","v":{"v":37.049422115384615,"d":"37.05"}},100,60,"https://www.ijs.si/ijsw/Znotraj%20hi%C5%A1e/Desno?action=AttachFile&do=get&target=ARIS_Evidenca_opreme_2024.xlsx",3,9,1,4,{"$f":"Table4[[#This Row],[11]]","v":"P_XVIII_027"},28.22,5,100,{"$f":"Table4[[#This Row],[4]]","v":"P2-0084"},{"$f":"Table4[[#This Row],[5]]","v":"Spomenka Kobe"},30,"PR-12539","Spomenka Kobe (K7)",20,"PR-12426","Benjamin Podmiljšak (K7)",20,"PR-10730","Benjamin Podmiljšak (K7)",20,"PR-10604-1","Kristina Žužek",10]
[106,"Institut \"Jožef Stefan\"",null,"P1-0112","Boštjan Jenčič",37462,"Ionska optika za nanožarek",2021,null,{"v":282827.19,"d":"282,827.19"},"P_XVIII_074","Oprema je dostopna  akademskim institucijam in gospodarskim družbam (bostjan.jencic@ijs.si), kot tudi raziskovalcem in industriji iz evropskega raziskovalnega prostora (EU H2020 RADIATE, https://www.ionbeamcenters.eu/). ","The equipment is available for national users at the contact bostjan.jencic@ijs.si, as well as to the international users via EU Transbnational Access  (EU H2020 RADIATE, https://www.ionbeamcenters.eu/).","Ionska optika je namenjena fokusiranju visokoenergijskih ionskih žarkov na premere žarkov manjše od enega mikrometra. S temi žarki izvajamo elemnetno in molekularno kartiranje vzorcev, kot tudi površinsko strukturirano implantacijo ionov.","The ion optics forms high energy focused ion beam with sub-micrometre diameter, used for elemental and molecular mapping, as well as for patterned ion implantation.",71062,{"$f":"Table4[[#This Row],[21]]","v":{"v":63.95492211538462,"d":"63.95"}},{"v":27.194922115384617,"d":"27.19"},12,24.76,{"$f":"SUBTOTAL(9,Table4[[#This Row],[18]:[20]])","v":{"v":63.95492211538462,"d":"63.95"}},100,60,"https://www.ijs.si/ijsw/Znotraj%20hi%C5%A1e/Desno?action=AttachFile&do=get&target=ARIS_Evidenca_opreme_2024.xlsx",3,1,6,4,{"$f":"Table4[[#This Row],[11]]","v":"P_XVIII_074"},0,5,100,{"$f":"Table4[[#This Row],[4]]","v":"P1-0112"},{"$f":"Table4[[#This Row],[5]]","v":"Boštjan Jenčič"},40,"I0-0005","Primož Vavpetič",40,"P1-0212","Paula Pongrac",20]
[106,"Institut \"Jožef Stefan\"",null,"P1-0102","Jelena Vesić",33404,"Teleskopski detektor Ge-Si ",2021,"Telescope detector Ge-Si",{"v":113043.28,"d":"113,043.28"},"P_XVIII_085","Prijava na žarkovni čas na pospeševalniku Tandetron na IJS po predhodnem posvetovanju s skrbnikom opreme.","Application for beam time at the Tandetron accelerator at JSI with a previous consultation with equipment guardian","Meritve elektronov","Electron measurements",71728,{"$f":"Table4[[#This Row],[21]]","v":{"v":35.86954615384616,"d":"35.87"}},{"v":10.869546153846155,"d":"10.87"},15,10,{"$f":"SUBTOTAL(9,Table4[[#This Row],[18]:[20]])","v":{"v":35.86954615384616,"d":"35.87"}},100,60,"https://www.ijs.si/ijsw/Znotraj%20hi%C5%A1e/Desno?action=AttachFile&do=get&target=ARIS_Evidenca_opreme_2024.xlsx",1,3,0,5,{"$f":"Table4[[#This Row],[11]]","v":"P_XVIII_085"},0,5,100,{"$f":"Table4[[#This Row],[4]]","v":"P1-0102"},{"$f":"Table4[[#This Row],[5]]","v":"Jelena Vesić"},100]
[106,"Institut \"Jožef Stefan\"",null,"P1-0143","Milena Horvat",5027,"Hibridni kvadrupol-Orbitrap masni spektrometer (Q-Orbitrap MS) s pripadajočo opremo ",2021,"Hybride qudruple-Orbitrap mass spectrometer (Q-Orbitrap MS).",{"v":677613.87,"d":"677,613.87"},"P_XVIII_106","Instrumet bo na voljo po instalaciji opreme v juniju 2022. Kontakt: Milena.horvat@ijs.si .","Instrument will be available after final instalation in June 2022. Please contact: milena.horvat@ijs.si . ","Orbitrap masni spektrometer sklopljen s tekočinskim kromatografom (hibridni LC-MS) in opremljen s programsko opremo za interpretacijo MS-MS spektrov in karakterizacijo malih organskih molekul se bo uporabljal za kvalitativno in kvantitativno netarčno ter tarčno analizo organskih spojin v sledovih v vzorcih iz okolja, vode, hrane, zdravilnih učinkovin, bioloških in geoloških snovi ter podobnih materialov. ","Q-Orbitrap mass spectrometer is equipped with liquid chromatograph (LC-MS), atmospheric ionization ion source (ESI) and different software programs for interpretation MS-MS spectra. IT is used for characterization and structure determination of small organic molecules, qualitative and quantitative target and nontarget analysis of traces of organic compounds in samples from environment, water, food, pharmaceuticals, biological, geological and similar materials.",71326,{"$f":"Table4[[#This Row],[21]]","v":{"v":205.15517980769232,"d":"205.16"}},{"v":65.1551798076923,"d":"65.16"},80,60,{"$f":"SUBTOTAL(9,Table4[[#This Row],[18]:[20]])","v":{"v":205.15517980769232,"d":"205.16"}},100,60,"https://www.ijs.si/ijsw/Znotraj%20hi%C5%A1e/Desno?action=AttachFile&do=get&target=ARIS_Evidenca_opreme_2024.xlsx",3,2,3,4,{"$f":"Table4[[#This Row],[11]]","v":"P_XVIII_106"},0,5,100,{"$f":"Table4[[#This Row],[4]]","v":"P1-0143"},{"$f":"Table4[[#This Row],[5]]","v":"Milena Horvat"},100]
[106,"Institut \"Jožef Stefan\"",null,"I0-0005","Aljaž Drnovšek",35463,"In situ merilnik fizikalnih lastnosti na nanoskali",2021,"in-situ system for measuring physical properties on nanoscale",{"v":293646.45,"d":"293,646.45"},"P_XVIII_167","Uporaba naprave je vezana na  SEM mikroskop. Uporaba je možna po predhodnem pogovoru (aljaz.drnovsek@ijs.si) ","The use of the device is related to the use of the SEM microscope. Use is possible after a preliminary conversation (aljaz.drnovsek@ijs.si)","meritve nanomehanskih lastnosti materialov majhnih volumnov pri sobni in povišani temperaturi","measurements of nanomechanical properties of small volume materials at room and elevated temperatures",69024,{"$f":"Table4[[#This Row],[21]]","v":{"v":58.495235576923086,"d":"58.50"}},{"v":28.23523557692308,"d":"28.24"},17.88,12.38,{"$f":"SUBTOTAL(9,Table4[[#This Row],[18]:[20]])","v":{"v":58.495235576923086,"d":"58.50"}},100,60,"https://www.ijs.si/ijsw/Znotraj%20hi%C5%A1e/Desno?action=AttachFile&do=get&target=ARIS_Evidenca_opreme_2024.xlsx",3,12,1,47,{"$f":"Table4[[#This Row],[11]]","v":"P_XVIII_167"},0,5,100,{"$f":"Table4[[#This Row],[4]]","v":"I0-0005"},{"$f":"Table4[[#This Row],[5]]","v":"Aljaž Drnovšek"},50,"PR-11236","Žan Gostenčnik",30,"J2-2509","Matjaž Panjan",20]
[106,"Institut \"Jožef Stefan\"",null,"P1-0207","Igor Križaj",412,"Masni analizator",2022,"Nano electrospray ionization-quadrupole time-of-flight mass spectrometer (ESI-qTOF)","250.737,28","P_XX_013","Oprema je na voljo akademskim ustanovam in gospodarskim družbam, bodisi za plačilo, ki pokriva stroške analize, bodisi v okviru sodelovanja. Navodila za pripravo vzorcev in cenik storitev so na voljo na spletni strani oddelka (http://www-b2.ijs.si/expertise/). Stranka se lahko neposredno obrne na osebe, odgovorne za opremo, in se dogovori za izvedbo analize. ","The equipment is available to academic institutions and companies, either for a fee covering the cost of the analysis or as part of a collaboration. Instructions for sample preparation and a price list for services are available on the Department's website (http://www-b2.ijs.si/expertise/). The customer can contact the persons responsible for the equipment directly to arrange for the analysis to be carried out. ","ESI-qTOF se uporablja za \"top-down/bottom-up\" kvalitativno in kvantitativno analizo proteinov v bioloških vzorcih. ","ESI-qTOF is used for top-down/bottom-up qualitative and quantitative analysis of proteins in biological samples. ","72813, 73201, 73203, 73204 ",{"$f":"Table4[[#This Row],[21]]","v":{"v":88.92935384615384,"d":"88.93"}},{"$f":"J174*0.2/2080","v":{"v":24.109353846153848,"d":"24.11"}},12.08,52.74,{"$f":"SUBTOTAL(9,Table4[[#This Row],[18]:[20]])","v":{"v":88.92935384615384,"d":"88.93"}},100,40,"https://www.ijs.si/ijsw/Znotraj%20hi%C5%A1e/Desno?action=AttachFile&do=get&target=ARIS_Evidenca_opreme_2024.xlsx",4,6,3,35,{"$f":"Table4[[#This Row],[11]]","v":"P_XX_013"},0,5,100,{"$f":"Table4[[#This Row],[4]]","v":"P1-0207"},{"$f":"Table4[[#This Row],[5]]","v":"Igor Križaj"},100]
[106,"Institut \"Jožef Stefan\"",null,"P1-0044","Rok Žitko",23567,"Razširitev računske gruče s hitrimi rezinami nove generacije",2022,"Expansion of the computer cluster with fast new-generation nodes",{"v":163604.87,"d":"163,604.87"},"P_XX_014","Uporaba je možna po predhodnem dogovoru (rok.zitko@ijs.si)","Upon prior agreement (rok.zitko@ijs.si)","Izvajanje računskih nalog na področjih fizike trdne snovi, fizike osnovnih delcev, biofizke in kvantne fizike.","Computing in the fields of solid state physics, particle physics,  biophysics and quantum physics.","73316\n73376\n73375\n73374\n73372\n73371\n73370\n73369",{"$f":"Table4[[#This Row],[21]]","v":{"v":26.664046875,"d":"26.66"}},{"$f":"J175*0.25/2080","v":{"v":19.664046875,"d":"19.66"}},4,3,{"$f":"SUBTOTAL(9,Table4[[#This Row],[18]:[20]])","v":{"v":26.664046875,"d":"26.66"}},100,50,"https://www.ijs.si/ijsw/Znotraj%20hi%C5%A1e/Desno?action=AttachFile&do=get&target=ARIS_Evidenca_opreme_2024.xlsx",6,1,4,26,{"$f":"Table4[[#This Row],[11]]","v":"P_XX_014"},0,4,{"$f":"(AI175+AL175+AO175+AR175+AU175+AX175)","v":100},{"$f":"Table4[[#This Row],[4]]","v":"P1-0044"},{"$f":"Table4[[#This Row],[5]]","v":"Rok Žitko"},30,"P1-0035","Jernej F. Kamenik",30,"P1-0055","Primož Ziherl",30,"P1-0416","Rok Žitko",10]
[106,"Institut \"Jožef Stefan\"",null,"P2-0405","Sabina Markelj",25624,"6-osni goniometer za ionsko kanaliziranje s sistemom za menjavo vzorcev in zajemom podatkov",2022,"6-axis goniometer for ion channeling with system for sample exchnage and data acquisition",{"v":223744.46,"d":"223,744.46"},"P_XX_016","Uporabniki bodo lahko dostopali do opreme tako, da bodo predlagali, kaj bi zeleli preučevati. Način kontaktiranja je preko elektronskega sporočila sabina.markelj@ijs.si. ","Users will be able to access the equipment by proposing what they would like to study. The method of contact is via e-mail sabina.markelj@ijs.si.","6-osni gonimeter je namenjen za natančno poravnavo monokristalov  za meritve v načinu ionskega kanaliziranja skupaj z na primer metodo povratnih sipanih ionov. V tem načinu lahko preučujemo napake v kristalni rešetki. Z uporabo drugih ionskih metod, lahko preučuejemo pozicije nečistoč v materialih. Sistem nam omogoča hitro menjavo vzorcev ter gretje ali hlajenje vzorcev.","The 6-axis goniometer is intended for precise aligment of single crystal samples in order to preform ion channeling measurements utilising for instance  Rutherford backscattering spectrometry method. This can be be used to study defects in the crystal lattice. Using other ion beam methods in channeling configuration, one can also study the position of impurities in materials. The system allows us to quickly change samples and heat or cool the samples.",73456,{"$f":"Table4[[#This Row],[21]]","v":{"v":62.803890384615386,"d":"62.80"}},{"$f":"J176*0.2/2080","v":{"v":21.513890384615383,"d":"21.51"}},19.31,21.98,{"$f":"SUBTOTAL(9,Table4[[#This Row],[18]:[20]])","v":{"v":62.803890384615386,"d":"62.80"}},100,40,"https://www.ijs.si/ijsw/Znotraj%20hi%C5%A1e/Desno?action=AttachFile&do=get&target=ARIS_Evidenca_opreme_2024.xlsx",3,2,null,60,{"$f":"Table4[[#This Row],[11]]","v":"P_XX_016"},0,5,100,{"$f":"Table4[[#This Row],[4]]","v":"P2-0405"},{"$f":"Table4[[#This Row],[5]]","v":"Sabina Markelj"},100]
[106,"Institut \"Jožef Stefan\"",null,"P1-0125","Zdravko Kutnjak",10124,"Integrirani elektrotermometrični optični merilni sistem",2022,"Integrated electrothermometric optical measurement system",{"v":108398.79,"d":"108,398.79"},"P_XX_017","Za dostop se kontaktira dr. Z. Kutnjaka (zdravko.kutnjak@ijs.si) na IJS, ki uredi uporabniški dostop do opreme znotraj 1. meseca.","To access the equipment contact Dr. Zdravko Kutnjak (zdravko.kutnjak@ijs.si). The user access to the equipment is arranged afterwards within 1 month.","Meritve električnih, dielektričnih in termičnih lastnosti materialov.","Measurements of electrical, dielectrical and thermal properties of materials.","72293, 72884",{"$f":"Table4[[#This Row],[21]]","v":{"v":40.68296057692308,"d":"40.68"}},{"v":10.422960576923078,"d":"10.42"},17.88,12.38,{"$f":"SUBTOTAL(9,Table4[[#This Row],[18]:[20]])","v":{"v":40.68296057692308,"d":"40.68"}},100,40,"https://www.ijs.si/ijsw/Znotraj%20hi%C5%A1e/Desno?action=AttachFile&do=get&target=ARIS_Evidenca_opreme_2024.xlsx",4,1,2,30,{"$f":"Table4[[#This Row],[11]]","v":"P_XX_017"},0,5,100,{"$f":"Table4[[#This Row],[4]]","v":"P1-0125"},{"$f":"Table4[[#This Row],[5]]","v":"Zdravko Kutnjak"},100]
[106,"Institut \"Jožef Stefan\"",null,"P2-0026","Martin Draksler",33540,"Nadgradnja visokozmogljive računske gruče",2022,"UPGRADE OF HIGH PERFORMANCE COMPUTE CLUSTER",{"v":142062.43,"d":"142,062.43"},"P_XX_018","Po predhodnem dogovoru na naslov bojan.zefran@ijs.si ali martin.draksler@ijs.si","Equipment is available on demand. Please contact bojan.zefran@ijs.si or martin.draksler@ijs.si","Računalniška gruča za izvajanje znanstvenih računskih simulacij. Hitra mrežna komunikacija med računskimi vozlišči omogoča dobro skaliranje večprocesnih izračunov. Oprema vsebuje 100 računskih vozlišč po 2 procesorja, vsak z 20/24/28 jedri in 196GB spomina.","Compute cluster for fast scientific calculations. Fast interconnect enables a good calculation scalability of multinode multicore jobs. Equipment consists of 100 compute nodes with 2 socket processors. each with 20/24/28 cores and 196GB of memory.",65270,{"$f":"Table4[[#This Row],[21]]","v":{"v":17.074811298076924,"d":"17.07"}},{"$f":"J178*0.25/2080","v":{"v":17.074811298076924,"d":"17.07"}},"0.02 ","0.1 ",{"$f":"SUBTOTAL(9,Table4[[#This Row],[18]:[20]])","v":{"v":17.074811298076924,"d":"17.07"}},100,50,"https://www.ijs.si/ijsw/Znotraj%20hi%C5%A1e/Desno?action=AttachFile&do=get&target=ARIS_Evidenca_opreme_2024.xlsx",6,1,4,26,{"$f":"Table4[[#This Row],[11]]","v":"P_XX_018"},"Gruča ni namenjena neizučenim uporabnikom. ",4,100,{"$f":"Table4[[#This Row],[4]]","v":"P2-0026"},{"$f":"Table4[[#This Row],[5]]","v":"Martin Draksler"},50,"P2-0405-1","Boštjan Končar",10,"L2-4432","Andrej Prošek",10,"Z2-4437","Janez Kokalj",10,"L2-1827","Boštjan Končar",10,"L2-1828","Leskovar Matjaž",10]
[106,"Institut \"Jožef Stefan\"",null,"P1-0389","Matija Milanič",22288,"Sistem za slikanje z optično koherenčno tomografijo (OCT) pri valovni dolžini 1300 nm",2022,"Optical coherence tomography (OCT) imaging system at a wavelength of 1300 nm",{"v":107341.16,"d":"107,341.16"},"P_XX_026","Po predhodnem dogovoru na naslov jost.stergar@ijs.si","By prior arrangement at jost.stergar@ijs.si","Optična tomografija bioloških in nebioloških materialov v IR področju (1300nm). Sistem omogoča opazovanje strukture in optičnih lastnosti opazovanih vzorcev v tem področju.","Optical tomography of biological and non-biological materials in the IR range (1300nm). The system enables observation of the structure and optical properties of observed samples in this area.","72706\n73007",{"$f":"Table4[[#This Row],[21]]","v":{"v":53.883685475939586,"d":"53.88"}},{"$f":"J179*0.2/2080","v":{"v":10.321265384615387,"d":"10.32"}},{"v":9.1324200913242,"d":"9.13"},34.43,{"$f":"SUBTOTAL(9,Table4[[#This Row],[18]:[20]])","v":{"v":53.883685475939586,"d":"53.88"}},100,40,"https://www.ijs.si/ijsw/Znotraj%20hi%C5%A1e/Desno?action=AttachFile&do=get&target=ARIS_Evidenca_opreme_2024.xlsx",3,3,3,10,{"$f":"Table4[[#This Row],[11]]","v":"P_XX_026"},0,5,100,{"$f":"Table4[[#This Row],[4]]","v":"P1-0389"},{"$f":"Table4[[#This Row],[5]]","v":"Matija Milanič"},90,"Z1-4384","Dr. Jošt Stergar",10]
[106,"Institut \"Jožef Stefan\"",null,"P1-0060","Igor Serša",12056,"100 MHz NMR/MRI spektrometer",2022,"100 MHz NMR/MRI spectrometer",{"v":106592.03,"d":"106,592.03"},"P_XX_027","Zainteresirani za meritve na 100 NMR/MRI sistemu se lahko za termin meritev dogovorijo z vodjo laboratorija (igor.sersa@ijs.si).","Those interested in measurements on the 100 NMR/MRI system can arrange a time for the measurements with the head of the laboratory (igor.sersa@ijs.si).","Oprema je namenjena magnetnoresonančnemu slikanju in mikroskopiji materialov. Vzorci morajo vsebovati vodikove atome v tekočinah. ","The equipment is intended for magnetic resonance imaging and microscopy of materials. The samples must contain hydrogen atoms in liquids.",72938,{"$f":"Table4[[#This Row],[21]]","v":{"v":40.50923365384615,"d":"40.51"}},{"v":10.249233653846154,"d":"10.25"},17.88,12.38,{"$f":"SUBTOTAL(9,Table4[[#This Row],[18]:[20]])","v":{"v":40.50923365384615,"d":"40.51"}},100,40,"https://www.ijs.si/ijsw/Znotraj%20hi%C5%A1e/Desno?action=AttachFile&do=get&target=ARIS_Evidenca_opreme_2024.xlsx",3,3,1,10,{"$f":"Table4[[#This Row],[11]]","v":"P_XX_027"},0,5,100,{"$f":"Table4[[#This Row],[4]]","v":"P1-0060"},{"$f":"Table4[[#This Row],[5]]","v":"Igor Serša"},100]
[106,"Institut \"Jožef Stefan\"",null,"P1-0102","Miha Mihovilovič",29534,"SISTEM ZA VISOKOLOČLJIVO SPEKTROMETRIJO GAMA",2022,"SYSTEM FOR HIGH-RESOLUTION GAMMA SPECTROMETR",{"v":174728.3,"d":"174,728.30"},"P_XX_028","Laboratoriju za meritve radioaktivnosti na IJS - stavba B (trenutno v garancijskem popravilu, na voljo spet v juniju 2023). Kontakt: miha.mihovilovic@ijs.si","The system is available in Laboratory for radioactivity measurements at the JSI (B building) (currently under warranty repair, available again in June 2023). Contact: miha.mihovilovic@ijs.si ","Meritve gama energijskega spektra v vzorcih pri jedrskih raziskavah, kot tudi pri zahtevnejših aplikativnih raziskavah (karakterizacija referenčnih materialov, nadzor radioaktivnih izpustov, itd.).","Measurements of gamma spectra fot fundamental and applicative research in the LMR at JSI. ",73389,{"$f":"Table4[[#This Row],[21]]","v":{"v":65.55079807692307,"d":"65.55"}},{"v":16.800798076923076,"d":"16.80"},8.75,40,{"$f":"SUBTOTAL(9,Table4[[#This Row],[18]:[20]])","v":{"v":65.55079807692307,"d":"65.55"}},100,40,"https://www.ijs.si/ijsw/Znotraj%20hi%C5%A1e/Desno?action=AttachFile&do=get&target=ARIS_Evidenca_opreme_2024.xlsx",3,2,2,50,{"$f":"Table4[[#This Row],[11]]","v":"P_XX_028"},80,5,100,{"$f":"Table4[[#This Row],[4]]","v":"P1-0102"},{"$f":"Table4[[#This Row],[5]]","v":"Miha Mihovilovič"},100]
[106,"Institut \"Jožef Stefan\"",null,"P1-0060","Iztok Urbančič",32057,"Sistem za dolgotrajno super-ločljivo optično mikroskopijo živih celic",2022,"System for long-term live cells super-resolution optical microscopy",{"v":170953.4,"d":"170,953.40"},"P_XX_047","Oprema je dostopna ostalim odsekom in zunanjim uporabnikom po predhodnem dogovoru (rok.podlipec@ijs.si). Spada pod Center za napredne optične mikroskopije (CNOM) in se uporaba zaračunava po ceniku IJS. ","The equipment is accessible to other IJS departments and external users by prior arrangement (rok.podlipec@ijs.si). It is part of the Center for Advanced Optical Microscopy (CNOM) and its use is charged according to the IJS price list.","Napredni mikroskop omogoča hkratno večbarvno multi kanalno fluorescenčno slikanje čez celotni vidni spekter v x/y/z/t na živih bioloških sistemih s super-ločljivostjo.","The advanced microscope enables simultaneous multi-color multi-channel fluorescence imaging across the entire visible spectrum in x/y/z/t on living biological systems with super-resolution modality.",71341,{"$f":"Table4[[#This Row],[21]]","v":{"v":65.88782692307691,"d":"65.89"}},{"v":16.437826923076923,"d":"16.44"},7.69,41.76,{"$f":"SUBTOTAL(9,Table4[[#This Row],[18]:[20]])","v":{"v":65.88782692307691,"d":"65.89"}},100,40,"https://www.ijs.si/ijsw/Znotraj%20hi%C5%A1e/Desno?action=AttachFile&do=get&target=ARIS_Evidenca_opreme_2024.xlsx",3,4,6,10,{"$f":"Table4[[#This Row],[11]]","v":"P_XX_047"},41.76,5,100,{"$f":"Table4[[#This Row],[4]]","v":"P1-0060"},{"$f":"Table4[[#This Row],[5]]","v":"Iztok Urbančič"},100]
[106,"Institut \"Jožef Stefan\"",null,"P2-0091","Matjaž Spreitzer",24273,"Vakuumska predkomora s pripadajočo opremo",2022,"Loadlock with included required equipment",{"v":45524,"d":"45,524.00"},"P_XX_048","Oprema se nahaja v laboratoriju za pulzno lasersko depozicijo na Odseku za raziskave sodobnih materialov - K9. Dostop do opreme je omogočen tehnično usposobljenim uporabnikom laboratorija. Za uporabo opreme je potrebna predhodna rezervacija časovnega termina.","The equipment is located at the laboratory for pulsed laser deposition at the Advanced Materials Department - K9. Access to the equipment is provided to technically qualified users of the laboratory. In order to use the equipment, a prior appointment is required.","Vakuumska predkomora predstavlja nadgradnjo obstoječega sistema za pulzno lasersko depozicijo (PLD), predvsem z vidika možnosti doseganja boljšega vakuuma (10-8 mbar), kar bo omogočilo lažje spremljanje rasti tankih plasti in izbor širšega nabora sinteznih parametrov. S tem bo dosežena optimizacija sinteze in posledično izboljšana kakovost pripravljenih vzorcev. Hkrati bo mogoče sintetizirati nove materiale, kot so funkcionalni oksidi s silicijem in germanijem, ki zahtevajo izjemno visoko stopnjo čistosti atmosfere. Vakuumska predkomora omogoča tudi povezavo s suho komoro, kar bo omogočilo neposreden prenos vzorcev iz glavnega PLD sistema v suho komoro, kjer bo potekala manipulacija z vzorci ali shranjevanje vzorcev v inertni atmosferi. Takšen način prenosa vzorcev bo v prihodnosti omogočil pripravo bolj občutljivih materialov, ki jih ni mogoče pripraviti na obstoječem PLD sistemu zaradi izpostavitve zraku pri sobnih pogojih pri vnosu in odstranitvi vzorca iz sistema.","The loadlock represents an upgrade to the existing pulsed laser deposition (PLD) system, mainly in terms of the possibility of achieving a better vacuum (10-8 mbar), which will enable easier monitoring of the growth of thin films and a wider selection of synthesis parameters. This will result in an optimization of the deposition process and consequently an improvement in the quality of prepared samples. At the same time, it will be possible to synthesize new materials, such as functional oxides with silicon and germanium, which require an extremely high level of atmospheric purity. Additionally, the loadlock will also be connected to a glove box, which will allow for direct transfer of samples from the main PLD system, where synthesis takes place, to the glove box, where sample manipulation or storage in an inert atmosphere will occur. Such a method of transferring samples will enable the preparation of more sensitive materials in the future, which cannot be prepared on the existing PLD system due to exposure to air under ambient conditions during sample insertion and removal from the system.",73368,{"$f":"Table4[[#This Row],[21]]","v":{"v":42.011657007376186,"d":"42.01"}},{"v":4.377307692307693,"d":"4.38"},{"v":13.562602739726028,"d":"13.56"},{"v":24.07174657534247,"d":"24.07"},{"$f":"SUBTOTAL(9,Table4[[#This Row],[18]:[20]])","v":{"v":42.011657007376186,"d":"42.01"}},100,40,"https://www.ijs.si/ijsw/Znotraj%20hi%C5%A1e/Desno?action=AttachFile&do=get&target=ARIS_Evidenca_opreme_2024.xlsx",1,1,4,44,{"$f":"Table4[[#This Row],[11]]","v":"P_XX_048"},0,5,100,{"$f":"Table4[[#This Row],[4]]","v":"P2-0091"},{"$f":"Table4[[#This Row],[5]]","v":"Matjaž Spreitzer"},50,"N2-0176","Matjaž Spreitzer",25,"J2-2510","Matjaž Spreitzer",25]
[106,"Institut \"Jožef Stefan\"",null,"P2-0103","Sašo Džeroski",11130,"Oprema za izvajanje postopkov avtomatizacije strojnega učenja",2022,"Equipment for performing machine learning automation processes",{"v":137590.16,"d":"137,590.16"},"P_XX_049","Čas dostopa do opreme vsak delovni dan od 8:00 do 16:00 glede na razpoložljivost po predhodnem dogovoru s skrbnikom. Glede pogojev dostopa in razpoložljivosti kontaktirati Martina Žnidaršiča (martin.znidarsic@ijs.si)","The equipment is available upon request every day from 8 am to 4 pm subject to availability. For access conditions and availability contact Martin Žnidaršič (martin.znidarsic@ijs.si)","CPU in GPU strežniki za pripravo podatkov ter razvoj in  testiranje  procesov avtomatizacije strojnega učenja.","CPU and GPU servers for data preprocessing and development and testing of machine learning automation processes.","72368, 72345, 72370, 72650, 72370, 72994, 73303, 73304, 73247, 73324, 73346, 73345, 73344, 73343, 73290, 72286, 72358, 72491, 72757, 73408, 73409",{"$f":"Table4[[#This Row],[21]]","v":{"v":56.95727884615385,"d":"56.96"}},{"v":16.537278846153846,"d":"16.54"},20,20.42,{"$f":"SUBTOTAL(9,Table4[[#This Row],[18]:[20]])","v":{"v":56.95727884615385,"d":"56.96"}},100,50,"https://www.ijs.si/ijsw/Znotraj%20hi%C5%A1e/Desno?action=AttachFile&do=get&target=ARIS_Evidenca_opreme_2024.xlsx",6,1,5,25,{"$f":"Table4[[#This Row],[11]]","v":"P_XX_049"},0,4,100,{"$f":"Table4[[#This Row],[4]]","v":"P2-0103"},{"$f":"Table4[[#This Row],[5]]","v":"Sašo Džeroski"},100]
[106,"Institut \"Jožef Stefan\"",null,"I0-0005","Matic Lozinšek",30880,"Nizkotemperaturni ramanski spektrometer",2022,"Low-temperature Raman spectrometer",{"v":239480.2,"d":"239,480.20"},"P_XX_050","Uporaba je možna po predhodnem dogovoru (matic.lozinsek@ijs.si)","Access is possible upon demand (matic.lozinsek@ijs.si)","Spektrometer je opremljen z dvema laserjema valovnih dolžin 532 nm in 785 nm  ter omogoča merjenje ramanskih spektrov z veliko prostorsko in spektralno ločljivostjo. Vzorec se v fokus laserskega žarka premika z električno kontrolirano pomično mizico, ki omogoča natančne premike v vseh treh dimenzijah in s tem skeniranje oziroma »kartografiranje« vzorca pri čemer se v vsaki točki posname ramanski spekter. Na ta način je mogoče pridobiti informacijo o kemijski sestavi in homogenosti vzorca. Del tega spektrometra obsega tudi posebna hladilna enota, ki bo omogočala hlajenje vzorca s pomočjo tekočega dušika.","The spectrometer is equipped with 532-nm and 785-nm lasers and enables the measurement of Raman spectra with high spatial and spectral resolution. The sample is moved into the focus of the laser beam with a motorized xyz stage, which enables precise movements in all three dimensions and thus mapping of the sample, whereby the Raman spectrum is recorded at each point. In this way, it is possible to obtain information about the chemical composition and homogeneity of the sample. This spectrometer also includes a special cooling unit, which will enable cooling of the sample with the help of liquid nitrogen.",73388,{"$f":"Table4[[#This Row],[21]]","v":{"v":53.286942307692314,"d":"53.29"}},{"$f":"J185*0.2/2080","v":{"v":23.026942307692313,"d":"23.03"}},17.88,12.38,{"$f":"SUBTOTAL(9,Table4[[#This Row],[18]:[20]])","v":{"v":53.286942307692314,"d":"53.29"}},100,40,"https://www.ijs.si/ijsw/Znotraj%20hi%C5%A1e/Desno?action=AttachFile&do=get&target=ARIS_Evidenca_opreme_2024.xlsx",3,1,1,4,{"$f":"Table4[[#This Row],[11]]","v":"P_XX_050"},0,5,100,{"$f":"Table4[[#This Row],[4]]","v":"I0-0005"},{"$f":"Table4[[#This Row],[5]]","v":"Matic Lozinšek"},30,"N1-0225","Matic\nLozinšek",30,"ERC StG HiPeR-F","Matic\nLozinšek",40]
[106,"Institut \"Jožef Stefan\"",null,"P2-0105","Mirela Dragomir",31976,"Oprema za fazno in strukturno analizo z rentgensko praškovno difrakcijo",2022,"Oprema za fazno in strukturno analizo z rentgensko praškovno difrakcijo",{"v":101171.27,"d":"101,171.27"},"P_XX_051","Oprema se nahaja v »Odsek za elektronsko keramiko, K5« (https://www-k5.ijs.si/). Uporaba opreme je omogočena samo za strokovno usposobljene uporabnike. Dostop se uredi preko dogovora s kontaktno osebo, dr. Mirelo Dragomir. Cena meritev je odvisna od zahtevnosti eksperimentov in interpretacije podatkov. Informacijo o ceni dobite od skrbnika ob dogovoru za izvedbo eksperimentov. Čas dostopa je odvisen od zasedenosti opreme.","The equipment is located at the \"Electronic Ceramics Department, K5\"  (https://www-k5.ijs.si/en/). Researchers with proper training on X-ray powder diffraction equipment can get access through the contact person, dr. Mirela Dragomir. The price depends on the type of measurement and the complexity of data collection and interpretation. The information about the price is obtained from the contact person before the agreement for measurements. The availability of the equipment depends on the ongoing research activities at K5.","Oprema nam omogoča strukturno in fazno analizo s rentgensko praskovno diffrakcijo. Namizni rentgenski praškovni difraktometer ima naslednji značilnosti: bakrova rentgenska cev, nastavki za meritve praškov, tankih plasti, in za kapilare, celica za vzorce materialov, ki so občutljivimi na zrak, silicijev 1D detektor, Kβ filter, programska oprema za Rietveldovo analizo.","The equipment enables structural  and phase characterisation using X-ray powder diffraction. The benchtop X-ray powder diffractometer has the following features: copper X-ray tube, possiility to analyse powder, thin film, and capillaries, sample cell for air-sensitive materials, silicon 1D detector, Kβ filter, variable edge slit, Rietveld analysis software.",73289,{"$f":"Table4[[#This Row],[21]]","v":{"v":52.98800673076923,"d":"52.99"}},{"v":9.72800673076923,"d":"9.73"},15.34,27.92,{"$f":"SUBTOTAL(9,Table4[[#This Row],[18]:[20]])","v":{"v":52.98800673076923,"d":"52.99"}},100,40,"https://www.ijs.si/ijsw/Znotraj%20hi%C5%A1e/Desno?action=AttachFile&do=get&target=ARIS_Evidenca_opreme_2024.xlsx",3,8,1,60,{"$f":"Table4[[#This Row],[11]]","v":"P_XX_051"},0,5,100,{"$f":"Table4[[#This Row],[4]]","v":"P2-0105"},{"$f":"Table4[[#This Row],[5]]","v":"Mirela Dragomir"},100]
[106,"Institut \"Jožef Stefan\"",null,"P2-0073","Luka Snoj",27819,"Obsevalni kompleks z aktivirano vodo na reaktorju TRIGA na IJS",2022,"Irradiation facility with water activation loop at JSI TRIGA reactor",{"v":346231.67,"d":"346,231.67"},"P_XX_052","Obsevalna naprava bo dostopna v reaktorski hali raziskovalnega reaktorja IJS TRIGA. Posamezne komponente delujejo vendar celotna obsevalna naprava še ni sestavljena, saj nam ni uspelo nakupiti celotne predvidene opreme (npr. nabava in izdelava vodne zanke po specifikacijah, izdelava alarmnega sistema, izdelava dodatnega ščita, itd.)  zaradi ogromnih zamud in bistveno daljših dobavnih rokov kot je bilo prvotno predvideno (vpliv/posledice COVID-a). Nakup preostale opreme bo opravljen (oz. dobavljeno) v letu 2023 (del tudi v sklopu Paket21).  ","The irradiation facility with a water activation loop will be accessible in the reactor hall of JSI TRIGA the research reactor. The individual components are functional, but the entire facility has not yet been commissioned due to procurement, production delays, etc, which were much longer than first anticipated (COVID). The purchase/construction of the remaining equipment will be completed (or delivered) in 2023 (partially also within Paket21).","Obsevalna naprava z aktivirano vodo na rekaotjru TRIGA na IJS bo služila kot natančno določen in stabilen izvor visoko-energijskih karakterističnih žarkov gama in nevtronov. Omogočala bo različne eksperimente, ki temeljijo na procesu aktivacije vode, validacijo računskih metodologij, kalibaracijo detektorjev, meritve doznih pol in gama spektrometrija, integralne meritve presekov, itd. Sestavljajo jo različni tipi opreme: a) detektorji žarkov gama in nevtronov ter ustrezna merilna oprema, b) oprema za vodno zanko (črpalka, ventili, merilci pretoka), c) oprema za regulacijo zanke, d) izdelava specifičnih kosov po meri (betonski bloki – ščit, predel za obsevanje, itd.). ","The activated water irradiator on the TRIGA detector at the IJS will serve as a well-defined and stable source of high-energy characteristic gamma rays and neutrons. It will enable various experiments based on the water activation process, validation of computational methods, calibration of the detector,  gamma spectrometry and dose field measurements, integral cross-section measurements, etc. It consists of various equipment: a) gamma and neutron detectors and corresponding measuring instruments, b) equipment for the water loop (pump, valves, flow metre), c) equipment for the control of the loop, d) production of specific custom-made products (concrete blocks - shielding, irradiation area, etc.).","73054, 73083, 73055, 72862, 72861",{"$f":"Table4[[#This Row],[21]]","v":{"v":335.29150673076924,"d":"335.29"}},{"v":33.291506730769235,"d":"33.29"},117,185,{"$f":"SUBTOTAL(9,Table4[[#This Row],[18]:[20]])","v":{"v":335.29150673076924,"d":"335.29"}},100,40,"https://www.ijs.si/ijsw/Znotraj%20hi%C5%A1e/Desno?action=AttachFile&do=get&target=ARIS_Evidenca_opreme_2024.xlsx",4,3,4,50,{"$f":"Table4[[#This Row],[11]]","v":"P_XX_052"},92.5,5,100,{"$f":"Table4[[#This Row],[4]]","v":"P2-0073"},{"$f":"Table4[[#This Row],[5]]","v":"Luka Snoj"},100]
[106,"Institut \"Jožef Stefan\"",null,"I0-0005","Uroš Cvelbar",22289,"Presevni elektronski mikroskop za konvencionalne, 3D, magnetne in operando preiskave kemijskih in faznih transformacij na atomarnem nivoju pri spremenljivi pospeševalni napetosti",2022,"Transmission electron microscope for conventional, 3D, magnetic and operando investigations of chemical and phase transformations at the atomic level under variable accelerating voltage",{"v":1386685,"d":"1,386,685.00"},"P_XX_054","1. Skrbnika opreme zaprosiš za usposabljanje in za trening. Usposabljanje obsega 50 ur. Nato dobi uporabnik dostop do rezervacijskega sistema rezervacije.ijs.si in rezervira termin.       2. Uporabnik kontaktira skrbnika opreme in potem skrbnik opreme izvede analize v sodelovanju z uporabnikom. ","1. You ask the equipment administrator for training. The training consists of 50 hours. Then the user gets access to the reservation system rezervacija.ijs.si and books an appointment. 2. The user contacts the equipment administrator and then the equipment administrator performs analyzes in cooperation with the user.","Presevni elektronski mikroskop s spremenljivo pospeševalno napetostjo (80-200 kV) zagotavlja atomarno ločljivost pri\nnajvišji napetosti v vseh načinih delovanja, medtem ko nižje napetosti omogočajo tudi opazovanje občutljivih vzorcev, ki\ndrugače med opazovanjem razpadajo zaradi vpliva primarnih elektronov. Mikroskop omogoča konvencionalno\nopazovanje vzorcev (TEM) ter vrstičenje elektronskega snopa skozi vzorec (STEM) pri povečavi nekaj × 1.000 do nekaj ×\n1.000.000. Stabilni visoko-svetilni izvor elektronov zagotavlja resolucijo blizu difrakcijske limite in preiskave praškovnih\nvzorcev, tankih lamel in klasičnih vzorcev do debeline 100 nm, odvisno od atuneacije elektronov.","A transmission electron microscope with a variable accelerating voltage (80-200 kV) provides atomic resolution at\nthe highest voltages in all modes of operation, while lower voltages also allow the observation of sensitive patterns which\notherwise, they decay during observation due to the influence of primary electrons. The microscope allows conventional\nobservation of samples (TEM) and scanning of the electron beam through the sample (STEM) at a magnification of a few × 1,000 to a few ×\n1,000,000. A stable high-brightness electron source provides resolution close to the diffraction limit and powder investigations\nsamples, thin lamellae and classical samples up to a thickness of 100 nm, depending on the electron attunement.",72982,{"$f":"Table4[[#This Row],[21]]","v":{"v":153.92333144796382,"d":"153.92"}},{"v":133.33509615384617,"d":"133.34"},20.58823529411765,0,{"$f":"SUBTOTAL(9,Table4[[#This Row],[18]:[20]])","v":{"v":153.92333144796382,"d":"153.92"}},100,40,"https://www.ijs.si/ijsw/Znotraj%20hi%C5%A1e/Desno?action=AttachFile&do=get&target=ARIS_Evidenca_opreme_2024.xlsx",3,5,3,60,{"$f":"Table4[[#This Row],[11]]","v":"P_XX_054"},"41,76 eur",5,100,{"$f":"Table4[[#This Row],[4]]","v":"I0-0005"},{"$f":"Table4[[#This Row],[5]]","v":"Uroš Cvelbar"},100]
[106,"Institut \"Jožef Stefan\"",null,"P2-0001","Gregor Dolanc",2929,"Oprema za raziskave in aplikacije na področju tehnologije vodenja",2022,"Equipment for research and application of the field of control technologies",{"v":44466.63,"d":"44,466.63"},"P_XX_076","Oprema je dostopna po predhodnem dogovoru (gregor.dolanc@ijs.si)","The equipment is available upon prior agreement  (gregor.dolanc@ijs.si)","Računalniška oprema za obdelavo podatkov, modeliranje in razvoj sistemov za vodenje. \nSet CAD orodij za modeliranje in konstruiranje AUTODESK\nRazvojno okolje za izdelavo krmilnih programov in operaterskih vmesnikov Siemens Simatic TIA V17\nOprema za zajem podatkov National Instruments NI USB-6210 779675-01, 3 kosi","Computer equipment for data processing, modeling and development of control systems.\nSet of CAD toos for modelling and design AUTODESK\nDevelpment package for the design of control programs and operator interfaces Siemens Simatic TIA V17\nData-acquisition equipment National Instruments NI USB-6210 779675-01, 3 pcs.","71991, 72395, 72642, 72950, 72867, 72846, 72830, 72831, 72833, 72847, 73004, 72949, 73407, 73169, 73225, 73224, 73223, 73222, 73406, 73405",{"$f":"Table4[[#This Row],[21]]","v":{"v":4.275637499999999,"d":"4.28"}},{"v":4.275637499999999,"d":"4.28"},null,null,{"$f":"SUBTOTAL(9,Table4[[#This Row],[18]:[20]])","v":{"v":4.275637499999999,"d":"4.28"}},100,40,"https://www.ijs.si/ijsw/Znotraj%20hi%C5%A1e/Desno?action=AttachFile&do=get&target=ARIS_Evidenca_opreme_2024.xlsx",6,1,3,"4, 20, 25, 26, 59, 63",{"$f":"Table4[[#This Row],[11]]","v":"P_XX_076"},0,5,100,{"$f":"Table4[[#This Row],[4]]","v":"P2-0001"},{"$f":"Table4[[#This Row],[5]]","v":"Gregor Dolanc"},100]
[106,"Institut \"Jožef Stefan\"",null,"P1-0192","Boris Majaron",7317,"Sistem za infrardečo tomografijo",2022,"Fast mid-infrared camera and pulsed laser source",{"v":147067.06,"d":"147,067.06"},"P_XX_108","Oprema je dosegljiva po dogovoru s skrbnikom","Equipment is available upon agreement","globinska karakterizacija optično sipajočih vzorcev z lokaliziranimi absorberji v vidnem področju, druge radiometrične meritve v srednje-IR območju","spatial characterization of optically scattering samples with localized absorbers in visible spectral range; other radiometric measurements in mid-IR spectral range","72422, 72421, 72866, 72866, 73114",{"$f":"Table4[[#This Row],[21]]","v":{"v":50.92106346153846,"d":"50.92"}},{"v":14.141063461538462,"d":"14.14"},17.88,18.9,{"$f":"SUBTOTAL(9,Table4[[#This Row],[18]:[20]])","v":{"v":50.92106346153846,"d":"50.92"}},100,40,"https://www.ijs.si/ijsw/Znotraj%20hi%C5%A1e/Desno?action=AttachFile&do=get&target=ARIS_Evidenca_opreme_2024.xlsx",3,3,3,10,{"$f":"Table4[[#This Row],[11]]","v":"P_XX_108"},0,5,100,{"$f":"Table4[[#This Row],[4]]","v":"P1-0192"},{"$f":"Table4[[#This Row],[5]]","v":"Boris Majaron"},100]
[106,"Institut \"Jožef Stefan\"",null,"P2-0076","Jan Babič",20216,"Sistem za brezkontaktni zajem gibanja in nadzor srčnožilnih odzivov v realnem času",2022,"System for contactless motion capture and real-time monitoring of cardiovascular responses",{"v":152818.67,"d":"152,818.67"},"P_XX_113","Za dostop do opreme \"Sistem za brezkontaktni zajem gibanja in nadzor srčnožilnih odzivov v realnem času\" morate najprej pridobiti ustrezna pooblastila od odgovorne osebe ali institucije. Po pridobitvi pooblastil se obrnite na odgovorno osebo ali tehnično osebje, ki vam bo zagotovilo navodila za uporabo opreme in dostop do programske opreme, če je potrebno. Pred uporabo opreme natančno preberite navodila za uporabo in upoštevajte vsa varnostna navodila, da se izognete morebitnim nevarnostim ali poškodbam.","To access the \"System for contactless motion capture and real-time monitoring of cardiovascular responses\" equipment, you must first obtain appropriate authorization from a responsible person or institution. After obtaining authorization, contact the responsible person or technical staff for instructions on using the equipment and access to any necessary software. Before using the equipment, carefully read the instructions and follow all safety guidelines to avoid potential hazards or injury.","Oprema \"Sistem za brezkontaktni zajem gibanja in nadzor srčnožilnih odzivov v realnem času\" je zasnovana za neinvazivno in realno spremljanje gibanja in srčnožilnih odzivov človeškega telesa. Lahko se uporablja v različnih okoljih, kot so raziskovalni laboratoriji, bolnišnice in športni objekti, za zbiranje podatkov o telesni aktivnosti in srčnožilnem zdravju. Oprema uporablja napredne senzorje in programsko opremo za zajem in analizo podatkov, kar omogoča natančne in zanesljive meritve. Sistem lahko zagotovi dragocene vpoglede v človeško gibanje in srčnožilno zdravje, kar lahko služi kot podlaga za klinična zdravljenja, športne programe usposabljanja in znanstvene raziskave.","The \"System for contactless motion capture and real-time monitoring of cardiovascular responses\" equipment is designed for non-invasive and real-time tracking of motion and cardiovascular responses of the human body. It can be used in a variety of settings, such as research laboratories, hospitals, and sports facilities, to gather data on physical activity and cardiovascular health. The equipment uses advanced sensors and software to capture and analyze data, allowing for accurate and reliable measurements. The system can provide valuable insights into human movement and cardiovascular health, which can inform clinical treatments, athletic training programs, and scientific research.","72446, 72637, 73220",{"$f":"Table4[[#This Row],[21]]","v":{"v":54.69410288461539,"d":"54.69"}},{"v":14.694102884615386,"d":"14.69"},20,20,{"$f":"SUBTOTAL(9,Table4[[#This Row],[18]:[20]])","v":{"v":54.69410288461539,"d":"54.69"}},100,40,"https://www.ijs.si/ijsw/Znotraj%20hi%C5%A1e/Desno?action=AttachFile&do=get&target=ARIS_Evidenca_opreme_2024.xlsx",4,3,2,46,{"$f":"Table4[[#This Row],[11]]","v":"P_XX_113"},20,5,100,{"$f":"Table4[[#This Row],[4]]","v":"P2-0076"},{"$f":"Table4[[#This Row],[5]]","v":"Jan Babič"},100]
[106,"Institut \"Jožef Stefan\"",null,"P1-0040","Dragan D. Mihailović",4540,"Oprema za tunelsko in tipalno mikroskopijo",2022,"Equipment for tunneling and probe microscopy",{"v":256108.44,"d":"256,108.44"},"P_XX_114","Oprema je dostopa po predhodnem dogovoru. Za uporabo zahtevnejše opreme je omogočeno šolanje. Cena storitev je odvisna od zahtevnosti meritev. Kontakt damjan.svetin@ijs.si","Equipment is available on demand. Training can be arranged. The price of services depends on complexity of the measurements. Contact damjan.svetin@ijs.si","\nMikroskop na atomsko silo - AFM je namenjen tako osnovni karakterizaciji kot tudi bolj specifičnim meritvam lastnosti površin, nanomaterialov, elektronskih naprav, bioloških molekul ipd. Omogoča delovanje v kontaktnem in tiplanem načinu, meritve faz in lateralnih sil, mikroskopijo magnetnih sil. FAST STM je nadgradnja za tunelski mikroskop, ki omogoča hitro slikanje, do 50 Hz na sliko (frame rate). Nadgradnja omogoča slikanje dinamičnih procesov, ki so za 3 rede velikosti hitrejši kot običajno, s čimer odpira možnosti za dodaten vpogled v hitro dinamiko. Optična zakasnitvena linija omogoča uravnavanje zamikov svetlobnih sunkov v kombinaciji s hitrim STM.","The atomic force microscope - AFM is intended for both basic characterization and more specific measurements of the properties of surfaces, nanomaterials, electronic devices, biological molecules, etc. It enables operation in contact and probe mode, measurements of phases and lateral forces, microscopy of magnetic forces. FAST STM is an upgrade for the tunneling microscope that enables fast imaging, up to 50 Hz per image (frame rate). The upgrade enables imaging of dynamic processes that are 3 orders of magnitude faster than usual, thereby opening up possibilities for additional insight into fast dynamics. An optical delay line allows the adjustment of light burst delays in combination with fast STM.","71340, 73195",{"$f":"Table4[[#This Row],[21]]","v":{"v":76.14581153846154,"d":"76.15"}},{"v":24.62581153846154,"d":"24.63"},17.88,33.64,{"$f":"SUBTOTAL(9,Table4[[#This Row],[18]:[20]])","v":{"v":76.14581153846154,"d":"76.15"}},100,40,"https://www.ijs.si/ijsw/Znotraj%20hi%C5%A1e/Desno?action=AttachFile&do=get&target=ARIS_Evidenca_opreme_2024.xlsx",3,6,1,47,{"$f":"Table4[[#This Row],[11]]","v":"P_XX_114"},0,5,100,{"$f":"Table4[[#This Row],[4]]","v":"P1-0040"},{"$f":"Table4[[#This Row],[5]]","v":"Dragan D. Mihailović"},100]
[106,"Institut \"Jožef Stefan\"",null,"P2-0082","Miran Mozetič",10429,"Oprema za obdelavo površin trdnih snovi z virucidnim delovanjem",2022,"Material surface treatment equipment for solids with virucidal action",{"v":138914.09,"d":"138,914.09"},"P_XX_115","Uporaba opreme je po dogovoru. Gre za opremo, ki potrebuje znanja za rokovanje z biološkim materialov. Krijejo se stroški operaterja in po potrebi materialni stroški. Kontakt alenka.vesel@ijs.si.","The use of the equipment is by agreement. It is equipment that needs knowledge to handling biological materials. The operator's costs and, where appropriate, material costs shall be covered by the client. Kontact alenka.vesel@ijs.si.","Omogoča obdelavo tekočih in trdnih materialov s plinsko plazmo ter analizo tekočin za namen raziskav inaktivacije mikroorganizmov.","It enables the processing of liquid and solid materials with gas plasma and fluid analysis for the purpose of researching the inactivation of micro-organisms.",73219,{"$f":"Table4[[#This Row],[21]]","v":{"v":40.607124038461535,"d":"40.61"}},{"v":13.357124038461539,"d":"13.36"},11.5,15.75,{"$f":"SUBTOTAL(9,Table4[[#This Row],[18]:[20]])","v":{"v":40.607124038461535,"d":"40.61"}},100,40,"https://www.ijs.si/ijsw/Znotraj%20hi%C5%A1e/Desno?action=AttachFile&do=get&target=ARIS_Evidenca_opreme_2024.xlsx",1,4,4,60,{"$f":"Table4[[#This Row],[11]]","v":"P_XX_115"},40,5,100,{"$f":"Table4[[#This Row],[4]]","v":"P2-0082"},{"$f":"Table4[[#This Row],[5]]","v":"Miran Mozetič"},50,"L7-3184","Izr. prof. dr. Rok Zaplotnik",20,"L2-2617","Doc. dr. Gregor Primc",15,"J3-4502","Dr. Metka Benčina",15]
[106,"Institut \"Jožef Stefan\"",null,"P4-0127","Boris Rogelj",15813,"Visoko zmogljivi analizator delcev v tekočini",2022,"High performance particle in liquid analyzer",{"v":190759.94,"d":"190,759.94"},"P_XX_129","\nRaziskovalna oprema je instalirana v laboratoriju B101, odseka B3, kjer je tudi predvidena njena uporaba.Oprema je dostopna po predhodnem dogovoru. Kontakt preko e-pošte na naslovu boris.rogelj@ijs.si","The research equipment is installed in laboratory B101 of B3 Department, where its use is also planned. The equipment is accessible by prior agreement. Contact by e-mail at boris.rogelj@ijs.si","Visoko zmogljivi analizator delcev v tekočini ima v svoji konfiguraciji 4 laserje (405nm,  488nm, 561nm, 638nm) in omogoča sočasno vrednotenje večjega števila različnih parametrov (14 barvnih kombinacij oziroma 16 parametrov hkrati). Vsebuje tudi modul samodejno zajemanje vzorcev (avtosampler), zaradi česar ni potrebna stalna prisotnost operaterja.","The high-performance analyzer of particles in liquid has 4 lasers (405nm,  488nm, 561nm, 638nm) in its configuration and enables the simultaneous evaluation of a large number of different parameters (14 color combinations or 16 parameters at the same time). It also contains an automatic sample capture module (autosampler), which does not require the constant presence of an operator.",72700,{"$f":"Table4[[#This Row],[21]]","v":{"v":98.34230192307692,"d":"98.34"}},{"v":18.342301923076924,"d":"18.34"},38,42,{"$f":"SUBTOTAL(9,Table4[[#This Row],[18]:[20]])","v":{"v":98.34230192307692,"d":"98.34"}},100,40,"https://www.ijs.si/ijsw/Znotraj%20hi%C5%A1e/Desno?action=AttachFile&do=get&target=ARIS_Evidenca_opreme_2024.xlsx",2,5,6,11,{"$f":"Table4[[#This Row],[11]]","v":"P_XX_129"},40,5,100,{"$f":"Table4[[#This Row],[4]]","v":"P4-0127"},{"$f":"Table4[[#This Row],[5]]","v":"Boris Rogelj"},30,"P4-0127 ","Janko Kos",30,"J3-2516 ","Milica Perisic Nanut",30,"J7-4420 ","Ales Berlec",10]
[106,"Institut \"Jožef Stefan\"",null,"P1-0048","Dušan Turk",4988,"Anaerobna komora",2022,"A35 anaerobic workstation (Don Whitley Scientific)",{"v":74098.7,"d":"74,098.70"},"P_XX_130","Oprema je dostopna po predhodnem dogovoru preko e-pošte: dusan.turk@ijs.si ali aleksandra.usenik@ijs.si","The equipment is available upon e-mail request: dusan.turk@ijs.si or aleksandra.usenik@ijs.si","Oprema je namenjena  gojenju mikroorganizmov in eksperimentom pod anaerobnimi pogoji.","The equipment is intended for the cultivation of microorganisms and experiments under anaerobic conditions.",73106,{"$f":"Table4[[#This Row],[21]]","v":{"v":40.974875,"d":"40.97"}},{"v":7.124875,"d":"7.12"},5.5,28.35,{"$f":"SUBTOTAL(9,Table4[[#This Row],[18]:[20]])","v":{"v":40.974875,"d":"40.97"}},100,40,"https://www.ijs.si/ijsw/Znotraj%20hi%C5%A1e/Desno?action=AttachFile&do=get&target=ARIS_Evidenca_opreme_2024.xlsx",2,1,1,60,{"$f":"Table4[[#This Row],[11]]","v":"P_XX_130"},0,5,100,{"$f":"Table4[[#This Row],[4]]","v":"P1-0048"},{"$f":"Table4[[#This Row],[5]]","v":"Dušan Turk"},0]
[106,"Institut \"Jožef Stefan\"",null,"P1-0125","Andraž Rešetič",35478,"NMR/NQR konzola za superprevodni magnet 9 T",2022,"NMR/NQR console for superconducting 9T magnet",{"v":91617.05,"d":"91,617.05"},"P_XX_133","Možnost meritev po ceniku IJS, možnost brezplačne uporabe v primeru izvajanja skupnih RR projektov","Posibility of measurements according to the IJS price-list, possibility for free usage in case of joined projects","Konzola omogoča generiranje, prejem in digitalizacijo radio-frekvenčnih signalov za opravljanje magnetoresonančnih meritev na 380MHz 9T NMR spektrometru.","The console enables generation, receiving and digitalization of radio-frequency signals for performing magnetoresonance measurements on a 380MHz 9T NMR spectrometer.",73090,{"$f":"Table4[[#This Row],[21]]","v":{"v":39.06933173076923,"d":"39.07"}},{"v":8.80933173076923,"d":"8.81"},17.88,12.38,{"$f":"SUBTOTAL(9,Table4[[#This Row],[18]:[20]])","v":{"v":39.06933173076923,"d":"39.07"}},100,40,"https://www.ijs.si/ijsw/Znotraj%20hi%C5%A1e/Desno?action=AttachFile&do=get&target=ARIS_Evidenca_opreme_2024.xlsx",3,1,3,60,{"$f":"Table4[[#This Row],[11]]","v":"P_XX_133"},0,5,100,{"$f":"Table4[[#This Row],[4]]","v":"P1-0125"},{"$f":"Table4[[#This Row],[5]]","v":"Andraž Rešetič"},100]
[106,"Institut \"Jožef Stefan\"",null,"P2-0026","Blaž Mikuž",34279,"Nadgradnja PIV sistema na STB sistem",2022,"Upgrade of PIV to STB system",{"v":233310.5,"d":"233,310.50"},"P_XX_152","Raziskovalna oprema je instalirana na namensko eksperimentalno napravo v laboratoriju THELMA odseka R4, kjer je tudi predvidena njena uporaba. Prošnjo za dostop in uporabo raziskovalne opreme, se pošlje na naslov blaz.mikuz@ijs.si.","The equipment is installed in a special test facility within the THELMA laboratory at R4. Request for the access shall be sent to blaz.mikuz@ijs.si.","Oprema je namenjena volumetričnim 3D meritvam hitrostnih polj v tokovih tekočin. Uporablja se za meritve hitrosti laminarnih in turbulentnih tokov na različnih skalah in v različnih sistemih ter spremljanju medfazne površine dvo-faznih tokov plin-kapljevina.  ","The equipment is used for volumetric 3D measurements of velocity fields in fluid flows. It is used for velocity measurements of laminar and turbulent flows on different scales and in different systems, as well as for capturing the interphase surface of two-phase gas-liquid flows.","73285, 73286, 73287, 73232",{"$f":"Table4[[#This Row],[21]]","v":{"v":59.13370192307693,"d":"59.13"}},{"$f":"J197*0.2/2080","v":{"v":22.433701923076924,"d":"22.43"}},10,26.7,{"$f":"SUBTOTAL(9,Table4[[#This Row],[18]:[20]])","v":{"v":59.13370192307693,"d":"59.13"}},100,40,"https://www.ijs.si/ijsw/Znotraj%20hi%C5%A1e/Desno?action=AttachFile&do=get&target=ARIS_Evidenca_opreme_2024.xlsx",4,3,4,46,{"$f":"Table4[[#This Row],[11]]","v":"P_XX_152"},0,5,100,{"$f":"Table4[[#This Row],[4]]","v":"P2-0026"},{"$f":"Table4[[#This Row],[5]]","v":"Blaž Mikuž"},100]
[106,"Institut \"Jožef Stefan\"",null,"P1-0060","IGOR SERŠA ",12056,"Oprema za sestavljanje in karakterizacijo modelnih baterij ",2023,"Equipment for assembly and characterization of model batteries",{"v":68405.8,"d":"68,405.80"},"P_XXI_007","Zainteresirani za opremo se lahko za termin uporabe dogovorijo z vodjo laboratorija (igor.sersa@ijs.si).","Those interested in the equipment can arrange a time of use with the head of the laboratory (igor.sersa@ijs.si).","Oprema \"glove-box\" je namenjena setstavljanju baterij v inertni atmosferi, potentiostat pa natančnim elektrokemijskim meritvam delovanja baterij.","The glove-box is intended for assembling batteries in an inert atmosphere, and the potentiostat for accurate electrochemical measurements of battery performance.","75524, 75589",{"$f":"Table4[[#This Row],[21]]","v":{"v":6.57748076923077,"d":"6.58"}},{"$f":"J198*0.2/2080","v":{"v":6.57748076923077,"d":"6.58"}},null,null,{"$f":"SUBTOTAL(9,Table4[[#This Row],[18]:[20]])","v":{"v":6.57748076923077,"d":"6.58"}},100,20,"https://www.ijs.si/ijsw/Znotraj%20hi%C5%A1e/Desno?action=AttachFile&do=get&target=ARIS_Evidenca_opreme_2024.xlsx",{"$nulls":4},{"$f":"Table4[[#This Row],[11]]","v":"P_XXI_007"},0,5,100,{"$f":"Table4[[#This Row],[4]]","v":"P1-0060"},{"$f":"Table4[[#This Row],[5]]","v":"IGOR SERŠA "},100]
[106,"Institut \"Jožef Stefan\"",null,"P1-0102 ","JELENA VESIĆ",33404,"Elektronska postaja za razvoj in testiranje sodobnih detektrojev za FAIR ",2023,"The electronic station for the development and testing of modern detectors for FAIR",{"v":158115.09,"d":"158,115.09"},"P_XXI_008","Oprema je dostopna  akademskim institucijam (kontakt: jelena.vesic@ijs.si) kot tudi raziskovalcem iz evropskega znanstvenega prostora.","The equipment is available for national users at the contact \"jelena.vesic@ijs.si\", as well as to the ERA international users .","Elektronsko postajo za razvoj sodobnih detektorjev za FAIR sestavlja vrhunska elektronika za testiranje in razvoj sodobnih detektorjev za jedrsko fiziko.","The electronics station for the development of modern detectors for FAIR consists of state-of-the-art electronics for testing and developing modern detectors for nuclear physics. ","75081, 75447",{"$f":"Table4[[#This Row],[21]]","v":{"v":51.96337403846154,"d":"51.96"}},{"v":15.203374038461538,"d":"15.20"},12,24.76,{"$f":"SUBTOTAL(9,Table4[[#This Row],[18]:[20]])","v":{"v":51.96337403846154,"d":"51.96"}},100,20,"https://www.ijs.si/ijsw/Znotraj%20hi%C5%A1e/Desno?action=AttachFile&do=get&target=ARIS_Evidenca_opreme_2024.xlsx",4,2,4,50,{"$f":"Table4[[#This Row],[11]]","v":"P_XXI_008"},12,5,100,{"$f":"Table4[[#This Row],[4]]","v":"P1-0102 "},{"$f":"Table4[[#This Row],[5]]","v":"JELENA VESIĆ"},50,"I0-E005 ","Jelena Vesić",50]
[106,"Institut \"Jožef Stefan\"",null,"P1-0417","MARTINA MODIC ",3709,"Sistem za hiperspektralno mikrokopijo ",2023,"Hyperspectral microscopy system ",{"v":89464.28,"d":"89,464.28"},"P_XXI_009","Oprema je dostopna po dogovoru, kontak Martina Modic (martina.modic@ijs.si)","Equipment is available via arrangement, contact Martina Modic (martina.modic@ijs.si)","Sistem za hiperspektralno mikroskopijo je nadgradnja optočnega mikroskopa, ki omogoča hitro in natančno zajemanje širokega dela elektromagnetnega spektra opazovanega vzorca v razponu od 170 - 1100 nm. Vsaka zajeta točka vsebuje celotno spektralno informacijo, v treh dimenzijah, od katerih sta dve dimenziji prostorki, tretja pa je spektralna dimenzija. Vse tri tvorijo takoimenovano hiperspektralno kocko. Sistem omogoča zajemanje informacij iz površine mikroorganizmov (identifikacija na podlagi njihovega HSI spektra) ter spremljanje  procesov znotraj mikrobnih celic. ","The system for hyperspectral microscopy is an upgrade of the optical microscope, which enables fast and accurate capture of a wide part of the electromagnetic spectrum of the observed sample in the range of 170 - 1100 nm. Each captured point contains the entire spectral information, in three dimensions, two of which are spatial dimensions and the third is the spectral dimension. All three form a so-called hyperspectral cube. The system enables the capture of information from the surface of microorganisms (identification based on their HSI spectrum) and the monitoring of processes inside microbial cells.","75836 01\n75312\n75836",{"$f":"Table4[[#This Row],[21]]","v":{"v":31.282334615384613,"d":"31.28"}},{"v":8.602334615384615,"d":"8.60"},5.12,17.56,{"$f":"SUBTOTAL(9,Table4[[#This Row],[18]:[20]])","v":{"v":31.282334615384613,"d":"31.28"}},100,20,"https://www.ijs.si/ijsw/Znotraj%20hi%C5%A1e/Desno?action=AttachFile&do=get&target=ARIS_Evidenca_opreme_2024.xlsx",4,5,5,10,{"$f":"Table4[[#This Row],[11]]","v":"P_XXI_009"},0,5,100,{"$f":"Table4[[#This Row],[4]]","v":"P1-0417"},{"$f":"Table4[[#This Row],[5]]","v":"MARTINA MODIC "},50,"P1-0389","Matija Milanič",30,"P3-0003","Gregor Serša",20]
[" ","Institut \"Jožef Stefan\"",null,"P1-0040","IGOR VASKIVSKYI",38346,"Laserski sistem za časovno-ločljivo in nelinearno spektroskopijo ",2023,"Laser system for time-resolved and nonlinear spectroscopy",{"v":237294.33,"d":"237,294.33"},"P_XXI_118","Oprema je dostopna po predhodnem dogovoru. Za uporabo zahtevnejše opreme je omogočeno šolanje. Cena storitev je odvisna od zahtevnosti meritev. Kontakt igor.vaskivskyi@ijs.si","Equipment is available on demand. Training can be arranged. The price of services depends on complexity of the measurements. Contact igor.vaskivskyi@ijs.si","Laserski sistem je namenjen uporabi za številne različice nelinearnih optičnih metod, vključno s femtosekundno in pikosekundno ločljivo spektroskopijo v širokem spektralnem območju  v koreliranih materialih, elektronskih napravah, magnetnih in elektronsko urejenih sistemih itd.. ","The laser system is intended for use in many variations of nonlinear optical methods, including femtosecond and picosecond time-resolved spectroscopy in a wide spectral range  in correlated materials, electronic devices, magnetic and electronically ordered systems, etc.","75268, 74321",{"$f":"Table4[[#This Row],[21]]","v":{"v":56.456762499999996,"d":"56.46"}},{"v":22.8167625,"d":"22.82"},0,33.64,{"$f":"SUBTOTAL(9,Table4[[#This Row],[18]:[20]])","v":{"v":56.456762499999996,"d":"56.46"}},100,20,"https://www.ijs.si/ijsw/Znotraj%20hi%C5%A1e/Desno?action=AttachFile&do=get&target=ARIS_Evidenca_opreme_2024.xlsx",4,4,7,60,{"$f":"Table4[[#This Row],[11]]","v":"P_XXI_118"},33.64,5,100,{"$f":"Table4[[#This Row],[4]]","v":"P1-0040"},{"$f":"Table4[[#This Row],[5]]","v":"IGOR VASKIVSKYI"},50,"N1-0295","Yevhenii Vaskivskyi",40,"J7-3146","prof. dr. Tomaž Mertelj",10]
[106,"Institut \"Jožef Stefan\"",null,"P1-0099","MATJAŽ HUMAR ",29528,"Nanosekundni pulzni laser z nastavljivo valovno dolžino in veliko repeticijo ",2023,"Nanosecond pulsed tunable high repetition laser",{"v":112773.73,"d":"112,773.73"},"P_XXI_119","Oprema je dostopna akademskim institucijam in gospodarskim družbam ob predhodnem kontaktu na matjaz.humar@ijs.si","The equipment is available for use to both academic and industrial users by contacting matjaz.humar@ijs.si","Laser združuje črpalni laser in optični parametrični oscilator (OPO). Ima nastavljivo valovno dolžino v območju od 405 do 2600 nm (signal 405-710 nm, idler 710-2600 nm) in nanosekundne pulze (trajanje 3-6 ns). Energija izhodnega pulza iz OPO v vidnem območju spektra znaša do 450 µJ. Repeticija laserskih pulzov je 1000 Hz, laser pa vsebuje tudi delilnik frekvence, kar omogoča delovanje tudi pri nekaterih nižjih repeticijah (500 Hz, 333 Hz, 250 Hz, …).","The laser combines a pump laser and an optical parametric oscillator (OPO). It has an adjustable wavelength in the range from 405 to 2600 nm (signal 405-710 nm, idler 710-2600 nm) and nanosecond pulses (duration 3-6 ns). The energy of the output pulse from the OPO in the visible range of the spectrum is up to 450 µJ. The repetition of laser pulses is 1000 Hz, and the laser also contains a frequency divider, which enables operation even at some lower repetitions (500 Hz, 333 Hz, 250 Hz, ...).",75024,{"$f":"Table4[[#This Row],[21]]","v":{"v":79.57362788461538,"d":"79.57"}},{"$f":"J202*0.2/2080","v":{"v":10.843627884615385,"d":"10.84"}},10,58.73,{"$f":"SUBTOTAL(9,Table4[[#This Row],[18]:[20]])","v":{"v":79.57362788461538,"d":"79.57"}},100,20,"https://www.ijs.si/ijsw/Znotraj%20hi%C5%A1e/Desno?action=AttachFile&do=get&target=ARIS_Evidenca_opreme_2024.xlsx",4,4,5,41,{"$f":"Table4[[#This Row],[11]]","v":"P_XXI_119"},58.73,5,100,{"$f":"Table4[[#This Row],[4]]","v":"P1-0099"},{"$f":"Table4[[#This Row],[5]]","v":"MATJAŽ HUMAR "},100]
[106,"Institut \"Jožef Stefan\"",null,"P1-0135","ANDREJ GORIŠEK","18277 ","Osciloskop z široko pasovno sirino",2023,"Mixed signal oscilloscope",{"v":75474,"d":"75,474.00"},"P_XXI_121","Osciloskop je namenjen meritvam zelo hitrih elektricnih signalov. Osciloskop je namescen v laboratoriju Odseka za eksperimentalno fiziko osnovnih delcev - F9, IJS. V predhodnem dogovoru z Andrejem Gorisekom (andrej.gorisek@ijs.si).","The oscilloscope is intended for the measurement of very fast electrical signals. The oscilloscope is installed in the laboratory of the Department for Experimental Particle Physics - F9, JSI. In prior agreement with Andrej Gorisek (andrej.gorisek@ijs.si).","Osciloskop z analognimi in digitalnimi vhodi pasovne širine 6GHz in 12 bitnim ADC je namenjen zaznavanju zelo hitrih elektricnih signalov. Uporablja se lahko za zajemanje valovnih form (signalov), kot jih dobimo na primer iz sodobnih fotonskih detektorjev ali ali trdno snovnih detektorjev, ki se tipicno uporabljajo v eksperimentalni fiziki osnovnih delcev.","The oscilloscope with analog and digital inputs of 6GHz bandwidth and 12-bit ADC is intended for the detection of very fast electrical signals. It can be used to capture waveforms (signals) such as those obtained for example from modern photon detectors or solid-state detectors typically used in experimental physics of elementary particles.",75591,{"$f":"Table4[[#This Row],[21]]","v":{"v":27.257115384615386,"d":"27.26"}},{"v":7.2571153846153855,"d":"7.26"},0,20,{"$f":"SUBTOTAL(9,Table4[[#This Row],[18]:[20]])","v":{"v":27.257115384615386,"d":"27.26"}},100,20,"https://www.ijs.si/ijsw/Znotraj%20hi%C5%A1e/Desno?action=AttachFile&do=get&target=ARIS_Evidenca_opreme_2024.xlsx",6,4,8,38,{"$f":"Table4[[#This Row],[11]]","v":"P_XXI_121"},40,5,100,{"$f":"Table4[[#This Row],[4]]","v":"P1-0135"},{"$f":"Table4[[#This Row],[5]]","v":"ANDREJ GORIŠEK"},100]
[106,"Institut \"Jožef Stefan\"",null,"P1-0134","PESTOTNIK ROK",16354,"Senzor posameznih fotonov z mikrokanalnimi ploščami ",2023,"Single photon sensor with micro-channel plates",{"v":113786.84,"d":"113,786.84"},"P_XXI_122","Oprema je dostopna akademskim institucijam in gospodarskim družbam (rok.pestotnik@ijs.si), kot tudi raziskovalcem in industriji iz evropskega raziskovalnega prostora.","The equipment is available for national users at the contact \"rok.pestotnik@ijs.si\", as well as to the international users from european research area..","Raziskovalna oprema omogoča pozicijsko občutljive časovno natančne meritve posameznih fotonov v področjih z visokim magnetnim poljem.","The research equipment allows position-sensitive, time-precise measurements of single photons in high magnetic field regions.","75189 \n75597 ",{"$f":"Table4[[#This Row],[21]]","v":{"v":30.941042307692307,"d":"30.94"}},{"v":10.941042307692308,"d":"10.94"},0,20,{"$f":"SUBTOTAL(9,Table4[[#This Row],[18]:[20]])","v":{"v":30.941042307692307,"d":"30.94"}},100,20,"https://www.ijs.si/ijsw/Znotraj%20hi%C5%A1e/Desno?action=AttachFile&do=get&target=ARIS_Evidenca_opreme_2024.xlsx",6,4,7,38,{"$f":"Table4[[#This Row],[11]]","v":"P_XXI_122"},40,5,100,{"$f":"Table4[[#This Row],[4]]","v":"P1-0134"},{"$f":"Table4[[#This Row],[5]]","v":"PESTOTNIK ROK"}]
[106,"Institut \"Jožef Stefan\"",null,"P1-0102","JASMINA KOŽAR LOGAR ",18545,"Sistem za datiranje in okoljsko forenziko z radioogljikom in tritijem",2023,"Dating and Environmental Forensics by Radiocarbon and Tritium (DEFORT)",{"v":128425.82999999999,"d":"128,425.83"},"P_XXI_124","Oprema je dostopna akademskim institucijam, gospodarskim družbam in upravnim organom (jasmina.logar@ijs.si), kot tudi raziskovalcem in industriji iz evropskega in svetovnega prostora (ALMERA)","The equipment is available for national users at the contact \"jasmina.logar@ijs.si\", as well as to the international users via ALMERA","Sistem omogoča ugotavljanje vsebnosti C-14 in H-3 v vzorcih iz naravnega, urbanega in industrijskega okolja. Natančnost m občutljivost in preciznost sistema omogoča datiranje vod in okoljsko forenziko (vsebnost biokomponent, vpliv industrije, podnebnih sprememb, študij fizioloških procesov...)","The system enables determination of C-14 and H-3 content in samples from natural, urban and industrial environments. The accuracy, sensitivity and precision of the system enables water dating and environmental forensics (content of biocomponents, impact of industry, climate change, study of physiological processes...)","75211 \n75595 \n75608 \n75588 \n75582 \n75516 \n75515 \n75595 \n75607 \n",{"$f":"Table4[[#This Row],[21]]","v":{"v":101.4386375,"d":"101.44"}},{"v":12.348637499999999,"d":"12.35"},12,77.09,{"$f":"SUBTOTAL(9,Table4[[#This Row],[18]:[20]])","v":{"v":101.4386375,"d":"101.44"}},100,20,"https://www.ijs.si/ijsw/Znotraj%20hi%C5%A1e/Desno?action=AttachFile&do=get&target=ARIS_Evidenca_opreme_2024.xlsx",4,5,1,4,{"$f":"Table4[[#This Row],[11]]","v":"P_XXI_124"},112.11,5,100,{"$f":"Table4[[#This Row],[4]]","v":"P1-0102"},{"$f":"Table4[[#This Row],[5]]","v":"JASMINA KOŽAR LOGAR "},100]
[106,"Institut \"Jožef Stefan\"",null,"I0-0005","KRISTIAN RADAN",33270,"Visoko zmogljiv stereo mikroskop",2023,"High-performance stereo microscope",{"v":46822.18000000001,"d":"46,822.18"},"P_XXI_125","Instrument je dostopen (kristian.radan@ijs.si) zelo širokemu krogu uporabnikov različnih področij tako javnih ustanov kot manjših in večjih podjetij, od ved ki vključujejo rokovanje z biološkimi ali geološkimi preparati do metalografskih analiz in mikroelektronike.","The instrument is accessible (kristian.radan@ijs.si) to a very wide range of users from various fields, both public institutions and smaller and larger companies, from sciences involving the handling of biological or geological samples to metallographic analyses and microelectronics.","Instrument je popolnoma motoriziran in praktično uporaben povsod, kjer je zahtevano precizno delo pod povečavami in kjer lahko stereomikroskopija nadomešča ali dopolnjuje klasično presevno mikroskopijo. Bogata programska oprema omogoča dodatne funkcije, kot so globinsko ostrenje slik in napredno obdelavo zajetih slik.","The instrument is fully motorized and practically usable wherever precise work under magnification is required and where stereomicroscopy can replace or supplement classic screening microscopy. The installed software enables additional functions such as Extended depth of focus (EDF) and advanced processing of captured images.",75614,{"$f":"Table4[[#This Row],[21]]","v":{"v":9.232132692307694,"d":"9.23"}},{"v":4.502132692307693,"d":"4.50"},2.79,1.94,{"$f":"SUBTOTAL(9,Table4[[#This Row],[18]:[20]])","v":{"v":9.232132692307694,"d":"9.23"}},100,20,"https://www.ijs.si/ijsw/Znotraj%20hi%C5%A1e/Desno?action=AttachFile&do=get&target=ARIS_Evidenca_opreme_2024.xlsx",3,4,8,4,{"$f":"Table4[[#This Row],[11]]","v":"P_XXI_125"},9.23,5,100,{"$f":"Table4[[#This Row],[4]]","v":"I0-0005"},{"$f":"Table4[[#This Row],[5]]","v":"KRISTIAN RADAN"},100]
[106,"Institut \"Jožef Stefan\"",null,"P2-0026","LEON CIZELJ ",7025,"Nadgradnja visokozmogljive računske gruče Skuta IV",2023,"UPGRADE OF HIGH PERFORMANCE COMPUTE CLUSTER",123628.81,"P_XXI_126","Po predhodnem dogovoru na naslov bojan.zefran@ijs.si ali martin.draksler@ijs.si","Equipment is available on demand. Please contact bojan.zefran@ijs.si or martin.draksler@ijs.si","Računalniška gruča za izvajanje znanstvenih računskih simulacij. Hitra mrežna komunikacija med računskimi vozlišči omogoča dobro skaliranje večprocesnih izračunov. Oprema vsebuje 100 računskih vozlišč po 2 procesorja, vsak z 20/24/28 jedri in 196GB spomina.","Compute cluster for fast scientific calculations. Fast interconnect enables a good calculation scalability of multinode multicore jobs. Equipment consists of 100 compute nodes with 2 socket processors. each with 20/24/28 cores and 196GB of memory.",75517,{"$f":"Table4[[#This Row],[21]]","v":{"v":21.859231971153847,"d":"21.86"}},{"v":14.859231971153847,"d":"14.86"},4,3,{"$f":"SUBTOTAL(9,Table4[[#This Row],[18]:[20]])","v":{"v":21.859231971153847,"d":"21.86"}},100,20,"https://www.ijs.si/ijsw/Znotraj%20hi%C5%A1e/Desno?action=AttachFile&do=get&target=ARIS_Evidenca_opreme_2024.xlsx",6,1,4,26,"P_XXI_126","Gruča ni namenjena neizučenim uporabnikom. ",4,100,{"$f":"Table4[[#This Row],[4]]","v":"P2-0026"},{"$f":"Table4[[#This Row],[5]]","v":"LEON CIZELJ "},60,"P2-0405-1","Boštjan Končar",20,"L2-4432","Andrej Prošek",10,"Z2-4436","Janez Kokalj",10]
[106,"Institut \"Jožef Stefan\"",null,"P2-0209","TOMAŽ ŠEF ",15656,"Nadgradnja sistema za raziskave v umetni inteligenci na kognitivno umetno inteligenco",2023,"Upgrading the Artificial Intelligence Research System to Cognitive Artificial Intelligence",{"v":265055.96,"d":"265,055.96"},"P_XXI_127","Oprema je dostopna  akademskim institucijam in gospodarskim družbam (blaz.mahnic@ijs.si), kot tudi raziskovalcem in industriji iz evropskega raziskovalnega prostora.","The equipment is available for national users at the contact (blaz mahnic@ijs.si), as well as to the international users via EU Transnational Access.","Sistem za raziskave v umetni inteligenci je bil zasnovan tako, da omogoča pospešeno izvajanje računskih operacij pri rudarjenju podatkov in globokem učenju z nevronskimi mrežami, na preiskovalnih in optimizacijskih algoritmih v računski inteligenci, na algoritmih za obdelavo slik in govora ter drugih algoritmih umetne inteligence za internet stvari (IoT), robotiko, avtonomno vožnjo in številne druge podatkovno intenzivne ali senzorsko vodene naloge. Osnova sistema je visokozmogljiv računalnik s posebnim najmodernejšim namenskim pospeševalnikom za hitro izvajanje algoritmov umetne inteligence. Poseben poudarek je na hitrem izvajanju algoritmov za globoko učenje (angl. Deep Learning).","The Artificial Intelligence Research System was designed to enable accelerated computational operations in data mining and deep learning with neural networks, investigative and optimization algorithms in computational intelligence, image and speech processing algorithms, and other artificial intelligence algorithms for the Internet of things (IoT), robotics, autonomous driving and many other data-intensive or sensor-driven tasks. The basis of the system is a high-performance computer with a special state-of-the-art dedicated accelerator for fast execution of artificial intelligence algorithms. Special emphasis is placed on fast implementation of deep learning algorithms.",75620,{"$f":"Table4[[#This Row],[21]]","v":{"v":42.4676875,"d":"42.47"}},{"$f":"J208*0.25/2080","v":{"v":31.8576875,"d":"31.86"}},10.61,0,{"$f":"SUBTOTAL(9,Table4[[#This Row],[18]:[20]])","v":{"v":42.4676875,"d":"42.47"}},100,25,"https://www.ijs.si/ijsw/Znotraj%20hi%C5%A1e/Desno?action=AttachFile&do=get&target=ARIS_Evidenca_opreme_2024.xlsx",6,1,1,14,{"$f":"Table4[[#This Row],[11]]","v":"P_XXI_127"},24.76,4,100,{"$f":"Table4[[#This Row],[4]]","v":"P2-0209"},{"$f":"Table4[[#This Row],[5]]","v":"TOMAŽ ŠEF "},75,"N1-0319","Mitja Luštrek",15,"N2-0254","Bogdan Filipič",10]
[106,"Institut \"Jožef Stefan\"",null,null,"DENIS ARČON",null,"Digitalna nadgradnja pulznega EPR spektrometra",2023,"Digital upgrade of pulsed EPR spectrometer",{"v":250501.8,"d":"250,501.80"},"P_XXI_128","Oprema je na voljo po predhodnem dogovoru s skrbnikom. Uporaba je možna samo ob prisotrnosti izučenega operaterja. Možna je tudi uporaba opreme pri nizkih temperaturah (T > 4 K) ob predhodni najavi.","The equipment is available by prior agreement with the administrator. Use is possible only in the presence of a trained operator. It is also possible to use the equipment at low temperatures (T > 4 K) with prior notice.","EPR je spektroskopska tehnika, ki se pogosto uporablja v biologiji, kemiji, medicini in fiziki za preučevanje sistemov z enim ali več nesparjenimi elektroni. Ker je to lokalna tehnika, EPR zagotavlja informacije o strukturi, dinamiki in prostorski porazdelitvi paramagnetnih vrst. Poleg meritev EPR spektrov, oprema omogoča meritve relaksacijskih časov in tako imenovanih ESEEM signalov.","EPR is a spectroscopic technique widely used in biology, chemistry, medicine and physics to study systems with one or more unpaired electrons. Being a local probe technique, EPR provide information on the structure, dynamics and the spatial distribution of the paramagnetic species. Beside the measurements of EPR spectra, the equippment allows for measurements of relaxation times and so-called ESEEM signals.  ",75645,{"$f":"Table4[[#This Row],[21]]","v":{"v":132.81671153846153,"d":"132.82"}},{"v":24.08671153846154,"d":"24.09"},50,58.73,{"$f":"SUBTOTAL(9,Table4[[#This Row],[18]:[20]])","v":{"v":132.81671153846153,"d":"132.82"}},100,20,"https://www.ijs.si/ijsw/Znotraj%20hi%C5%A1e/Desno?action=AttachFile&do=get&target=ARIS_Evidenca_opreme_2024.xlsx",3,1,5,4,{"$f":"Table4[[#This Row],[11]]","v":"P_XXI_128"},58.73,5,100,{"$f":"Table4[[#This Row],[4]]","v":0},{"$f":"Table4[[#This Row],[5]]","v":"DENIS ARČON"},50,"P1-0125","Tilen Knaflič",40,"P1-0125","Matjaž Gomilšek",10]
[106,"Institut \"Jožef Stefan\"",null,"P1-0035","JERNEJ FESEL KAMENIK ",24264,"Razširitev računske gruče z energijsko varčnimi rezinami ",2023,"Expansion of the computer cluster with fast new-generation nodes",{"v":209380.45,"d":"209,380.45"},"P_XXI_129","Uporaba je možna po predhodnem dogovoru z vodjo odseka in skrbniki (rok.zitko@ijs.si, luka.leskovec@ijs.si)","Usage possible upon prior agreement with Department Head and Administrators (rok.zitko@ijs.si, luka.leskovec@ijs.si)","Osnovno orodje teoretične fizike; na novih rezinah se izvajajo izračuni na področjih fizike trdne snovi, fizike osnovnih delcev, biofizke in kvantne fizike.","Basic tool of theoretical physics; new compute nodes are being used for computations in the fields of solid state physics, particle physics, biophysics and quantum physics.","75425 \n75426 \n75427 \n75428 \n75429 \n75430 \n75431 \n75432 \n75518 \n75519 \n75520 \n75521 \n75522 ",{"$f":"Table4[[#This Row],[21]]","v":{"v":32.16591947115385,"d":"32.17"}},{"$f":"J210*0.25/2080","v":{"v":25.16591947115385,"d":"25.17"}},4,3,{"$f":"SUBTOTAL(9,Table4[[#This Row],[18]:[20]])","v":{"v":32.16591947115385,"d":"32.17"}},100,25,"https://www.ijs.si/ijsw/Znotraj%20hi%C5%A1e/Desno?action=AttachFile&do=get&target=ARIS_Evidenca_opreme_2024.xlsx",6,1,4,26,{"$f":"Table4[[#This Row],[11]]","v":"P_XXI_129"},0,4,100,{"$f":"Table4[[#This Row],[4]]","v":"P1-0035"},{"$f":"Table4[[#This Row],[5]]","v":"JERNEJ FESEL KAMENIK "},30,"P1-0035","Jernej F. Kamenik",30,"P1-0055","Primož Ziherl",30,"P1-0416","Rok Žitko",10]
[106,"Institut \"Jožef Stefan\"",null,"P1-0125","GEORGIOS KORDOGIANNIS",32911,"Akustični merilni aparat \"kvarčna mikrotehtnica z nadzorom disipacije\" (Quartz Crystal Microbalance with Dissipation monitoring, QCM-D)",2023,"Quartz Crystal Microbalance with Dissipation monitoring (QCM-D)",{"v":137434.56,"d":"137,434.56"},"P_XXI_130","Oprema je dostopna akademskim in raziskovalnim institucijam na zahtevo. Kontaktna oseba: Georgios Kordogiannis <georgios.kordogiannis@ijs.si>","The equipment is available for academic and research institutions upon request. Contact person: Georgios Kordogiannis <georgios.kordogiannis@ijs.si>","Študije biomimetičnih membran (kot so podprti lipidni dvosloji in vezikli), faznih prehodov v lipidnih membranah, nanosenzorike.","Studies of supported biomimetic membranes (such as lipid bilayers and vesicles), phase transitions in lipid membranes, nano-sensing.",75232,{"$f":"Table4[[#This Row],[21]]","v":{"v":74.33486153846154,"d":"74.33"}},{"v":13.21486153846154,"d":"13.21"},2.39,58.73,{"$f":"SUBTOTAL(9,Table4[[#This Row],[18]:[20]])","v":{"v":74.33486153846154,"d":"74.33"}},100,20,"https://www.ijs.si/ijsw/Znotraj%20hi%C5%A1e/Desno?action=AttachFile&do=get&target=ARIS_Evidenca_opreme_2024.xlsx",3,7,2,44,{"$f":"Table4[[#This Row],[11]]","v":"P_XXI_130"},0,5,100,{"$f":"Table4[[#This Row],[4]]","v":"P1-0125"},{"$f":"Table4[[#This Row],[5]]","v":"GEORGIOS KORDOGIANNIS"},60,"J2-4447","Laure Bar",40]
[106,"Institut \"Jožef Stefan\"",null,"P2-0084","SAŠO ŠTURM ",19030,"CeraFab S65, 3D tiskalnik za keramične materiale na podlagi sterolitografije",2023,"CeraFab System S65, a 3D printer for ceramic materials based on stereolithography (*v prijavnem obrazcu je bila vrednost 356.297,18, lastna sredstva v višini 55,8 %)",{"v":358435.79,"d":"358,435.79"},"P_XXI_131","CeraFab S65 je najosdobnejši 3D tiskalnik keramičnih materialov. Ta vrsta opreme je zelo redka v Srednji Evropi. Oprema bo dostopna na Odseku za nanostrukturne materiale na IJS-ju. Umeščena bo v poseben prostor s prilagojeno svetlobo, v že ostoječem laboratoriju aditivnih tehnlogij. Na ta način bomo lahko konkurenčni v 3D tiskanju keramike v svetovnem merilu, kar nam bo omogočalo mreženje in povezovanje z vodilnimi laboratoriji v Evropi, ki so specializirani za 3D  tiskanje (keramičnih) materialov.","CeraFab S65 is state-of-the-art 3D printer for ceramic materialc. This type of equipment is very rare in Central Europe. The equipment will be available at the Department of Nanostructured Materials at IJS, more precisely, it will be located in the specially adopted room with yellow light, in the already existing laboratory of additive manufacturing technologies.  This will place us among the most competitives groups in the wolrd and to netowkr/connect with the existing laboratories in Europe that specialize in additive manufacturing of (ceramic) materials.","Oprema predstavlja najnaprednejšo tehnologijo pri aditivni proizvodnji keramike in omogoča tiskanje  zelo tankih funkcionalnih plasti kot tudi visokozmogljive volumetrske inženirske keramike z edinstveno resolucijo in geometrijsko kofiguracijo. Stereolitgrafija (LCM - litography based ceramic manufacturing) je \"bottom-up\" tehnika oblikovanja keramične komponente, ki jih natisnemo iz fotoobčutljive suspenzije vsebujoč visoki delež suhe snovi, t.j. prahu keramičnih (nano)delcev. Dodatna prednost te metode je izdelava zelo kompleksnih komponent in prototipov, saj ne zahteva izdelave podpornih stuktur kot pri drugih tehnikah 3D tiskanja.","The equipment represents the most advanced technology in the additive manufacturing of ceramics and enables the printing of very thin functional layers as well as high-performance volumetric engineering ceramics with a unique resolution and geometric configuration. Litography based ceramic manufacturing (LCM) is a \"bottom-up\" technique of designing ceramic components, which are printed from a photosensitive suspension containing a high proportion of dry matter, i.e. powder of ceramic (nano)particles. An additional advantage of this method is the production of very complex components and prototypes, as it does not require the production of supporting structures as with other 3D printing techniques.",75469,{"$f":"Table4[[#This Row],[21]]","v":{"v":34.46497980769231,"d":"34.46"}},{"v":34.46497980769231,"d":"34.46"},null,null,{"$f":"SUBTOTAL(9,Table4[[#This Row],[18]:[20]])","v":{"v":34.46497980769231,"d":"34.46"}},100,20,"https://www.ijs.si/ijsw/Znotraj%20hi%C5%A1e/Desno?action=AttachFile&do=get&target=ARIS_Evidenca_opreme_2024.xlsx",1,2,1,null,{"$f":"Table4[[#This Row],[11]]","v":"P_XXI_131"},0,5,100,{"$f":"Table4[[#This Row],[4]]","v":"P2-0084"},{"$f":"Table4[[#This Row],[5]]","v":"SAŠO ŠTURM "},10,"P2-0087-2","Andraž Kocjan ",90]
[106,"Institut \"Jožef Stefan\"",33,"P2-0105","DANJELA KUŠČER HROVATIN ",null,"Sistem za izdelavo in karakterizacijo plastnih struktur ",2023,"System for fabrication  and characterization of layered structures",{"v":232361.72,"d":"232,361.72"},"P_XXI_132","Oprema je instalirana na Institutu Jožef Stefan, Odseku za elektronko keramiko. Za opremo je zadolžen raziskovalec- odgovorna oseba, ki skrbi, da je oprema operativna, vzdrževana in servisirana. Oprema je dostopna  uporabnikom. Uporabniki se glede časa in načina uporabe opreme dogovorijo z odgovorno osebo osebno, preko telefona ali e-maila. ","The equipment is installed at the Jožef Stefan Institute, Electronic Ceramics Department. The equipment is the responsibility of the researcher-in-charge, who ensures that the equipment is operational, maintained and serviced. The equipment is accessible to users. Users arrange the time and manner of use of the equipment with the researcher-in-charge in person, by telephone or by e-mail.","Raziskovalna oprema je namenjena izvajanju eksperimentov in raziskav na področju znanosti o materialih. Gre za vrhunsko procesno in analitsko opremo, ki omogoča raziskovalcem izvajanje eksperimentov na najvišji kakovostni ravni. Le-ti so ključni za povečanje prepoznavnosti raziskovalcev tako na domači kot mednarodni ravni ter za uspešno udejstvovanje v različnih projektih. Oprema je dostopna širšemu krogu uporabnikov in omogoča tako izvajanje eksperimentov kot prikazovanje dela na njej.","Research equipment is used to carry out experiments and research in materials science. It is advanced processing and analytical equipment that enables researchers to carry out experiments at the highest quality level. These are key to increasing the visibility of researchers both nationally and internationally and to their successful participation in various projects. The equipment is accessible to a wide range of users and allows both experiments to be carried out and work to be demonstrated.","73955 \n74604 \n75170 \n75472 \n75554 ",{"$f":"Table4[[#This Row],[21]]","v":{"v":39.26247307692308,"d":"39.26"}},{"v":22.342473076923078,"d":"22.34"},16.92,null,{"$f":"SUBTOTAL(9,Table4[[#This Row],[18]:[20]])","v":{"v":39.26247307692308,"d":"39.26"}},100,20,"https://www.ijs.si/ijsw/Znotraj%20hi%C5%A1e/Desno?action=AttachFile&do=get&target=ARIS_Evidenca_opreme_2024.xlsx",11,4,44,"P_XXI_132",{"$f":"Table4[[#This Row],[11]]","v":"P_XXI_132"},5,5,100,{"$f":"Table4[[#This Row],[4]]","v":"P2-0105"},{"$f":"Table4[[#This Row],[5]]","v":"DANJELA KUŠČER HROVATIN "},70,"L2-4469","Danjela Kuščer",10,"J2-50077","Mojca Otoničar",10,"J2-3042","Tadej Rojac",10]
[106,"Institut \"Jožef Stefan\"",null,"P1-0099","IGOR MUŠEVIČ",9089,"Nastavljivi pulzni laser",2023,"Tuneable pulsed laser",{"v":88053,"d":"88,053.00"},"P_XXI_133","Rezervacije dostopa do opreme se opravljajo na interni povezavi IJS: https://teamup.com/login . Termin se določi v soglasju s skrbnikom opreme prof. I.Muševičem","Reservations for the use of equipment are registered at internal JSI portal: https://teamup.com/login The time slot for the measurements is coordinated by the person in charge of the equipment, Prof. I.Muševič.","Nastavljivi nanosekundni laser z osnovno valovno dolžino 532 nm in variabilno valovno dolžino nastavljivega žarka v območu 400 nm do 2400 nm.","Nanosecond tuneable laser with base output at 532 nm and tuneable output frim 400 nm to 2400 nm.",74775,{"$f":"Table4[[#This Row],[21]]","v":{"v":43.22663461538462,"d":"43.23"}},{"v":8.466634615384617,"d":"8.47"},10,24.76,{"$f":"SUBTOTAL(9,Table4[[#This Row],[18]:[20]])","v":{"v":43.22663461538462,"d":"43.23"}},100,20,"https://www.ijs.si/ijsw/Znotraj%20hi%C5%A1e/Desno?action=AttachFile&do=get&target=ARIS_Evidenca_opreme_2024.xlsx",4,4,8,41,{"$f":"Table4[[#This Row],[11]]","v":"P_XXI_133"},0,5,100,{"$f":"Table4[[#This Row],[4]]","v":"P1-0099"},{"$f":"Table4[[#This Row],[5]]","v":"IGOR MUŠEVIČ"},100]
[106,"Institut \"Jožef Stefan\"",null,"P2-0073","LUKA SNOJ",27819,"Obsevalni kompleks z aktivirano vodo na reaktorju TRIGA na IJS",2023,"Irradiation facility with water activation loop at JSI TRIGA reactor",{"v":237221.67,"d":"237,221.67"},"P_XXI_134","Po predhodnem dogovoru preko e-mail naslova domen.kotnik@ijs.si.","By prior arrangement via e-mail address domen.kotnik@ijs.si.","Obsevalna naprava z aktivirano vodo na rekaotjru TRIGA na IJS bo služila kot natančno določen in stabilen izvor visoko-energijskih","The activated water irradiator on the TRIGA detector at the IJS will serve as a well-defined and stable source of high-energy characteristic","74193 \n74444 \n74443 \n73054 \n74512 \n74511 \n74510 \n74509 \n73842 ",{"$f":"Table4[[#This Row],[21]]","v":{"v":324.80977596153843,"d":"324.81"}},{"v":22.809775961538463,"d":"22.81"},117,185,{"$f":"SUBTOTAL(9,Table4[[#This Row],[18]:[20]])","v":{"v":324.80977596153843,"d":"324.81"}},100,20,"https://www.ijs.si/ijsw/Znotraj%20hi%C5%A1e/Desno?action=AttachFile&do=get&target=ARIS_Evidenca_opreme_2024.xlsx",4,3,4,50,{"$f":"Table4[[#This Row],[11]]","v":"P_XXI_134"},92.5,5,100,{"$f":"Table4[[#This Row],[4]]","v":"P2-0073"},{"$f":"Table4[[#This Row],[5]]","v":"LUKA SNOJ"},100]
[106,"Institut \"Jožef Stefan\"",null,"P2-0076","TADEJ PETRIČ",30885,"Dvoročni kolaborativni robotski sistem za imitacijo hitrih gibov pri človeku ",2023,"Dual-arm collaborative robotic system for imitating rapid human movements",{"v":232103.11,"d":"232,103.11"},"P_XXI_135","Oprema se nahaja na odseku E1. Uporaba s strani zunanjih RO je možna po predhodnem dogovoru,  odvisno od trenutnega poteka razsikav. Za dostop je potrebno kontaktirati skrbnika (tadej.petric@ijs.si).","The equipment is located at department E1. Use by external ROs is possible by prior arrangement, depending on the current course of research. To gain access, it is necessary to contact the caretaker (tadej.petric@ijs.si).","Dvoročni robotski sistem, zasnovan za posnemanje človeških gibov, ki lahko učinkovito sodeluje z ljudmi. Oprema je zasnovana za natančno posnemanje zapletenih človeških gibov, kar omogoča učinkovito sodelovanje med ljudmi in stroji pri različnih nalogah.","Dual-arm manipulation system designed to emulate human movements, capable of interacting seamlessly with humans. This advanced equipment is engineered for precise mimicry of complex human gestures, facilitating smooth collaboration between humans and machines in various tasks.",74324,{"$f":"Table4[[#This Row],[21]]","v":{"v":62.31760673076923,"d":"62.32"}},{"v":22.31760673076923,"d":"22.32"},20,20,{"$f":"SUBTOTAL(9,Table4[[#This Row],[18]:[20]])","v":{"v":62.31760673076923,"d":"62.32"}},100,20,"https://www.ijs.si/ijsw/Znotraj%20hi%C5%A1e/Desno?action=AttachFile&do=get&target=ARIS_Evidenca_opreme_2024.xlsx",1,8,2,60,{"$f":"Table4[[#This Row],[11]]","v":"P_XXI_135"},20,5,100,{"$f":"Table4[[#This Row],[4]]","v":"P2-0076"},{"$f":"Table4[[#This Row],[5]]","v":"TADEJ PETRIČ"},100]
[106,"Institut \"Jožef Stefan\"",null,"P1-0417","VASYL SHVALYA ",686,"In-situ plazmonska vibracijska spektroskopija ",2023,"In-situ Plasmon-driven vibrational spectroscopy",{"v":93461.33,"d":"93,461.33"},"P_XXI_137","Dostop do opreme: po dogovoru (odsek F6 vasyl.shvalya@ijs.si)","Access to the device: via agreement (department F6 vasyl.shvalya@ijs.si)","Naprava vsebuje: Nicolet™ iS50 FTIR spektrometer z nameščenim s tekočim dušikom hlajenim hitrim skeniranjem MCT-A detektorjem za srednje\nIR območje. Priložen optični IR sistem omogoča izvajanje IR meritev z naslednjimi moduli: GladiATR (z grelno ploščo do 300 stopinj Celzija, pH\n1-14), plinska celica (spremenljiva optična pot 1-16m), tekoča celica s KBr in ZnSe okencami, celica DRIFT (do 1000 stopinj Celzija).","The device includes: Nicolet™ iS50 FTIR spectrometer with installed liquid nitrogen cooled high-speed scan MCT-A detector for mid-IR range.\nThe accompanied optical IR system allow to conduct the IR measurements with following modules: GladiATR module (with a heating plate up to\n300 degrees Celsius, pH 1-14), Gas-cell (variable optical path 1-16m), liquid cell with KBr and ZnSe windows, DRIFT cell (up to 1000 degrees\nCelsius).","75531 \n75678 \n75677 \n75676 ",{"$f":"Table4[[#This Row],[21]]","v":{"v":43.426666346153844,"d":"43.43"}},{"v":8.986666346153847,"d":"8.99"},16.88,17.56,{"$f":"SUBTOTAL(9,Table4[[#This Row],[18]:[20]])","v":{"v":43.426666346153844,"d":"43.43"}},100,20,"https://www.ijs.si/ijsw/Znotraj%20hi%C5%A1e/Desno?action=AttachFile&do=get&target=ARIS_Evidenca_opreme_2024.xlsx",4,5,2,4,{"$f":"Table4[[#This Row],[11]]","v":"P_XXI_137"},0,5,100,{"$f":"Table4[[#This Row],[4]]","v":"P1-0417"},{"$f":"Table4[[#This Row],[5]]","v":"VASYL SHVALYA "},60,"P2-0056","Vincenc Nemanič",20,"N2-0213","James Leon Walsh",20]
[106,"Institut \"Jožef Stefan\"",null,"P1-0112","PRIMOŽ PELICON ",12314,"UHV vakuumski sklop za žarkovno linijo ",2023,"UHV vaccum equipment for beamline",{"v":174819.91,"d":"174,819.91"},"P_XXI_138","Oprema je dostopna akademskim institucijam in gospodarskim družbam (primoz.pelicon@ijs.si), kot tudi raziskovalcem in industriji iz evropskega raziskovalnega prostora (https://remade-project.eu/).","The equipment is available for national users at the contactprimoz.pelicon@ijs.si, as well as to the international users via EU Transbnational Access (https://remade-project.eu/).","Vgrajena oprema močno izboljšuje razmere za delo na žarkovnih linijah ionskega pospeševalnika IJS.","The equipment consists of high grade vacuum pumping equipment, including turbomolecular pumps, dry roots pumps and vacuum gauges, which is significantly improving the operational characteristics of the ion beamline operations at Jožef Stefan Institute tandetron ion accelerator.",75587,{"$f":"Table4[[#This Row],[21]]","v":{"v":60.80960673076923,"d":"60.81"}},{"v":16.809606730769232,"d":"16.81"},12,32,{"$f":"SUBTOTAL(9,Table4[[#This Row],[18]:[20]])","v":{"v":60.80960673076923,"d":"60.81"}},100,20,"https://www.ijs.si/ijsw/Znotraj%20hi%C5%A1e/Desno?action=AttachFile&do=get&target=ARIS_Evidenca_opreme_2024.xlsx",3,3,2,50,{"$f":"Table4[[#This Row],[11]]","v":"P_XXI_138"},20.81,5,100,{"$f":"Table4[[#This Row],[4]]","v":"P1-0112"},{"$f":"Table4[[#This Row],[5]]","v":"PRIMOŽ PELICON "},100]
[106,"Institut \"Jožef Stefan\"",null,"P2-0103","SAŠO DŽEROSKI",11130,"Oprema za optimizacijo pri analizi podatkov s strojnim učenjem ",2023,"Equipment for optimizing machine learning data analysis",{"v":99271.91,"d":"99,271.91"},"P_XXI_139","Čas dostopa do opreme vsak delovni dan od 8:00 do 16:00 glede na razpoložljivost po predhodnem dogovoru s skrbnikom. Glede pogojev dostopa in razpoložljivosti kontaktirati Martina Žnidaršiča (martin.znidarsic@ijs.si)","The equipment is available upon request every day from 8 am to 4 pm subject to availability. For access conditions and availability contact Martin Žnidaršič (martin.znidarsic@ijs.si)","CPU in GPU strežniki za predpripravo podatkov ter razvoj in  testiranje  procesov optimizacije analize podatkov s strojnim učenjem.","CPU and GPU servers for data preprocessing and development and testing of machine learning data analysis optimization.","66207 \n75230 \n75283 \n75460 \n75461 \n75511 \n75513 \n75555 \n75556 \n75557 \n75579 \n75580 \n75586 \n75590 \n75592 \n75593 \n75594 \n75600 \n75613 \n75679 \n75680 ",{"$f":"Table4[[#This Row],[21]]","v":{"v":56.691719951923076,"d":"56.69"}},{"$f":"J219*0.25/2080","v":{"v":11.931719951923077,"d":"11.93"}},20,24.76,{"$f":"SUBTOTAL(9,Table4[[#This Row],[18]:[20]])","v":{"v":56.691719951923076,"d":"56.69"}},100,25,"https://www.ijs.si/ijsw/Znotraj%20hi%C5%A1e/Desno?action=AttachFile&do=get&target=ARIS_Evidenca_opreme_2024.xlsx",6,1,5,25,{"$f":"Table4[[#This Row],[11]]","v":"P_XXI_139"},0,4,100,{"$f":"Table4[[#This Row],[4]]","v":"P2-0103"},{"$f":"Table4[[#This Row],[5]]","v":"SAŠO DŽEROSKI"},100]
[106,"Institut \"Jožef Stefan\"",null,null,"MIRAN MOZETIČ",null,"Oprema za aktivacijo in sterilizacijo organskega materiala ",2023,"Research equipment for activation and sterilization of organic material",{"v":167528.31999999998,"d":"167,528.32"},"P_XXI_140","Uporaba opreme je po dogovoru. Gre za opremo, ki potrebuje znanja za rokovanje z biološkim materialov. Krijejo se stroški operaterja in po potrebi materialni stroški. Kontakt miran.mozetic@ijs.si.","The use of equipment is by arrangement. This is equipment that requires skills to handle biological materials. Operator costs and, where applicable, material costs are covered. Contact miran.mozetic@ijs.si.","Oprema omogoča hitro sterilizacijo organskega materiala s predhodno aktivacijo. Oprema je primerna za raziskavo kinetike sterilizacije tako v tekoči kot v plinski (aerosol) fazi z doziranjem peroksidušikove kisline. Oprema je še posebej primerna za raziskavo kinetike sterilizacije hrane in semen, ki jih ni mogoče sterilizirati s klasičnimi tehnikami, saj slednje povzročijo nepopravljive spremembe materialov, ki jih želimo sterilizirati.","The equipment allows rapid sterilisation of organic material by pre-activation. The equipment is suitable for the investigation of sterilisation kinetics in both liquid and gas (aerosol) phases by dosing peroxy-nitrous acid. The equipment is particularly suitable for investigating the kinetics of sterilisation of food and seeds which cannot be sterilised by conventional techniques, as the latter cause irreversible changes to the materials to be sterilised.",75596,{"$f":"Table4[[#This Row],[21]]","v":{"v":42.308492307692305,"d":"42.31"}},{"v":16.108492307692305,"d":"16.11"},12.5,13.7,{"$f":"SUBTOTAL(9,Table4[[#This Row],[18]:[20]])","v":{"v":42.308492307692305,"d":"42.31"}},100,20,"https://www.ijs.si/ijsw/Znotraj%20hi%C5%A1e/Desno?action=AttachFile&do=get&target=ARIS_Evidenca_opreme_2024.xlsx",2,4,3,60,{"$f":"Table4[[#This Row],[11]]","v":"P_XXI_140"},50,5,100,{"$f":"Table4[[#This Row],[4]]","v":0},{"$f":"Table4[[#This Row],[5]]","v":"MIRAN MOZETIČ"},50,"L7-4567","Dr. Nina Recek",35,"J1-3014","Izr. prof. dr. Rok Zaplotnik"]
[106,"Institut \"Jožef Stefan\"",null,"I0-0005","ALJAŽ DRNOVŠEK ",35463,"Sistem za ovrednotenje nanomehanskih lastnosti tankih plasti ",2023,"system for evaluation of nanomechanical properties of thin films",{"v":245090.60000000003,"d":"245,090.60"},"P_XXI_141","Uporaba je možna po predhodnem pogovoru (aljaz.drnovsek@ijs.si)","Use is possible after a preliminary conversation (aljaz.drnovsek@ijs.si)","Naprava se uporablja primarno za določanje trdote ter elastičnega modula. Omogoča tudi izdelavo 2D zemljevidov trdoote ali drugih mehanskih lastnosti, ki so izpeljane iz krivulje napetosti in deformacije.","The device is primarily used for determining hardness and the elastic modulus. It also allows for the creation of 2D maps of hardness or other mechanical properties derived from the stress-strain curve.",75615,{"$f":"Table4[[#This Row],[21]]","v":{"v":53.82640384615385,"d":"53.83"}},{"v":23.56640384615385,"d":"23.57"},17.88,12.38,{"$f":"SUBTOTAL(9,Table4[[#This Row],[18]:[20]])","v":{"v":53.82640384615385,"d":"53.83"}},100,20,"https://www.ijs.si/ijsw/Znotraj%20hi%C5%A1e/Desno?action=AttachFile&do=get&target=ARIS_Evidenca_opreme_2024.xlsx",3,10,4,47,{"$f":"Table4[[#This Row],[11]]","v":"P_XXI_141"},58.5,5,100,{"$f":"Table4[[#This Row],[4]]","v":"I0-0005"},{"$f":"Table4[[#This Row],[5]]","v":"ALJAŽ DRNOVŠEK "},50,"PR-11236","Žan Gostenčnik",30,"J2-2509","Matjaž Panjan",20]
[106,"Institut \"Jožef Stefan\"",null,"P1-0143","NIVES OGRINC ",11279,"Masni spektroemeter za analitiko stabilnih izotopov lahkih elementov - DELTA Q",2023,"DELTA Q Isotope Ratio Mas Spectrometer",{"v":490595.55,"d":"490,595.55"},"P_XXI_142","Po predhodnem dogovoru. Kontakt: nives.ogrinc@ijs.si","Equipment is available on demand. Please contact: nives.ogrinc@ijs.si","Izbrani masni spektrometer predstavlja vrhunsko aparaturo za analitiko stabilnih izotopov, ki omogoča enostavno integracijo različnih avtomatiziranih sklopov za predpripravo in vbrizgavanje vzorca za analizo izotopske sestave H, C, N in O v številnih aplikacijah. Preparacijski sistemi vključujejo predkoncentrator za plinske vzorce (Gas Bench II, PreCon) in elementni analizator (EA IsoLink CN/OH), ki nam omogoča popolnoma avtomatiziran enotni sistem za analize C in N v trdih vzorcih s popolnim zgorevanjem »flush combustion« ter analize O in H z visoko temperaturno pretvorbo (»high temperature conversion« pri T do 1450 °C).","The selected mass spectrometer represents a state-of-the-art instrument for stable isotope analysis that enables easy integration of various automated sample preparation and injection assemblies for the analysis of H, C, N and O isotopic composition in a wide range of applications. The preparation systems include a preconcentrator for gas samples (Gas Bench II, PreCon) and an elemental analyzer (EA IsoLink CN/OH), which allows us a fully automated single system for C and N analysis in solid samples with complete \"flush combustion\" and O and H analyzes with high temperature conversion (\"high temperature conversion\" at 1450 °C).",75514,{"$f":"Table4[[#This Row],[21]]","v":{"v":105.05264903846154,"d":"105.05"}},{"v":47.172649038461536,"d":"47.17"},17.88,40,{"$f":"SUBTOTAL(9,Table4[[#This Row],[18]:[20]])","v":{"v":105.05264903846154,"d":"105.05"}},100,20,"https://www.ijs.si/ijsw/Znotraj%20hi%C5%A1e/Desno?action=AttachFile&do=get&target=ARIS_Evidenca_opreme_2024.xlsx",3,2,3,32,{"$f":"Table4[[#This Row],[11]]","v":"P_XXI_142"},40,5,null,{"$f":"Table4[[#This Row],[4]]","v":"P1-0143"},{"$f":"Table4[[#This Row],[5]]","v":"NIVES OGRINC "},100]
[106,"Institut \"Jožef Stefan\"",null,null,"GREGOR PRIMC ",null,"Dvoprekatni previjalni plazemski reaktor ",2023,"Two-stage rewinding plasma reactor",{"v":165923,"d":"165,923.00"},"P_XXI_144","Uporaba opreme je po dogovoru. Gre za opremo, ki potrebuje znanja za rokovanje s plazemskim reaktorjem, nameščanjem elektrod in pravilno nameščanje obdelovancev za neskončno previjanje skozi plinsko plazmo. Krijejo se stroški operaterja in materialni stroški: plin, elektrode, hlajenje. Kontakt gregor.primc@ijs.si.","Use of equipment is by arrangement. This is equipment that requires skills in handling the plasma reactor, installing electrodes and correctly positioning the workpieces for endless plasma gas rewinding. Operator and material costs are covered: gas, electrodes, cooling. Contact gregor.primc@ijs.si.","Omogoča obdelavo neskončnih materialov na previjanje (folije, papir, itd.) skozi plinsko plazmo pri nizkem tlaku v kapacitivni ali induktivni konfiguraciji plazemske sklopitve. Omogoča tudi sprejanje prekurzorjev v samo plazmo ali na že obdelano površino.","It enables the processing of continuous rewindable materials (film, paper, etc.) through a gas plasma at low pressure in a capacitive or inductive plasma coupling configuration. It also allows precursors to be sprayed into the plasma itself or onto an already treated surface.",75606,{"$f":"Table4[[#This Row],[21]]","v":{"v":37.65413461538461,"d":"37.65"}},{"v":15.954134615384614,"d":"15.95"},11.2,10.5,{"$f":"SUBTOTAL(9,Table4[[#This Row],[18]:[20]])","v":{"v":37.65413461538461,"d":"37.65"}},100,20,"https://www.ijs.si/ijsw/Znotraj%20hi%C5%A1e/Desno?action=AttachFile&do=get&target=ARIS_Evidenca_opreme_2024.xlsx",2,9,5,60,{"$f":"Table4[[#This Row],[11]]","v":"P_XXI_144"},50,5,100,{"$f":"Table4[[#This Row],[4]]","v":0},{"$f":"Table4[[#This Row],[5]]","v":"GREGOR PRIMC "},60,"L2-50052","Prof. dr. Alenka Vesel, Izr. prof. dr. Rok Zaplotnik, Jernej Ekar",25,"L1-50007","Prof. dr. Miran Mozetič, doc. dr. Gregor Primc",15]
[106,"Institut \"Jožef Stefan\"",null,"P2-0091","ŠPELA KUNEJ ",22281,"Laboratorijske zaščitne, sušilne komore in površine s pripadajočo opremo ",2023,"Laboratory protective, drying chambers and surfaces with associated equipment",{"v":225987.28999999998,"d":"225,987.29"},"P_XXI_145","Oprema je dostopna raziskovalcem na nacionalni, industrijski in mednarodni ravni. Za povpraševanje se obrnite na elektronski naslov: spela.kunej@ijs.si.","The equipment is accessible to national, industrial, and international researchers. To make inquiries, please contact the following email address: spela.kunej@ijs.si.","Suha komora MBraun LabMaster je zasnovana za vzdrževanje inertne atmosfere s kisikom in ravnjo vlage pod 1 ppm.","The MBraun LabMaster glove box is designed to maintain an inert atmosphere with oxygen and moisture levels below 1ppm, ensuring enhanced safety. Digestories that feature \"PREGL FUME BLOCK SYSTEM\" technology offer improved safety and energy efficiency when handling strong acids and bases. Additionally, the laboratory is equipped with protective equipment such as drying chambers and surfaces to ensure the safe handling of reagents and solvents, facilitating efficient research.","75111 \n75159 \n75409 \n75533 \n75506 \n75507 \n75509 \n75508 \n75537 \n75581 \n75605 ",{"$f":"Table4[[#This Row],[21]]","v":{"v":167.7995471153846,"d":"167.80"}},{"v":21.729547115384616,"d":"21.73"},45.62,100.45,{"$f":"SUBTOTAL(9,Table4[[#This Row],[18]:[20]])","v":{"v":167.7995471153846,"d":"167.80"}},100,20,"https://www.ijs.si/ijsw/Znotraj%20hi%C5%A1e/Desno?action=AttachFile&do=get&target=ARIS_Evidenca_opreme_2024.xlsx",3,11,4,44,{"$f":"Table4[[#This Row],[11]]","v":"P_XXI_145"},0,5,{"$f":"(AI224+AL224+AO224+AR224+AU224+AX224)","v":100},{"$f":"Table4[[#This Row],[4]]","v":"P2-0091"},{"$f":"Table4[[#This Row],[5]]","v":"ŠPELA KUNEJ "},100]
[106,"Institut \"Jožef Stefan\"",null,"P2-0091","SREČO DAVOR ŠKAPIN",11093,"Impedančni analizator in pripadajoča oprema za dielektrično spektroskopijo",2023,"Impedance analyzer with a dielectric measurement kit",{"v":129664.31,"d":"129,664.31"},"P_XXI_146","Oprema je dostopna raziskovalcem IJS po predhodnem dogovoru (david.fabijan@ijs.si)","The equipment is available to JSI researchers upon prior arrangement via email (david.fabijan@ijs.si)","Merilnik impedance v območju 20Hz do 120MHz z možnostjo dodane enosmerne napetosti do ±40V. Primarno namenjen meritvam dielektričnih lastnosti makroskopskih materialov in tankih plasti. Možne tudi meritve kompleksnejših pasivnih vezij in mehkih vzorcev.","Equipment for measuring impedance in the 20Hz to 120MHz range, with an option of a ±40V DC bias. Mainly intended for the research of bulk and thin film ceramics. Also applicable for work with more complex passive circuits as well as soft mater samples.",74878,{"$f":"Table4[[#This Row],[21]]","v":{"v":96.26772211538463,"d":"96.27"}},{"v":12.467722115384616,"d":"12.47"},26.17,57.63,{"$f":"SUBTOTAL(9,Table4[[#This Row],[18]:[20]])","v":{"v":96.26772211538463,"d":"96.27"}},100,20,"https://www.ijs.si/ijsw/Znotraj%20hi%C5%A1e/Desno?action=AttachFile&do=get&target=ARIS_Evidenca_opreme_2024.xlsx",4,2,3,4,{"$f":"Table4[[#This Row],[11]]","v":"P_XXI_146"},0,5,100,{"$f":"Table4[[#This Row],[4]]","v":"P2-0091"},{"$f":"Table4[[#This Row],[5]]","v":"SREČO DAVOR ŠKAPIN"},100]
[106,"Institut \"Jožef Stefan\"",null,"P2-0091","MARJETA MAČEK KRŽMANC ",13311,"Analiza plinov pri razvoju materialov za proizvodnjo zelene elektrike in za toplotno izolacijo s pripadajočo opremo ",2023,"Analysis of gases in the development of materials for the production of green electricity and for thermal insulation with associated equipment",{"v":115766.41999999998,"d":"115,766.42"},"P_XXI_147","Oprema se nahaja v laboratoriju Odseka za raziskave sodobnih materialov K-9 (pritličje). Opremo lahko uporabljajo samo usposobljeni uporabniki. Opremo je potrebno rezervirati.","The equipment is located in the laboratory of Advanced Materials department K-9 (ground floor). The equipment can be used only by qualified users. The equipment usage must be reserved.","Za napredno karakterizacijo materialov za pridobivanje trajnostne energije in trajnostnih izolativnih materialov imamo vzpostavljen naslednji sklop metod. Sistema za pridobivanje zelenega vodika s fotokatalitskim in s fotoelektrokemijskim procesom vključujeta: Sončni simulator (Xenon z AM 1.5G filtrom), fotokatalitsko ali fotoelektrokemijsko celico, ki sta povezani s plinskim kromatografom, s katerim lahko kvantitativno določamo plinaste produkte. Plinski kromatograf uporabljamo tudi za določitev sestave plinov v penjenem steklu, medtem ko njegovo gostoto (v trdni ali praškasti obliki) določamo s plinskim piknometrom.","We have established the following set of methods for the advanced characterisation of materials for producing sustainable energy sources and sustainable insulating materials. The systems for obtaining green hydrogen by photocatalytic or photoelectrochemical processes include a solar simulator (Xenon with AM 1.5G filter), a photocatalytic or photoelectrochemical cell connected to a gas chromatograph, which can be used for quantitative determination of evolved gaseous products. A gas chromatograph is also used to determine the composition of gases in foamed glass, while its density (in solid or powder form) is determined with a gas pycnometer.","74413 \n75395 \n75535 \n75468 \n75601 ",{"$f":"Table4[[#This Row],[21]]","v":{"v":85.96138653846154,"d":"85.96"}},{"v":11.131386538461538,"d":"11.13"},23.37,51.46,{"$f":"SUBTOTAL(9,Table4[[#This Row],[18]:[20]])","v":{"v":85.96138653846154,"d":"85.96"}},100,20,"https://www.ijs.si/ijsw/Znotraj%20hi%C5%A1e/Desno?action=AttachFile&do=get&target=ARIS_Evidenca_opreme_2024.xlsx",3,11,4,3,{"$f":"Table4[[#This Row],[11]]","v":"P_XXI_147"},0,5,100,{"$f":"Table4[[#This Row],[4]]","v":"P2-0091"},{"$f":"Table4[[#This Row],[5]]","v":"MARJETA MAČEK KRŽMANC "},100]
[106,"Institut \"Jožef Stefan\"",null,"P2-0001","GREGOR DOLANC ",15735,"Oprema za raziskave in aplikacije na področju tehnologije vodenja ",2023,"Equipment for research and application of the field of control technologies",{"v":13394.68,"d":"13,394.68"},"P_XXI_148","Oprema je dostopna po predhodnem dogovoru (gregor.dolanc@ijs.si)","The equipment is available upon prior agreement (gregor.dolanc@ijs.si)","Oprema za raziskave in aplikacije na podroèju tehnologije vodenja","Equipment for research and application of the field of control technologies","74312 \n75001 \n75252 \n75611 \n75612 \n75585 \n75584 \n75583 ",{"$f":"Table4[[#This Row],[21]]","v":{"v":51.287949999999995,"d":"51.29"}},{"v":1.2879500000000002,"d":"1.29"},20,30,{"$f":"SUBTOTAL(9,Table4[[#This Row],[18]:[20]])","v":{"v":51.287949999999995,"d":"51.29"}},100,20,"https://www.ijs.si/ijsw/Znotraj%20hi%C5%A1e/Desno?action=AttachFile&do=get&target=ARIS_Evidenca_opreme_2024.xlsx",6,4,8,6,{"$f":"Table4[[#This Row],[11]]","v":"P_XXI_148"},0,null,100,{"$f":"Table4[[#This Row],[4]]","v":"P2-0001"},{"$f":"Table4[[#This Row],[5]]","v":"GREGOR DOLANC "},100]
[106,"Institut \"Jožef Stefan\"",null,"P2-0076","ADAM C. MC DONNELL",33333,"Sistem za določanje maksimalne aerobne in anaerobne zmogljivosti ",2023,"System for the measurement of maximal aerobic and anaerobic capacity",{"v":101739.43,"d":"101,739.43"},"P_XXI_149","Oprema se nahaja na odseku E1. Uporaba s strani zunanjih RO je možna po predhodnem dogovoru, odvisno od trenutnega poteka razsikav. Za dostop je potrebno kontaktirati skrbnika (adam.mcdonnell@ijs.si).","The equipment is located at the department E1. Use by external ROs is possible by prior arrangement, depending on the current course of research. To gain access, it is necessary to contact the caretaker (adam.mcdonnell@ijs.si).","Sistem za določanje maksimalne aerobne in aneraobne zmogljivosti sestavljata Cosmedov presnovni voziček Quark in ergometer. Cosmed je opremljen z EKG, SpO2 in obraznimi maskami ter presnovno kapuco, kar omogoča merjenje porabe kisika in proizvodnje ogljikovega dioksida med mirovanjem, submaksialno vadbo in maksimalno aerobno vadbo. Ergometer je nastavljiv in omogoča vadbeni upor od 0 do 3 000 W.","The system for determining maximal aerobic and aneraobic capacity is comprised of a Cosmed Quark metabolic cart and a lode ergometer. The cosmed comes equiped with ECG, SpO2 and facemasks and a metabolic hood, allowing for the measurement of oxygen consumption and carbon dioxide produuction during rest, suubmaxial exercise and maximal aerobic exericse. The lode cycle ergometer is fully adjustable and provides an exercise resistance from 0 to 3000W.",74505,{"$f":"Table4[[#This Row],[21]]","v":{"v":159.7826375,"d":"159.78"}},{"v":9.7826375,"d":"9.78"},50,100,{"$f":"SUBTOTAL(9,Table4[[#This Row],[18]:[20]])","v":{"v":159.7826375,"d":"159.78"}},100,20,"https://www.ijs.si/ijsw/Znotraj%20hi%C5%A1e/Desno?action=AttachFile&do=get&target=ARIS_Evidenca_opreme_2024.xlsx",4,7,1,60,{"$f":"Table4[[#This Row],[11]]","v":"P_XXI_149"},200,5,100,{"$f":"Table4[[#This Row],[4]]","v":"P2-0076"},{"$f":"Table4[[#This Row],[5]]","v":"ADAM C. MC DONNELL"},100]
[106,"Institut \"Jožef Stefan\"",null,"P1-0135","ANDREJ FILIPČIČ",7525,"Nadgradnja distribuiranega računskega vozlišča SiGNET Tier-2",2023,"UPGRADING THE DISTRIBUTED CALCULATION NODE SiGNET Tier-2 ",{"v":176210.31,"d":"176,210.31"},"P_XXI_150","Dostop do opreme je usklajen s pravili dostopa konzorcija SLING in mednarodne kolaboracije WLCG. Do opreme lahko dostopajo vsi uporabniki, ki imajo veljaven certifikat (npr na ijs IJS SIGNET-CA) in so člani ustrezne virtualne organizacije v okviru SLING ali WLCG. The access is then automated.","THe access to the equipment is set up according to the access rules of the SLING Consortium and the WLCG international Collaboration. Access is granted to every user, who has a valid certificate (e.g. SIGNET-CA at JSI) and are members of an appropriate virtual organisation in the SLING or WLCG framework. The access is then automated.","Distribuirano računsko vozlišče SIGNET je kot gruča vrste Tier-2 vključena v WLCG (torej Worldwide LHC Computing Grid), mednarodno kolaboracijo, ki je zadolžena za računske kapacitete pri obdelavi in analizi podatkov eksperimentov v fiziki delcev, primarno na Velikem hadronskem trkalniku LHC, pa tudi drugih, npr. Belle II v KEK na Japonskem.","The distributed calculation node SIGNET is as a TIer-2 cluster included in WLCG (i.e. the Worldwide LHC Computing Grid), the internationa collaboration, which is responsible for the computing resources in data processing and analysis for particle physics experiments, primarily at the Large Hadron Collider LHC, but also others, such as Belle II at KEK in Japan.",75609,{"$f":"Table4[[#This Row],[21]]","v":{"v":42.35912379807692,"d":"42.36"}},{"$f":"J229*0.25/2080","v":{"v":21.179123798076922,"d":"21.18"}},0,21.18,{"$f":"SUBTOTAL(9,Table4[[#This Row],[18]:[20]])","v":{"v":42.35912379807692,"d":"42.36"}},100,25,"https://www.ijs.si/ijsw/Znotraj%20hi%C5%A1e/Desno?action=AttachFile&do=get&target=ARIS_Evidenca_opreme_2024.xlsx",6,1,5,63,{"$f":"Table4[[#This Row],[11]]","v":"P_XXI_150"},63.54,4,100,{"$f":"Table4[[#This Row],[4]]","v":"P1-0135"},{"$f":"Table4[[#This Row],[5]]","v":"ANDREJ FILIPČIČ"},100]
[106,"Institut \"Jožef Stefan\"",null,"P1-0099","ERIK ZUPANIČ",28235,"Nadgradnja nizkotemperaturnega vrstičnega tunelskega mikroskopa z mikroskopom na atomsko silo ",2023,"Upgrade of low-temperature scanning tunneling microscope with atomic-force microscope",{"v":62251.69,"d":"62,251.69"},"P_XXI_151","Dostop je možen v dogovoru z vodjo Laboratorija za vrstični tipalno mikroskopijo (Erik Zupanič, erik.zupanic@ijs.si), kot je navedeno na domači strani laboratorija. Prioriteto pri dostopu do raziskovalne opreme imajo sodelavci Laboratorija za vrstično tipalno mikroskopijo .Za raziskovalce z javnih raziskovalnih zavodov in javnih univerz, bo uporaba v okviru skupnih projektov (tudi neformalnih sodelovanj) brezplačna. Za vsa sodelovanja z gospodarstvom pa se bomo držali pravil, zapisanih v \"Pravila za oblikovanje cen za uporabo raziskovalne opreme, obveščanje in poročanje o uporabi raziskovalne opreme\" št. 007-5/2023-1 z dne 3. 5. 2023.","Access is possible by appointment with the Head of the Laboratory for Scanning Probe Microscopy (Erik Zupanič, erik.zupanic@ijs.si), as indicated on the homepage of the laboratory. Priority for access to research equipment is given to the collaborators of the Laboratory for Scanning Probe Microscopy. For researchers from public research institutions and public universities, use will be free of charge in the context of joint projects (including informal collaborations). For all collaborations with industry, we will follow the rules set out in the \"Rules on pricing for the use of research equipment, notification and reporting on the use of research equipment\" No 007-5/2023-1 of 3.5.2023.","Raziskovalna oprema bo edina v Sloveniji omogočila hkratne energijsko in prostorsko visokoločljive meritve tunelskega toka in sile med konico in površino v ultra visokem vakuumu pri nizkih temperaturah in s tem razločevanje med lokalno elektronsko gostoto in strukturo površine, ki ju sicer ne bi bilo mogoče razločiti. Prav tako tako bo edini mikroskop v Sloveniji, ki bo omogočal preiskave molekulskih struktur na različnih površinah pri pogojih ultravisokega vakuuma in kriogenih temperatur.","The research equipment will be the only one in Slovenia to enable simultaneous high-energy and high-spatial resolution measurements of the tunneling current and the tip-surface force in ultra-high vacuum at low temperatures, and thus to distinguish between the local electron density and the surface structure, which would otherwise be impossible to resolve. It will also be the only microscope in Slovenia that will allow the investigation of molecular structures on different surfaces under ultra-high vacuum and cryogenic temperature conditions.  ","74447 \n74664 \n75510 \n76324 ",{"$f":"Table4[[#This Row],[21]]","v":{"v":69.71573942307693,"d":"69.72"}},{"$f":"J230*0.2/2080","v":{"v":5.985739423076923,"d":"5.99"}},5,58.73,{"$f":"SUBTOTAL(9,Table4[[#This Row],[18]:[20]])","v":{"v":69.71573942307693,"d":"69.72"}},100,20,"https://www.ijs.si/ijsw/Znotraj%20hi%C5%A1e/Desno?action=AttachFile&do=get&target=ARIS_Evidenca_opreme_2024.xlsx",3,3.6,"3.6.1",60,{"$f":"Table4[[#This Row],[11]]","v":"P_XXI_151"},0,5,100,{"$f":"Table4[[#This Row],[4]]","v":"P1-0099"},{"$f":"Table4[[#This Row],[5]]","v":"ERIK ZUPANIČ"},100]
[106,"Institut \"Jožef Stefan\"",null,"P1-0416","PETER JEGLIČ ",21545,"Laserski sistem za eksperimente s kubiti na osnovi Rydbergovih atomov cezija ",2023,"Laser system for experiments with qubits based on Rydberg cesium atoms",{"v":254704.87000000005,"d":"254,704.87"},"P_XXI_153","Raziskovalna oprema predstavlja nadgradnjo eksperimentalnega sistema za hlajenje in lovljenje atomov cezija, ki smo ga v zadnjih desetih letih razvijali in postavljali v Laboratoriju za hladne atome na Institutu “Jožef Stefan”. Ko bo nadgradnja v celoti zaključena (predvidoma septembra 2024), bo ta eksperimentalna oprema integrirana v obstoječ eksperimentalni sistem.\n\nPrioriteto pri dostopu do raziskovalne opreme imajo sodelavci Laboratorija za hladne atome. Za raziskovalce z javnih raziskovalnih zavodov in javnih univerz, bo uporaba v okviru skupnih projektov (tudi neformalnih sodelovanj) brezplačna. Za sodelovanja z gospodarstvom se bomo držali pravil, zapisanih v \"Pravila za oblikovanje cen za uporabo raziskovalne opreme, obveščanje in poročanje o uporabi raziskovalne opreme\" št. 007-5/2023-1 z dne 3. 5. 2023.","The research equipment represents an upgrade of the experimental system for cooling and trapping cesium atoms that we have developed and built over the last ten years in the Laboratory for cold atoms at the Jožef Stefan Institute. Once the upgrade is fully completed (expected by mid-2024), this experimental equipment will be integrated into the existing experimental system. \n\nTeam members from the Laboratory for cold atoms will have priority access to the research equipment. For researchers from public research institutes and public universities, use will be possible via joint projects (including informal collaboration) and is free of charge. For collaborations with industry, we will adhere to the rules outlined in the \"Pravila za oblikovanje cen za uporabo raziskovalne opreme, obveščanje in poročanje o uporabi raziskovalne opreme\", No. 007-5/2023-1 dated May 3, 2023.","Laserski sistem za eksperimente s kubiti na osnovi Rydbergovih atomov cezija omogoča širok spekter novih raziskav in razvoja, ki je bil do zdaj nedostopen:\n- Razvoj kvantnega računalništva z ansambli hladnih atomov, kjer vsak ansambel predstavlja en kubit.\n- Razvoj hitre in zanesljive priprave kubitov v poljubni superpoziciji stanj 0 in 1.\n- Razvoj hitre metode za branje kubitov.\n- Raziskovanje fizike Rydbergovih atomov in uporaba mehanizma Rydbergove blokade v kvantnih napravah.\n- Možnost uporabe laserskega sistema tako za manipulacijo kubitov na osnovi ansamblov hladnih atomov kot tudi za posamezne atome.","The laser system for experiments with qubits based on Rydberg cesium atoms enables a broad spectrum of new research and development that was previously inaccessible:\n- Development of quantum computers with ensembles of cold atoms, where each ensemble represents a qubit.\n- Development of a fast and reliable preparation of qubits in arbitrary superposition states of 0 and 1.\n- Development of a fast method for reading out qubits.\n- Research into the physics of Rydberg atoms and the application of the Rydberg blockade mechanism in quantum devices.\n- The possibility of using the laser system for the manipulation of qubits based on ensembles of cold atoms as well as for individual atoms.","74905 \n75392 \n75470 \n75944 ",{"$f":"Table4[[#This Row],[21]]","v":{"v":86.2208528846154,"d":"86.22"}},{"$f":"J231*0.2/2080","v":{"v":24.490852884615393,"d":"24.49"}},3,58.73,{"$f":"SUBTOTAL(9,Table4[[#This Row],[18]:[20]])","v":{"v":86.2208528846154,"d":"86.22"}},100,20,"https://www.ijs.si/ijsw/Znotraj%20hi%C5%A1e/Desno?action=AttachFile&do=get&target=ARIS_Evidenca_opreme_2024.xlsx",6,6.4,"6.4.7",60,{"$f":"Table4[[#This Row],[11]]","v":"P_XXI_153"},0,5,100,{"$f":"Table4[[#This Row],[4]]","v":"P1-0416"},{"$f":"Table4[[#This Row],[5]]","v":"PETER JEGLIČ "},100]
[106,"Institut \"Jožef Stefan\"",null,"P2-0405","SABINA MARKELJ ",25624,"Sistem za skeniranje ionskega žarka ",2023,"Ion beam scanning system",{"v":68693.47,"d":"68,693.47"},"P_XXI_154","Uporabniki bodo lahko dostopali do opreme tako, da bodo predlagali, kaj bi zeleli implatirati ali obstreljevati. Način kontaktiranja je preko elektronskega sporočila sabina.markelj@ijs.si.","Users will be able to access the equipment by proposing what they would like to implant or irradiate. The method of contact is via e-mail sabina.markelj@ijs.si.","To je sistem za skeniranje ionskega žarka , ki je v osnovi elektrostatsko lečje in omogoča skeniranje in tako enakomerno nanašanje ionskega žarka po ravnih vzorcih. Zasnovan je za zelo enakomerno implantacijo ionskega žarka z MeV energijami preko velikega ciljnega območja. To nam omogoča homogeno obstreljevanje vzorcev z MeV ioni in s tem kreacijo poškodb v kristalni rešetki.","The ion beam scanning system is based on electrostatic lenses and enables uniform scanning of the MeV ion beam over flat samples. It is designed for highly uniform ion beam implantation at MeV energies over large target area. This allows us to homogeneously irradiate the samples with MeV ions and thus creating damage in the crystal lattice.",75616,{"$f":"Table4[[#This Row],[21]]","v":{"v":40.495141346153844,"d":"40.50"}},{"$f":"J232*0.2/2080","v":{"v":6.605141346153847,"d":"6.61"}},12,21.89,{"$f":"SUBTOTAL(9,Table4[[#This Row],[18]:[20]])","v":{"v":40.495141346153844,"d":"40.50"}},100,20,"https://www.ijs.si/ijsw/Znotraj%20hi%C5%A1e/Desno?action=AttachFile&do=get&target=ARIS_Evidenca_opreme_2024.xlsx",1,1,7,50,{"$f":"Table4[[#This Row],[11]]","v":"P_XXI_154"},21.89,5,100,{"$f":"Table4[[#This Row],[4]]","v":"P2-0405"},{"$f":"Table4[[#This Row],[5]]","v":"SABINA MARKELJ "},100]
[106,"Institut \"Jožef Stefan\"",null,"P4-0127","BORIS ROGELJ ",15813,"Spining disk naprava",2023,"Spinning disc device",{"v":245295.44,"d":"245,295.44"},"P_XXI_155","Oprema je dostopna odsekom IJS in zunanjim uporabnikom po predhodnem dogovoru (Boris.Rogelj@ijs.si) in znotraj delovnega časa. Opremo lahko uporabljajo le usposobljeni operaterji. Možnost brezplačne uporabe v primeru izvajanja skupnih RR projektov in možnost uporabe po ceniku IJS. ","The equipment is available to IJS departments and external users by prior arrangement (contact Boris.Rogelj@ijs.si) within the working hours. The equipment can be used only by trained operators. The possibility of free use is offered in case of joint RR project, otherwise the use is charged according to the JSI price list.","Spining disk omogoča \"live cell imaging\", mikroskopske analize živih nativnih vzorcev. Zaradi zmanjšanega navzkrižnega zajemanja signala med luknjicami vrtečega diska (Nipkow disk),  je mogoč jasen zajem slike signalov monoslojev in debelejših bioloških vzorcev (tkivne rezine, sferoidi ali organoidi). Vrteči disk je osnovan za zajem večjega vidnega polja (FOV). Izboljšani vgrajeni mehanizem naprave omogoča premike diskov v optični poti na način, da je omogočena zelo hitra in lahka konfokalna in ne-konfokalna projekcija slik s fluorescenco in faznim kontrastom. Zaradi vhodov in sistema sočasnega zajemanja signalov z dvema kamerama omogoča uporabo različnih kombinacij barvil v nativnih vzorcih in opazovanje skozi daljše časovno obdobje brez foto-bledenja. ","Spinning disk enables \"live cell imaging\", microscopic analysis of living native samples. Due to the reduced cross-capture of the signal between the holes of the spinning disk (Nipkow disk), clear image capture of the signals of monolayers and thicker biological samples (tissue slices, spheroids or organoids) is enabled. The spinning disk is designed to capture a larger field of view (FOV). The improved built-in mechanism of the device enables the movements of the discs in the optical path in such a way that a very fast and easy confocal and non-confocal projection of images with fluorescence and phase contrast is enabled. Thanks to the enabled inputs and the system of simultaneous capture of signals with two cameras, it allows for the use of combinations of dyes in native samples and bservation over a longer period of time without photo-fading.",75631,{"$f":"Table4[[#This Row],[21]]","v":{"v":95.67609999999999,"d":"95.68"}},{"$f":"J233*0.2/2080","v":{"v":23.586100000000002,"d":"23.59"}},13.36,58.73,{"$f":"SUBTOTAL(9,Table4[[#This Row],[18]:[20]])","v":{"v":95.67609999999999,"d":"95.68"}},100,20,"https://www.ijs.si/ijsw/Znotraj%20hi%C5%A1e/Desno?action=AttachFile&do=get&target=ARIS_Evidenca_opreme_2024.xlsx",3,4,6,10,{"$f":"Table4[[#This Row],[11]]","v":"P_XXI_155"},58.73,5,100,{"$f":"Table4[[#This Row],[4]]","v":"P4-0127"},{"$f":"Table4[[#This Row],[5]]","v":"BORIS ROGELJ "},60,"J3-4503","Boris Rogelj",20,"J7-4420","Aleš Berlec",10,"J4-4555","Jerica Sabotič",10]
[106,"Institut \"Jožef Stefan\"",null,"P4-0127","HELENA MOTALN ",21397,"Motoriziran mikroskop z laser HW autofocus in live imaging komoro ",2023,"Motorized microscope with laser HW autofocus and live imaging chamber",{"v":245491.75999999998,"d":"245,491.76"},"P_XXI_156","Oprema je dostopna odsekom IJS in zunanjim uporabnikom po predhodnem dogovoru (Helena.Motaln@ijs.si) in znotraj delovnega časa. Opremo lahko uporabljajo le usposobljeni operaterji. Možnost brezplačne uporabe v primeru izvajanja skupnih RR projektov in možnost uporabe po ceniku IJS.","The equipment is available to IJS departments and external users by prior arrangement (contact Helena.Motaln@ijs.si) within the working hours. The equipment can be used only by trained operators. The possibility of free use is offered in case of joint RR project, otherwise the use is charged according to the JSI price list.","Motoriziran mikroskop s poudarkom na kompletno motoriziranem krmiljenju in laserskem autofokus sistemu, ki z uporabo dveh kamer za sočasen zajem signala v izjemno kratkih (milisekundnih intervalih) omogoča analizo dinamičnih procesoc v celicah, tkivih in bakterijskih biofilmih. Te je možno vzdrževati v in vivo pogojih v posebni komori direktno na mikroskopu, skozi celotno eksperimentalno obdobje. Pri tem poleg temperature in automatskega prilagajanja autofocusa objektivov sistem omogoča tudi nadzor atmosferskega mikrookolja zrak/CO2. Sistem z uporabo fluorescentnega vira svetlobe omogoča analizo strukturnih komponent celic, študij dinamičnih procesov in lokalizacijo molekul na znotrajceličnem nivoju.","A motorized microscope with an emphasis on fully motorized control and a laser autofocus system that, by using two cameras for simultaneous signal capture in extremely short (millisecond intervals), enables the analysis of dynamic processes in cells, tissues and bacterial biofilms. These can be maintained under in vivo conditions in a special chamber directly on the microscope, throughout the entire experimental period. In addition to the temperature and automatic adjustment of the autofocus of the lenses, the system also allows control of the atmospheric microenvironment air/CO2. The system, using a fluorescent light source, enables the analysis of structural components of cells, the study of dynamic processes and the localization of molecules at the intracellular level.",75632,{"$f":"Table4[[#This Row],[21]]","v":{"v":95.69497692307692,"d":"95.69"}},{"$f":"J234*0.2/2080","v":{"v":23.604976923076922,"d":"23.60"}},13.36,58.73,{"$f":"SUBTOTAL(9,Table4[[#This Row],[18]:[20]])","v":{"v":95.69497692307692,"d":"95.69"}},100,20,"https://www.ijs.si/ijsw/Znotraj%20hi%C5%A1e/Desno?action=AttachFile&do=get&target=ARIS_Evidenca_opreme_2024.xlsx",3,4,6,10,{"$f":"Table4[[#This Row],[11]]","v":"P_XXI_156"},58.73,5,100,{"$f":"Table4[[#This Row],[4]]","v":"P4-0127"},{"$f":"Table4[[#This Row],[5]]","v":"HELENA MOTALN "},60,"J3-4503","Boris Rogelj",20,"J7-4420","Aleš Berlec",10,"J4-4555","Jerica Sabotič",10]
[106,"Institut \"Jožef Stefan\"",null,"P1-0125","Stanislav Vrtnik",26471,"Sistem za pripravo in shranjevanje vzorcev v\nvisokem vakuumu",2024,"System for sample preparation and storage in high vacuum",{"v":137480.47,"d":"137,480.47"},"P_XXII_004","Za dostop do raziskovalne opreme se je potrebno dogovoriti z operaterji in skrbnikom opreme, ki se jih lahko kontaktira preko elektorske pošte na stane.vrtnik@ijs.si ali primoz.kozelj@ij.si oz. se jih obišče v laboratoriju, kjer se oprema nahaja. Dogovori se, kdaj bo oprema na voljo za uporabo, koliko časa bo potrebno za izvedbo eksperimenta oz. se v primeru zasedenosti dogovori za vrstni red uporabe. Večina priprav vzorcev oz. meritev je lahko gotova v zelo kratkem času (meritev mase, ultrazvočno varjenje) in se ne pričakuje čakanje na uporabo, nekatere pa lahko trajajo več dni, kot je pri rezanju vzorcev z žično žago in je za to potreben dogovor za vrstni red uporabe. Visok vakuum, kjer so shranjeni vzorci, deluje neprekinjeno 24/7 in se lahko vzorce doda kadarkoli s predhodno najavo.","To access the research equipment, it is necessary to contact the operators and the equipment manager, who can be reached via email at stane.vrtnik@ijs.si or primoz.kozelj@ijs.si, or by visiting them in the laboratory where the equipment is located. The availability of the equipment and the time required to carry out the experiment will be checked. In case of overlapping schedules with multiple users, a queue for usage will be established. Most preparations and measurements can be completed in a very short time (such as mass measurement or using a wire bonder) and no waiting is expected for use, while others may take several days, such as cutting samples with a wire saw. High-vacuum storage operates 24/7, and additional samples can be added with prior notice.","Oprema je namenjena za pripravo vzorcev za fizikalne meritve in za raziskave površine. Vzorce se lahko razreže na željene dimenzije (sistem je primere za vzorce velikosti nekaj milimetrov), se jim natančno določi maso (do natančnosti 0.1 mikrograma) in se na njih naredi električne kontakte z ultrazvočnim varilcem (wire bonder). Vzorce se lahko shrani v visokem vakuumu, kar omogoča, da občutljivi vzorci na zrak ne oksidirajo in reagirajo z vlago. Sistem je primeren tudi za pripravo vzorcev za elektronsko mikroskopijo (SEM, TEM, EDS, itd.). Možna je tudi izvedba eksperimentov in izvajanje merskih metod, kjer je potrebno natančno določiti  maso vzorcev oz. imajo vzorci zelo majhno maso. Ultrazvočni varilec (wire bonder) se lahko uporablja v elektroniki za izdelavo električnih povezav oz. za povezovanje elektronskih čipov s podnožjem.","The equipment is intended for samples preparation for physical measurements and surface research. Samples can be cut to desired dimensions (the system is intended for sample sizes of few millimeters), their masses can be accurately determined (with precision up to 0.1 micrograms), and electrical contacts can be made using a wire bonder. The samples can be stored in high vacuum, which prevents sensitive samples from oxidizing or reacting with moisture in the air. The system is also suitable for preparing samples for electron microscopy (SEM, TEM, EDS, etc.). It is also possible to conduct experiments and apply measurement methods where precise determination of sample mass is required or when the samples have very small masses. The wire bonder can also be used in electronics to create electrical connections or to bond electronic chips to chip carrier.","77644 \n77471 \n77115 \n77200",{"$f":"Table4[[#This Row],[21]]","v":{"v":40.039275961538465,"d":"40.04"}},{"v":13.219275961538463,"d":"13.22"},4.75,22.07,{"$f":"SUBTOTAL(9,Table4[[#This Row],[18]:[20]])","v":{"v":40.039275961538465,"d":"40.04"}},100,0,"https://www.ijs.si/ijsw/Znotraj%20hi%C5%A1e/Desno?action=AttachFile&do=get&target=ARIS_Evidenca_opreme_2024.xlsx",3,12,4,4,"P_XXII_004",19.41,5,100,{"$f":"Table4[[#This Row],[4]]","v":"P1-0125"},{"$f":"Table4[[#This Row],[5]]","v":"Stanislav Vrtnik"},40,"N1-0330","S. Vrtnik",30,"P2-0348","Z. Jagličić",20,"P1-0099","A. Hassanien",10]
[106,"Institut \"Jožef Stefan\"",null,"P1-0416","Peter\nJeglič",21545,"Optična pinceta za lovljenje in\nmanipulacijo hladnih Rydbergovih atomov",2024,"Optical tweezer for trapping and manipulation of cold Rydberg atoms",{"v":117486,"d":"117,486.00"},"P_XXII_027","Raziskovalna oprema predstavlja pomembno nadgradnjo eksperimentalnega sistema za hlajenje in lovljenje atomov cezija, ki smo ga v zadnjih dvanajstih letih razvijali in postavljali v Laboratoriju za hladne atome na Institutu “Jožef Stefan”. Nadgradnja bo v celoti zaključena predvidoma poleti 2025. Prioriteto pri dostopu do raziskovalne opreme imajo raziskovalci in sodelavci Laboratorija za hladne atome. Za raziskovalce z javnih raziskovalnih zavodov in javnih univerz bo uporaba v okviru skupnih projektov (tudi neformalnih sodelovanj) brezplačna. Še naprej bomo usposabljali in izobraževali zainteresirane študente in predvsem mlajše raziskovalce brez predhodnih izkušenj. Za sodelovanja z gospodarstvom se bomo držali pravil, zapisanih v \"Pravila za oblikovanje cen za uporabo raziskovalne opreme, obveščanje in poročanje o uporabi raziskovalne opreme” št. 007-5/2023-1 z dne 3. 5. 2023.","The research equipment is a significant upgrade to the experimental system for cooling and trapping cesium atoms, which we have developed and built over the past twelve years in the Laboratory for cold atoms at the Jožef Stefan Institute. The upgrade will be fully completed by summer 2024. Team members and collaborators of the Laboratory for Cold Atoms will have priority access to the equipment. Researchers from public research institutes and universities can use it through joint projects (including informal collaborations) free of charge. We will continue training and educating interested students and early-career researchers without prior experience. For industry collaborations, we will follow the guidelines outlined in the document \"Pravila za oblikovanje cen za uporabo raziskovalne opreme, obveščanje in poročanje o uporabi raziskovalne opreme\" (No. 007-5/2023-1, dated May 3, 2023).","Optična pinceta za lovljenje in manipulacijo hladnih Rydbergovih atomov omogoča širok spekter novih raziskav in razvoja, ki je bil do zdaj nedostopen: Možnost opazovanja oblaka atomov na mikrometrski skali. Implemetacijo metode za pripravo in detekcijo Rydbergovih atomov in s tem Rydbergovega kubita z oblakom atomov. Pripravo niza oblakov (ansamblov) atomov v multipleskiranih optičnih pasteh v poljubnih dvodimenzionalnih geometrijah. Razširitev metode za pripravo in detekcijo Rydbergovih atomov iz enega atomskega oblaka na niz več takšnih oblakov. Demonstracijo Rydbergove blokade med dvema ansambloma atomov in demonstracija dvokubitnih CNOT vrat. Izvedbo kutritnih logičnih vrat.","Optical tweezer for trapping and manipulation of cold Rydberg atoms enables a broad spectrum of new research and development that was previously inaccessible: Detection of atomic clouds at the micrometer scale. Implementation of methods for preparing and detecting Rydberg atoms, enabling the realization of a Rydberg qubit within an atomic ensemble. Preparation of arrays of atomic clouds (ensembles) in multiplexed optical traps with arbitrary two-dimensional geometries. Extension of Rydberg atom preparation and detection methods from a single atomic cloud to multiple clouds. Demonstration of Rydberg blockade between two atomic ensembles and implementation of two-qubit CNOT gates. Demonstration of qutrit logic gates.",77950,{"$f":"Table4[[#This Row],[21]]","v":{"v":74.46673076923076,"d":"74.47"}},{"$f":"J236*0.2/2080","v":{"v":11.29673076923077,"d":"11.30"}},1.5,61.67,{"$f":"SUBTOTAL(9,Table4[[#This Row],[18]:[20]])","v":{"v":74.46673076923076,"d":"74.47"}},100,0,"https://www.ijs.si/ijsw/Znotraj%20hi%C5%A1e/Desno?action=AttachFile&do=get&target=ARIS_Evidenca_opreme_2024.xlsx",6,4,7,60,{"$f":"Table4[[#This Row],[11]]","v":"P_XXII_027"},0,5,{"$f":"(AI236+AL236+AO236+AR236+AU236+AX236)","v":100},{"$f":"Table4[[#This Row],[4]]","v":"P1-0416"},{"$f":"Table4[[#This Row],[5]]","v":"Peter\nJeglič"},100]
[106,"Institut \"Jožef Stefan\"",null,"P2-0084","Kristina\nŽužek",18824,"Analizator kisika, dušika in\nvodika v anorganskih vzorcih",2024,"Oxygen, nitrogen and hydrogen analyzer in solid samples",{"v":181581.13999999998,"d":"181,581.14"},"P_XXII_063","Zaradi enostavnosti uporabe je možnost upravljanja zainteresiranim uporabnikom izven odseka izvedljiva v kratkem roku. Popraševanja se naslovijo preko interentne strani odseka za nanostrukturne materiale, na odsečni internetni naslov (sabina.cintauer@ijs.si) ali direktno na odgovorno osebo Benjamin Podmiljšak (benjamin.podmiljsak@ijs.si). Po kratkem sestanku se opredeli ali je meritev na določenem vzorcu izvedljiva in kakšen ja časovnica za izvedbo meritve.","Due to the simplicity of its operation, it is possible for interested users outside the department to begin using the instrument within a short time frame. Inquiries can be submitted via the Department of Nanostructured Materials website, by emailing the department contact (sabina.cintauer@ijs.si), or directly to the responsible person, Benjamin Podmiljšak (benjamin.podmiljsak@ijs.si). After a brief meeting, feasibility of the measurement on the specific sample and the timeline for conducting it will be determined.","Oprema je za meritev vsebnosti kisika, dušika in vodika v trdnih delcih, v kosih ali prahovih. Možnost je tudi analiza v inertni atmosferi, da se prepreči kontaminacija le teh. Merilno območje:\no Območje kisika: 0,00005 do 50 mg (0,05 ppm do 5,0 % za vzorec 1 g)\no Razpon dušika: 0,00005 do 30 mg (0,05 ppm do 3,0 % za vzorec 1 g)\no Območje vodika: 0,0001 do 2,5 mg (0,1 ppm do 2500 ppm za vzorec 1 g)","The equipment is used to measure the oxygen, nitrogen, and hydrogen content in solid samples, either in chunks or powders. Analyses can also be conducted under an inert atmosphere to prevent contamination. The measurement range is as follows:\no Oxygen range: 0.00005 to 50 mg (0.05 ppm to 5.0% for a 1 g sample)\no Nitrogen range: 0.00005 to 30 mg (0.05 ppm to 3.0% for a 1 g sample)\no Hydrogen range: 0.0001 to 2.5 mg (0.1 ppm to 2500 ppm for a 1 g sample).",78112,{"$f":"Table4[[#This Row],[21]]","v":{"v":109.24972499999998,"d":"109.25"}},{"v":17.459725,"d":"17.46"},23.72,68.07,{"$f":"SUBTOTAL(9,Table4[[#This Row],[18]:[20]])","v":{"v":109.24972499999998,"d":"109.25"}},100,0,"https://www.ijs.si/ijsw/Znotraj%20hi%C5%A1e/Desno?action=AttachFile&do=get&target=ARIS_Evidenca_opreme_2024.xlsx",3,11,4,4,{"$f":"Table4[[#This Row],[11]]","v":"P_XXII_063"},68.07,5,100,{"$f":"Table4[[#This Row],[4]]","v":"P2-0084"},{"$f":"Table4[[#This Row],[5]]","v":"Kristina\nŽužek"},100]
[106,"Institut \"Jožef Stefan\"",null,"P2-0073","Luka Snoj",27819,"Nadgradnja računalniške\ngruče po sistemu »na ključ«",2024,"Upgrade of the HPC computer cluster",{"v":290468.58,"d":"290,468.58"},"P_XXII_069","Glede na proste kapacitete in ob predhodnem dogovoru je oprema na voljo preko bojan.zefran@ijs.si. Več informacij je na: https://f8.ijs.si/gruce-f8/."," Depending on the availability of the resources the arrangements can be made through bojan.zefran@ijs.si. More information on: https://f8.ijs.si/gruce-f8/.","Računalniška gruča z večjim številom jeder, namenjena izračunom, ki kjer lahko uporabimo paralelno računanje za pospešitev računanja. Nadgradnja gruče vsebuje 6 računskih vozlišč, ki vsebujejo po 2 x 32 jedrna procesorja in vsaj 1024 GB spomina in nov datotečni strežnik.","Compute cluster with large number of CPU cores for simulations that can take advantage of parallel computing. Cluster upgrade consists of 6 nodes with 2 x 32 core processors and 1024 GB of memory and new file server.",65270,{"$f":"Table4[[#This Row],[21]]","v":{"v":27.929671153846158,"d":"27.93"}},{"v":27.929671153846158,"d":"27.93"},"0,01 / jedro / uro","0,01 / jedro / uro",{"$f":"SUBTOTAL(9,Table4[[#This Row],[18]:[20]])","v":{"v":27.929671153846158,"d":"27.93"}},100,0,"https://www.ijs.si/ijsw/Znotraj%20hi%C5%A1e/Desno?action=AttachFile&do=get&target=ARIS_Evidenca_opreme_2024.xlsx",6,1,4,26,"P_XXII_069",0,5,100,{"$f":"Table4[[#This Row],[4]]","v":"P2-0073"},{"$f":"Table4[[#This Row],[5]]","v":"Luka Snoj"},40,"PR-11716-1 (EUROfusion)","Raziskovalci odseka F-8",45,"P2-0405-23 (EUROfusion education)","Domen Kotnik",15]
[106,"Institut \"Jožef Stefan\"",null,"P1-0044","Luka Leskovec",34446,"Razširitev računske gruče z\nrezinami za simulacije kvantnih sistemov",2024,"Upgrading the computer cluster with compute nodes to simulate quantum systems",363328.2,"P_XXII_100","Uporaba je možna po predhodnem dogovoru z vodjo odseka in skrbniki (rok.zitko@ijs.si, luka.leskovec@ijs.si)","Usage possible upon prior agreement with Department Head and Administrators (rok.zitko@ijs.si, luka.leskovec@ijs.si)","Osnovno orodje teoretične fizike; na novih rezinah se izvajajo izračuni na področjih fizike trdne snovi, fizike osnovnih delcev, biofizke in kvantne fizike.","Basic tool of theoretical physics; new compute nodes are being used for computations in the fields of solid state physics, particle physics, biophysics and quantum physics.",77323,{"$f":"Table4[[#This Row],[21]]","v":{"v":41.93540384615385,"d":"41.94"}},34.93540384615385,4,3,{"$f":"SUBTOTAL(9,Table4[[#This Row],[18]:[20]])","v":{"v":41.93540384615385,"d":"41.94"}},100,0,"https://www.ijs.si/ijsw/Znotraj%20hi%C5%A1e/Desno?action=AttachFile&do=get&target=ARIS_Evidenca_opreme_2024.xlsx",6,1,4,26,"P_XXII_100",0,4,100,{"$f":"Table4[[#This Row],[4]]","v":"P1-0044"},{"$f":"Table4[[#This Row],[5]]","v":"Luka Leskovec"},30,"P1-0035","Jernej F. Kamenik",30,"P1-0055","Primož Ziherl",30,"P1-0416","Rok Žitko",10]
[106,"Institut \"Jožef Stefan\"",null,"P1-0125","Matjaž Gomilšek",36353,"Vzpostavitev računske gruče za ab initio simulacije kvantnih in funkcionalnih\nmaterialov",2024,"Establishing a computing cluster for ab initio simulations of quantum and functional materials",{"v":90438.6,"d":"90,438.60"},"P_XXII_109","Uporaba je možna po predhodnem dogovoru z vodjo odseka in skrbnika gruče (Matjaž Gomilšek, matjaz.gomilsek@ijs.si).","Usage is possible upon prior agreement with the Department Head and the cluster Administrator (Matjaž Gomilšek, matjaz.gomilsek@ijs.si).","Na računski gruči se izvajajo izračuni iz fizike trdne snovi, fizike mehke snovi in kvantne fizike. Primarno so to ab initio izračuni s teorijo gostotnih funkcionalov (density functional theory; DFT) in razširitvami le-teh na: časovno odvisne probleme, klasično molekularno dinamiko in kvantno molekularno dinamiko osnovano na potkovnih integralih. Drugo večje področje so izračuni optičnih lastnosti mehke snovi ter povezane simulacije.","On the compute cluster calculations in condensed matter physics, soft matter physics, and quantum physics. Primarily, these are ab initio calculations based on density functional theory (DFT) and extensions of these to: time-dependent problems, classical molecular dynamics, and quantum molecular dynamics based on path integrals. The second main are are calculations of optical properties of soft matter and related simulations.",77457,{"$f":"Table4[[#This Row],[21]]","v":{"v":15.696019230769231,"d":"15.70"}},{"v":8.696019230769231,"d":"8.70"},4,3,{"$f":"SUBTOTAL(9,Table4[[#This Row],[18]:[20]])","v":{"v":15.696019230769231,"d":"15.70"}},100,0,"https://www.ijs.si/ijsw/Znotraj%20hi%C5%A1e/Desno?action=AttachFile&do=get&target=ARIS_Evidenca_opreme_2024.xlsx",6,1,4,6,{"$f":"Table4[[#This Row],[11]]","v":"P_XXII_109"},0,4,100,{"$f":"Table4[[#This Row],[4]]","v":"P1-0125"},{"$f":"Table4[[#This Row],[5]]","v":"Matjaž Gomilšek"},100]
[106,"Institut \"Jožef Stefan\"",null,"P1-0099","Venkata Subba Rao Jampani",32598,"Modularen polarizacijski mikroskopski sistem z integriranim laserskim konfokalnim skeniranjem in hitrim snemanjem pri šibki\nsvetlobi",2024,"Modular polarization microscopy system with integrated laser confocal scanning and fast low-light imaging",{"v":460123.62,"d":"460,123.62"},"P_XXII_112","Kontaktna oseba je dr. Venkata S. R. Jampani (vsrao.jampani@ijs.si) na IJS. Meritve izvajajo člani raziskovalne skupine. Zunanji uporabniki morajo prinesti vzorce materialov in lahko sodelujejo pri meritvah.","The contact person is Dr. Venkata S. R. Jampani (vsrao.jampani@ijs.si) at JSI. Measurements are performed by members of the research group. External users need to bring samples of materials and can participate in the measurements.  ","Konfokalno slikanje fluorescentno označenih vzorcev. Najvišja stranska ločljivost, ki jo je mogoče doseči s konfokalnim skeniranjem, je približno 185 nm. Iste vzorce je mogoče istočasno slikati v transmisijskem in refleksijskem načinu brez funkcije konfokalnosti kot pri drugih običajnih mikroskopih.","Confocal imaging of fluorescently labeled samples. The highest lateral resolution that can be achieved through confocal scanning is at about 185nm. The same samples can be simultaneously imaged in transmission and reflection mode without the confocality feature like any other regular microscope.  ",78030,{"$f":"Table4[[#This Row],[21]]","v":{"v":110.24265576923077,"d":"110.24"}},{"v":44.24265576923077,"d":"44.24"},15,51,{"$f":"SUBTOTAL(9,Table4[[#This Row],[18]:[20]])","v":{"v":110.24265576923077,"d":"110.24"}},100,0,"https://www.ijs.si/ijsw/Znotraj%20hi%C5%A1e/Desno?action=AttachFile&do=get&target=ARIS_Evidenca_opreme_2024.xlsx",3,4,1,4,"P_XXII_112",51,5,55,{"$f":"Table4[[#This Row],[4]]","v":"P1-0099"},{"$f":"Table4[[#This Row],[5]]","v":"Venkata Subba Rao Jampani"},10,"P1-0099","VSR Jampani",25,"N1-0400","VSR Jampani",20]
[106,"Institut \"Jožef Stefan\"",null,"P2-0105","Barbara\nMalič",4587,"Oprema za karakterizacijo\ntermičnih in morfoloških\nlastnosti materialov",2024,"Equipment for characterization of thermal and morphological properties of materials",{"v":431763.62999999995,"d":"431,763.63"},"P_XXII_122","Oprema za karakterizacijo termičnih in morfoloških lastnosti materialov je instalirana na Odseku za elektronsko keramiko, Institut Jožef Stefan. Za opremo je zadolžena odgovorna oseba (raziskovalka ali raziskovalec), ki skrbi, da je oprema operativna, vzdrževana in redno servisirana. Oprema je dostopna uporabnikom, ki se glede časa in načina uporabe opreme dogovorijo z odgovorno osebo osebno, preko telefona ali e-maila.","The equipment for the characterization of thermal and morphological properties of materials is installed at the Electronic Ceramics Department, Jožef Stefan Institute. The researcher responsible for the equipment ensures that it is operational, maintained and regularly serviced. The equipment is accessible to users who agree with the researcher-in-charge on the details of the analyses performed in person, by telephone, or by e-mail.","Raziskovalna oprema je namenjena izvajanju analiz termičnih in morfoloških lastnosti materialov. Opremo za karakterizacijo termičnih lastnosti dispergiranih in volumenskih materialov sestavljajo trije sklopi: aparatura za simultano termično analizo (STA), ki je sklopljena s kvadropolnim masnim spektrometrom (MS) v temperaturnem območju od sobne temperature do 1600 °C ter diferenčni dinamični kalorimeter (DSC) za nizkotemperaturno območje od -180 °C do 650 °C. Sistem za karakterizacijo morfoloških lastnosti dispergiranih vzorcev – laserski granulometer omogoča meritve velikosti delcev v širokem območju velikosti od 10 nm do 4 mm na osnovi sipanja svetlobe.","The equipment is dedicated to the characterization of thermal and morphological properties of materials. The equipment for the characterization of thermal properties of dispersed and bulk materials includes three modules: the equipment for simultaneous thermal analysis (STA) coupled with a quadrupole mass spectrometer in the temperature range from room temperature to 1600 °C and a differential dynamic calorimeter for the temperature range, from -180 °C do 650 °C. The equipment for the characterization of morphological properties of dispersed samples, the laser granulometer, enables measurements of particle size in a broad size range from 10 nm to 4 mm on the principle of light diffraction.",77032,{"$f":"Table4[[#This Row],[21]]","v":{"v":58.43573365384616,"d":"58.44"}},{"v":41.515733653846155,"d":"41.52"},16.92,0,{"$f":"SUBTOTAL(9,Table4[[#This Row],[18]:[20]])","v":{"v":58.43573365384616,"d":"58.44"}},100,0,"https://www.ijs.si/ijsw/Znotraj%20hi%C5%A1e/Desno?action=AttachFile&do=get&target=ARIS_Evidenca_opreme_2024.xlsx",3,11,4,3,{"$f":"Table4[[#This Row],[11]]","v":"P_XXII_122"},43.46,5,100,{"$f":"Table4[[#This Row],[4]]","v":"P2-0105"},{"$f":"Table4[[#This Row],[5]]","v":"Barbara\nMalič"},100]
[106,"Institut \"Jožef Stefan\"",null,"P1-0143","Tomaž\nRijavec",27542,"Rescaning konfokalni mikroskop za vizualizacijo bakterijskih tridimenzionalnih struktur (sistem RCM)",2024,"Rescaning confocal microscope for visualization of bacterial threedimential structure (RCM system)",{"v":246933.61,"d":"246,933.61"},"P_XXII_144","Oprema je namenjena za raziskovalno in razvojno dejavnost. Za delo z opremo so potrebna predhodna znanja, zato uporaba brez pomoči ustrezno kvalificiranega kadra ni možna (interni operater). Možni načini uporabe opreme so: (i) naročila storitev (ii) skupni raziskovalni projekti. Kontakti: biocolloid@ijs.si, o2-tajnistvo@ijs.si","Oprema je namenjena raziskovalni in razvojni dejavnosti. Za delo z opremo so potrebna predhodna znanja, zato uporaba brez pomoči ustrezno kvalificiranega kadra ni možna (interni operater). Možni načini uporabe so: (i) naročila storitev (ii) skupni raziskovalni projekti. Kontakti: biocolloid@ijs.si, o2-tajnistvo@ijs.si","Konfokalni mikroskop je primeren za vzporedno vizualizacijo fluorescentno označenih mikroskopskih struktur. Omogoča vizualizacijo petih oken vzbujanja/emisije v valovnih dolžinah VIS in NIR. Oprema je namenjena vizualizaciji označenih bakterijskih celic, agregatov ali biofilmov, označenih biomolekul ali materialov, označenih nanostruktur itd.","Rescaning confocal microscope is suitable for simulteous visulaization of fluorescently labeled microscopic structures. It allows the visualization of five excitation/emission windows in VIS and NIR wavelengths. Equipment is purposed for visualization of labeld bacterial cells, aggregates or biofilms, labled biomolecules or materials, labeled nanostructures, etc.",78168,{"$f":"Table4[[#This Row],[21]]","v":{"v":26.343616346153848,"d":"26.34"}},{"v":23.743616346153846,"d":"23.74"},0,2.6,{"$f":"SUBTOTAL(9,Table4[[#This Row],[18]:[20]])","v":{"v":26.343616346153848,"d":"26.34"}},100,0,"https://www.ijs.si/ijsw/Znotraj%20hi%C5%A1e/Desno?action=AttachFile&do=get&target=ARIS_Evidenca_opreme_2024.xlsx",4,5,5,60,{"$f":"Table4[[#This Row],[11]]","v":"P_XXII_144"},40.6,5,100,{"$f":"Table4[[#This Row],[4]]","v":"P1-0143"},{"$f":"Table4[[#This Row],[5]]","v":"Tomaž\nRijavec"},100]
[106,"Institut \"Jožef Stefan\"",null,"P2-0076","Jan Babič",20216,"Sistem za napredno haptično teleoperacijo robotov za adaptivno sodelovanje s\nčlovekom",2024,"Advanced haptic teleoperation system for robots for adaptive human collaboration",{"v":248795.97000000003,"d":"248,795.97"},"P_XXII_170","Po predhodni najavi.","With prior notice.","Človekova motorična kontrola.","Human motor control.",77181,{"$f":"Table4[[#This Row],[21]]","v":{"v":23.92268942307693,"d":"23.92"}},{"v":23.92268942307693,"d":"23.92"},0,0,{"$f":"SUBTOTAL(9,Table4[[#This Row],[18]:[20]])","v":{"v":23.92268942307693,"d":"23.92"}},100,0,"https://www.ijs.si/ijsw/Znotraj%20hi%C5%A1e/Desno?action=AttachFile&do=get&target=ARIS_Evidenca_opreme_2024.xlsx",6,4,2,4,{"$f":"Table4[[#This Row],[11]]","v":"P_XXII_170"},0,5,100,{"$f":"Table4[[#This Row],[4]]","v":"P2-0076"},{"$f":"Table4[[#This Row],[5]]","v":"Jan Babič"},100]
[106,"Institut \"Jožef Stefan\"",null,"P1-0125","Martin\nKlanjšek",20209,"NMR spektrometer za\nmagnetna polja do 9.4 T",2024,"NMR spectrometer for magnetic fields up to 9.4 T",{"v":106164.4,"d":"106,164.40"},"P_XXII_196","Uporabnik, ki si želi dostop do opreme, se mora glede tega dogovoriti s skrbnikom opreme (Martin Klanjšek, martin.klanjsek@ijs.si). Uporaba opreme je mogoča le ob pomoči in nadzoru raziskovalca iz raziskovalne skupine skrbnika opreme. Za uporabnike raziskovalnih skupin z javnih raziskovalnih zavodov in javnih univerz je uporaba v okviru raziskovalnih sodelovanj brezplačna. Delo, ki bo nastalo na podlagi takšnih raziskav, bo veljalo za skupno delo obeh raziskovalnih skupin, kar se bo odslikavalo tudi v skupnem avtorstvu morebitnih znanstvenih člankov, ki bodo nastali na podlagi takšnih raziskav. Za uporabnike iz gospodarstva se bomo držali pravil zapisanih v dokumentu »Pravila za oblikovanje cen za uporabo raziskovalne opreme, obveščanje in poročanje o uporabi raziskovalne opreme« (https://www.arrs.si/sl/infra/oprema/akti/pravila-cene-oprema-maj-23.asp).","To access the equipment, a potential user should arrange this with the equipment administrator (Martin Klanjšek, martin.klanjsek@ijs.si). The use is possible only with the help and supervision of a researcher from the equipment administrator's research group. Users of research groups from public research institutes and public universities can use the equipment through research collaborations free of charge. The work generated on the basis of such research will be considered the joint work of both research groups, which will also be reflected in the joint authorship of any scientific articles stemming from such research. For users from the industry, we will adhere to the rules written in the document \"Rules for pricing the use of research equipment, information and reporting on the use of research equipment\" (https://www.arrs.si/sl/infra/oprema/akti/pravila-cene-oprema-maj-23.asp).","NMR spektrometer za magnetna polja do 9.4 T je elektronski del sistema za meritve z jedrsko magnetno resonanco (NMR) v magnetnih poljih do 9.4 T. Spektrometer je namenjen predvsem raziskavam kvantnih materialov, ki jih opravljamo v naši raziskovalni skupini, se pravi kvantnih magnetov in nenavadnih superprevodnikov. Hkrati pa smo, kakor je veljalo doslej, odprti tudi za zanimive predloge raziskav materialov s strani drugi raziskovalnih skupin, tako v Sloveniji kot po svetu.","NMR spectrometer for magnetic fields up to 9.4 T is the electronic part of the system for measurements using nuclear magnetic resonance (NMR) in magnetic fields up to 9.4 T. The spectrometer is intended primarily for study of quantum materials, which we carry out in our research group, namely quantum magnets and unusual superconductors. At the same time, as has been the case so far, we are also open to interesting proposals for materials research from other research groups, both in Slovenia and around the world.",77932,{"$f":"Table4[[#This Row],[21]]","v":{"v":20.418115384615383,"d":"20.42"}},{"v":10.208115384615384,"d":"10.21"},3.06,7.15,{"$f":"SUBTOTAL(9,Table4[[#This Row],[18]:[20]])","v":{"v":20.418115384615383,"d":"20.42"}},100,0,"https://www.ijs.si/ijsw/Znotraj%20hi%C5%A1e/Desno?action=AttachFile&do=get&target=ARIS_Evidenca_opreme_2024.xlsx",3,1,3,60,{"$f":"Table4[[#This Row],[11]]","v":"P_XXII_196"},0,5,100,{"$f":"Table4[[#This Row],[4]]","v":"P1-0125"},{"$f":"Table4[[#This Row],[5]]","v":"Martin\nKlanjšek"},100]
[106,"Institut \"Jožef Stefan\"",null,"P1-0112","Boštjan\nJenčič",37462,"Detektorji rentgenskih žarkov",2024,"X-ray detectors",86013.35,"P_XXII_201","Dostop je možen v dogovoru z vodjo odseka, prof. dr. Primožem Peliconom (primoz.pelicon@ijs.si). Uporabniki bodo bodo pojasnili namen in cilje raziskav. ","Access will be available through the head of the department, prof. dr. Primož Pelicon (primoz.pelicon@ijs.si). Users will need to summarize the purpose and goals of their research. ","Detektorji rentgenskih žarkov omogočajo meritev energije in intenzitete rentgentskih žarkov. Ob vzbujanju elementov v vzorcu s protoni, ti elementi izsevajo karakteristične rentgenske žarke, katere je z detektorji moč zaznati in posledično analizirati sestavo preiskovanih tarč.","X-ray detectors allow for measurement of energy and intensity of X-rays. During the bombardment of matter with protons, the atoms within the matter are excited and emit characteristic X-rays. These X-rays can be detected and analyzed with detectors, which leads to characterization of constituents of analyzed matter.  ",78159,{"$f":"Table4[[#This Row],[21]]","v":{"v":42.160514423076926,"d":"42.16"}},8.270514423076923,12,21.89,{"$f":"SUBTOTAL(9,Table4[[#This Row],[18]:[20]])","v":{"v":42.160514423076926,"d":"42.16"}},100,0,"https://www.ijs.si/ijsw/Znotraj%20hi%C5%A1e/Desno?action=AttachFile&do=get&target=ARIS_Evidenca_opreme_2024.xlsx",3,3,2,1,"P_XXII_201",21.89,5,100,{"$f":"Table4[[#This Row],[4]]","v":"P1-0112"},{"$f":"Table4[[#This Row],[5]]","v":"Boštjan\nJenčič"},100]
[106,"Institut \"Jožef Stefan\"",null,"P2-0103","Sašo\nDžeroski",11130,"Oprema za razvoj in analizo\nvelikih jezikovnih modelov",2024,"Equipment for the development and analysis of large language models",{"v":69817.03,"d":"69,817.03"},"P_XXII_232","Čas dostopa do opreme vsak delovni dan od 8:00 do 16:00 glede na razpoložljivost po predhodnem dogovoru s skrbnikom. Glede pogojev dostopa in razpoložljivosti kontaktirati Martina Žnidaršiča (martin.znidarsic@ijs.si)","The equipment is available upon request every day from 8 am to 4 pm subject to availability. For access conditions and availability contact Martin Žnidaršič (martin.znidarsic@ijs.si)","CPU in GPU strežniki za pripravo podatkov ter razvoj in  testiranje  procesov avtomatizacije strojnega učenja.","CPU and GPU servers for data preprocessing and development and testing of machine learning automation processes.\t","77889\n77258\n77961 \n77838 \n77068 \n77963 \n77972 \n77225 \n77962 \n77964 \n77965 \n77970 \n77971 \n78006 \n78007 \n77243 ",{"$f":"Table4[[#This Row],[21]]","v":{"v":48.81146995192308,"d":"48.81"}},{"v":8.391469951923076,"d":"8.39"},20,20.42,{"$f":"SUBTOTAL(9,Table4[[#This Row],[18]:[20]])","v":{"v":48.81146995192308,"d":"48.81"}},100,0,"https://www.ijs.si/ijsw/Znotraj%20hi%C5%A1e/Desno?action=AttachFile&do=get&target=ARIS_Evidenca_opreme_2024.xlsx",6,1,5,25,"P_XXII_232",0,5,100,{"$f":"Table4[[#This Row],[4]]","v":"P2-0103"},{"$f":"Table4[[#This Row],[5]]","v":"Sašo\nDžeroski"},100]
[106,"Institut \"Jožef Stefan\"",null,"P4-0127","Ana\nMitrović",36440,"Bioreaktor za gojenje celic v\n3D",2024,"Bioreactor for cultivation of 3D cell cultures",67258.6,"P_XXII_238","Oprema se nahaja v celičnem laboratoriju odseka B3, IJS. Oprema ja dostopna raziskovalcem z IJS in zunanjim uporabnikom po predhodnem dogovoru (kontakt: ana.mitrovic@ijs.si) v času delovnih ur. Opremo lahko uporabljajo le uporabniki usposobljeni za delo z aparaturo in za delo v celičnem laboratoriju. Možnost brezplačne uporabe v primeru izvajanja skupnih RR projektov in možnost uporabe po ceniku IJS. Po nastavljenem poskusu delo na opremi poteka daljši čas.","The equipment is located in the cell laboratory of B3 department, JSI. The equipment is available to researchers from JSI and external users by prior arrangement (contact: ana.mitrovic@ijs.si) within working hours. The equipment can be used only by users trained to work with the equipment and in the cell laboratory. The possibility of free use is offered in case of joint RR project, otherwise the use is charged according to the JSI price list. After experiment set up, the bioreactor is used for cultivation   for a longer period of time.","Pridobljena oprema je bioreaktor za gojenje 3D celičnih agregatov (sferoidi, organoidi), ki zagotavlja konstantne pogoje in ustvarja okolje, ki spodbujajo rast, vzdrževanje in funkcionalnost večjih 3D struktur, ki posnemajo lastnosti in vivo tkiv. Bioreaktor je namenjen dolgotrajnemu gojenju kompleksnih 3D celičnih modelov, ki bi ustrezno posnemali patološke procese. Bioreaktor združuje CO2 inkubator z neodvisnimi bioreaktorskimi rotacijskimi sistemi za gojenje celičnih agregatov.","The obtained equipment is bioreactor for 3D cell cultures (spheroids, organoids) that provides constant conditions and creates and environment which promotes the growth, maintenance and functionality of larger 3D structures that mimic the properties of in vivo tissues. The bioreactor is used for the long-term cultivation of complex 3D cell models that would adequately mimic pathological conditions. The bioreactor combines CO2 incubator with independent rotating bioreactor system for growing cell aggregates.",77356,{"$f":"Table4[[#This Row],[21]]","v":{"v":155.2,"d":"155.20"}},6.47,90,58.73,{"$f":"SUBTOTAL(9,Table4[[#This Row],[18]:[20]])","v":{"v":155.2,"d":"155.20"}},100,0,"https://www.ijs.si/ijsw/Znotraj%20hi%C5%A1e/Desno?action=AttachFile&do=get&target=ARIS_Evidenca_opreme_2024.xlsx",2,1,3,11,"P_XXII_238",0,5,100,{"$f":"Table4[[#This Row],[4]]","v":"P4-0127"},{"$f":"Table4[[#This Row],[5]]","v":"Ana\nMitrović"},30,"Z3-50102","Emanuela Senjor",20,"J3-3071","Ana Mitrović",20,"J3-60067","Milica Perišič Nanut",15,"J3-4503","Boris Rogelj",10,"CRP/SVN24-01-International Centre for Genetic Engineering and Biology, LET (‘s) IMPACT","Milica Perišič Nanut",5]
[106,"Institut \"Jožef Stefan\"",null,"P1-0417","Vasyl Shvalya",54048,"Razpršilni večmerilnik za sub- nanodelce in biomolekule (Light-Scattering Multisizer for Sub-nano Particles and Biomolecules - SANSEI)",2024,"Light-Scattering Multisizer for Sub-nano Particles and Biomolecules",{"v":94888.71,"d":"94,888.71"},"P_XXII_270","Dostop do opreme: po dogovoru (odsek F6 vasyl.shvalya@ijs.si)","Access to the device: via agreement (department F6 vasyl.shvalya@ijs.si)","Dynamic Light Scattering (DLS) oprema se uporablja za merjenje hidrodinamičnega premera nanopartiklov v suspenzijah s pomočjo analize nihanj svetlobnih signalov, ki nastanejo zaradi Brownovega gibanja.\nTa tehnologija omogoča hitro in natančno določanje velikostne distribucije delcev, kar je ključno pri karakterizaciji nanomaterialov.\nS tem se spremlja stabilnost delcev, zaznava agregacija in oceni dispersija, kar je pomembno za zagotovitev kakovosti izdelkov.(ZetaSizer Ultra od Malvern Panalytical)\n","Dynamic Light Scattering (DLS) is used to determine the hydrodynamic diameter of nanoparticles by analyzing the fluctuations in light scattering due to their Brownian motion. It offers a rapid and non-invasive way to assess the size distribution and stability of nanoparticles in suspension. The technique is highly sensitive, allowing for the detection of subtle changes in particle size or the early stages of aggregation.  (ZetaSizer Ultra from Malvern Panalytical)",77375,{"$f":"Table4[[#This Row],[21]]","v":{"v":43.56391442307692,"d":"43.56"}},{"v":9.123914423076924,"d":"9.12"},16.88,17.56,{"$f":"SUBTOTAL(9,Table4[[#This Row],[18]:[20]])","v":{"v":43.56391442307692,"d":"43.56"}},100,0,"https://www.ijs.si/ijsw/Znotraj%20hi%C5%A1e/Desno?action=AttachFile&do=get&target=ARIS_Evidenca_opreme_2024.xlsx",3,1,4,47,"P_XXII_270",0,5,100,{"$f":"Table4[[#This Row],[4]]","v":"P1-0417"},{"$f":"Table4[[#This Row],[5]]","v":"Vasyl Shvalya"},40,"P2-0056-20","Vincenc Nemanič",20,"N2-0213","James Leon Walsh",10,"J2-4440","Vasyl Shvalya",10,"J2-50066","Vasyl Shvalya",20]
[106,"Institut \"Jožef Stefan\"",null,"P2-0082","Rok Zaplotnik",31618,"Oprema za vzbujanje plinskih razelektritev v\n(sub)atmosferskem področju za sodobne raziskave materialov, sterilizacijo in pretvorbo plinov",2024,"Equipment for excitation of gas discharges in the (sub)atmospheric region for modern materials research, sterilization and gas conversion",{"v":120780,"d":"120,780.00"},"P_XXII_273","Oprema je običajno dostopna od ponedeljka do petka med 8:00 in 14:00. Za dogovor o uporabi se je potrebno dogovoriti z vodjo Odseka za tehnologijo površin prof. dr. Alenko Vesel..","Equipment is usually available Monday through Friday between 8:00 and 14:00. It is necessary to talk about the use beforehand with the head of the Department of Surface Engineering prof. dr. Alenko Vesel..","Raziskovalna oprema zapolnjuje vrzel v obstoječih tehnikah za obdelavo površin trdnih in tekočih materialov s plinsko plazmo, ki jo ustvarjamo v tlačnem območju med 30 in 1000 mbar.","The research equipment fills a gap in existing techniques for treating the surfaces of solid and liquid materials with gas plasma, which is generated in a pressure range between 30 and 1000 mbar.",77753,{"$f":"Table4[[#This Row],[21]]","v":{"v":31.613461538461536,"d":"31.61"}},{"v":11.613461538461538,"d":"11.61"},7,13,{"$f":"SUBTOTAL(9,Table4[[#This Row],[18]:[20]])","v":{"v":31.613461538461536,"d":"31.61"}},100,0,"https://www.ijs.si/ijsw/Znotraj%20hi%C5%A1e/Desno?action=AttachFile&do=get&target=ARIS_Evidenca_opreme_2024.xlsx",1,3,1,60,"P_XXII_273",50,5,100,{"$f":"Table4[[#This Row],[4]]","v":"P2-0082"},{"$f":"Table4[[#This Row],[5]]","v":"Rok Zaplotnik"},30,"L2-4487","Rok Zaplotnik",30,"J2-4480","Rok Zaplotnik",20,"L2-60147","Gregor Primc",20]
[106,"Institut \"Jožef Stefan\"",null,"P1-0140","BORIS TURK ",7561," Kvadrupol-Orbitrap masni spektrometer sklopljen z LC",2024,"Quadropole-Orbitrap mass spectrometer with LC",{"v":1106926.52,"d":"1,106,926.52"},"P_XXI_120","Oprema je dostopna za zunanje uporabnike. Kontaktna oseba prof.dr. Marko Fonović Marko.Fonovic@ijs.si","Equipment is available for external users. Contact person prof. Marko Fonovic, PhD Marko.Fonovic@ijs.si","Analiza proteinov v kompleksnih bioloških vzorcih.","Protein analysis of complex biological samples.",75687,{"$f":"Table4[[#This Row],[21]]","v":{"v":246.4352423076923,"d":"246.44"}},{"v":106.4352423076923,"d":"106.44"},80,60,{"$f":"SUBTOTAL(9,Table4[[#This Row],[18]:[20]])","v":{"v":246.4352423076923,"d":"246.44"}},100,0,"https://www.ijs.si/ijsw/Znotraj%20hi%C5%A1e/Desno?action=AttachFile&do=get&target=ARIS_Evidenca_opreme_2024.xlsx",3,2,3,35,{"$f":"Table4[[#This Row],[11]]","v":"P_XXI_120"},0,5,100,"P1-0140","Boris Turk",25,"PR-02266","Dušan Turk",50,"P1-0048","Dušan Turk",25]
[106,"Institut \"Jožef Stefan\"",null,"I0-0005","MIRAN ČEH",3937,"State-of-the-art FIB (Focused Ion Beam) ",2024,"State-of-the-art FIB (Focused Ion Beam)",{"v":2492460,"d":"2,492,460.00"},"P_XXI_123","Opremo lahko uporabljajo vsi kvalificirani operaterji IJS (tudi zunanji), ki so uspešmo zaključili postopek šolanja, ki ga organiziora Center za elektronsko mikroskopijo in mikroanalizo (CEMM). Operaterji z licenco dostopajo do FIB-a na podlagi rezervacij v on-lin rezervacijskem sistemu. Ker je FIB del infrastruktrunega centra CEMM in obenem deluje v okviru infrastrukturnega programa IJS, so termini uporabe operaterjev odvisnio od narave tematike raziskovalnega dela in internega sofinanciranja raziskovalne opreme.","The equipment can be used by all qualified IJS operators (including external ones) who have successfully completed the training process organized by the Centre for Electron Microscopy and Microanalysis (CEMM). Licensed operators access the FIB based on reservations made through the on-line reservation system. Since the FIB is part of the CEMM infrastructure centre and operates within the IJS infrastructure program, the usage slots for operators depend on the nature of their research work and internal co-financing of research equipment.","State-of-the-art FIB predstavlja kombinacijo vrstičnega elektronskega mikroskopa (SEM) in ionskega žarka in je v glavnem namenjen za pripravo tankih lamel za preiskave s presevno elektronsko mikroskopijo (TEM) oziroma za tehnike nanolitografije. Za pripravo tankih lamel je dodatno potrebna uporaba različnih plinov iz katerih se formirajo zaščitni filmi na površini vzorcev in mehansko manipulatorji za pritrditev narejenih tankih lamel na nosilce za TEM preiskave. FIB je nadalje opremljen tudi z ESD sistemom za kemijsko analizo preiskovanih vzorcev.","The state-of-the-art FIB (Focused Ion Beam) system combines a scanning electron microscope (SEM) with an ion beam and is primarily used for the preparation of thin lamellae for transmission electron microscopy (TEM) analysis or for nanolithography techniques. For the preparation of thin lamellae, the use of various gases is required to form protective films on the surface of the samples, along with mechanical manipulators to attach the prepared thin lamellae to holders for TEM analysis. Additionally, the FIB is equipped with an ESD system for chemical analysis of examined samples.",77055,{"$f":"Table4[[#This Row],[21]]","v":{"v":307.8596153846154,"d":"307.86"}},{"v":239.6596153846154,"d":"239.66"},68.2,0,{"$f":"SUBTOTAL(9,Table4[[#This Row],[18]:[20]])","v":{"v":307.8596153846154,"d":"307.86"}},100,0,"https://www.ijs.si/ijsw/Znotraj%20hi%C5%A1e/Desno?action=AttachFile&do=get&target=ARIS_Evidenca_opreme_2024.xlsx",3,5,1,4,{"$f":"Table4[[#This Row],[11]]","v":"P_XXI_123"},23.5,5,100,{"$f":"Table4[[#This Row],[4]]","v":"I0-0005"},{"$f":"Table4[[#This Row],[5]]","v":"MIRAN ČEH"},100]
[106,"Institut \"Jožef Stefan\"",null,"P2-0082","JANEZ KOVAČ ",15703,"XPS spektrometer za analizo površin in tankih plasti ",2024,"XPS spectrometer for analysis of surfaces and thin films",{"v":1098000,"d":"1,098,000.00"},"P_XXI_152","Uporaba opreme je možna za zunanje uporabnike po predhodnem dogovoru. Kontaktirati prof. dr. Janeza Kovača (janez.kovac@ijs.si, tel. 01 477 3403)","Application for external users is possible, contact person prof. dr. Janez Kovač (janez.kovac@ijs.si, phone: 01 477 3403)","XPS spektrometer omogoča analizo kemične sestave površin in tankih plasti, daje informacije o oksidacijskih stanjih elementov in vrsti kemične vezi ter globinske porazdelitve elementov v zelo tankih plasteh... Opremljen je rentgenskim izvorom na Al anodo, z UV izvorom in z ionsko puško na Ar-ione ter Ar-gruče. Premer rentgenskega žarka je 5 mikrometrov.","The XPS spectrometer enables the analysis of the chemical composition of surfaces and thin films and provides information on the oxidation states of elements and the type of chemical bond, the depth distribution of elements in very thin layers... It is equipped with X-ray source from Al-anode, UPS source, an ion gun for Ar ions and Ar clusters. The diameter of the X-ray beam is 5 micrometers.",77953,{"$f":"Table4[[#This Row],[21]]","v":{"v":185.5769230769231,"d":"185.58"}},{"v":105.57692307692308,"d":"105.58"},40,40,{"$f":"SUBTOTAL(9,Table4[[#This Row],[18]:[20]])","v":{"v":185.5769230769231,"d":"185.58"}},100,0,"https://www.ijs.si/ijsw/Znotraj%20hi%C5%A1e/Desno?action=AttachFile&do=get&target=ARIS_Evidenca_opreme_2024.xlsx",3,1,6,60,{"$f":"Table4[[#This Row],[11]]","v":"P_XXI_152"},23.78,5,100,{"$f":"Table4[[#This Row],[4]]","v":"P2-0082"},{"$f":"Table4[[#This Row],[5]]","v":"JANEZ KOVAČ "},100]
[107,"Institut \"Jožef Stefan\"",null,null,"Rok Pestotnik (16354)",null,"Oprema za razvoj in karakterizacijo senzorjev posameznih fotonov",2025,"Equipment for the development and characterisation of single photon sensors",{"v":355039.66,"d":"355,039.66"},"P_XXIII_001","Oprema je na voljo glede na proste kapacitete in ob predhodnem dogovoru z odgovorno osebo rok.pestotnik@ijs.si.","The equipment is available for usage during free resource times and upon previous arrangement at rok.pestotnik@ijs.si.","Raziskovalna oprema omogoča  časovno natančne meritve posameRaziskovalna oprema je namenjena razvoju, karakterizaciji in validaciji ultrahitrih fotonskih detektorjev ter večkanalne bralne in časovno-merilne elektronike v izjemno nizkošumnem RF okolju. Omogoča natančne meritve časovne ločljivosti, šuma, linear­nosti, občutljivosti in stabilnosti novih detektorskih prototipov z uporabo femtosekundnega pulznega laserskega vira. Sistem omogoča nadzorovane optične meritve z referenčnimi fotodetektorji in natančno pozicioniranje vzorcev. Večkanalna elektronika bo omogočila sočasno zajemanje in analizo do 4096 kanalov s časovno ločljivostjo pod 100 ps. Infrastruktura je primerna za testiranje detektorjev in elektronike za aplikacije, kjer so zahtevani ultrahitri odzivi in visoka natančnost časovnih meritev.znih fotonov na območju ps. ","The research equipment is intended for the development, characterisation, and validation of ultrafast photon detectors and multichannel readout and timing electronics in an extremely low-noise RF environment. It enables precise measurements of time resolution, noise, linearity, sensitivity, and stability of new detector prototypes using a femtosecond pulsed laser source. The system supports controlled optical measurements with reference photodetectors and precise sample positioning. The multichannel electronics will allow simultaneous acquisition and analysis of up to 4096 channels with a time resolution below 100 ps. The infrastructure is suitable for testing detectors and electronics for applications requiring ultrafast response and high-precision timing measurements.",78764,{"v":74.13842884615384,"d":"74.14"},{"v":34.13842884615384,"d":"34.14"},20,20,{"v":74.13842884615384,"d":"74.14"},100,null,"https://www.ijs.si/ijsw/Znotraj%20hi%C5%A1e/Desno?action=AttachFile&do=get&target=ARIS_Evidenca_opreme_2025.xlsx",4,5,5,38,"P_XXIII_001",40,5,100,0,"Rok Pestotnik",70,"J1-50229","Rok Pestotnik",5,"J1-70048","Rok Pestotnik",10,"J1-4358","Rok Pestotnik",10,"HE EIC Pathfinder PetVision Grant Agreement 101099896",5]
[108,"Institut \"Jožef Stefan\"",null,null,"Jernej Fesel Kamenik (24264)",null,"Računski strežniki z grafičnimi procesnimi enotami",2025,"Compute Servers with Graphical Processing Units",{"v":253480.32,"d":"253,480.32"},"P_XXIII_003","Uporaba je možna po predhodnem dogovoru z vodjo odseka in skrbniki (rok.zitko@ijs.si, luka.leskovec@ijs.si)","Usage possible upon prior agreement with Department Head and Administrators (rok.zitko@ijs.si, luka.leskovec@ijs.si)","Osnovno orodje teoretične fizike; na novih rezinah se izvajajo izračuni na področjih fizike trdne snovi, fizike osnovnih delcev, biofizke in kvantne fizike.","Basic tool of theoretical physics; new compute nodes are being used for computations in the fields of solid state physics, particle physics, biophysics and quantum physics.","79386, 79387, 79388, 79389, 79390, 79391, 79392, 79393",{"v":31.37310769,"d":"31.37"},24.37,4,3,{"v":31.37310769,"d":"31.37"},100,null,"https://www.ijs.si/ijsw/Znotraj%20hi%C5%A1e/Desno?action=AttachFile&do=get&target=ARIS_Evidenca_opreme_2025.xlsx",6,1,4,26,"P_XXIII_003",null,5,100,0,"Jernej Fesel Kamenik (24264)"]
[109,"Institut \"Jožef Stefan\"",null,null,"Igor Križaj (412)",null,"Ultra visoko zmogljivi sistem za tekočinsko kromatografijo za masno spektroskopijo",2025,"System for nano-flow ultra-high performance liquid chromatography for mass spectrometry (proteoElute UHPLC)",{"v":105674.56,"d":"105,674.56"},"P_XXIII_012","Oprema je na voljo akademskim ustanovam in gospodarskim družbam, bodisi za plačilo, ki pokriva stroške analize, bodisi v okviru sodelovanja. Navodila za pripravo vzorcev in cenik storitev so na voljo na spletni strani oddelka (http://www-b2.ijs.si/expertise/). Stranka se lahko neposredno obrne na osebe, odgovorne za opremo, in se dogovori za izvedbo analize. ","The equipment is available to academic institutions and companies, either for a fee covering the cost of the analysis or as part of a collaboration. Instructions for sample preparation and a price list for services are available on the Department's website (http://www-b2.ijs.si/expertise/). The customer can contact the persons responsible for the equipment directly to arrange for the analysis to be carried out. ","proteoElute UHPLC je sklopljen z ESI-qTOF masnim spektrometrom in se uporablja za \"top-down/bottom-up\" kvalitativno in kvantitativno analizo proteinov v bioloških vzorcih. ","proteoElute UHPLC is coupled to ESI-qTOF mass spectrometer and is used for top-down/bottom-up qualitative and quantitative analysis of proteins in biological samples. ",79725,{"v":63.90101538,"d":"63.90"},10.16,1,52.74,{"v":63.90101538,"d":"63.90"},100,20,"https://www.ijs.si/ijsw/Znotraj%20hi%C5%A1e/Desno?action=AttachFile&do=get&target=ARIS_Evidenca_opreme_2025.xlsx",2,5,6,4,"P_XXIII_012",null,5,100,"P1-0207","Igor Križaj (412)",100]
[110,"Institut \"Jožef Stefan\"",null,null,"Matjaž Kavčič (15648)",null,"Polprevodniški detektorji fotonov za napredne analize z ionskimi žarki",2025,"Semiconductor X-ray and gamma detectors for advanced ion beam analysis",{"v":95716.28,"d":"95,716.28"},"P_XXIII_028","Raziskovalna oprema se nahaja na Mikroanalitskem centru z ionskim pospeševalnikom, ki deluje v okviru Infrastrukturnega programa IJS. Oprema je instalirana na žarkovni liniji z zunanjim žarkom in je dostopna po predhodnem dogovoru. Kontakt preko e-pošte na naslov primoz.pelicon@ijs.si .","Research equipment is located at the Microanalytical Center hosting an ion accelerator, which operates within the IJS Infrastructure Programme. The equipment is installed on the external-beam and is accessible by prior arrangement. Contact is available via email at primoz.pelicon@ijs.si .","Oprema omogoča detekcijo izsevanih fotonov v energijskem območju rentgenskega sevanja in gama žarkov z visokim izkoristkom ter dobro energijsko ločljivostjo. Detekcijski sistem predstavlja osnovo za izvajanje meritev PIXE/PIGE v zunanji atmosferi pri vzbujanju s fokusiranim curkom pospešenih protonov, kar omogoča določanje ploskovne porazdelitve elementov v vzorcu z mikronsko natančnostjo.","The equipment enables the detection of emitted photons in the energy range of X-ray radiation and gamma rays with high efficiency and good energy resolution. The detection system forms the basis for performing PIXE/PIGE measurements in an external atmosphere using excitation with a focused beam of accelerated protons, which allows mapping the areal distribution of elements in a sample with micrometer spatial resolution.",79188,{"v":9.203488462,"d":"9.20"},{"v":9.2,"d":"9.20"},"127.5 (cena žarkovne ure na pospeševalniku)","vključeni v ceno ure",{"v":9.203488462,"d":"9.20"},100,null,"https://www.ijs.si/ijsw/Znotraj%20hi%C5%A1e/Desno?action=AttachFile&do=get&target=ARIS_Evidenca_opreme_2025.xlsx",3,2,2,4,"P_XXIII_028","vključeni v ceno ure",5,100,0,"Matjaž Kavčič (15648)"]
[111,"Institut \"Jožef Stefan\"",null,null,"Miha Čekada (18271)",null,"Optični profilometer",2025,"Optical profiler",{"v":161432.9,"d":"161,432.90"},"P_XXIII_035","Po predhodnem dogovoru na naslov miha.cekada@ijs.si.","Advance contact to the address miha.cekada@ijs.si.","Optični profilometer je naprava za brezkontaktno ovrednotenje topografije trdnih površin. Poleg standardnih vzorcev omogoča tudi opazovanje predmetov kompleksnih oblik, kot so orodja in komponente z različnim stanjem površine: polirane, obrabljene, korodirane itd. Rezultat opazovanja vsebuje tako topografijo kot sliko v pravih barvah. ","The optical profiler is a device for non-contact evaluation of topography of solid surfaces. In addition to standard samples, allows the observation of complex-shaped objects, such as tools and components with diverse surface conditions: polished, worn, corroded, etc. The result of an observation contains both topography and a true-color image. ",79571,{"v":45.782394230769235,"d":"45.78"},{"v":15.522394230769232,"d":"15.52"},17.88,12.38,{"v":45.782394230769235,"d":"45.78"},100,null,"https://www.ijs.si/ijsw/Znotraj%20hi%C5%A1e/Desno?action=AttachFile&do=get&target=ARIS_Evidenca_opreme_2025.xlsx",3,4,1,44,"P_XXIII_035",0,5,100,0,"Miha Čekada (18271)"]
[112,"Institut \"Jožef Stefan\"",null,null,"Boris Rogelj (15813)",null,"Večnamenski čitalec mikroplošč",2025,"Multifunctional microplate reader",{"v":93536.52999999998,"d":"93,536.53"},"P_XXIII_036","Dostop do opreme je možen po dogovoru. Kontakt: prof. dr. Boris Rogelj","Access to equipment is possible by arrangement. Contact: Prof Dr Boris Rogelj ","Večmodularen čitalec mikrotitrskih plošč omogoča merjenje absorbance, fluorescence, časovno-odvisno merjenje fluorescence in luminiscence na mikrotitrskih ploščah različnih formatov. Čitalec mogoča kontrolo temperature od sobne temperature do 42 °C. Za neprekinjeno merjenje plošč s pokrovom omogoča avtomatsko odpiranja pokrova med samim inkubiranjem oz. pred meritvijo.","The modular microtiter plate reader enables measurements of absorbance, fluorescence, time-resolved fluorescence, and luminescence on microtiter plates of various formats. The reader allows temperature control from room temperature to 42 °C. For continuous measurement of plates with lids, it enables automatic lid opening during incubation or before measurement.",79603,{"v":51.913897115384614,"d":"51.91"},{"v":8.993897115384614,"d":"8.99"},17.96,24.96,{"v":51.913897115384614,"d":"51.91"},100,null,"https://www.ijs.si/ijsw/Znotraj%20hi%C5%A1e/Desno?action=AttachFile&do=get&target=ARIS_Evidenca_opreme_2025.xlsx",2,5,1,4,"P_XXIII_036",24.96,5,100,0,"Boris Rogelj (15813)"]
[113,"Institut \"Jožef Stefan\"",null,null,"Dušan Turk (4988)",null,"Večfunkcijski čitalec mikrotitrskih plošč",2025,"TECAN SPARK microplate multimode reader",{"v":116878.98000000001,"d":"116,878.98"},"P_XXIII_042","Oprema je dostopna po predhodnem dogovoru preko e-pošte: dusan.turk@ijs.si ali tadej.ursic@ijs.si","The equipment is available upon e-mail request: dusan.turk@ijs.si or tadej.ursic@ijs.si","Večfunkcijski čitalec mikrotitrskih plošč je posebej prilagojen za merjenje in analizo vzorcev v različnih mikrotitrskih ali mikrovolumskih ploščah, kar omogoča visokozmogljive teste z uporabo različnih načinov detekcije: UV-vidna absorbanca, intenziteta in polarizacija fluorescence, časovno-ločljiva fluorescenca, alfa tehnologija in luminiscenca.","Multimode microplate reader is specifically tailored to measure and analyze samples in various microtiter or microvolume plates enabling high-throughput assays using different detection modes: UV-Vis absorbance, fluorescence intensity and polarization, time-resolved fluorescence, alpha technology and luminescence. ",79598,{"v":61.008363461538465,"d":"61.01"},{"v":11.238363461538462,"d":"11.24"},2.5,47.27,{"v":61.008363461538465,"d":"61.01"},100,null,"https://www.ijs.si/ijsw/Znotraj%20hi%C5%A1e/Desno?action=AttachFile&do=get&target=ARIS_Evidenca_opreme_2025.xlsx",2,5,"1,2,5",35.66,"P_XXIII_042",56.46,5,100,"P1-0048","Dušan Turk (4988)",70,"P1-0140","Boris Turk (7561)",30]
[114,"Institut \"Jožef Stefan\"",null,null,"Suraj Gupta (55668)",null,"Elektrokemijska delovna postaja za meritve visokih tokov pri cepitvi vode za pridobivanje zelenega vodika",2025,"Electrochemical workstation for high current measurements in water-splitting for green hydrogen generation",{"v":85814.3,"d":"85,814.30"},"P_XXIII_049","Oprema se nahaja v laboratoriju Odseka za raziskave sodobnih materialov K-9 (pritličje). Opremo lahko uporabljajo le usposobljeni uporabniki. Uporaba opreme deluje po sistemu rezervacij.","The equipment is located in the laboratory of Advanced Materials department K-9 (ground floor). The equipment can be used only by qualified users. The equipment usage must be reserved. ","Oprema vključuje 4-kanalni potenciostat in sklop vrtljive diskaste elektrode (RDE). Uporabljata se za elektrokemijsko karakterizacijo tankoplastnih in praškastih katalizatorjev. Oprema se bo uporabljala za preučevanje obnašanja tokovno-napetostnih razmerij vodnih elektrolizatorjev, skupaj z meritvami visokofrekvenčne impedance. Ti testi so ključni za količinsko opredelitev učinkovitosti celic in trajnosti takšnih elektrolizatorjev. Večkanalni potenciostat maksimizira razpoložljiv laboratorijski prostor, omogoča večkratno uporabo in zmanjšuje ogljični odtis, kar prinaša ekonomske in okoljske koristi.","The equipment includes a 4-channel potentiostat and a rotating disk electrode (RDE) assembly. They are used for electrochemical characterization of thin film and powder catalysts. The equipment will be used to study current-voltage behaviour of water electrolyzers, along with high frequency impedance measurements. These tests are crucial to quantify the cell efficiency and durability of such electrolyzers. The multi-channel potentiostat maximizes the available lab space, enable multiple use and reduce the carbon footprint, presenting economic and environmental benefits.",79502,{"v":64.281375,"d":"64.28"},8.25,17.32,38.71,{"v":64.281375,"d":"64.28"},100,null,"https://www.ijs.si/ijsw/Znotraj%20hi%C5%A1e/Desno?action=AttachFile&do=get&target=ARIS_Evidenca_opreme_2025.xlsx",1,1,6,44,"P_XXIII_049","-",5,100,"P2-0091","Suraj Gupta (55668)",40,"J2-50055","Suraj Gupta (55668)",30,"J7-50227","Nina Daneu (19029)",20,"GC-0004","Suraj Gupta (55668)",10]
[115,"Institut \"Jožef Stefan\"",null,null,"Emanuela Senjor (51713)\nKlementina Polanec, mag. biokem.",null,"Konfokalni mikroskop s čitalcem mikrotitrskih plošč",2025,"Confocal microscope with a microtiter plate reader",{"v":440047.01,"d":"440,047.01"},"P_XXIII_051","Oprema je dostopna odsekom IJS in zunanjim uporabnikom po predhodnem dogovoru (milica.perisic@ijs.si) in znotraj delovnega časa. Opremo lahko uporabljajo le usposobljeni operaterji. Možnost brezplačne uporabe v primeru izvajanja skupnih RR projektov in možnost uporabe po ceniku IJS.","The equipment is available to IJS departments and external users by prior arrangement (contact :milica.perisic@ijs.si) within the working hours. The equipment can be used only by trained operators. The possibility of free use is offered in case of joint RR project, otherwise the use is charged according to the JSI price list.","Konfokalni mikroskop s čitalcem mikrotitrskih plošč omogoča merjenje absorbance, fluorescence, luminiscence ter časovno-odvisno (kinetično) spremljanje signalov na ploščah različnih formatov. Sistem omogoča stabilne pogoje za vzorce med meritvami, vključno z regulacijo CO₂ in kisika (O₂). Poleg klasičnih meritev omogoča tudi slikovno podprto analizo vzorcev za celične in biokemijske aplikacije. Primeren je za rutinske meritve in naprednejše analize, kjer sta pomembna tako signal kot vizualna kontrola vzorca.","A confocal microscope with a microtiter plate reader enables measurement of absorbance, fluorescence, and luminescence, as well as time-resolved (kinetic) monitoring of signals in plates of various formats. The system provides stable conditions for samples during measurements, including regulation of CO₂ and oxygen (O₂). In addition to standard measurements, it also enables image-based analysis of samples for cellular and biochemical applications. It is suitable for routine measurements and more advanced analyses where both the signal and visual inspection of the sample are important.",79714,{"v":85.2322125,"d":"85.23"},{"v":42.3122125,"d":"42.31"},17.96,24.96,{"v":85.2322125,"d":"85.23"},100,null,"https://www.ijs.si/ijsw/Znotraj%20hi%C5%A1e/Desno?action=AttachFile&do=get&target=ARIS_Evidenca_opreme_2025.xlsx",2,5,5,11,"P_XXIII_051",85.2322125,5,100,"P4-0127","Boris Rogelj (15813)",37,"P1-0207","Igor Križaj  (00412)",9,"P4-0432 ","Ana Rotter/Jerica Sabotič   (23576)",null,"P2-0091 ","Matjaž Spreitzer   (24273)",25]
[116,"Institut \"Jožef Stefan\"",null,null,"Andrej Gams (25638)",null,"Štirinožni mobilni robot z manipulatorjem, naravnim haptičnim vmesnikom in sistemom sledenja",2025,null,{"v":328587.8835,"d":"328,587.88"},"P_XXIII_054","Oprema se nahaja na odseku E1. Uporaba s strani zunanjih RO je možna po predhodnem dogovoru,  odvisno od trenutnega poteka razsikav. Za dostop je potrebno kontaktirati skrbnika (andrej.gams@ijs.si) ter vodjo odseka E1 (ales.ude@ijs.si).","The equipment is located at department E1. Use by external ROs is possible by prior arrangement, depending on the current course of research. To gain access, it is necessary to contact the caretaker (andrej.gams@ijs.si) and head of the department (ales.ude@ijs.si).","Sistem zajema tri komponente - štirinožnega robota z manipulatorjem, haptični vmesnik za naravni vmesnik ter sistem za zajemanje gibanja za meritve dogajanja v prostoru. Vsaka komponenta se lahko uporablja ločeno oziroma skupaj kot celoten sistem za vodenje in sledenje izvajanja premikanja štirinožnega robota z manipulatorjem.","The system comprises three components: a quadruped robot with a manipulator, a haptic interface for natural interaction, and a motion capture system for measuring events in the environment. Each component can be used independently or together as an integrated system for controlling and tracking the execution of movements of the quadruped robot with a manipulator.","79475\n79476\n79690\n79782",{"v":75.59498879807693,"d":"75.59"},{"v":31.594988798076926,"d":"31.59"},22,22,{"v":75.59498879807693,"d":"75.59"},100,null,"https://www.ijs.si/ijsw/Znotraj%20hi%C5%A1e/Desno?action=AttachFile&do=get&target=ARIS_Evidenca_opreme_2025.xlsx",1,1,0,"national","P_XXIII_054",30,5,100,0,"Andrej Gams (25638)"]
[117,"Institut \"Jožef Stefan\"",null,null,"Igor Muševič (9089)",null,"Sistem za karakterizacijo fluorescence mikrodelcev in virov v mikrofotonskem in mikrofluidičnem vezju",2025,"System for the characterization of fluorescence of microparticles and sources in microphotonic and microfluidic circuits",{"v":74438.85999999999,"d":"74,438.86"},"P_XXIII_055","Oprema je na voljo po predhodnem dogovoru s skrbnikom. Uporaba je možna samo ob prisotnosti izučenega operaterja.","The equipment is available by prior agreement with the administrator. Use is possible only in the presence of a trained operator.","Sistem za karakterizacijo fluorescence mikrodelcev in virov v mikrofotonskem in mikrofluidičnem vezju je namenjen merjenju, analizi in primerjavi fluorescenčnih lastnosti mikrodelcev ter svetlobnih virov, ki so integrirani v mikrofotonska in mikrofluidična vezja. Omogoča nadzorovano vzbujanje fluorescence, zaznavanje oddane svetlobe ter oceno učinkovitosti, stabilnosti in prostorske porazdelitve signala. Tak sistem se uporablja predvsem pri razvoju in testiranju lab-on-a-chip naprav, biosenzorjev ter naprednih fotonskih komponent za kemijske, biološke in medicinske aplikacije.","The system for the characterization of fluorescence of microparticles and sources in microphotonic and microfluidic circuits is intended for the measurement, analysis, and comparison of the fluorescence properties of microparticles and light sources integrated into microphotonic and microfluidic circuits. It enables controlled excitation of fluorescence, detection of the emitted light, and evaluation of signal efficiency, stability, and spatial distribution. Such a system is primarily used in the development and testing of lab-on-a-chip devices, biosensors, and advanced photonic components for chemical, biological, and medical applications.","78841\n79039\n79120",{"v":135.8875826923077,"d":"135.89"},{"v":7.157582692307691,"d":"7.16"},70,58.73,{"v":135.8875826923077,"d":"135.89"},100,null,"https://www.ijs.si/ijsw/Znotraj%20hi%C5%A1e/Desno?action=AttachFile&do=get&target=ARIS_Evidenca_opreme_2025.xlsx",3,4,7,4,"P_XXIII_055",58.73,5,100,0,"Igor Muševič (9089)"]
[118,"Institut \"Jožef Stefan\"",null,null,"Aljaž Drnovšek (35463)",null,"GDOES naprava za globinsko analizo prevlek",2025,"GDOES unit for depth profiling of coatings",{"v":377594.92,"d":"377,594.92"},"P_XXIII_063","Po predhodnem dogovoru na naslov aljaz.drnovsek@ijs.si.","Advance contact to the address aljaz.drnovsek@ijs.si.","Naprava z uporabo razelektritvene optične emisijske spektroskopije (GDOES) meri globinski profil kemijske sestave. Prvenstveno je namenjena za ovrednotenje prevlek in površin materialov v mikrometrskem velikostnem redu debelin prevlek. Rezultat meritve je koncentracija posameznih kemijskih elementov v odvisnosti od globine.","The device uses glow discharge optical emission spectroscopy (GDOES) to measure the chemical composition depth profile. It is primarily dedicated to evaluate coatings and surfaces of materials in micrometer range of coating thickness. The measurement result is concentration of individual chemical elements in dependence of depth.",79820,{"v":66.56720385,"d":"66.57"},36.31,17.88,12.38,{"v":66.56720385,"d":"66.57"},100,null,"https://www.ijs.si/ijsw/Znotraj%20hi%C5%A1e/Desno?action=AttachFile&do=get&target=ARIS_Evidenca_opreme_2025.xlsx",3,2,1,44,"P_XXIII_063",0,5,100,0,"Aljaž Drnovšek (35463)"]
[119,"Institut \"Jožef Stefan\"",null,null,"Petra Jenuš Belec (33403)",null,"Visokotemperaturni in visokozmogljivi instrument za brezkontaktno merjenje toplotne difuzivnosti, specifične toplote in toplotne prevodnosti materialov od sobne temperature do 1500 °C",2025,"High temperature and high performance test instrument for contactless measurement of thermal diffusivity, specific heat and thermal conductivity from room temperature up to 1500°C (samples temperature 1250°C)",{"v":131596.1,"d":"131,596.10"},"P_XXIII_075","Oprema je dostopna vsem izučenim uporabnikom iz IJS in IMT. Aparatura se nahaja v E28. Rezervacijski sistem je urejen z Google koledarjem. ","The equipment is accessible to all trained users from JSI and IMT. The equipment is located in E28. The reservation system is managed via Google Calendar.","Instrument za brezkontaktno merjenje toplotne difuzivnosti, specifične toplote in toplotne prevodnosti pri visokih temperaturah je visokotehnološka naprava, zasnovana za natančno karakterizacijo toplotnih lastnosti materialov v ekstremnih temperaturnih pogojih. Uporablja se za merjenje toplotnih lastnosti naprednih materialov, kot so kovinske zlitine, keramika, kompoziti in materiali za elektronske komponente.","The instrument for contactless measurement of thermal diffusivity, specific heat, and thermal conductivity at high temperatures is a high-tech device designed for the precise characterization of the thermal properties of materials under extreme temperature conditions. It measures the thermal properties of advanced materials such as metal alloys, ceramics, composites, and materials for electronic components.","79681\n79533",{"v":48.653471153846155,"d":"48.65"},{"v":12.653471153846155,"d":"12.65"},12,24,{"v":48.653471153846155,"d":"48.65"},100,null,"https://www.ijs.si/ijsw/Znotraj%20hi%C5%A1e/Desno?action=AttachFile&do=get&target=ARIS_Evidenca_opreme_2025.xlsx",3,12,3,44,"P_XXIII_075",28.22,5,100,"PR-10961, P2-0087","Petra Jenuš Belec (33403)",10,"PR-10961, P2-0087","Aljaž Iveković",40,"PR-10961, P2-0087","Tomaž Ivančič",50]
[120,"Institut \"Jožef Stefan\"",null,null,"Miha Škarabot (12338)",null,"Mikroskop na atomsko silo",2025,"Atomic Force Microscope",{"v":344337.38,"d":"344,337.38"},"P_XXIII_080","Za prvi dostop je potreben dogovor s skrbnikom, sledi uvajanje v delo z mikroskopom in uvedba v samostojno uporabo mikroskopa. Izučeni uporabniki dostopajo preko rezervacijskega sistema.","For first access, an arrangement with the administrator is required, followed by training in the use of the microscope and induction into independent operation of the microscope. Trained users access the system via the reservation system","Mikroskop na atomsko silo se uporablja za preiskovanje površinskih lastnosti materialov. Uporablja se za visoko-ločljivo slikanje topografije različnih materialov, možno je hkratno merjenje električnih in mehanskih lastnosti vzorcev. Meritve se lahko izvajajo na zraku ali v tekočinskem mediju in je primeren za slikanje bioloških vzorcev. Omogoča tudi spektroskopijo sil med površinami v različnih medijih.","Atomic force microscopy is used to investigate the surface properties of materials. It is used for high-resolution imaging of the topography of various materials, and it enables simultaneous measurement of the electrical and mechanical properties of samples. Measurements can be performed in air or in a liquid medium, and it is suitable for imaging biological samples. It also enables force spectroscopy between surfaces in different media",78930,{"v":53.109363461538464,"d":"53.11"},{"v":33.109363461538464,"d":"33.11"},10,10,{"v":53.109363461538464,"d":"53.11"},100,null,"https://www.ijs.si/ijsw/Znotraj%20hi%C5%A1e/Desno?action=AttachFile&do=get&target=ARIS_Evidenca_opreme_2025.xlsx",3,6,1,47,"P_XXIII_080",80,5,100,0,"Miha Škarabot (12338)"]
[121,"Institut \"Jožef Stefan\"",null,null,"Tomaž Rijavec (27542)",null,"Naprava za spectroelektrokemijske RAMAN analize (spelec-RAMAN)",2025,null,{"v":76702.13,"d":"76,702.13"},"P_XXIII_087",{"$nulls":4},79574,{"v":7.375204807692309,"d":"7.38"},{"v":7.375204807692309,"d":"7.38"},null,null,{"v":7.375204807692309,"d":"7.38"},100,null,"https://www.ijs.si/ijsw/Znotraj%20hi%C5%A1e/Desno?action=AttachFile&do=get&target=ARIS_Evidenca_opreme_2025.xlsx",{"$nulls":4},"P_XXIII_087",null,5,100,0,"Tomaž Rijavec (27542)"]
[122,"Institut \"Jožef Stefan\"",null,null,"Miran Mozetič (10429)",null,"Naprava za in-situ merjenje oprijema plazemsko obdelanih vzorcev",2025,"Device for in-situ adhesion measurment of plasma-treated samples",{"v":166827.8,"d":"166,827.80"},"P_XXIII_090","Oprema je običajno dostopna od ponedeljka do petka med 8:00 in 14:00. Za dogovor o uporabi se je potrebno dogovoriti z vodjo Odseka za tehnologijo površin prof. dr. Alenko Vesel.","Equipment is usually available Monday through Friday between 8:00 and 14:00. It is necessary to talk about the use beforehand with the head of the Department of Surface Engineering prof. dr. Alenko Vesel.","Raziskovalna oprema omogoča merjenje adhezivnosti med plazemsko obdelanimi materiali.","The research equipment enables adhesion measurements between plasma-treated materials.",79771,{"v":32.04113462,"d":"32.04"},16.04,3,13,{"v":32.04113462,"d":"32.04"},100,null,"https://www.ijs.si/ijsw/Znotraj%20hi%C5%A1e/Desno?action=AttachFile&do=get&target=ARIS_Evidenca_opreme_2025.xlsx",3,10,1,44,"P_XXIII_090",60,5,100,0,"Miran Mozetič (10429)"]
[123,"Institut \"Jožef Stefan\"",null,null,"Matjaž Humar (29528)",null,"Kvantni optični sistem za generacijo in karakterizacijo prepletenih fotonov",2025,"Quantum optical system for generation and characterization of entangled photons",{"v":243486.21000000002,"d":"243,486.21"},"P_XXIII_092","Oprema je dostopna  akademskim institucijam in gospodarskim družbam ob predhodnem kontaktu na matjaz.humar@ijs.si","The equipment is available for use to both academic and industrial users by contacting matjaz.humar@ijs.si","Ta kvantni optični sistem generira in karakterizira prepletene fotone, pri čemer uporaba tekočih kristalov omogoča nastavljivost njihovih kvantnih stanj. Oprema je ključna za tekoče raziskave na področju kvantnih komunikacij, računalništva in metrologije, saj zapolnjuje kritično vrzel v infrastrukturi, zaradi katere so meritve prej potekale v tujini. Sistem omogoča prebojne dosežke, kot so generacija fotonskih parov znotraj biološke snovi in razvoj več-pikselnih nastavljivih virov. V slovenskem prostoru je sistem unikaten zaradi specifičnih tehničnih lastnosti, mednarodno pa izstopa, ker nobena druga skupina ne dela s tovrstnimi organskimi in biološkimi viri. Sestav vključuje vrhunske komponente, kot so detektor s superprevodnimi detektorji, superkontinuumski vlakenski laser in različni precizni optični elementi.","This quantum optical system generates and characterizes entangled photons, primarily utilizing liquid crystals to enable the tunability of quantum states. The equipment is vital for ongoing research in quantum communication, computing, and metrology, filling a critical infrastructure gap as previous measurements were conducted abroad. The system facilitates groundbreaking achievements, such as generating photon pairs within biological matter and developing multi-pixel tunable sources. It is unique within Slovenia due to its specific technical specifications and remains internationally distinct as no other research group currently works with these specific organic and biological sources. The setup consists of high-end components including a superconducting nanowire detector, a supercontinuum fiber laser, and various precision optical elements.","79262\n79255\n79503\n79504\n79505\n79506\n79872\n79873\n79535\n79537\n79605\n79606\n79607\n79772\n79769\n79640\n79925\n79926\n79927\n79928",{"v":92.14213557692307,"d":"92.14"},{"v":23.41213557692308,"d":"23.41"},10,58.73,{"v":92.14213557692307,"d":"92.14"},100,null,"https://www.ijs.si/ijsw/Znotraj%20hi%C5%A1e/Desno?action=AttachFile&do=get&target=ARIS_Evidenca_opreme_2025.xlsx",4,5,1,30,"P_XXIII_092",58.73,5,100,0,"Matjaž Humar (29528)"]
[124,"Institut \"Jožef Stefan\"",null,null,"Benjamin Zorko (15811)",null,"Pasivni detektorji za ugotavljanje ravni ionizirajočega sevanja v različnih okoljih",2025,"Passive detectors for determining levels of ionizing radiation in different environments",{"v":88750.93,"d":"88,750.93"},"P_XXIII_096","Opremo lahko uporabljajo usposobljeni posamezniki, zaposleni na Institutu »Jožef Stefan«. Dostop je mogoč v delovnem času oziroma izven tega po predhodnem dogovoru s skrbnikom opreme. Oprema se nahaja na Jamovi cesti 39, v sobi N26. V primeru vzporedne uporabe za projektno delo in redne aktivnosti je potrebna predhodna rezervacija termina.","Equipment may be used by trained personnel employed at the Jožef Stefan Institute. Access is available during regular working hours or outside these hours by prior agreement with the equipment manager. The equipment is located at Jamova cesta 39, room N26. In the case of parallel use for project work and routine activities, prior reservation of a time slot is required.","Novi pasivni detektorji sevanja omogočajo boljše raziskave naravnega zunanjega sevanja (ionizirajočo komponento kozmičnega sevanja), radona in drugih prispevkov k zunanjemu sevanju ter osebnih doz, saj krepijo znanstveni pomen Slovenije. Mreža pasivnih detektorjev po državi zagotavlja celovit pregled ravni ionizirajočega zunanjega sevanja, posebej na radonsko ogroženih območjih. Raziskave bodo izboljšale razumevanje vplivov sevanja na okolje in zdravje ljudi. Zbrani podatki bodo pomembni za znanstveno skupnost in odločevalce. Projekt bo povečal prepoznavnost Laboratorija za dozimetrijo.","New passive radiation detectors enable better research into natural external radiation (the ionising component of cosmic radiation), radon and other contributions to external radiation and personal doses, as they strengthen Slovenia's scientific significance. A network of passive detectors across the country provides a comprehensive overview of ionising external radiation levels, especially in areas at risk of radon. The research will improve our understanding of the effects of radiation on the environment and human health. The data collected will be important for the scientific community and decision-makers. The project will raise the profile of the Dosimetry Laboratory.",79597,{"v":62.99674327,"d":"63.00"},8.53,0.853,53.61,{"v":62.99674327,"d":"63.00"},100,null,"https://www.ijs.si/ijsw/Znotraj%20hi%C5%A1e/Desno?action=AttachFile&do=get&target=ARIS_Evidenca_opreme_2025.xlsx",3,11,4,32,"P_XXIII_096",null,5,100,0,"Benjamin Zorko (15811)"]
[125,"Institut \"Jožef Stefan\"",null,null,"Vladimir Radulović (32163)",null,"Sistem za nevtronsko dozimetrijo na reaktorju TRIGA na IJS",2025,"System for neutron dosimetry at the JSI TRIGA reactor",{"v":135687.97,"d":"135,687.97"},"P_XXIII_099","Po predhodnem dogovoru preko e-maila: vladimir.radulovic@ijs.si","By prior arrangement via e-mail address: vladimir.radulovic@ijs.si.","Oprema je namenjena razširitvi raziskav na področju nevtronske dozimetrije in razvoja detektorjev, zlasti z uporabo nestandardnih jedrskih reakcij in novih konverterskih materialov. Omogočala bo varno delo z odprtimi viri sevanja, pripravo in obsevanje različnih tarčnih materialov v reaktorju TRIGA ter natančne meritve inducirane aktivnosti z obstoječo opremo za spektrometrijo žarkov gama. Oprema bo podkrepila možnosti za izvajanje in sodelovanje pri domačih ter mednarodnih raziskavah.","The equipment is intended to extend research capabilities in neutron dosimetry and detector development, particularly through the use of non-standard nuclear reactions and new materials for converting neutrons into charged particles. It will enable safe work with unsealed radiation sources, preparation and irradiation of various target materials in the TRIGA reactor, and precise measurements of induced activity using existing systems for gamma ray spectrometry. The equipment will increase the possibilities to carry out and collaborate in national and international research activities.","79678\n79713\n79774\n79775\n79660\n79235\n79279",{"v":24.346920192307692,"d":"24.35"},{"v":13.046920192307693,"d":"13.05"},1.3,10,{"v":24.346920192307692,"d":"24.35"},100,null,"https://www.ijs.si/ijsw/Znotraj%20hi%C5%A1e/Desno?action=AttachFile&do=get&target=ARIS_Evidenca_opreme_2025.xlsx",1,4,3,50,"P_XXIII_099",50,5,100,0,"Vladimir Radulović (32163)"]
[126,"Institut \"Jožef Stefan\"",null,null,"Tomaž Klobučar (13599)",null,"Oprema za raziskave in razvoj novih metod kibernetske varnosti na podlagi velikih jezikovnih modelov",2025,"Equipment for research and development of new cybersecurity methods based on large language models",{"v":118042.62,"d":"118,042.62"},"P_XXIII_101","Politika dostopa daje prednost raziskovalnim programom, povezanih s kibernetsko varnostjo in velikimi jezikovnimi modeli. Oprema je na voljo tudi drugim raziskovalnim organizacijam in zainteresiranim uporabnikom pod pogoji, ki omogočajo njeno uporabo za projekte, financirane iz državnega proračuna. Uporabniki lahko zaprosijo za dostop do opreme na e-naslovu info@e5.ijs.si.","The access policy gives priority to research programmes related to cybersecurity and large language models. The equipment is also available to other research organisations and interested users, provided it is used for projects funded from the state budget. Users may request access to the equipment at info@e5.ijs.si.","Raziskovalna oprema je namenjena raziskavam in razvoju na področju kibernetske varnosti, predvsem varnostnih mehanizmov in storitev na podlagi velikih jezikovnih modelov (LLM). Oprema omogoča razvoj rešitev in prilagajanje lokalnih LLM potrebam različnih primerov uporabe umetne inteligence za povečanje kibernetske varnosti.","The research equipment is intended for research and development in the field of cyber security, primarily security mechanisms and services based on large language models (LLMs). The equipment enables the development of solutions and the adaptation of local LLMs to meet the needs of various artificial intelligence use cases to increase the level of cybersecurity.",79333,{"v":31.35025192,"d":"31.35"},11.35,0,20,{"v":31.35025192,"d":"31.35"},100,null,"https://www.ijs.si/ijsw/Znotraj%20hi%C5%A1e/Desno?action=AttachFile&do=get&target=ARIS_Evidenca_opreme_2025.xlsx",6,1,5,20,"P_XXIII_101",60,5,100,0,"Tomaž Klobučar (13599)"]
[127,"Institut \"Jožef Stefan\"",null,null,"Gregor Dolanc (15735)",null,"Oprema za raziskave in aplikacije na področju tehnologije vodenja procesov",2025,null,{"v":63446.8686885246,"d":"63,446.87"},"P_XXIII_106",{"$nulls":4},"79310\n79311\n79312\n79776\n79754\n79755\n79756\n79753\n79682\n79806\n79869\n79870\n79836\n79830\n79849\n79850\n79832\n79851\n79852\n79853\n79854\n79855\n79856\n79974\n79975\n79976\n79977\n79978\n79979\n79980\n79981\n79982\n79983\n79586\n79703\n79704",{"v":6.100660450819674,"d":"6.10"},{"v":6.100660450819674,"d":"6.10"},null,null,{"v":6.100660450819674,"d":"6.10"},100,null,"https://www.ijs.si/ijsw/Znotraj%20hi%C5%A1e/Desno?action=AttachFile&do=get&target=ARIS_Evidenca_opreme_2025.xlsx",{"$nulls":4},"P_XXIII_106",null,5,100,0,"Gregor Dolanc (15735)"]
[128,"Institut \"Jožef Stefan\"",null,null,"Ester Heath (12315)",null,"Tekočinski kromatograf ultra visoke ločljivosti sklopljen s tandemskim kvadrupolnim masnim spektrometrom (UHPLC-TQMS)",2025,null,{"v":435118.8700000001,"d":"435,118.87"},"P_XXIII_107","Za dostop do opreme se obrnite na Ester Heath (ester.heath@ijs.si)","For accessing the equipment contact Ester Heath at ester.heath@ijs.si","Instrument je prvenstveno namenjen določanju vsebnosti ostankov organskih spojin (onesnaževal) v nizkih koncentracijah v različnih matrikah (okolje, zdravje, hrana). Za ta name je potrebno vzorce predhodno pripravit (predkoncentrirat spojine, ki so predmet analize in odstranit nečistoče, ki lahko motijo analizo).","The instrument is primarily intended for the determination of trace levels of residual organic compounds (pollutants) in various matrices (environment, health, food related). For this purpose, samples must be pre-treated in advance, including preconcentration of the target analytes and removal of interfering impurities that could affect the analysis.",79724,45.55,{"v":20,"d":"20.00"},20,5,45.55,100,0,"https://www.ijs.si/ijsw/Znotraj%20hi%C5%A1e/Desno?action=AttachFile&do=get&target=ARIS_Evidenca_opreme_2025.xlsx",3,2,3,60,"P_XXIII_107",null,5,100,0,"Ester Heath (12315)"]
[129,"Institut \"Jožef Stefan\"",null,null,"Helena Motaln (21397)",null,"Sistem za gojenje celic v 3D (sferoidov)",2025,"3D-cell/spheroid culture system",{"v":57903.649999999994,"d":"57,903.65"},"P_XXIII_109","Oprema je dostopna odsekom IJS in zunanjim uporabnikom po predhodnem dogovoru (Helena.Motaln@ijs.si) in znotraj delovnega časa. Opremo lahko uporabljajo le usposobljeni operaterji. Možnost brezplačne uporabe v primeru izvajanja skupnih RR projektov in možnost uporabe po ceniku IJS.","The equipment is available to IJS departments and external users by prior arrangement (contact Helena.Motaln@ijs.si) within the working hours. The equipment can be used only by trained operators. The possibility of free use is offered in case of joint RR project, otherwise the use is charged according to the JSI price list.","The CERO 3D Incubator & Bioreactor enables advanced, physiologically relevant 3D cell culture by providing tightly controlled temperature, CO₂, and pH conditions within a closed, light-protected system optimized for long-term cultivation. Its gentle, impeller-free horizontal rotation in CEROtubes minimizes shear stress while ensuring efficient nutrient supply and gas exchange, which is critical for maintaining the structural and functional integrity of spheroids and organoids. The system supports parallel cultivation of up to four independent vessels with flexible working volumes (3–50 mL), allowing scalable, reproducible generation of large numbers of spheroids and organoids from hiPSCs, primary cells, and adult stem cells. ","Inkubator CERO 3D omogoča gojenje 3D celičnih kultur v fizioloških pogojih, saj zagotavlja strog nadzor nad temperaturo, CO₂ in pH pogoji v zaprtem, svetlobno zaščitenem sistemu, optimiziranem za dolgotrajno gojenje. S posebnim horizontalnim vrtenjem CERO epruvet se zmanjšujejo strižne napetosti, hkrati pa zagotavlja učinkovita oskrba s hranili in izmenjavo plinov, kar je ključnega pomena za ohranitev strukturne in funkcionalne integritete sferoidov in organoidov. Sistem podpira vzporedno gojenje do štirih neodvisnih epruvet s prilagodljivimi delovnimi volumni (3–50 ml), kar omogoča ponovljivo generiranje večjega števila sferoidov in organoidov iz hiPSC, primarnih celic in odraslih matičnih celic.",79474,{"v":48.487658653846154,"d":"48.49"},{"v":5.567658653846154,"d":"5.57"},17.96,24.96,{"v":48.487658653846154,"d":"48.49"},100,null,"https://www.ijs.si/ijsw/Znotraj%20hi%C5%A1e/Desno?action=AttachFile&do=get&target=ARIS_Evidenca_opreme_2025.xlsx",2,1,3,11,"P_XXIII_109",48.487658653846154,5,100,"P4-0127","Boris Rogelj (15813)",60,"GC-005","Roman Jerala (6628)",10,"J-3-60057","Boris Rogelj (15813)",10,"J3-60067","Milica Perišič Nanut (36596)",20]
[130,"Institut \"Jožef Stefan\"",null,null,"Igor Vaskivskyi (38346)",null,"Naprava za študij dinamike kvantnih sistemov v širokem spektralnem območju",2025,"The setup for studying quantum systems in a broad spectral range",{"v":157894.59,"d":"157,894.59"},"P_XXIII_112","Oprema je dostopna po predhodnem dogovoru. Za uporabo zahtevnejše opreme je omogočeno šolanje. Cena storitev je odvisna od zahtevnosti meritev. Kontakt igor.vaskivskyi@ijs.si","Equipment is available on demand. Training can be arranged. The price of services depends on complexity of the measurements. Contact igor.vaskivskyi@ijs.si","Sistem omogoča generacijo sub‑100 fs laserskih sunkov z visoko energijo in je namenjen naprednim časovno‑odvisnim spektroskopijam in raziskavam nelinearnih pojavov v kvantnih materialih. Omogoča prilagodljivo izbiro vzbujanja in detekcije ter deluje kot osrednja platforma za preučevanje ultrahitrih elektronskih, spinovskih in mrežnih procesov. Integriran je v raziskovalno infrastrukturo JSI in podpira eksperimente z LT‑STM, EUV polarimetrijo ter magneto‑optičnimi tehnikami. ","The system enables the generation of sub‑100 fs, high‑energy laser pulses and is intended for advanced time‑resolved spectroscopies and studies of nonlinear phenomena in quantum materials. It provides flexible control of excitation and detection and serves as a central platform for investigating ultrafast electronic, spin, and lattice dynamics. It is integrated into the JSI research infrastructure and supports experiments using LT‑STM, EUV polarimetry, and various magneto‑optical techniques.","79282\n79257\n78934\n77401",{"v":15.182172115384617,"d":"15.18"},{"v":15.182172115384617,"d":"15.18"},null,null,{"v":15.182172115384617,"d":"15.18"},100,null,"https://www.ijs.si/ijsw/Znotraj%20hi%C5%A1e/Desno?action=AttachFile&do=get&target=ARIS_Evidenca_opreme_2025.xlsx",4,4,7,60,"P_XXIII_112",null,5,100,0,"Igor Vaskivskyi (38346)"]
[131,"Institut \"Jožef Stefan\"",null,null,"Janez Zavašnik (33329)",null,"Plinski razdelilnik in kolektor z integriranim analizatorjem ostankov plina (RGA) za in situ poskuse na nano ravni",2025,"Gas splitter and collector with integrated residual gas analyzer (RGA) for in situ nanoscale experiments",{"v":483043.14,"d":"483,043.14"},"P_XXIII_125","Dostop do opreme: po dogovoru (odsek F6 janez.zavasnik@ijs.si)","Access to the device: via agreement (department F6 janez.zavasnik@ijs.si)","Nadgradnja transmisijskega mikroskopa z RGA analizatorjem omogoča raziskovalcem in-situ analize materialov v spremenljvivi atmosferi in temperaturi za analizo oksidacijskih in redukcijskih procesov površin na nanometrskem nivoju, učinkovitost katalitskih nanomaterialov, ker vpogled v fazne transformacije povzročene z zunanjimi dejavniki, na nanometrskem nivoju. Nova oprema omogoča raziskovalcem da presežejo trenutne omejitve raziskovalne opreme, saj omogoča preiskave hidriranih vzorcev, izpostavitev redukcijski in oksidacijski atmosferi, vodni pari ali mešanici plinov, v kombinaciji s povišano temperaturo. ","The upgrade of the transmission microscope with an RGA analyzer enables researchers to perform in situ analyses of materials under variable atmospheric and temperature conditions. This setup facilitates the investigation of oxidation and reduction processes on surfaces at the nanometer scale, the efficiency of catalytic nanomaterials, and provides insight into phase transformations induced by external factors at the nanometer level. The new equipment allows researchers to overcome the current limitations of research tools by enabling the examination of hydrated samples and exposing them to reducing and oxidizing atmospheres, water vapor, or gas mixtures, all in combination with variable temperature.",79575,{"v":81.02645576923078,"d":"81.03"},{"v":46.446455769230774,"d":"46.45"},17.02,17.56,{"v":81.02645576923078,"d":"81.03"},100,null,"https://www.ijs.si/ijsw/Znotraj%20hi%C5%A1e/Desno?action=AttachFile&do=get&target=ARIS_Evidenca_opreme_2025.xlsx",3,5,2,34,"P_XXIII_125",null,5,100,0,"Janez Zavašnik (33329)"]
[132,"Institut \"Jožef Stefan\"",null,null,"Jurij Simčič (18891)",null,"Eksperimentalna postaja za raziskave nastanka in dinamike vodnih molekul na luni",2025,"Integrated Experimental Station for the Study of Lunar Water Origins",{"v":115085.44,"d":"115,085.44"},"P_XXIII_131","Oprema je instalirana v eksperimentalni hali H01 Infrastrukturnega centra MIC odseka F2 na IJS . Oprema, ki je specifična za raziskovanje tvorbe vode v mineralih,  je dostopna  uporabnikom . Uporabniki se glede časa in načina uporabe opreme dogovorijo z odgovorno osebo (jurij.simcic@ijs.si). ","The equipment is installed in the experimental hall H01 of the MIC Infrastructure Center, F2 Department, at the Jožef Stefan Institute (JSI). The equipment, which is specific to research on the formation of water in minerals, is available to outside users. Users arrange the time and mode of use of the equipment with the responsible person (jurij.simcic@ijs.si ).","Eksperimantalna postaja je sestavljena iz vakuumske celice s  tlakom pod 1e-10 mbara, manipulatorja vzorcev s hlajenjem do 77K in gretjem do 1000K, masnega spektrometra in infrardečega laserja za izvajanje tehnike LIBS, s katero lahko merimo globinske profile vodnih molekul v različnih mineralih (olivin, steklo, silika).","The experimental station consists of a vacuum chamber with a pressure below 1 × 10⁻¹⁰ mbar, a sample manipulator with cooling down to 77 K and heating up to 1000 K, a mass spectrometer, and an infrared laser for performing the LIBS technique, which enables measurement of depth profiles of water molecules in various minerals (olivine, glass, silica).",79152,{"v":0,"d":"0.00"},11.07,null,null,{"v":11.06590769,"d":"11.07"},100,null,"https://www.ijs.si/ijsw/Znotraj%20hi%C5%A1e/Desno?action=AttachFile&do=get&target=ARIS_Evidenca_opreme_2025.xlsx","3,4,4,6","2,1,4,4","3,1,1,3",65,"P_XXIII_131",null,5,100,0,"Jurij Simčič (18891)"]
[133,"Institut \"Jožef Stefan\"",null,null,"Sašo Džeroski (11130)",null,"Oprema za intenzivno računalniško obdelavo in shranjevanje občutljivih podatkov",2025,"Research equipment for intensive computational processing and storage of sensitive data",{"v":280685.93,"d":"280,685.93"},"P_XXIII_133","Čas dostopa do opreme vsak delovni dan od 8:00 do 16:00 glede na razpoložljivost po predhodnem dogovoru s skrbnikom. Glede pogojev dostopa in razpoložljivosti kontaktirati Martina Žnidaršiča (martin.znidarsic@ijs.si)","The equipment is available upon request every day from 8 am to 4 pm subject to availability. For access conditions and availability contact Martin Žnidaršič (martin.znidarsic@ijs.si)","CPU in GPU strežniki za obdelavo  občutljivih podatkov in oprema za razvoj in testiranje metod za obdelavo občutljivih podatkov, ter oprema za shranjevanje občutljivih podatkov","CPU and GPU servers for processing sensitive data, equipment for development and testing of appropriate processing methods and equipment for storage of sensitive data","78986\n78987\n78988\n79837\n65659\n65658\n65695\n65696\n79758\n79757\n79759\n79760\n79779\n79778\n79691\n79692\n79693\n79694\n79695\n79696\n79777\n79813\n79826\n79827\n79828\n79816\n79829\n79785\n79786\n79787\n79814\n79985\n79839\n79886\n79922\n79892\n79838\n79923\n79924\n79986\n79984\n79619\n79572\n79573",{"v":69.98903173076923,"d":"69.99"},{"v":26.98903173076923,"d":"26.99"},20,23,{"v":69.98903173076923,"d":"69.99"},100,null,"https://www.ijs.si/ijsw/Znotraj%20hi%C5%A1e/Desno?action=AttachFile&do=get&target=ARIS_Evidenca_opreme_2025.xlsx",6,1,5,25,"P_XXIII_133",23,5,100,0,"Sašo Džeroski (11130)"]
[134,"Institut \"Jožef Stefan\"",null,null,"Marko Štrok (28486)",null,"Tekočinsko scintilacijski števec s tehnologijo GCT",2025,"Liquid scintillation counter with GCT technology",{"v":200110.16,"d":"200,110.16"},"P_XXIII_136","Za dostop do opreme se obrnite na Marka Štrok (marko.strok@ijs.si).","For the access to the equipment please contact Marko Štrok (marko.strok@ijs.si)","Oprema je prvenstveno namenjena meritvam nizkih aktivnsti sevalcev beta in alfa v različnih vzorcih. Radionuklid, ki je predmet meritve je potrebno tipično predhodno izolirati od ostalih motečih sevalcev beta oz. alfa in izoliran vzorec pripraviti v obliki primerni za meritve. ","The equipment is intended primarily for measurements of low activities of beta and alpha emitters in various samples. The radionuclide that is the subject of the measurement must be typically previously isolated from other interferring beta or alpha emitters and the separated sample must be prepared in a form suitable for measurements.",79780,{"v":26.471361538461544,"d":"26.47"},{"v":19.241361538461543,"d":"19.24"},2.94,4.29,{"v":26.471361538461544,"d":"26.47"},100,null,"https://www.ijs.si/ijsw/Znotraj%20hi%C5%A1e/Desno?action=AttachFile&do=get&target=ARIS_Evidenca_opreme_2025.xlsx",2,5,7,60,"P_XXIII_136",45.55,5,100,0,"Marko Štrok (28486)"]
[135,"Institut \"Jožef Stefan\"",null,null,"Marko Štrok (28486)",null,"Nadgradnja multikolektorskega masnega spektrometra na induktivno sklopljeno plazmo",2025,"Upgrade of inductively coupled plasma multicollector mass spectrometer",{"v":171853.21999999997,"d":"171,853.22"},"P_XXIII_139","Za dostop do opreme se obrnite na Marka Štrok (marko.strok@ijs.si).","For the access to the equipment please contact Marko Štrok (marko.strok@ijs.si)","Oprema je namenjena zelo natančnim meritvam izotopskih razmerij različnih kemijskih elementov v različnih tipih vzorcev. Kemijski element je tipično potrebno predhodno izolirati od ostalih interferenc v vzorcu. Nadgradnja multikolektorskega masnega spektrometra na induktivno sklopljeno plazmo omogoča večjo občutljivost in stabilnost signala ter s tem povezano manjšo potrebo po količini kemijskega elementa potrebnega za dosego enakih zmogljivosti kot pred nadgranjo. ","The equipment is intended for very precise measurements of isotopic ratios of various chemical elements in various types of samples. The chemical element typically needs to be previously isolated from other interferences in the sample. Upgrading of inductively coupled plasma multicollector mass spectrometer allows for greater sensitivity and signal stability and, consequently, a lower need for the amount of chemical element needed to achieve the same performance as before the upgrade.",79667,{"v":35.524348076923076,"d":"35.52"},{"v":16.524348076923072,"d":"16.52"},14.71,4.29,{"v":35.524348076923076,"d":"35.52"},100,null,"https://www.ijs.si/ijsw/Znotraj%20hi%C5%A1e/Desno?action=AttachFile&do=get&target=ARIS_Evidenca_opreme_2025.xlsx",3,2,3,60,"P_XXIII_139",45.55,5,100,0,"Marko Štrok (28486)"]
[136,"Institut \"Jožef Stefan\"",null,null,"Aljaž Čufar (36329)",null,"Nadgradnja računalniške gruče po sistemu »na ključ«",2025,"Turnkey upgrade of a computer cluster",{"v":436798.39,"d":"436,798.39"},"P_XXIII_146","Glede na proste kapacitete in ob predhodnem dogovoru je oprema na voljo preko bojan.zefran@ijs.si. Več informacij je na: https://f8.ijs.si/gruce-f8/."," Depending on the availability of the resources the arrangements can be made through bojan.zefran@ijs.si. More information on: https://f8.ijs.si/gruce-f8/.","Računalniška gruča z večjim številom jeder, namenjena izračunom, ki kjer lahko uporabimo paralelno računanje za pospešitev računanja. Nadgradnja gruče vsebuje nov datotečni strežnik in 6 računskih vozlišč, ki vsebujejo po 2 x 32 jedrna procesorja in 1024 GB spomina.","Compute cluster with large number of CPU cores for simulations that can take advantage of parallel computing. Cluster upgrade consists of a new file server and 6 nodes with 2 x 32 core processors and 1024 GB of memory.","65270 16",{"v":41.9998451923077,"d":"42.00"},{"v":41.9998451923077,"d":"42.00"},"0,01 / jedro / uro","0,01 / jedro / uro",{"v":41.9998451923077,"d":"42.00"},100,null,"https://www.ijs.si/ijsw/Znotraj%20hi%C5%A1e/Desno?action=AttachFile&do=get&target=ARIS_Evidenca_opreme_2025.xlsx",6,1,4,26,"P_XXIII_146",null,5,100,0,"Aljaž Čufar (36329)"]
[137,"Institut \"Jožef Stefan\"",null,null,"Mitja Kelemen (37782)",null,"Visko napetostni napajalniki za potrebe ionske optike",2025,null,{"v":57912.26,"d":"57,912.26"},"P_XXIII_165",{"$nulls":4},79655,{"v":5.568486538461539,"d":"5.57"},{"v":5.568486538461539,"d":"5.57"},null,null,{"v":5.568486538461539,"d":"5.57"},100,null,"https://www.ijs.si/ijsw/Znotraj%20hi%C5%A1e/Desno?action=AttachFile&do=get&target=ARIS_Evidenca_opreme_2025.xlsx",{"$nulls":4},"P_XXIII_165",null,5,100,0,"Mitja Kelemen (37782)"]
[138,"Institut \"Jožef Stefan\"",null,null,"Boris Turk (7561)",null,"Centrifuga za večje prostornine",2025,"Sorvall Lynx Superspeed centrifuge",{"v":84022.28999999998,"d":"84,022.29"},"P_XXIII_170","Dostop do opreme je treba najaviti najmanj 3 dni vnaprej tako, da uporabnik kontaktira tajništvo (po e-pošti ali telefonu) in navede ime in priimek, namen uporabe, želeni termin ter trajanje uporabe; po potrditvi s strani tajništva je dostop omogočen v dogovorjenem terminu.","Access to the equipment must be requested at least 3 days in advance by contacting the administrative office (via email or phone) and providing the user’s name, purpose of use, desired date and time, and duration; access will be granted upon confirmation by the administrative office.","Centrifuga Sorvall Lynx 6000 je namenjena visoko-hitrostni in visoko-kapacitetni centrifugaciji bioloških in kemičnih vzorcev (npr. celice, celični lizati, proteini, nukleinske kisline) z največjim skupnim volumnom do 6 litrov. Omogoča uporabo različnih rotorjev in nastavkov, natančen nadzor hitrosti, temperature in časa ter varno in zanesljivo delovanje za rutinske in raziskovalne laboratorijske postopke.","The Sorvall Lynx 6000 centrifuge is intended for high-speed and high-capacity centrifugation of biological and chemical samples (e.g. cells, cell lysates, proteins, nucleic acids) with a maximum total volume of up to 6 liters. It supports a wide range of rotors and adapters, provides precise control of speed, temperature, and time, and ensures safe and reliable operation for routine and research laboratory applications.",79529,{"v":65.33906634615386,"d":"65.34"},{"v":8.079066346153844,"d":"8.08"},9.99,47.27,{"v":65.33906634615386,"d":"65.34"},100,null,"https://www.ijs.si/ijsw/Znotraj%20hi%C5%A1e/Desno?action=AttachFile&do=get&target=ARIS_Evidenca_opreme_2025.xlsx",2,2,1,10,"P_XXIII_170",56.46,5,100,0,"Boris Turk (7561)"]
[139,"Institut \"Jožef Stefan\"",null,null,"Kristian Radan ",null,"Nadgradnja nizkotemperaturnega ramanskega spektrometra",2025,"Upgrade of the low-temperature Raman spectrometer",{"v":20529.42,"d":"20,529.42"},"P_XXIII_189","Uporaba je možna po predhodnem dogovoru (kristian.radan@ijs.si ali matic.lozinsek@ijs.si)","Access is possible upon demand (kristian.radan@ijs.si or matic.lozinsek@ijs.si)","Spektrometer je opremljen z dvema laserjema valovnih dolžin 532 nm in 785 nm  ter omogoča merjenje ramanskih spektrov z veliko prostorsko in spektralno ločljivostjo. Vzorec se v fokus laserskega žarka premika z električno kontrolirano pomično mizico, ki omogoča natančne premike v vseh treh dimenzijah in s tem skeniranje oziroma »kartografiranje« vzorca pri čemer se v vsaki točki posname ramanski spekter. Na ta način je mogoče pridobiti informacijo o kemijski sestavi in homogenosti vzorca. Del tega spektrometra obsega tudi posebna hladilna enota, ki bo omogočala hlajenje vzorca s pomočjo tekočega dušika.","The spectrometer is equipped with 532-nm and 785-nm lasers and enables the measurement of Raman spectra with high spatial and spectral resolution. The sample is moved into the focus of the laser beam with a motorized xyz stage, which enables precise movements in all three dimensions and thus mapping of the sample, whereby the Raman spectrum is recorded at each point. In this way, it is possible to obtain information about the chemical composition and homogeneity of the sample. This spectrometer also includes a special cooling unit, which will enable cooling of the sample with the help of liquid nitrogen.",79847,{"v":32.23398269230769,"d":"32.23"},{"v":1.9739826923076924,"d":"1.97"},17.88,12.38,{"v":32.23398269230769,"d":"32.23"},100,null,"https://www.ijs.si/ijsw/Znotraj%20hi%C5%A1e/Desno?action=AttachFile&do=get&target=ARIS_Evidenca_opreme_2025.xlsx",3,1,1,4,"P_XXIII_189",0,5,100,0,"Kristian Radan "]
[140,"Institut \"Jožef Stefan\"",null,null,"Benjamin Podmiljšak (24982)",null,"Mlin na plinski curek",2025,"Jet Mill",{"v":262843.8,"d":"262,843.80"},"P_XXIII_205","Zaradi kompleksnosti naprave je uporaba možna le s predhodno najavo in dogovorjenim sestankom glede možnosti uporabe. Mletje izvaja izključno usposobljen kader.","Due to the complexity of the equipment, its use is only possible upon prior notification and a scheduled meeting to discuss usage options. The milling is carried out exclusively by trained personnel.","Mlin na plinski curek je namenjen ultra finemu mletju praškov z uporabo stisnjenega plina brez mehanskega stika med delci in mlevnimi elementi. Omogoča natančen nadzor velikosti delcev ter preprečuje kontaminacijo materiala. Primeren je za obdelavo temperaturno občutljivih in reaktivnih materialov. Oprema omogoča uporabo inertnih plinov (npr. dušik ali argon), kar zagotavlja varno mletje občutljivih materialov.","The jet mill is intended for ultra-fine grinding of powders using compressed gas, without mechanical contact between the particles and milling components. It enables precise control of particle size and minimizes material contamination. The system is suitable for processing temperature-sensitive and reactive materials. The equipment allows the use of inert gases (e.g., nitrogen or argon), ensuring safe milling of sensitive materials.",80219,{"v":309.49344230769236,"d":"309.49"},{"v":25.27344230769231,"d":"25.27"},260.5,23.72,{"v":309.49344230769236,"d":"309.49"},100,null,"https://www.ijs.si/ijsw/Znotraj%20hi%C5%A1e/Desno?action=AttachFile&do=get&target=ARIS_Evidenca_opreme_2025.xlsx",1,4,2,44,"P_XXIII_205",68.72,5,100,0,"Benjamin Podmiljšak (24982)"]

{"sheet":"Klasifikacija - Uni-Leeds","index":2,"n_rows":198,"n_cols":9,"rows_kept":198,"merged":[[1,1,2,1],[1,2,2,2],[37,1,38,1],[37,2,38,2],[60,1,61,1],[60,2,61,2],[120,1,121,1],[120,2,121,2],[165,1,166,1],[165,2,166,2]]}
["#C","Razred","Class","#O","Red","Order","#G","Vrsta","Genus"]
[1,"Procesna Oprema – Fizikalna","Process Equipment – Physical",1,"Nanašanje tankih filmov","Thin Film Deposition",1,"Izparjevalec","Evaporator"]
[{"$nulls":6},2,"Epitaksija z molekularnim žarkom  ","Molecular Beam Epitaxy"]
[{"$nulls":6},3,"Pršilnik","Sputterer"]
[{"$nulls":6},4,"Nanašanje s pulznim laserjem","Pulsed Laser Deposition"]
[{"$nulls":6},5,"Nanašanje s kemijskimi hlapi","Chemical Vapour Deposition"]
[{"$nulls":6},6,"Elektro-nanašanje","Electrodeposition"]
[{"$nulls":6},7,"Nanašanje z ionskim žarkom","Ion Beam Deposition"]
[{"$nulls":3},2,"Litografija","Lithography",1,"Optična","Optical"]
[{"$nulls":6},2,"Elektronski žarek","Electron beam"]
[{"$nulls":6},3,"Karakterizacija","Ion Beam"]
[{"$nulls":6},4,"Laser (nameri-piši)","Laser (Direct-Write)"]
[{"$nulls":3},3,"Jedkanje","Etching",1,"Reaktivni ion","Reactive Ion"]
[{"$nulls":6},2,"Plazma","Plasma"]
[{"$nulls":6},3,"Laser","Laser"]
[{"$nulls":6},4,"Mehansko","Mechanical"]
[{"$nulls":6},5,"Frezanje z ionskim žarkom","Ion Beam Milling"]
[{"$nulls":3},4,"Kontrolirano okolje","Controlled Environment",1,"Peč","Furnace"]
[{"$nulls":6},2,"Hitri toplotni temperiranje","Rapid Thermal Annealer"]
[{"$nulls":6},3,"Komora z rokavicami","Glove Box"]
[{"$nulls":6},4,"Atmosferski reaktor","Atmospheric Reactors"]
[{"$nulls":3},5,"Pakiranje","Packaging",1,"Vezava z žico","Wire Bonding"]
[{"$nulls":6},2,"Rezanje","Dicing"]
[{"$nulls":6},3,"Enkapsulacija","Encapsulation"]
[{"$nulls":3},6,"Karakterizacija","Characterisation",1,"Elipsometrija","Ellipsometry"]
[{"$nulls":6},2,"Profilometer","Profilometer"]
[{"$nulls":3},7,"Kemijski Reaktor","Chemical Reactor",1,"Kristalizacija","Crystallisation"]
[{"$nulls":6},2,"Distilacija","Distillation"]
[{"$nulls":6},3,"Paralelna sinteza","Parallel Synthesis"]
[{"$nulls":6},4,"Tvorba delčkov","Particle Formation"]
[{"$nulls":6},5,"Avtomatska ekstrakcija","Automated Extraction"]
[{"$nulls":6},6,"Avtomatska sinteza","Automated Synthesis"]
[{"$nulls":3},8,"Manipulacija vzorcev","Sample Manipulation",1,"Manipulacija tekočin","Liquid Handling"]
[{"$nulls":6},2,"Robot","Robot"]
[{"$nulls":6},3,"Ustavljeni pretok","Stopped Flow"]
[{"$nulls":3},9,"Tekstili","Textiles",1,"Produkcijo tekstilov","Textiles Production"]
[{"$nulls":6},2,"Tiskanje tekstilov","Textiles Printer"]
[2,"Procesna Oprema – Biološka","Process Equipment – Biological",1,"Rast in manipulacija","Growth and Manipulation",1,"Bakteriologija","Bacteriology"]
[{"$nulls":6},2,"Virologija","Virology"]
[{"$nulls":6},3,"Celične kulture","Cell Culture"]
[{"$nulls":6},4,"Fermentologija","Fermentology"]
[{"$nulls":3},2,"Centrifuge","Centrifuge",1,"Ultracentrifuge","Ultracentrifuges"]
[{"$nulls":6},2,"Visokih hitrosti","High Speed"]
[{"$nulls":3},3,"Procesiranje tkiv","Tissue Processing",1,"Procesor tkiv","Tissue Processor"]
[{"$nulls":6},2,"Kriostat","Cryostat"]
[{"$nulls":6},3,"Mikrotom","Microtome"]
[{"$nulls":6},4,"Imunski označevalec","Immunostainer"]
[{"$nulls":6},5,"Dehidracija","Dehydration"]
[{"$nulls":6},6,"Celični disruptor","Cell Disruptor"]
[{"$nulls":3},4,"Sterilizacija","Sterilisation",1,"Avtoklav","Autoclave"]
[{"$nulls":6},2,"Purifikcija vode","Water Purification"]
[{"$nulls":6},3,"Iradiacija","Irradiation"]
[{"$nulls":6},4,"VHP dekontaminacija","VHP Decontamination"]
[{"$nulls":3},5,"Karakterizacija","Characterisation",1,"Fluorescenčni bralniki","Fluorescent Readers"]
[{"$nulls":6},2,"UV","UV"]
[{"$nulls":6},3,"Infra-rdeča","Infra-Red"]
[{"$nulls":6},4,"Celični števci","Cell Counters"]
[{"$nulls":6},5,"Ploščni bralniki","Plate Readers"]
[{"$nulls":6},6,"Analizatorji","Analysers"]
[{"$nulls":6},7,"Scintilacijski števci","Scintillation Counters"]
[3,"Karakterizacija materialov","Materials Characterisation",1,"Spektroskopija","Spectroscopy",1,"Raman","Raman"]
[{"$nulls":6},2,"Infra-rdeča","Infra-Red"]
[{"$nulls":6},3,"Jedrska magnetna resonanca","Nuclear Magnetic Resonance"]
[{"$nulls":6},4,"Optična","Optical"]
[{"$nulls":6},5,"EPR","EPR"]
[{"$nulls":6},6,"Rentgenska fotoemisijska","X-ray Photoemission"]
[{"$nulls":6},7,"Fluorescenca","Fluorescence"]
[{"$nulls":6},8,"Cirkularni dikrometer","Circular Dichrometer"]
[{"$nulls":3},2,"Spektrometrija","Spectrometry",1,"Spektrofotometrija","Spectrophotometry"]
[{"$nulls":6},2,"Rentgenska","X-ray"]
[{"$nulls":6},3,"Masna spektrometrija","Mass Spectrometry"]
[{"$nulls":3},3,"Slikanje-Imaging","Imaging",1,"Magnetna resonanca","Magnetic Resonance"]
[{"$nulls":6},2,"Rentgenska","X-ray"]
[{"$nulls":6},3,"Infra-rdeča","Infra-Red"]
[{"$nulls":6},4,"Ultrazvočna","Ultrasound"]
[{"$nulls":6},5,"In Vivo Fluorescenca","In Vivo Fluorescence"]
[{"$nulls":3},4,"Optična mikroskopija","Optical Microscopy",1,"Confokalna","Confocal"]
[{"$nulls":6},2,"Bližnjega polja","Near Field"]
[{"$nulls":6},3,"Transmisijska","Transmission"]
[{"$nulls":6},4,"Reflekcijska","Reflection"]
[{"$nulls":6},5,"Microdisekcijska","Microdissection"]
[{"$nulls":6},6,"Živih celic","Live Cell"]
[{"$nulls":6},7,"Fluorescenčna","Fluorescence"]
[{"$nulls":6},8,"Stereo","Stereo"]
[{"$nulls":3},5,"Elektronska mikroskopija","Electron Microscopy",1,"Skenska","Scanning"]
[{"$nulls":6},2,"Skenska transmisijska","Scanning Transmission"]
[{"$nulls":6},3,"Transmisijska","Transmission"]
[{"$nulls":6},4,"Detektorji","Detectors"]
[{"$nulls":6},5,"Manipulacija vzorcev","Sample Manipulation"]
[{"$nulls":3},6,"Površinska mikroskopija","Surface Probe Microscopy",1,"Atomsa sila","Atomic Force"]
[{"$nulls":6},2,"Skensko tuneliranje","Scanning Tunneling"]
[{"$nulls":6},3,"Magnetna sila","Magnetic Force"]
[{"$nulls":3},7,"Površinska analiza","Surface analysis",1,"Naboj","Charge"]
[{"$nulls":6},2,"Adsorpcija","Adsorption"]
[{"$nulls":3},8,"Difrakcija","Diffraction",1,"Rentgenska","X-ray"]
[{"$nulls":6},2,"Elektronov nizkih energij","Low Energy Electron"]
[{"$nulls":6},3,"Elektronov visokih energij","High Energy Electron"]
[{"$nulls":3},9,"Magnetometrija","Magnetometry",1,"Vibrirajočih vzorcev","Vibrating Sample"]
[{"$nulls":6},2,"SQUID","SQUID"]
[{"$nulls":6},3,"Kerrov pojav","Kerr Effect"]
[{"$nulls":3},10,"Mehanske lastnosti","Mechanical Properties",1,"Tenzometer","Tensometer"]
[{"$nulls":6},2,"Reometer","Rheometer"]
[{"$nulls":6},3,"Breme","Load"]
[{"$nulls":6},4,"Trdost","Hardness"]
[{"$nulls":6},5,"Tribometer","Tribometer"]
[{"$nulls":6},6,"Vibracija","Vibration"]
[{"$nulls":3},11,"Kemijska analiza","Chemical Analysis",1,"Analiza zraka","Air Analysis"]
[{"$nulls":6},2,"Distilacijska analiza","Distillation Analysis"]
[{"$nulls":6},3,"Analiza vode","Water Analysis"]
[{"$nulls":6},4,"Trdne snovi","Solids"]
[{"$nulls":6},5,"Kromatografija","Chromatography"]
[{"$nulls":6},6,"Makromolekulska","Macromolecular"]
[{"$nulls":6},7,"Electroforeza","Electrophoresis"]
[{"$nulls":3},12,"Fizikalne lastnosti","Physical Properties",1,"Analiza velikosti delcev","Particle Size Analysis"]
[{"$nulls":6},2,"Zeta Potencial","Zeta Potential"]
[{"$nulls":6},3,"Toplotne","Thermal"]
[{"$nulls":6},4,"Geometrijske","Geometric"]
[{"$nulls":6},5,"Ravnovesje","Balance"]
[{"$nulls":6},6,"Vlakna","Fibre"]
[{"$nulls":6},7,"Analitične centrifuge","Analytical Centrifuges"]
[4,"Meritve in analiza vzorcev","Sample Measurement/ Analysis",1,"Kriogenika","Cryogenic",1,"77K","77K"]
[{"$nulls":6},2,"4K","4K"]
[{"$nulls":6},3,"1.4K","1.4K"]
[{"$nulls":6},4,"He3","He3"]
[{"$nulls":6},5,"mili-Kelvin","milli-Kelvin"]
[{"$nulls":3},2,"Elektronska","Electronic",1,"Analizator mrež","Network Analyser"]
[{"$nulls":6},2,"Mikrovalovne","Microwave"]
[{"$nulls":6},3,"Radiofrekvenčne","RF"]
[{"$nulls":6},4,"Osciloskopi","Oscilloscope"]
[{"$nulls":3},3,"Gibanje","Motion",1,"Visokohitrostni video","High Speed Video"]
[{"$nulls":6},2,"Nizkohitrostni video","Low Speed Video"]
[{"$nulls":6},3,"Telemetrija","Telemetry"]
[{"$nulls":6},4,"Tekočine","Fluid"]
[{"$nulls":6},5,"Haptika","Haptics"]
[{"$nulls":3},4,"Laser","Laser",1,"Karakterizacija","Characterisation"]
[{"$nulls":6},2,"Barvila","Dye"]
[{"$nulls":6},3,"Ekscimer","Excimer"]
[{"$nulls":6},4,"Vlakna","Fibre"]
[{"$nulls":6},5,"Visokih moči","High Power"]
[{"$nulls":6},6,"Opto-akustični sistemi","Opto-Acoustic Systems"]
[{"$nulls":6},7,"Pulzni femtosekundni","Pulsed Femtosecond"]
[{"$nulls":6},8,"YAG","YAG"]
[{"$nulls":3},5,"Optična","Optical",1,"Kvantne informacije","Quantum Information"]
[{"$nulls":6},2,"Površinska plazmonska resonanca","Surface Plasmon Resonance"]
[{"$nulls":6},3,"Dualna polarizacija","Dual-polarisation"]
[{"$nulls":6},4,"Bolometrija","Bolometric"]
[{"$nulls":6},5,"Slikanje-Imaging visoke ločljivosti","High Resolution Imaging"]
[{"$nulls":3},6,"Proteini/Nukleinske kisline","Proteins/Nucleic Acids",1,"Matrika","Arrays"]
[{"$nulls":6},2,"PCR","PCR"]
[{"$nulls":6},3,"Sekvencerji","Sequencers"]
[{"$nulls":6},4,"Sintetizatorji","Synthesisers"]
[{"$nulls":6},5,"Electroforeza","Electrophoresis"]
[{"$nulls":3},7,"Bio-Medicinske","Bio-Medical",1,"Kardiovaskularne","Cardiovascular"]
[{"$nulls":6},2,"Ortopedske","Orthopedic Wear"]
[{"$nulls":6},3,"Zobne","Dental"]
[{"$nulls":6},4,"Celo telo","Whole Body"]
[{"$nulls":6},5,"Celice","Cells"]
[{"$nulls":6},6,"Tkiva","Tissues"]
[{"$nulls":3},8,"Akustične","Acoustic",1,"Doppler","Doppler"]
[{"$nulls":6},2,"Ultrazvok","Ultrasound"]
[{"$nulls":6},3,"Avdio","Audio"]
[{"$nulls":3},9,"Terenske","Field Deployable",1,"Trdne snovi","Solids"]
[{"$nulls":6},2,"Tekočine","Liquids"]
[{"$nulls":6},3,"Plini","Gases"]
[{"$nulls":6},4,"Plazme","Plasmas"]
[5,"Velika Instrumentacija","Large Scale Instruments",1,"Simulirana okolja","Simulated Environments",1,"Akustika","Acoustics"]
[{"$nulls":6},2,"Izgorevanje","Combustion"]
[{"$nulls":6},3,"Vožnja","Driving"]
[{"$nulls":6},4,"Zračni prevoz","Flight"]
[6,"Infrastruktura","Infrastructure",1,"Informacijska tehnologija","IT",1,"Server","Server"]
[{"$nulls":6},2,"Skladiščenje","Storage"]
[{"$nulls":6},3,"Delovna postaja","Workstation"]
[{"$nulls":6},4,"Paralelno računanje","Parallel Computing"]
[{"$nulls":6},5,"Delo s podatki","Data Management"]
[{"$nulls":6},6,"Prikaz","Display"]
[{"$nulls":3},2,"Mehanična","Mechanical",1,"Hidravlika","Hydraulic"]
[{"$nulls":3},3,"Delavnica","Workshop",1,"CNC stroji","CNC Machines"]
[{"$nulls":6},2,"Vrtanje","Drill"]
[{"$nulls":6},3,"Drobljenje","Grinding"]
[{"$nulls":6},4,"Spajanje","Joining"]
[{"$nulls":6},5,"Vrtilna miza","Lathe"]
[{"$nulls":6},6,"Mletje","Milling"]
[{"$nulls":6},7,"Žaganje","Sawing"]
[{"$nulls":6},8,"Sintranje","Sintering"]
[{"$nulls":6},9,"Drzga rezanja","Other Cutting"]
[{"$nulls":3},4,"Laboratorij","Laboratory",1,"Tekočine","Fluids"]
[{"$nulls":6},2,"Medicinski","Medical"]
[{"$nulls":6},3,"Kontrolirana atmosfera","Controlled Atmosphere"]
[{"$nulls":6},4,"Kontrolirano okolje - soba za rast","Controlled Environment Growth Room"]
[{"$nulls":6},5,"Kontrolirano okolje - skladiščenje","Controlled Environment Storage"]
[{"$nulls":6},6,"Elektromagnetna zaščita","Electromagnetic Screening"]
[{"$nulls":6},7,"Optična","Optical"]
[{"$nulls":6},8,"Terenski","Field Deployable"]
[{"$nulls":3},5,"Kriogenska","Cryogenic",1,"Utekočinjevalec","Liquefier"]
[{"$nulls":3},6,"Vozila","Vehicles",1,"Za osebje","Personnel"]
[{"$nulls":6},2,"Za opremo","Equipment"]
[{"$nulls":6},3,"Kmetijska","Agricultural"]
[{"$nulls":3},7,"V živo","In Vivo",1,"Sistemi za pranje in namakanje","Washing and Watering Systems"]

{"sheet":"Klasifikacij MERIL","index":3,"n_rows":72,"n_cols":3,"rows_kept":72}
["Številka","Klasifikacija","Category"]
[1,"Akustične opazovalne postaje","Acoustic monitoring stations"]
[2,"Sistemi za letalske in vesoljske ter aerodinamične raziskave","Aerospace and aerodynamics research facilities"]
[3,"Centri za agronomijo, gozdarstvo in žlahtnjenje rastlin","Agronomy, Forestry, Plant Breeding Centres"]
[4,"Sistemi za analize","Analytical Facilities"]
[5,"Sistemi s poskusnimi živalmi","Animal facilities "]
[6,"Detektorji in opazovalnice astro-delcev in nevtrinov","Astro-particle and neutrino detectors and observatories"]
[7,"Atmosferski merilni sistemi","Atmospheric Measurement Facilities "]
[8,"Bio-banke vključno s semenskimi bankami","Biobanks including Seed banks"]
[9,"Sistemi za bioinformatiko","Bio-informatics Facilities"]
[10,"Sistemi za biomedicinsko slikanje","Biomedical Imaging Facilities"]
[11,"Raziskovalna oprema za celične kulture","Cell Culture Facilities "]
[12,"Centri za napredne raziskave v matematiki","Centers for advanced research in mathematics"]
[13,"Centri za razvoj industrijske matematike","Centers for development of industrial mathematics"]
[14,"Centralizirani računalniški sistemi","Centralised Computing Facilities"]
[15,"Kemične knjižnice in presejalni sistemi","Chemical Libraries and Screening Facilities "]
[16,"Raziskovalna infrastruktura za gradbeništvo","Civil Engineering Research Infrastructures"]
[17,"Raziskovalna oprema za klinične raziskave","Clinical Research Centres "]
[18,"Zbirke","Collections"]
[19,"Komunikacijska omrežja","Communication Networks"]
[20,"Sistemi za kompleksne podatke","Complex Data Facilities"]
[21,"Konceptualni modeli","Conceptual Models"]
[22,"Interdisciplinarni centri v matematiki","Cross disciplinary  centers in mathematics"]
[23,"Arhivi podatkov, repozitoriji in zbirke","Data Archives, Data Repositories and Collections "]
[24,"Baze podatkov","Databases"]
[25,"Sistemi za zbiranje in analize podatkov, vključno s statistično analizo","Data Mining and Analysis (Methodological) Centers, including statistical analysis"]
[26,"Porazdeljene računalniške zmogljivosti ","Distributed Computing Facilities"]
[27,"Sateliti za opazovanje Zemlje","Earth Observation satellites"]
[28,"Podatkovni centri o zemlji, oceanih,  morjih, sladkih vodah in atmosferi","Earth, Ocean, Marine, Freshwater, and Atmosphere Data Centres"]
[29,"Laboratoriji za simulacije potresov ","Earthquake Simulation Laboratories"]
[30,"Sistemi električnega in optičnega inženiringa","Electrical and Optical Engineering Facilities"]
[31,"Sistemi energetskega inženiringa (nejedrskega)","Energy Engineering Facilities (non nuclear)"]
[32,"Sistemi za raziskave na področju varstva okolja","Environmental Health Research Facilities"]
[33,"Infrastrukture za upravljanje z okoljem","Environmental Management Infrastructures"]
[34,"Sistemi za ekstremne razmere","Extreme Conditions Facilities"]
[35,"Sistemi za genomiko, transkriptomiko, proteomiko in metabolomiko","Genomic, Transcriptomic, Proteomics and Metabolomics Facilities"]
[36,"Sistemi za geotermalne raziskave","Geothermal Research Facilities"]
[37,"Observatoriji in detektorji gravitacijskih valov ","Gravitational wave detectors and Observatories"]
[38,"Sistemi fizike visokih energij","High Energy Physics Facilities"]
[39,"\"In situ\" zemljske opazovalnice","In situ Earth Observatories "]
[40,"\"In situ\" morske / sladkovodne opazovalnice","In situ Marine/Freshwater Observatories"]
[41,"Intenzivni svetlobni viri","Intense Light Sources"]
[42,"Intenzivni neutronski viri","Intense Neutron Sources"]
[43,"Morski in pomorski inženirski sistemi","Marine &amp; Maritime Engineering Facilities"]
[44,"Sistemi za sintezo ali testiranje materialov ","Materials Synthesis or Testing Facilities"]
[45,"Matematični kompetenčni centri","Mathematics Centres of Competence"]
[46,"Sistemi s področja strojništva ","Mechanical Engineering Facilities"]
[47,"Mikro-in nanotehnološki sistemi","Micro- and Nanotechnology facilities"]
[48,"Objekti za nacionalne statistike  (pisarne)","National Statistical Facilities (offices)"]
[49,"Zbirke s področja zgodovine narave ","Natural History Collections"]
[50,"Sistemi za jedrske raziskave ","Nuclear Research Facilities"]
[51,"Pilotni pogoni za procesna testiranja","Pilot Plants for Process Testing"]
[52,"Polarne in kriosferske raziskovalne infrastrukture","Polar and Cryospheric Research Infrastructures"]
[53,"Repozitoriji referenčnih materialov","Reference material repositories"]
[54,"Registri in študije/podatkovne baze na osnovi anket","Registers and Survey-led Studies/Databases"]
[55,"Repozitoriji ","Repositories"]
[56,"Raziskovalna letala","Research Aircraft "]
[57,"Raziskovalni arhivi","Research Archives"]
[58,"Raziskovalne bibliografije","Research Bibliographies"]
[59,"Sistemi za raziskave podatkov","Research Data Service Facilities"]
[60,"Raziskovalni sistemi","Research Facilities"]
[61,"Raziskovalne knjižnice","Research Libraries"]
[62,"Sistemi za za varnost ","Safety Handling facilities"]
[63,"Sistemi za programsko opremo","Software Service Facilities "]
[64,"Observatoriji za trdno zemljo, vključno s seizmološkimi postajami ","Solid Earth Observatories, including Seismological Monitoring Stations"]
[65,"Testni sistemi za vesoljsko okolje","Space Environment Test Facilities"]
[66,"Sistemi za strukturno biologijo","Structural Biology Facilities "]
[67,"Sistemi za sistemsko/računsko biologijo","Systems Biology/Computational Biology Facilities"]
[68,"Telemedicinski laboratoriji in tehnologije e-zdravja","Telemedicine laboratories and E-Health technologies"]
[69,"Teleskopi","Telescopes"]
[70,"Prevajalni raziskovalni centri","Translational Research Centres"]
[71,"Podzemni laboratoriji","Underground Laboratories"]